Workbook

Sheet Pres & Prop Rev
J3: TRANSPORT
A4: WORK PAPER | D4: GEN SERVICE | E4: LRG GEN SVC | F4: EX LRG GEN SVC | G4: INTERRUPTIBLE | H4: TRANSPORT | I4: TRANSPORT | J4: SCH 148 - WSU
A5: REFERENCE | C5: TOTAL | D5: SCH. 101 & 102 | E5: SCH. 111,112&116 | F5: SCH. 121,122&126 | G5: SCH. 131&132 | H5: SCHEDULE 146 | I5: SCHEDULE 148 | J5: ANN. MINIMUM | Q5: Print Header for all printed pages on this worksheet:
B6: PRESENT BILL DETERMINANTS | M6: Calculate all revenue exhibits using ____ rates: | Q6: ="AVISTA UTILITIES WASHINGTON NATURAL GAS PRO FORMA REVENUE UNDER PRESENT AND PROPOSED "&O9&" RATES 12 MONTHS ENDED DECEMBER 31, 2018" -> AVISTA UTILITIES WASHINGTON NATURAL GAS PRO FORMA REVENUE UNDER PRESENT AND PROPOSED BASE TARIFF RATES 12 MONTHS ENDED DECEMBER 31, 2018
B7: THERMS | L7: 1) | M7: BASE TARIFF
A8: JDM-G-8 | B8: BLOCK 1 | D8: ='Bill Determ'!E7 -> 78130536.43 | E8: ='Bill Determ'!B12 -> 6375094.21 | F8: ='Bill Determ'!B29 -> 17999.89167 | G8: ='Bill Determ'!B36 -> 240000 | H8: ='Bill Determ'!B40 -> 8493795 | I8: ='Bill Determ'!B46 -> 24532118 | J8: ='Bill Determ'!B52 -> 10599458 | M8: or | O8: 1
A9: JDM-G-8 | B9: BLOCK 2 | D9: ='Bill Determ'!F7 -> 45837805.66 | E9: ='Bill Determ'!C12 -> 16565126.56 | F9: ='Bill Determ'!C29 -> 17999.66666 | G9: ='Bill Determ'!C36 -> 304980 | H9: ='Bill Determ'!C40 -> 8514233 | I9: ='Bill Determ'!B47 -> 6237208 | L9: 2) | M9: BILLING | O9: =CHOOSE(Base1_Billing2,M7,M9) -> BASE TARIFF
A10: JDM-G-8 | B10: BLOCK 3 | E10: ='Bill Determ'!D12 -> 29697691.91 | F10: ='Bill Determ'!D29 -> 324000.2233 | G10: ='Bill Determ'!D36 -> 342272 | H10: ='Bill Determ'!D40 -> 13953929 | I10: ='Bill Determ'!B48 -> 2090525 | O10: =CHOOSE(Base1_Billing2,"Base","Billing") -> Base
A11: JDM-G-8 | B11: BLOCK 4 | F11: ='Bill Determ'!E29 -> 536304.6041 | G11: ='Bill Determ'!E36 -> 98015 | H11: ='Bill Determ'!E40 -> 2746588 | I11: ='Bill Determ'!B49 -> 5652763
A12: JDM-G-8 | B12: BLOCK 5 | F12: ='Bill Determ'!F29 -> 743507.616 | H12: ='Bill Determ'!F40 -> 1899391 | I12: ='Bill Determ'!B43 -> 5405533
B14: SUBTOTAL | C14: =SUM(D14:J14) -> 269356874.8 | D14: =SUM(D8:D12) -> 123968342.1 | E14: 52637912.68 | F14: 1639812.002 | G14: 985267 | H14: =SUM(H8:H12) -> 35607936 | I14: =SUM(I8:I12) -> 43918147 | J14: 10599458
B15: LOAD ADJUSTMENT
B17: SUBTOTAL | C17: =SUM(D17:J17) -> 269356874.8 | D17: =D14+D15 -> 123968342.1 | E17: 52637912.68 | F17: 1639812.002 | G17: 985267 | H17: =H14+H15 -> 35607936 | I17: 43918147 | J17: 10599458
B18: ADJUSTMENT TO ACTUAL | C18: =SUM(D18:J18) -> 0 | D18: ='Bill Determ'!G9 -> 0 | E18: ='Bill Determ'!E17 -> 0
B20: TOTAL BEFORE ADJUSTMENT | C20: =SUM(D20:J20) -> 269356874.8 | D20: =D17+D18 -> 123968342.1 | E20: 52637912.68 | F20: 1639812.002 | G20: 985267 | H20: =H17+I18 -> 35607936 | I20: =I17+I18 -> 43918147 | J20: 10599458
A21: JDM-G-3 | B21: WEATHER & UNBILLED REV. ADJ. | C21: =SUM(D21:J21) -> 6624790 | D21: =D134+D137 -> 5017638 | E21: =E134+E137 -> 1691893 | F21: =F134+F137 -> -84741 | G21: 0 | H21: =H134+H137 -> 0 | I21: 0 | J21: 0
B23: TOTAL PROFORMA THERMS | C23: =IF(ROUND(SUM(C20:C21),3)<>ROUND(SUM(D23:J23),3),#VALUE!,SUM(D23:J23)) -> 275981664.8 | D23: =SUM(D20:D21) -> 128985980.1 | E23: 54329805.68 | F23: 1555071.002 | G23: 985267 | H23: =SUM(H20:H21) -> 35607936 | I23: 43918147 | J23: 10599458
A25: JDM-G-8 | B25: TOTAL BILLS | D25: ='Bill Determ'!C7 -> 1941495 | G25: ='Bill Determ'!G36 -> 24 | H25: ='Bill Determ'!H40 -> 480 | I25: ='Bill Determ'!C50 -> 48 | J25: ='Bill Determ'!C52 -> 12
A26: JDM-G-8 | B26: TOTAL MINIMUM BILLS | E26: ='Bill Determ'!F16 -> 36840 | F26: ='Bill Determ'!H29 -> 36
B29: PROPOSED BILL DETERMINANTS
B30: THERMS
B31: BLOCK 1 | D31: ='Bill Determ'!E7 -> 78130536.43 | E31: ='Bill Determ'!B23 -> 6382294.21 | G31: =G8 -> 240000 | H31: 8493795 | I31: 24532118 | J31: 10599458
B32: BLOCK 2 | D32: ='Bill Determ'!F7 -> 45837805.66 | E32: ='Bill Determ'!C23 -> 16593926.56 | G32: =G9 -> 304980 | H32: 8514233 | I32: 6237208 | J32: 0
B33: BLOCK 3 | D33: =D10 -> 0 | E33: ='Bill Determ'!D23 -> 29322405.15 | G33: =G10 -> 342272 | H33: 13953929 | I33: 2090525 | J33: 0
B34: BLOCK 4 | D34: =D11 -> 0 | E34: ='Bill Determ'!E23 -> 1235591.594 | G34: =G11 -> 98015 | H34: 2746588 | I34: 5652763 | J34: 0
B35: BLOCK 5 | D35: =D12 -> 0 | E35: ='Bill Determ'!F29 -> 743507.616 | G35: =G12 -> 0 | H35: 1899391 | I35: 5405533 | J35: 0
B37: SUBTOTAL | C37: =SUM(D37:J37) -> 269356875.2 | D37: =SUM(D31:D35) -> 123968342.1 | E37: =SUM(E31:E35) -> 54277725.13 | F37: 0 | G37: 985267 | H37: =SUM(H31:H35) -> 35607936 | I37: =SUM(I31:I35) -> 43918147 | J37: 10599458
B38: NET SHIFTING ADJUSTMENT | C38: =SUM(D38:J38) -> 0 | D38: =D15 -> 0 | E38: 0 | F38: 0 | G38: 0 | H38: =H15 -> 0 | I38: 0 | J38: 0
B40: SUBTOTAL | C40: =SUM(D40:J40) -> 269356875.2 | D40: =D37+D38 -> 123968342.1 | E40: 54277725.13 | F40: 0 | G40: 985267 | H40: =H37+H38 -> 35607936 | I40: 43918147 | J40: 10599458
B41: ADJUSTMENT TO ACTUAL | C41: =SUM(D41:J41) -> 0 | D41: =D18 -> 0 | E41: 0 | F41: 0 | G41: 0 | H41: 0 | I41: 0 | J41: 0
B43: TOTAL BEFORE ADJUSTMENT | C43: =SUM(D43:J43) -> 269356875.2 | D43: =D40+D41 -> 123968342.1 | E43: 54277725.13 | F43: 0 | G43: 985267 | H43: =H40+H41 -> 35607936 | I43: =I40+I41 -> 43918147 | J43: 10599458
B44: WEATHER & UNBILLED REV. ADJ. | C44: =SUM(D44:J44) -> 6624790 | D44: =D21 -> 5017638 | E44: =E21+F21 -> 1607152 | G44: 0 | H44: =H21 -> 0 | I44: 0 | J44: 0
B46: TOTAL PROFORMA THERMS | C46: =IF(ROUND(SUM(C43:C44),3)<>ROUND(SUM(D46:J46),3),#VALUE!,SUM(D46:J46)) -> 275981665.2 | D46: =D43+D44 -> 128985980.1 | E46: 55884877.13 | F46: 0 | G46: 985267 | H46: =H43+H44 -> 35607936 | I46: 43918147 | J46: 10599458
B48: TOTAL BILLS | D48: =D25 -> 1941495 | E48: 0 | F48: 0 | G48: =G25 -> 24 | H48: =H25 -> 480 | I48: =I25 -> 48 | J48: =J25 -> 12
B49: TOTAL MINIMUM BILLS | D49: 0 | E49: ='Bill Determ'!H23 -> 36876
E50: 2 | F50: 3 | G50: 4 | H50: 5 | I50: 6 | J50: 7
J52: TRANSPORT
A53: WORK PAPER | D53: GEN SERVICE | E53: LRG GEN SVC | F53: EX LRG GEN SVC | G53: INTERRUPTIBLE | H53: TRANSPORT | I53: TRANSPORT | J53: SCH 148 - WSU | M53: ="selected in cell "&CELL("address",Base1_Billing2)&":" -> selected in cell $O$8:
A54: REFERENCE | C54: TOTAL | D54: SCHEDULE 101 | E54: SCHEDULE 111 | F54: SCHEDULE 121 | G54: SCHEDULE 131 | H54: SCHEDULE 146 | I54: SCHEDULE 148 | J54: ANN. MINIMUM | M54: =O10 -> Base
B55: PRESENT RATES | I55: -1 | J55: -2 | M55: ="Rates_"&$M$54&"_Present" -> Rates_Base_Present | O55: - range name where Present Rates table can be found
A56: JDM-G-13/14 | B56: BASIC CHARGE | D56: =INDEX(INDIRECT($M$55),$K56,D$50) -> 9.5 | E56: =INDEX(INDIRECT($M$55),$K56,E$50) -> 0 | F56: 0 | G56: 0 | H56: 550 | I56: 200 | J56: 26332 | K56: 1 | M56: ="Rates_"&$M$54&"_Proposed" -> Rates_Base_Proposed | O56: - range name where Proposed Rates table can be found
A57: JDM-G-13/14 | B57: MONTHLY/ANNUAL MINIMUM | D57: 0 | E57: 97.25 | F57: 240.44 | G57: 0 | I57: 0 | J57: 0 | K57: 2
A59: JDM-G-13/14 | B59: BLOCK 1 PER THERM | D59: =INDEX(INDIRECT($M$55),$K59,D$50) -> 36.723 | E59: =INDEX(INDIRECT($M$55),$K59,E$50) -> 0 | F59: 0 | G59: 24.655 | H59: 9.69 | I59: 2.8 | J59: 1 | K59: 3
A60: JDM-G-13/14 | B60: BLOCK 2 PER THERM | D60: 47.729 | E60: 33.354 | F60: 34.85 | G60: 19.792 | H60: 8.621 | I60: 4.5 | J60: 0 | K60: 4
A61: JDM-G-13/14 | B61: BLOCK 3 PER THERM | D61: 0 | E61: 25.424 | F61: 26.767 | G61: 18.598 | H61: 7.774 | I61: 3.168 | J61: 0 | K61: 5
A62: JDM-G-13/14 | B62: BLOCK 4 PER THERM | D62: 0 | E62: 0 | F62: 21.692 | G62: 18.203 | H62: 7.189 | I62: 2.5 | J62: 0 | K62: 6
A63: JDM-G-13/14 | B63: BLOCK 5 PER THERM | D63: 0 | E63: 0 | F63: 14.387 | G63: 0 | H63: 5.403 | I63: 2.091 | J63: 0 | K63: 7
B65: ADJUST TO ACTUAL PER THERM | D65: =(D118-D106-D107)/D17*100 -> 40.79251388 | E65: =(E118-E106-E107)/E17*100 -> 24.84041033 | F65: =(F118-F106-F107)/F17*100 -> 19.28889712 | G65: =(G118-G106-G107)/G17*100 -> 20.40371392
B73: PROPOSED RATES
B74: BASIC CHARGE | D74: =INDEX(INDIRECT($M$56),$K74,D$50) -> 9.5 | E74: =INDEX(INDIRECT($M$56),$K74,E$50) -> 0 | F74: 0 | G74: 0 | H74: 625 | I74: 200 | J74: 26332 | K74: 1
B75: MONTHLY MINIMUM | D75: 0 | E75: 107.56 | F75: 0 | G75: 0 | H75: 0 | I75: 0 | J75: 0 | K75: 2
B77: BLOCK 1 PER THERM | D77: =INDEX(INDIRECT($M$56),$K77,D$50) -> 41.035 | E77: =INDEX(INDIRECT($M$56),$K77,E$50) -> 0 | F77: 0 | G77: 27.008 | H77: 10.494 | I77: 2.8 | J77: 1 | K77: 3
B78: BLOCK 2 PER THERM | D78: =INDEX(INDIRECT($M$56),$K78,D$50) -> 53.333 | E78: 36.159 | F78: 0 | G78: 21.681 | H78: 9.336 | I78: 4.5 | J78: 0 | K78: 4
B79: BLOCK 3 PER THERM | D79: 0 | E79: 27.562 | F79: 0 | G79: 20.373 | H79: 8.419 | I79: 3.168 | J79: 0 | K79: 5
B80: BLOCK 4 PER THERM | D80: 0 | E80: 23.517 | F80: 0 | G80: 18.203 | H80: 7.785 | I80: 2.5 | J80: 0 | K80: 6
B81: BLOCK 5 PER THERM | D81: 0 | E81: 16.497 | F81: 0 | G81: 0 | H81: 5.851 | I81: 2.091 | J81: 0 | K81: 7
B83: ADJUST TO ACTUAL PER THERM | D83: =(D167-D155-D156)/D40*100 -> 45.5822362 | E83: =(E167-E155-E156)/E40*100 -> 26.70574293 | G83: =(G167-G155-G156)/G40*100 -> 22.17821667
B87: (1) Block 1 - Kaiser-Trentwood - workpaper JDM-G-19
B88: Block 2 - Lamb-Weston - workpaper JDM-G-21
B89: Block 3 - Mutual Materials - workpaper JDM-G-25
B90: Block 4 - Washington Potato - workpaper JDM-G-23
B91: Block 5 - Avista Electric generating facilities billed at 2.091 cents/therm (Sch. 148 floor)
B93: (2) Monthly minimum / rate per therm - workpaper JDM-G-27
B97: ="Note: Rates exclude Sch. 150 (Purch. Gas Cost Adj.)"&IF(Base1_Billing2=2,"Sch. 150 (Purch. Gas Cost Adj.), Sch. 155 (Gas Rate Adj.), and Sch. 191 (Public Purp. Rider Adj.)","") -> Note: Rates exclude Sch. 150 (Purch. Gas Cost Adj.)
J101: TRANSPORT
A102: WORK PAPER | D102: GEN SERVICE | E102: LRG GEN SVC | F102: EX LRG GEN SVC | G102: INTERRUPTIBLE | H102: TRANSPORT | I102: TRANSPORT | J102: SCH 148 - WSU
A103: REFERENCE | C103: TOTAL | D103: SCHEDULE 101 | E103: SCHEDULE 111 | F103: SCHEDULE 121 | G103: SCHEDULE 131 | H103: SCHEDULE 146 | I103: SCHEDULE 148 | J103: ANN. MINIMUM
B104: PRESENT REVENUE
B105: =UPPER(CHOOSE(Base1_Billing2,$O$9,$O$10))&" REVENUE" -> BASE TARIFF REVENUE
B106: BASIC CHARGE | C106: =SUM(D106:J106) -> 19033786.5 | D106: =D25*D56 -> 18444202.5 | E106: 0 | F106: 0 | G106: 0 | H106: =H25*H56 -> 264000 | I106: =I25*I56 -> 9600 | J106: =J25*J56 -> 315984
B107: MONTHLY/ANNUAL MINIMUM | C107: 3621043.303 | D107: =D26*D57 -> 0 | E107: =E26*E57 -> 3582690 | F107: =F26*F57 -> 8655.84 | G107: 0 | H107: ='Big Schedules'!W48 -> 29697.4626 | I107: 0 | J107: 0
B108: BLOCK 1 | C108: 30366991.51 | D108: =ROUND(D8*D59/100,2) -> 28691876.89 | E108: =ROUND(E8*E59/100,2) -> 0 | F108: 0 | G108: 59172 | H108: 823048.74 | I108: =ROUND(I8*I59/100,2) -> 686899.3 | J108: =ROUND(J8*J59/100,2) -> 105994.58
B109: BLOCK 2 | C109: 28484379.48 | D109: 21877926.26 | E109: 5525132.31 | F109: 6272.88 | G109: 60361.64 | H109: 734012.03 | I109: 280674.36 | J109: 0
B110: BLOCK 3 | C110: 8851728.35 | D110: 0 | E110: 7550341.19 | F110: 86725.14 | G110: 63655.75 | H110: 1084778.44 | I110: =ROUND(I10*I61/100,2) -> 66227.83 | J110: 0
B111: BLOCK 4 | C111: 472948.15 | D111: =ROUND(D11*D62/100,2) -> 0 | E111: 0 | F111: 116335.19 | G111: 17841.67 | H111: 197452.21 | I111: 141319.08 | J111: 0
B112: BLOCK 5 | C112: 322622.24 | D112: =ROUND(D12*D63/100,2) -> 0 | E112: 0 | F112: 106968.44 | G112: 0 | H112: 102624.1 | I112: 113029.7 | J112: 0
B113: ANNUAL MINIMUM | C113: 0 | J113: =BFG!F11 -> 0
B115: SUBTOTAL | C115: =IF(ROUND(SUM(D115:J115),3)<>ROUND(SUM(C106:C113),3),#VALUE!,SUM(D115:J115)) -> 91153499.53 | D115: =SUM(D106:D113) -> 69014005.65 | E115: 16658163.5 | F115: 324957.49 | G115: 201031.06 | H115: =SUM(H106:H113) -> 3235612.983 | I115: 1297750.27 | J115: =SUM(J106:J113) -> 421978.58
B116: NET SHIFTING ADJUSTMENT
B118: SUBTOTAL | C118: =SUM(D118:J118) -> 91153499.53 | D118: =D115+D116 -> 69014005.65 | E118: 16658163.5 | F118: 324957.49 | G118: 201031.06 | H118: =H115+H116 -> 3235612.983 | I118: 1297750.27 | J118: 421978.58
B119: ADJUST TO ACTUAL | C119: =SUM(D119:J119) -> 0 | D119: =ROUND(D18*D65/100,2) -> 0 | E119: =ROUND(E18*E65/100,2) -> 0 | F119: =ROUND(F18*F65/100,2) -> 0 | G119: =ROUND(G18*G65/100,2) -> 0 | H119: 0 | I119: 0 | J119: 0
B121: ="TOTAL "&UPPER(CHOOSE(Base1_Billing2,$O$9,$O$10))&" REVENUE" -> TOTAL BASE TARIFF REVENUE | C121: =IF(ROUND(C118+C119,3)<>ROUND(SUM(D121:J121),3),#VALUE!,SUM(D121:J121)) -> 91153499.53 | D121: =D118+D119 -> 69014005.65 | E121: 16658163.5 | F121: 324957.49 | G121: 201031.06 | H121: =H118+H119 -> 3235612.983 | I121: 1297750.27 | J121: 421978.58
B124: ADJUSTMENT REVENUE
B125: UNBILLED REVENUE ADJUSTMENT
A126: JDM-G-15 | B126: UNBILLED LOAD THERMS | C126: =SUM(D126:J126) -> -2539340 | D126: ='12MEDEC18'!P204 -> -1839341 | E126: ='12MEDEC18'!P205 -> -547180 | F126: ='12MEDEC18'!P206 -> -152819
A127: JDM-G-2/5/6 | B127: UNBILLED LOAD RATE | D127: =D65 -> 40.79251388 | E127: =E65 -> 24.84041033 | F127: =F65 -> 19.28889712
B128: UNBILLED LOAD REVENUE | C128: =SUM(D128:J128) -> -915712.29 | D128: =ROUND(D126*D127/100,2) -> -750313.43 | E128: =ROUND(E126*E127/100,2) -> -135921.76 | F128: =ROUND(F126*F127/100,2) -> -29477.1
A130: JDM-G-14 | B130: WEATHER-SENSITIVE THERMS | C130: =SUM(D130:J130) -> 0 | D130: 0 | E130: 0
A131: JDM-G-2/5 | B131: WEATHER-SENSITIVE RATE | D131: =D59 -> 36.723 | E131: =I230 -> 26.30458979
B132: WEATHER-SENSITIVE REVENUE | C132: =SUM(D132:J132) -> 0 | D132: =ROUND(D130*D131/100,2) -> 0 | E132: =ROUND(E130*E131/100,2) -> 0
B134: TOTAL UNBILLED THERM ADJ | C134: =IF(ROUND(SUM(D134:J134),3)<>ROUND(C126+C130,3),#VALUE!,SUM(D134:J134)) -> -2539340 | D134: =D126+D130 -> -1839341 | E134: =E126+E130 -> -547180 | F134: =F126+F130 -> -152819
B135: TOTAL UNBILLED REVENUE ADJ | C135: =IF(ROUND(SUM(D135:J135),3)<>ROUND(C128+C132,3),#VALUE!,SUM(D135:J135)) -> -915712.29 | D135: =D128+D132 -> -750313.43 | E135: =E128+E132 -> -135921.76 | F135: =F128+F132 -> -29477.1
B136: WEATHER NORMALIZATION ADJ
A137: JDM-G-17 | B137: WEATHER-SENSITIVE THERMS | C137: =SUM(D137:J137) -> 9164130 | D137: 6856979 | E137: 2239073 | F137: 68078
A138: JDM-G-2/5/6 | B138: WEATHER-SENSITIVE RATE | D138: =I208 -> 41.83285996 | E138: =I230 -> 26.30458979 | F138: =I260 -> 17.34958169
B139: WEATHER-SENSITIVE REVENUE | C139: =SUM(D139:J139) -> 3469260.64 | D139: =ROUND(D137*D138/100,2) -> 2868470.42 | E139: =ROUND(E137*E138/100,2) -> 588978.97 | F139: =ROUND(F137*F138/100,2) -> 11811.25
B140: OTHER ADJUSTMENTS
B142: TOTAL ADJUSTMENT REVENUE | C142: =IF(ROUND(SUM(D142:J142),3)<>ROUND(C135+C139+C140,3),#VALUE!,SUM(D142:J142)) -> 2553548.35 | D142: =D135+D139+D140 -> 2118156.99 | E142: =E135+E139+E140 -> 453057.21 | F142: =F135+F139+F140 -> -17665.85 | G142: 0 | H142: 0 | I142: 0 | J142: 0
B143: =B121 -> TOTAL BASE TARIFF REVENUE | C143: =SUM(D143:J143) -> 91153499.53 | D143: =D121 -> 69014005.65 | E143: 16658163.5 | F143: 324957.49 | G143: 201031.06 | H143: =H121 -> 3235612.983 | I143: 1297750.27 | J143: 421978.58
B145: TOTAL PRESENT REVENUE | C145: =IF(ROUND(SUM(D145:J145),3)<>ROUND(C142+C143,3),#VALUE!,SUM(D145:J145)) -> 93707047.88 | D145: =D142+D143 -> 71132162.64 | E145: 17111220.71 | F145: =F142+F143 -> 307291.64 | G145: 201031.06 | H145: =H142+H143 -> 3235612.983 | I145: 1297750.27 | J145: 421978.58
J150: TRANSPORT
A151: WORK PAPER | D151: GEN SERVICE | E151: LRG GEN SVC | F151: EX LRG GEN SVC | G151: INTERRUPTIBLE | H151: TRANSPORT | I151: TRANSPORT | J151: SCH 148 - WSU
A152: REFERENCE | C152: TOTAL | D152: SCHEDULE 101 | E152: SCHEDULE 111 | F152: SCHEDULE 121 | G152: SCHEDULE 131 | H152: SCHEDULE 146 | I152: SCHEDULE 148 | J152: ANN. MINIMUM
B153: PROPOSED REVENUE
B154: =UPPER(CHOOSE(Base1_Billing2,$O$9,$O$10))&" REVENUE" -> BASE TARIFF REVENUE
B155: BASIC CHARGE | C155: =SUM(D155:J155) -> 19069786.5 | D155: =D48*D74 -> 18444202.5 | E155: =E48*E74 -> 0 | F155: 0 | G155: 0 | H155: 300000 | I155: 9600 | J155: 315984
B156: MONTHLY/ANNUAL MINIMUM | C156: 3997517.373 | D156: =D49*D75 -> 0 | E156: =E49*E75 -> 3966382.56 | F156: 0 | G156: 0 | H156: ='Big Schedules'!X48 -> 31134.81312 | I156: 0 | J156: 0
B157: BLOCK 1 | C157: 33809917.55 | D157: =ROUND(D31*D77/100,2) -> 32060865.62 | E157: =ROUND(E31*E77/100,2) -> 0 | F157: 0 | G157: 64819.2 | H157: 891338.85 | I157: 686899.3 | J157: 105994.58
B158: BLOCK 2 | C158: 31588560.65 | D158: =ROUND(D32*D78/100,2) -> 24446676.89 | E158: 6000197.9 | F158: 0 | G158: 66122.71 | H158: 794888.79 | I158: 280674.36 | J158: 0
B159: BLOCK 3 | C159: 9392581.49 | D159: 0 | E159: 8081841.31 | F159: 0 | G159: 69731.07 | H159: 1174781.28 | I159: 66227.83 | J159: 0
B160: BLOCK 4 | C160: 663556.71 | D160: 0 | E160: 290574.08 | F160: 0 | G160: 17841.67 | H160: 213821.88 | I160: 141319.08 | J160: 0
B161: BLOCK 5 | C161: 346819.52 | D161: 0 | E161: 122656.45 | F161: 0 | G161: 0 | H161: 111133.37 | I161: 113029.7 | J161: 0
B162: ANNUAL MINIMUM | C162: 0 | J162: =BFG!F11 -> 0
B164: SUBTOTAL | C164: =IF(ROUND(SUM(D164:J164),3)<>ROUND(SUM(C155:C162),3),#VALUE!,SUM(D164:J164)) -> 98868739.79 | D164: =SUM(D155:D163) -> 74951745.01 | E164: 18461652.3 | F164: 0 | G164: 218514.65 | H164: =SUM(H155:H163) -> 3517098.983 | I164: 1297750.27 | J164: 421978.58
B165: NET SHIFTING ADJUSTMENT
B167: SUBTOTAL | C167: =SUM(D167:J167) -> 98868739.79 | D167: =D164+D165 -> 74951745.01 | E167: 18461652.3 | F167: 0 | G167: 218514.65 | H167: =H164+H165 -> 3517098.983 | I167: 1297750.27 | J167: 421978.58
B168: ADJUST TO ACTUAL | C168: =SUM(D168:J168) -> 0 | D168: =ROUND(D41*D83/100,2) -> 0 | E168: =ROUND(E41*E83/100,2) -> 0 | G168: 0 | H168: 0 | I168: 0 | J168: 0
B170: ="TOTAL "&UPPER(CHOOSE(Base1_Billing2,$O$9,$O$10))&" REVENUE" -> TOTAL BASE TARIFF REVENUE | C170: =IF(ROUND(SUM(D170:J170),3)<>ROUND(C167+C168,3),#VALUE!,SUM(D170:J170)) -> 98868739.79 | D170: =D167+D168 -> 74951745.01 | E170: 18461652.3 | F170: 0 | G170: 218514.65 | H170: =H167+H168 -> 3517098.983 | I170: 1297750.27 | J170: 421978.58
B172: ADJUSTMENT REVENUE
B173: UNBILLED REVENUE ADJUSTMENT
B174: BASE LOAD THERMS | C174: =SUM(D174:J174) -> -2539340 | D174: =D126 -> -1839341 | E174: =E126+F126 -> -699999 | F174: 0
A175: JDM-G-2/5/6 | B175: BASE LOAD RATE | D175: =D83 -> 45.5822362 | E175: =E83 -> 26.70574293
B176: BASE LOAD REVENUE | C176: =SUM(D176:J176) -> -1025352.69 | D176: =ROUND(D174*D175/100,2) -> -838412.76 | E176: =ROUND(E174*E175/100,2) -> -186939.93 | F176: =ROUND(F174*F175/100,2) -> 0
B178: WEATHER-SENSITIVE THERMS | C178: =SUM(D178:J178) -> 0 | D178: =D130 -> 0 | E178: =E130 -> 0 | F178: =F130 -> 0
A179: JDM-G-2/5 | B179: WEATHER-SENSITIVE RATE | D179: =D77 -> 41.035 | E179: =I242 -> 28.5314767 | F179: =F83 -> 0
B180: WEATHER-SENSITIVE REVENUE | C180: =SUM(D180:J180) -> 0 | D180: =ROUND(D178*D179/100,2) -> 0 | E180: =ROUND(E178*E179/100,2) -> 0 | F180: =ROUND(F178*F179/100,2) -> 0
B182: TOTAL UNBILLED THERM ADJ | C182: =C174+C178 -> -2539340 | D182: =D174+D178 -> -1839341 | E182: =E174+E178 -> -699999 | F182: =F174+F178 -> 0
B183: TOTAL UNBILLED REVENUE ADJ | C183: =C176+C180 -> -1025352.69 | D183: =D176+D180 -> -838412.76 | E183: =E176+E180 -> -186939.93
B184: WEATHER NORMALIZATION ADJ
B185: WEATHER-SENSITIVE THERMS | C185: =SUM(D185:J185) -> 9164130 | D185: =D137 -> 6856979 | E185: =E137+F137 -> 2307151 | F185: 0
A186: JDM-G-2/5/6 | B186: WEATHER-SENSITIVE RATE | D186: =I217 -> 46.74470905 | E186: =I242 -> 28.5314767
B187: WEATHER-SENSITIVE REVENUE | C187: =SUM(D187:J187) -> 3863539.13 | D187: =ROUND(D185*D186/100,2) -> 3205274.88 | E187: =ROUND(E185*E186/100,2) -> 658264.25 | F187: =ROUND(F185*F186/100,2) -> 0
B188: OTHER ADJUSTMENTS
B190: TOTAL ADJUSTMENT REVENUE | C190: =SUM(D190:J190) -> 2838186.44 | D190: =D187+D183 -> 2366862.12 | E190: =E187+E183 -> 471324.32 | F190: 0 | G190: 0 | H190: =H187+H183 -> 0 | I190: 0 | J190: 0
B191: =B170 -> TOTAL BASE TARIFF REVENUE | C191: =SUM(D191:J191) -> 98868739.79 | D191: =D170 -> 74951745.01 | E191: 18461652.3 | F191: 0 | G191: 218514.65 | H191: =H170 -> 3517098.983 | I191: 1297750.27 | J191: 421978.58
B192: TOTAL PROPOSED REVENUE | C192: =SUM(D192:J192) -> 101706926.2 | D192: =D190+D191 -> 77318607.13 | E192: 18932976.62 | F192: 0 | G192: 218514.65 | H192: =H190+H191 -> 3517098.983 | I192: 1297750.27 | J192: 421978.58
B193: TOTAL PRESENT REVENUE | C193: =SUM(D193:J193) -> 93707047.88 | D193: =D145 -> 71132162.64 | E193: =E145 -> 17111220.71 | F193: =+F145 -> 307291.64 | G193: 201031.06 | H193: =H145 -> 3235612.983 | I193: 1297750.27 | J193: 421978.58
B195: TOTAL INCREASED REVENUE | C195: =SUM(D195:J195) -> 7999878.351 | D195: =D192-D193 -> 6186444.49 | E195: =E192-E193-F193 -> 1514464.27 | G195: =G192-G193 -> 17483.59 | H195: =H192-H193 -> 281486.0005 | I195: 0 | J195: 0
B196: PERCENT REVENUE INCREASE | C196: =C195/C193 -> 0.08537114904 | D196: =D195/D193 -> 0.08697112896 | E196: 0.08850708524 | G196: 0.08696959564 | H196: 0.0869961896 | I196: 0 | J196: 0
A200: WORK PAPER | D200: TOTAL | E200: TOTAL | F200: BASE LOAD | G200: BASE LOAD | H200: WTHR-SENS. | I200: WTHR-SENS.
A201: REFERENCE | C201: RATES | D201: THERMS | E201: REVENUE | F201: THERMS(1) | G201: REVENUE | H201: THERMS | I201: REVENUE
B202: PRESENT BASELOAD AND WEATHER-SENSITIVE RATE
B203: SCHEDULE 101
B204: 0-70 THERMS | C204: =D59 -> 36.723 | D204: =D8 -> 78130536.43 | E204: =C204*D204/100 -> 28691876.89 | F204: =MIN(D204,F207) -> 25239435 | G204: =F204*C204/100 -> 9268677.715 | H204: =D204-F204 -> 52891101.43 | I204: =H204*C204/100 -> 19423199.18 | K204: =H204/H207 -> 0.5357205198
B205: OVER 70 THERMS | C205: =D60 -> 47.729 | D205: =D9 -> 45837805.66 | E205: =C205*D205/100 -> 21877926.26 | F205: =MIN(F207-F204,D205) -> 0 | G205: =F205*C205/100 -> 0 | H205: =D205-F205 -> 45837805.66 | I205: =H205*C205/100 -> 21877926.26 | K205: =H205/H207 -> 0.4642794802
B207: TOTAL | D207: =D204+D205 -> 123968342.1 | E207: =E204+E205 -> 50569803.16 | F207: =13*D25 -> 25239435 | G207: =G204+G205 -> 9268677.715 | H207: =H204+H205 -> 98728907.09 | I207: =I204+I205 -> 41301125.44
B208: AVERAGE RATE | E208: =E207/D207*100 -> 40.79251388 | G208: =G207/F207*100 -> 36.723 | I208: =I207/H207*100 -> 41.83285996
B211: PROPOSED BASELOAD AND WEATHER-SENSITIVE RATE
B212: SCHEDULE 101
B213: 0-70 THERMS | C213: =D77 -> 41.035 | D213: =D8 -> 78130536.43 | E213: =C213*D213/100 -> 32060865.62 | F213: =MIN(D213,F216) -> 25239435 | G213: =F213*C213/100 -> 10357002.15 | H213: =D213-F213 -> 52891101.43 | I213: =H213*C213/100 -> 21703863.47
B214: OVER 70 THERMS | C214: =D78 -> 53.333 | D214: =D9 -> 45837805.66 | E214: =C214*D214/100 -> 24446676.89 | F214: =MIN(F216-F213,D214) -> 0 | G214: =F214*C214/100 -> 0 | H214: =D214-F214 -> 45837805.66 | I214: =H214*C214/100 -> 24446676.89
B216: TOTAL | D216: =D213+D214 -> 123968342.1 | E216: =E213+E214 -> 56507542.52 | F216: =F207 -> 25239435 | G216: =G213+G214 -> 10357002.15 | H216: =H213+H214 -> 98728907.09 | I216: =I212+I213+I214 -> 46150540.36
B217: AVERAGE RATE | E217: =E216/D216*100 -> 45.58223621 | G217: =G216/F216*100 -> 41.035 | I217: =I216/H216*100 -> 46.74470905
B220: (1) Base load per bill for Schedule 101 is shown on workpaper JDM-G-18 multiplied by total billings from JDM-G-1, or
B221: ="13 X "&TEXT(D25,"#,##0")&" = "&TEXT(F207,"#,##0") -> 13 X 1,941,495 = 25,239,435
B223: PRESENT BASELOAD AND WEATHER-SENSITIVE RATE
B224: SCHEDULE 111
B225: 0-200 THERMS | C225: =E59 -> 0 | D225: =E8 -> 6375094.21 | E225: =C225*D225/100 -> 0 | F225: =MIN(D225,F229) -> 6375094.21 | G225: =F225*C225/100 -> 0 | H225: =D225-F225 -> 0 | I225: =H225*C225/100 -> 0
B226: 201-1,000 THERMS | C226: =E60 -> 33.354 | D226: =E9 -> 16565126.56 | E226: =C226*D226/100 -> 5525132.312 | F226: =MIN(F229-F225,D226) -> 12855385.79 | G226: =F226*C226/100 -> 4287785.376 | H226: =D226-F226 -> 3709740.768 | I226: =H226*C226/100 -> 1237346.936
B227: OVER 1,000 THERMS | C227: =E61 -> 25.424 | D227: =E10 -> 29697691.91 | E227: =C227*D227/100 -> 7550341.192 | F227: =MIN(F229-F225-F226,D227) -> 0 | G227: =F227*C227/100 -> 0 | H227: =D227-F227 -> 29697691.91 | I227: =H227*C227/100 -> 7550341.192
B229: TOTAL | D229: =D225+D226+D227 -> 52637912.68 | E229: =E225+E226+E227 -> 13075473.5 | F229: =522*E26 -> 19230480 | G229: =G225+G226+G227 -> 4287785.376 | H229: =H225+H226+H227 -> 33407432.68 | I229: =I225+I226+I227 -> 8787688.127
B230: AVERAGE RATE | E230: =E229/D229*100 -> 24.84041034 | G230: =G229/F229*100 -> 22.2968193 | I230: =I229/H229*100 -> 26.30458979
B233: PROPOSED BASELOAD AND WEATHER-SENSITIVE RATE
B234: SCHEDULE 111
B235: 0-200 THERMS | C235: =E77 -> 0 | D235: =E31 -> 6382294.21 | E235: =C235*D235/100 -> 0 | F235: =MIN(D235,F241) -> 6382294.21 | G235: =F235*C235/100 -> 0 | H235: =D235-F235 -> 0 | I235: =H235*C235/100 -> 0
B236: 201-1,000 THERMS | C236: =E78 -> 36.159 | D236: =E32 -> 16593926.56 | E236: =C236*D236/100 -> 6000197.904 | F236: =MIN(F241-F235,D236) -> 12866977.79 | G236: =F236*C236/100 -> 4652570.499 | H236: =D236-F236 -> 3726948.768 | I236: =H236*C236/100 -> 1347627.405
B237: 1001-10,000 THERMS | C237: =E79 -> 27.562 | D237: =E33 -> 29322405.15 | E237: =C237*D237/100 -> 8081841.307 | F237: =MIN(F241-F235-F236,D237) -> 0 | G237: =F237*C237/100 -> 0 | H237: =D237-F237 -> 29322405.15 | I237: =H237*C237/100 -> 8081841.307
B238: 10,001-25,000 THERMS | C238: =E80 -> 23.517 | D238: =E34 -> 1235591.594 | E238: =C238*D238/100 -> 290574.0752 | F238: =MIN(F241-F235-F236-F237,D238) -> 0 | G238: =F238*C238/100 -> 0 | H238: =D238-F238 -> 1235591.594 | I238: =H238*C238/100 -> 290574.0752
B239: OVER 25,000 THERMS | C239: 16.497 | D239: 743507.616 | E239: 122656.4514 | F239: =MIN(F241-F235-F236-F237-F238,D239) -> 0 | G239: =F239*C239/100 -> 0 | H239: =D239-F239 -> 743507.616 | I239: =H239*C239/100 -> 122656.4514
B241: TOTAL | D241: =D235+D236+D237+D238+D239 -> 54277725.13 | E241: =E235+E236+E237+E238+E239 -> 14495269.74 | F241: =522*E49 -> 19249272 | G241: =G235+G236+G237 -> 4652570.499 | H241: =H235+H236+H237 -> 33049353.92 | I241: =I234+I235+I236+I237 -> 9429468.712
B242: AVERAGE RATE | E242: =E241/D241*100 -> 26.70574292 | G242: =G241/F241*100 -> 24.17011147 | I242: =I241/H241*100 -> 28.5314767
B245: (1) Base load per bill for Schedule 111 is shown on workpaper JDM-G-18 multiplied by total billings from JDM-G-1, or
B246: ="522 X "&TEXT(E26,"#,##0")&" = "&TEXT(F229,"#,##0") -> 522 X 36,840 = 19,230,480
A248: WORK PAPER | D248: TOTAL | E248: TOTAL | F248: BASE LOAD | G248: BASE LOAD | H248: WTHR-SENS. | I248: WTHR-SENS.
A249: REFERENCE | C249: RATES | D249: THERMS | E249: REVENUE | F249: THERMS(1) | G249: REVENUE | H249: THERMS | I249: REVENUE
B251: PRESENT BASELOAD AND WEATHER-SENSITIVE RATE
B252: SCHEDULE 121
B253: 0-500 THERMS | C253: =F59 -> 0 | D253: =F8 -> 17999.89167 | E253: =C253*D253/100 -> 0 | F253: =MIN(D253,F259) -> 17999.89167 | G253: =F253*C253/100 -> 0 | H253: =D253-F253 -> 0 | I253: =H253*C253/100 -> 0
B254: 501-1,000 THERMS | C254: =F60 -> 34.85 | D254: =F9 -> 17999.66666 | E254: =C254*D254/100 -> 6272.883831 | F254: =MIN(F259-F253,D254) -> 17999.66666 | G254: =F254*C254/100 -> 6272.883831 | H254: =D254-F254 -> 0 | I254: =H254*C254/100 -> 0
B255: 1001-10,000 THERMS | C255: =F61 -> 26.767 | D255: 324000.2233 | E255: =C255*D255/100 -> 86725.13978 | F255: =MIN(F259-F253-F254,D255) -> 324000.2233 | G255: =F255*C255/100 -> 86725.13978 | H255: =D255-F255 -> 0 | I255: =H255*C255/100 -> 0
B256: 10,001-25,000 THERMS | C256: =F62 -> 21.692 | D256: 536304.6041 | E256: =C256*D256/100 -> 116335.1947 | F256: =MIN(F259-F253-F254-F255,D256) -> 29052.21835 | G256: =F256*C256/100 -> 6302.007204 | H256: =D256-F256 -> 507252.3857 | I256: =H256*C256/100 -> 110033.1875
B257: OVER 25,000 THERMS | C257: =F63 -> 14.387 | D257: 743507.616 | E257: 106968.4407 | F257: =MIN(F259-F253-F254-F255-F256,D257) -> 0 | G257: 0 | H257: 743507.616 | I257: 106968.4407
B259: TOTAL | D259: =D253+D254+D255+D256+D257 -> 1639812.002 | E259: =E253+E254+E255+E256+E257 -> 316301.659 | F259: =10807*F26 -> 389052 | G259: =G253+G254+G255 -> 92998.02361 | H259: =H253+H254+H255+H256+H257 -> 1250760.002 | I259: =I253+I254+I255+I256+I257 -> 217001.6282
B260: AVERAGE RATE | E260: =E259/D259*100 -> 19.28889767 | G260: =G259/F259*100 -> 23.90375158 | I260: =I259/H259*100 -> 17.34958169
B263: PROPOSED BASELOAD AND WEATHER-SENSITIVE RATE
B264: SCHEDULE 121
B265: 0-500 THERMS | C265: =F77 -> 0 | D265: =F31 -> 0 | E265: =C265*D265/100 -> 0 | F265: =MIN(D265,F271) -> 0 | G265: =F265*C265/100 -> 0 | H265: =D265-F265 -> 0 | I265: =H265*C265/100 -> 0
B266: 501-1,000 THERMS | C266: =F78 -> 0 | D266: =F32 -> 0 | E266: =C266*D266/100 -> 0 | F266: =MIN(F271-F265,D266) -> 0 | G266: =F266*C266/100 -> 0 | H266: =D266-F266 -> 0 | I266: =H266*C266/100 -> 0
B267: 1001-10,000 THERMS | C267: =F79 -> 0 | D267: =F33 -> 0 | E267: 0 | F267: =MIN(F271-F265-F266,D267) -> 0 | G267: =F267*C267/100 -> 0 | H267: 0 | I267: 0
B268: 10,001-25,000 THERMS | C268: =F80 -> 0 | D268: =F34 -> 0 | E268: 0 | F268: =MIN(F271-F265-F266-F267,D268) -> 0 | G268: =F268*C268/100 -> 0 | H268: 0 | I268: 0
B269: OVER 25,000 THERMS | C269: =F81 -> 0 | D269: =F35 -> 0 | E269: 0 | F269: =MIN(F271-F265-F266-F267-F268,D269) -> 0 | G269: 0 | H269: 0 | I269: 0
B271: TOTAL | D271: =D265+D266+D267+D268+D269 -> 0 | E271: =E265+E266+E267+E268+E269 -> 0 | F271: =F259 -> 389052 | G271: =G265+G266+G267+G268+G269 -> 0 | H271: =H265+H266+H267+H268+H269 -> 0 | I271: =I264+I265+I266+I267+I268+I269 -> 0
B272: AVERAGE RATE | E272: =E271/D271*100 ->  | G272: =G271/F271*100 -> 0 | I272: =I271/H271*100 -> 
B274: (1) Base load per bill for Schedule 121 is shown on workpaper JDM-G-18 multiplied by total billings from JDM-G-1, or
B275: ="10,807 X "&TEXT(F26,"#,##0")&" = "&TEXT(F259,"#,##0") -> 10,807 X 36 = 389,052

Sheet Rate Design
A1: PRESENT RATES | D1: 1 | E1: 2 | F1: 3 | G1: 4 | H1: 5 | L1: Tiers - used for bill comparisons
C2: TOTAL | D2: SCH. 101 | E2: SCH. 111,112,116 | F2: SCH. 121,122,126 | G2: SCH. 132 | H2: SCH. 146 | J2: Range Name | L2: SCH. 101 | M2: SCH. 111,112 | N2: SCH. 121,122 | O2: SCH. 131,132 | P2: SCH. 146
B3: Base Tariff Rates
A4: 1 | B4: BASIC CHARGE | D4: 9.5 | H4: 550
A5: 2 | B5: MONTHLY MINIMUM | E5: 97.25 | F5: 240.44
A6: 3 | B6: BLOCK 1 PER THERM | D6: 36.723 | E6: 0 | F6: 0 | G6: 24.655 | H6: 9.69 | L6: 9999999 | M6: 200 | N6: 500 | O6: 10000 | P6: 20000
A7: 4 | B7: BLOCK 2 PER THERM | D7: 47.729 | E7: 33.354 | F7: 34.85 | G7: 19.792 | H7: 8.621 | I7: =H7/H6-1 -> -0.1103199174 | L7: 9999999 | M7: 1000 | N7: 1000 | O7: 25000 | P7: 50000
A8: 5 | B8: BLOCK 3 PER THERM | E8: 25.424 | F8: 26.767 | G8: 18.598 | H8: 7.774 | I8: =H8/H7-1 -> -0.09824846306 | J8: Rates_Base_Present | L8: 9999999 | M8: 9999999 | N8: 10000 | O8: 50000 | P8: 300000
A9: 6 | B9: BLOCK 4 PER THERM | F9: 21.692 | G9: 18.203 | H9: 7.189 | I9: -0.07525083612 | L9: 9999999 | M9: 9999999 | N9: 25000 | O9: 9999999 | P9: 500000
A10: 7 | B10: BLOCK 5 PER THERM | F10: 14.387 | H10: 5.403 | I10: =H10/H9-1 -> -0.2484351092 | L10: 9999999 | M10: 9999999 | N10: 9999999 | O10: 9999999 | P10: 9999999
L11: 1st block rate | M11: =(M6/100*E6+E5)/M6*100 -> 48.625 | N11: =(N6/100*F6+F5)/N6*100 -> 48.088
B12: Billing Rates | G12: =IF(G13<>'Pres & Prop Rev'!G$5,#VALUE!,"") ->  | H12: =IF(H13<>'Pres & Prop Rev'!H$5,#VALUE!,"") ->  | L12: check | M12: =M6*M11/100-(M6*E6/100+E5) -> 0 | N12: =N6*N11/100-(N6*F6/100+F5) -> 0
D13: SCHEDULE 101 | E13: SCH. 111&112 | F13: SCH. 121&122 | G13: SCH. 131&132 | H13: SCHEDULE 146
A14: 1 | B14: BASIC CHARGE | D14: =D4 -> 9.5 | E14: 0 | F14: 0 | G14: 0 | H14: 550
A15: 2 | B15: MONTHLY MINIMUM | D15: 0 | E15: =E5 -> 97.25 | F15: =F5 -> 240.44 | G15: 0 | H15: 0
A16: 3 | B16: BLOCK 1 PER THERM | D16: =D6+26.15+0.429+0.42+3.028+2.093 -> 68.843 | E16: =E6+25.181+1.085+1.841+1.626+1.754 -> 31.487 | F16: =F6+25.181+1.085+1.841+1.276+1.602 -> 30.985 | G16: =G6+21.892+1.132+1.539 -> 49.218 | H16: =H6+0.056+0.08 -> 9.826 | L16: =L6 -> 9999999 | M16: 200 | N16: 500 | O16: 10000 | P16: 20000
A17: 4 | B17: BLOCK 2 PER THERM | D17: =D7+26.15+0.429+0.42+3.028+2.093 -> 79.849 | E17: =E7+25.181+1.085+1.841+1.626+1.754 -> 64.841 | F17: =F7+25.181+1.085+1.841+1.276+1.602 -> 65.835 | G17: =G7+21.892+1.132+1.539 -> 44.355 | H17: =H7+0.056+0.08 -> 8.757 | L17: 9999999 | M17: 1000 | N17: 1000 | O17: 25000 | P17: 50000
A18: 5 | B18: BLOCK 3 PER THERM | D18: =D8 -> 0 | E18: 56.911 | F18: 57.752 | G18: 43.161 | H18: 7.91 | J18: Rates_Billing_Present | L18: 9999999 | M18: 9999999 | N18: 10000 | O18: 50000 | P18: 300000
A19: 6 | B19: BLOCK 4 PER THERM | D19: =D9 -> 0 | E19: =E9 -> 0 | F19: 52.677 | G19: 42.766 | H19: 7.325 | L19: =L9 -> 9999999 | M19: 9999999 | N19: 25000 | O19: 9999999 | P19: 500000
A20: 7 | B20: BLOCK 5 PER THERM | D20: =D10 -> 0 | E20: =E10 -> 0 | F20: 45.372 | H20: 5.539 | L20: 9999999 | M20: 9999999 | N20: 9999999 | O20: 9999999 | P20: 9999999
L21: 1st block rate | M21: =(M16/100*E16+E15)/M16*100 -> 80.112 | N21: =(N16/100*F16+F15)/N16*100 -> 79.073
A22: PROPOSED RATES | L22: check | M22: =M16*M21/100-(M16*E16/100+E15) -> 0 | N22: =N16*N21/100-(N16*F16/100+F15) -> 0
B24: Base Tariff Rates | G24: =IF(G25<>'Pres & Prop Rev'!G$5,#VALUE!,"") ->  | H24: =IF(H25<>'Pres & Prop Rev'!H$5,#VALUE!,"") -> 
D25: SCHEDULE 101 | E25: SCH. 111&112 | F25: SCH. 121&122 | G25: SCH. 131&132 | H25: SCHEDULE 146
A26: 1 | B26: BASIC CHARGE | D26: =IF(D4>0,ROUND(D63,2),0) -> 9.5 | E26: =IF(E4>0,ROUND(E63,2),0) -> 0 | F26: =IF(F4>0,ROUND(F63,2),0) -> 0 | G26: =IF(G4>0,ROUND(G63,2),0) -> 0 | H26: =IF(H4>0,ROUND(H63,2),0) -> 625
A27: 2 | B27: MONTHLY MINIMUM | D27: =IF(D5>0,ROUND(D63,2),0) -> 0 | E27: =IF(E5>0,ROUND(E63,2),0) -> 107.56 | F27: =IF(F5>0,ROUND(F63,2),0) -> 0 | G27: =IF(G5>0,ROUND(G63,2),0) -> 0 | H27: =IF(H5>0,ROUND(H63,2),0) -> 0
A28: 2 | B28: BLOCK 1 PER THERM | D28: =ROUND(D82,3) -> 41.035 | E28: =ROUND(E82,3) -> 0 | F28: 0 | G28: 27.008 | H28: 10.494 | L28: 9999999 | M28: 200 | N28: 500 | O28: 10000 | P28: 20000
A29: 3 | B29: BLOCK 2 PER THERM | D29: =ROUND(D83,3) -> 53.333 | E29: 36.159 | F29: 0 | G29: 21.681 | H29: 9.336 | I29: =H29/H28-1 -> -0.1103487707 | L29: 9999999 | M29: 1000 | N29: 1000 | O29: 25000 | P29: 50000
A30: 4 | B30: BLOCK 3 PER THERM | D30: 0 | E30: =ROUND(E84,3) -> 27.562 | F30: 0 | G30: 20.373 | H30: 8.419 | I30: =H30/H29-1 -> -0.09822193659 | J30: Rates_Base_Proposed | L30: 9999999 | M30: 9999999 | N30: 10000 | O30: 50000 | P30: 300000
A31: 5 | B31: BLOCK 4 PER THERM | D31: =ROUND(D85,3) -> 0 | E31: =ROUND(E85,3) -> 23.517 | F31: 0 | G31: 18.203 | H31: 7.785 | I31: -0.0753058558 | L31: 9999999 | M31: 9999999 | N31: 25000 | O31: 9999999 | P31: 500000
A32: 6 | B32: BLOCK 5 PER THERM | D32: 0 | E32: 16.497 | F32: 0 | G32: 0 | H32: 5.851 | I32: =H32/H31-1 -> -0.2484264611 | L32: 9999999 | M32: 9999999 | N32: 9999999 | O32: 9999999 | P32: 9999999
L33: 1st block rate | M33: =(M28/100*E28+E27)/M28*100 -> 53.78 | N33: =(N28/100*F28+F27)/N28*100 -> 0
B34: Billing Rates | G34: =IF(G35<>'Pres & Prop Rev'!G$5,#VALUE!,"") ->  | H34: =IF(H35<>'Pres & Prop Rev'!H$5,#VALUE!,"") ->  | L34: check | M34: =M28*M33/100-(M28*E28/100+E27) -> 0 | N34: =N28*N33/100-(N28*F28/100+F27) -> 0
D35: SCHEDULE 101 | E35: SCH. 111&112 | F35: SCH. 121&122 | G35: SCH. 131&132 | H35: SCHEDULE 146 | L35: Basic Charge Calc | M35: =E5+(D26-D4)+(((D28/100)-(D6/100))*70)+(((D29/100)-(D7/100))*130) -> 107.5536 | N35: =F5+(D26-D4)+(70*((D28/100)-(D6/100)))+(430*((D29/100)-(D7/100))) -> 267.5556 | S35: 100
A36: 1 | B36: BASIC CHARGE | D36: =D26 -> 9.5 | E36: 0 | F36: 0 | G36: 0 | H36: 625 | S36: LIRAP increase
A37: 2 | B37: MONTHLY MINIMUM | D37: 0 | E37: 107.56 | F37: =F27 -> 0 | G37: 0 | H37: 0 | S37: 101 | T37: 111 | U37: 121 | V37: 131
A38: 2 | B38: BLOCK 1 PER THERM | D38: =D28+26.15+0.429+0.42+3.028+2.093 -> 73.155 | E38: =E28+25.181+1.085+1.841+1.626+1.754 -> 31.487 | F38: =F28 -> 0 | G38: =G28+21.892+1.132+1.539 -> 51.571 | H38: =H28+0.056+0.08 -> 10.63 | L38: =L28 -> 9999999 | M38: 200 | N38: 500 | O38: 10000 | P38: 20000 | S38: 0 | T38: 0 | U38: 0 | V38: 0
A39: 3 | B39: BLOCK 2 PER THERM | D39: =D29+26.15+0.429+0.42+3.028+2.093 -> 85.453 | E39: =E29+25.181+1.085+1.841+1.626+1.754 -> 67.646 | F39: =F29 -> 0 | G39: =G29+21.892+1.132+1.539 -> 46.244 | H39: =H29+0.056+0.08 -> 9.472 | L39: 9999999 | M39: 1000 | N39: 1000 | O39: 25000 | P39: 50000 | S39: =S$38 -> 0 | T39: =T$38 -> 0 | U39: =U$38 -> 0 | V39: =V$38 -> 0
A40: 4 | B40: BLOCK 3 PER THERM | D40: =D30 -> 0 | E40: 59.049 | F40: 0 | G40: 44.936 | H40: 8.555 | J40: Rates_Billing_Proposed | L40: 9999999 | M40: 9999999 | N40: 10000 | O40: 50000 | P40: 300000 | S40: =S$38 -> 0 | T40: 0 | U40: 0 | V40: 0
A41: 5 | B41: BLOCK 4 PER THERM | D41: =D31 -> 0 | E41: 55.004 | F41: 0 | G41: 42.766 | H41: 7.921 | L41: 9999999 | M41: 9999999 | N41: 25000 | O41: 9999999 | P41: 500000 | S41: 0 | T41: 0 | U41: 0 | V41: 0
A42: 6 | B42: BLOCK 5 PER THERM | D42: =D32 -> 0 | E42: 47.984 | F42: 0 | H42: 5.987 | L42: 9999999 | M42: 9999999 | N42: 9999999 | O42: 9999999 | P42: 9999999 | S42: 0 | T42: 0 | U42: 0 | V42: 0
L43: 1st block rate | M43: =(M38/100*E38+E37)/M38*100 -> 85.267 | N43: =(N38/100*F38+F37)/N38*100 -> 0
L44: check | M44: =M38*M43/100-(M38*E38/100+E37) -> 0 | N44: =N38*N43/100-(N38*F38/100+F37) -> 0
B47: Proposed Rate Workup - from Pres & Prop Rev tab
B49: THERMS
B50: BLOCK 1 | C50: =SUM(D50:H50) -> 93246625.64 | D50: ='Pres & Prop Rev'!D31 -> 78130536.43 | E50: ='Pres & Prop Rev'!E31 -> 6382294.21 | F50: ='Pres & Prop Rev'!F31 -> 0 | G50: ='Pres & Prop Rev'!G31 -> 240000 | H50: ='Pres & Prop Rev'!H31 -> 8493795
B51: BLOCK 2 | C51: 71250945.22 | D51: ='Pres & Prop Rev'!D32 -> 45837805.66 | E51: ='Pres & Prop Rev'!E32 -> 16593926.56 | F51: ='Pres & Prop Rev'!F32 -> 0 | G51: ='Pres & Prop Rev'!G32 -> 304980 | H51: ='Pres & Prop Rev'!H32 -> 8514233
B52: BLOCK 3 | C52: 43618606.15 | D52: ='Pres & Prop Rev'!D33 -> 0 | E52: ='Pres & Prop Rev'!E33 -> 29322405.15 | F52: ='Pres & Prop Rev'!F33 -> 0 | G52: ='Pres & Prop Rev'!G33 -> 342272 | H52: ='Pres & Prop Rev'!H33 -> 13953929
B53: BLOCK 4 | C53: 4080194.594 | D53: ='Pres & Prop Rev'!D34 -> 0 | E53: ='Pres & Prop Rev'!E34 -> 1235591.594 | F53: ='Pres & Prop Rev'!F34 -> 0 | G53: ='Pres & Prop Rev'!G34 -> 98015 | H53: ='Pres & Prop Rev'!H34 -> 2746588
B54: BLOCK 5 | C54: 2642898.616 | D54: ='Pres & Prop Rev'!D35 -> 0 | E54: ='Pres & Prop Rev'!E35 -> 743507.616 | F54: ='Pres & Prop Rev'!F35 -> 0 | G54: ='Pres & Prop Rev'!G35 -> 0 | H54: ='Pres & Prop Rev'!H35 -> 1899391
B55: ADJ. TO ACTUAL | C55: 0 | D55: ='Pres & Prop Rev'!D41 -> 0 | E55: ='Pres & Prop Rev'!E41 -> 0 | F55: ='Pres & Prop Rev'!F41 -> 0 | G55: ='Pres & Prop Rev'!G41 -> 0 | H55: ='Pres & Prop Rev'!H41 -> 0
B56: WEATHER & U/B THERMS | C56: 6624790 | D56: ='Pres & Prop Rev'!D44 -> 5017638 | E56: ='Pres & Prop Rev'!E44 -> 1607152 | F56: ='Pres & Prop Rev'!F44 -> 0 | G56: ='Pres & Prop Rev'!G44 -> 0 | H56: ='Pres & Prop Rev'!H44 -> 0 | I56: Proposed rates:
B57: TOTAL PROFORMA THERMS | C57: =IF(ROUND(SUM(D57:H57),3)<>ROUND(SUM(C50:C56),3),#VALUE!,SUM(D57:H57)) -> 221464060.2 | D57: =SUM(D50:D56) -> 128985980.1 | E57: =SUM(E50:E56) -> 55884877.13 | F57: =SUM(F50:F56) -> 0 | G57: =SUM(G50:G56) -> 985267 | H57: =SUM(H50:H56) -> 35607936 | I57: same as current
B58: TOTAL BILLS | D58: =SUM('Pres & Prop Rev'!D48:D49) -> 1941495 | E58: =SUM('Pres & Prop Rev'!E48:E49) -> 36876 | F58: =SUM('Pres & Prop Rev'!F48:F49) -> 0 | G58: =SUM('Pres & Prop Rev'!G48:G49) -> 24 | H58: =SUM('Pres & Prop Rev'!H48:H49) -> 480 | I58: diff than current
I59: Formulas to copy
B60: Proposed Revenue | C60: =SUM(D60:H60) -> 99987419.03 | D60: ='Rate Spread'!H13*1000 -> 77318734.23 | E60: =('Rate Spread'!H14+'Rate Spread'!H15)*1000 -> 18933160.3 | F60: 0 | G60: ='Rate Spread'!H16*1000 -> 218514.4696 | H60: ='Rate Spread'!H17*1000 -> 3517010.032 | I60: FLOOR | J60: CEILING | K60: OTHER
B61: Targeted Rate Increase | C61: =#REF! ->  | D61: =#REF! ->  | E61: =#REF! ->  | F61: =#REF! ->  | G61: =#REF! ->  | H61: =#REF! -> 
B62: Present Basic/Min Charge | D62: =D4+D5 -> 9.5 | E62: =E4+E5 -> 97.25 | F62: =F4+F5 -> 240.44 | G62: =G4+G5 -> 0 | H62: =H4+H5 -> 550
B63: BASIC/MIN CHARGE | D63: 9.5 | E63: =ROUND((RD!D15*70)+(RD!D16*130)+D62+(70*RD!G15)+(130*RD!G16)+RD!G13,2) -> 107.56 | F63: 0 | G63: 0 | H63: 625 | I63: =FLOOR(I62*(1+I$61),$I64) -> 0 | J63: =CEILING(J62*(1+J$61),$J64) -> 0 | K63: 1.05
B64: % D in Basic Charge | D64: =IF(D62,D63/D62-1,0) -> 0 | E64: =IF(E62,E63/E62-1,0) -> 0.1060154242 | F64: =IF(F62,F63/F62-1,0) -> -1 | G64: =IF(G62,G63/G62-1,0) -> 0 | H64: =IF(H62,H63/H62-1,0) -> 0.1363636364 | I64: 0.05 | J64: 0.05
B65: Basic Charge Revenue | C65: =SUM(D65:H65) -> 22741719.87 | D65: =D58*D63 -> 18444202.5 | E65: =E58*E63 -> 3966382.56 | F65: =F58*F63 -> 0 | G65: =G58*G63 -> 0 | H65: =(H58*H63)+'Pres & Prop Rev'!H156 -> 331134.8131
D66: 0
B67: Present Block 1 Rate | D67: =D6 -> 36.723 | E67: 0 | F67: 0 | G67: 24.655 | H67: 9.69 | J67: =+E62+(D63-D62)+30*(D82/100)+130*(D83/100) -> 178.8934988
B68: Present Block 2 Rate | D68: 47.729 | E68: 33.354 | F68: 34.85 | G68: 19.792 | H68: 8.621
B69: Present Block 3 Rate | D69: 0 | E69: 25.424 | F69: 26.767 | G69: 18.598 | H69: 7.774
B70: Present Block 4 Rate | D70: =D9 -> 0 | E70: ='Sch 111 Rate Design'!T38*100 -> 21.692 | F70: =F9 -> 21.692 | G70: 18.203 | H70: 7.189
B71: Present Block 5 Rate | D71: 0 | E71: ='Sch 111 Rate Design'!U38*100 -> 15.2172812 | F71: 14.387 | G71: 0 | H71: 5.403
B73: 1) Flat Rate Increase | D73: 1 | E73: 1 | F73: 1 | G73: 1 | H73: 1
B74: 2) % Rate Increase | D74: 0.1174152574 | E74: 0.08410999691 | F74: 0 | G74: 0.0954389944 | H74: 0.08292546401 | K74: =K$61 -> 0
B75: Method ---> | D75: 2 | E75: 2 | F75: 2 | G75: 2 | H75: 2
F76: 0
A77: Calculated | B77: BLOCK 1 PER THERM | D77: =CHOOSE(D$75,D67+D$73,D67*(1+D$74)) -> 41.0348405 | E77: =E67 -> 0 | F77: =F67 -> 0 | G77: =CHOOSE(G$75,G67+G$73,G67*(1+G$74)) -> 27.00804841 | H77: 10.49354775
B78: BLOCK 2 PER THERM | D78: =CHOOSE(D$75,D68+D$73,D68*(1+D$74)) -> 53.33311282 | E78: =CHOOSE(E$75,E68+E$73,E68*(1+E$74)) -> 36.15940484 | G78: 21.68092858 | H78: 9.335900425
B79: BLOCK 3 PER THERM | D79: 0 | E79: =CHOOSE(E$75,E69+E$73,E69*(1+E$74)) -> 27.56241256 | G79: =CHOOSE(G$75,G69+G$73,G69*(1+G$74)) -> 20.37297442 | H79: 8.418662557
B80: BLOCK 4 PER THERM | D80: 0 | E80: =CHOOSE(E$75,E70+E$73,E70*(1+E$74)) -> 23.51651405 | G80: =G70 -> 18.203 | H80: 7.785151161
B81: BLOCK 5 PER THERM | D81: 0 | E81: 16.49720668 | G81: 0 | H81: =CHOOSE(H$75,H71+H$73,H71*(1+H$74)) -> 5.851046282
A82: Input | B82: BLOCK 1 PER THERM | D82: =D77 -> 41.0348405 | E82: =E77 -> 0 | F82: =F77 -> 0 | G82: =G77 -> 27.00804841 | H82: =H77 -> 10.49354775 | J82: =F82-F67 -> 0 | K82: =H82-H67 -> 0.8035477463 | L82: =D63+((D77/100)*200) -> 91.56968099 | M82: =E63+((E82/100)*200) -> 107.56 | P82: =F63+((F82/100)*500) -> 0
B83: BLOCK 2 PER THERM | D83: =D78 -> 53.33311282 | E83: =E78 -> 36.15940484 | F83: =F78 -> 0 | G83: =G78 -> 21.68092858 | H83: =H78 -> 9.335900425 | J83: =F83-F68 -> -34.85 | K83: =H83-H68 -> 0.7149004252
B84: BLOCK 3 PER THERM | E84: =E79 -> 27.56241256 | F84: =F79 -> 0 | G84: 20.37297442 | H84: 8.418662557 | J84: =F84-F69 -> -26.767 | K84: =H84-H69 -> 0.6446625572
B85: BLOCK 4 PER THERM | E85: =E80 -> 23.51651405 | F85: =F80 -> 0 | G85: =G80 -> 18.203 | H85: =H80 -> 7.785151161 | J85: =F85-F70 -> -21.692 | K85: 0.5961511608
B86: BLOCK 5 PER THERM | E86: 16.49720668 | F86: =F81 -> 0 | G86: 0 | H86: =H81 -> 5.851046282 | J86: -14.387 | K86: 0.4480462821
B87: Blocks 1-5 Revenue | C87: =SUM(D87:H87) -> 74407312.72 | D87: =SUMPRODUCT(D50:D54,D82:D86)/100 -> 56507469.61 | E87: =SUMPRODUCT(E50:E54,E82:E86)/100 -> 14495453.42 | F87: =SUMPRODUCT(F50:F54,F82:F86)/100 -> 0 | G87: =SUMPRODUCT(G50:G54,G82:G86)/100 -> 218514.4696 | H87: =SUMPRODUCT(H50:H54,H82:H86)/100 -> 3185875.219 | L87: 101 | M87: 111/112 | N87: 101 | O87: 111 | P87: 121
B88: Adj. to Actual Revenue | C88: =SUM(D88:H88) -> 0 | D88: ='Pres & Prop Rev'!D168 -> 0 | E88: ='Pres & Prop Rev'!E168 -> 0 | F88: ='Pres & Prop Rev'!F168 -> 0 | G88: ='Pres & Prop Rev'!G168 -> 0 | H88: ='Pres & Prop Rev'!H168 -> 0 | K88: Breakeven Proof Calc | M88: 200 | N88: 500
B89: Weather & U/B Revenue | C89: =SUM(D89:H89) -> 2838186.44 | D89: ='Pres & Prop Rev'!D190 -> 2366862.12 | E89: ='Pres & Prop Rev'!E190 -> 471324.32 | F89: ='Pres & Prop Rev'!F190 -> 0 | G89: ='Pres & Prop Rev'!G190 -> 0 | H89: ='Pres & Prop Rev'!H190 -> 0 | K89: Basic Charge/Minimum | L89: =D63 -> 9.5 | M89: =E63 -> 107.56 | N89: =D63 -> 9.5 | O89: =E63 -> 107.56 | P89: =F63 -> 0
K90: Therm Rate | L90: =D82/100 -> 0.410348405 | N90: =D82/100 -> 0.410348405 | O90: =(E82/100) -> 0 | P90: =F82/100 -> 0
B91: Revenue Remaining | C91: =IF(ROUND(C60-C65-SUM(C87:C89),3)<>ROUND(SUM(D91:H91),3),#VALUE!,SUM(D91:H91)) -> 200 | D91: =D60-D65-SUM(D87:D89) -> 200 | E91: =E60-E65-SUM(E87:E89) -> 0 | F91: =F60-F65-SUM(F87:F89) -> 0 | G91: =G60-G65-SUM(G87:G89) -> 0 | H91: =H60-H65-SUM(H87:H89) -> 0 | K91: Therm Rate | L91: =D83/100 -> 0.5333311282 | N91: =L91 -> 0.5333311282 | O91: =RD!D20 -> 0.33354
B92: Revenue Remaining - ¢/Th | C92: =C91/C57*100 -> 9.030810679e-05 | D92: 0.0001550556114 | E92: 0 | G92: 0 | H92: 0 | K92: Bill Calculation | L92: =(70*L90)+(130*L91)+L89 -> 107.557435 | M92: =(M88*M90)+M89 -> 107.56 | N92: =((70*N90)+(430*N91))+N89 -> 267.5567735 | O92: =O89+(200*O90)+((N88-200)*O91) -> 207.622 | P92: =P89+(N88*P90) -> 0
B93: check - < $4k is rounding | C93: =SUM(D93:H93) -> 21.64947998 | D93: =D60-'Pres & Prop Rev'!D192-D91 -> -72.8999709 | E93: =E60-'Pres & Prop Rev'!E192-E91 -> 183.6811639 | F93: =F60-'Pres & Prop Rev'!F192-F91 -> 0 | G93: =G60-'Pres & Prop Rev'!G192-G91 -> -0.1803996837 | H93: =H60-'Pres & Prop Rev'!H192-H91 -> -88.95131329
K94: Gas Costs | L94: 0 | M94: =E82/100 -> 0 | N94: =L94 -> 0 | O94: =M94 -> 0 | P94: =F82/100 -> 0
B95: Proposed Target | C95: =SUM(D95:H95) -> 99987419.03 | D95: =D60 -> 77318734.23 | E95: =E60 -> 18933160.3 | F95: =F60 -> 0 | G95: =G60 -> 218514.4696 | H95: =H60 -> 3517010.032 | K95: Gas Cost Revenue | L95: =L94*200 -> 0 | M95: =M94*200 -> 0 | N95: =$N$88*N94 -> 0 | O95: =$N$88*O94 -> 0 | P95: 0
B96: Proposed Actual | C96: ='Pres & Prop Rev'!C192-SUM('Pres & Prop Rev'!I192:J192) -> 99987197.38 | D96: ='Pres & Prop Rev'!D192 -> 77318607.13 | E96: ='Pres & Prop Rev'!E192 -> 18932976.62 | F96: ='Pres & Prop Rev'!F192 -> 0 | G96: ='Pres & Prop Rev'!G192 -> 218514.65 | H96: ='Pres & Prop Rev'!H192 -> 3517098.983 | K96: Gas Cost Difference | M96: =L95-M95 -> 0 | P96: =N95-P95 -> 0
C97: =SUM(D97:H97) -> -221.64948 | D97: =D96-D95 -> -127.1000291 | E97: =E96-E95 -> -183.6811639 | F97: =F96-F95 -> 0 | G97: =G96-G95 -> 0.1803996837 | H97: =H96-H95 -> 88.95131329
B98: Rate D Check | M98: =L92-M92-M96 -> -0.002564987541 | P98: =N92-P92-P96 -> 267.5567735
B99: Basic/Min Charge | C99: =SUM('Pres & Prop Rev'!C155:C156)/SUM('Pres & Prop Rev'!C106:C107)-1 -> 0.01820689337 | D99: =SUM('Pres & Prop Rev'!D155:D156)/SUM('Pres & Prop Rev'!D106:D107)-1 -> 0 | E99: =SUM('Pres & Prop Rev'!E155:E156)/SUM('Pres & Prop Rev'!E106:E107)-1 -> 0.107096221 | F99: =SUM('Pres & Prop Rev'!F155:F156)/SUM('Pres & Prop Rev'!F106:F107)-1 -> -1 | G99: =SUM('Pres & Prop Rev'!G155:G156)/SUM('Pres & Prop Rev'!G106:G107)-1 ->  | H99: =SUM('Pres & Prop Rev'!H155:H156)/SUM('Pres & Prop Rev'!H106:H107)-1 -> 0.1274690976
B100: Adj. to Actual Revenue | C100: ='Pres & Prop Rev'!C168/'Pres & Prop Rev'!C119-1 ->  | D100: ='Pres & Prop Rev'!D168/'Pres & Prop Rev'!D119-1 ->  | E100: ='Pres & Prop Rev'!E168/'Pres & Prop Rev'!E119-1 ->  | F100: ='Pres & Prop Rev'!F168/'Pres & Prop Rev'!F119-1 ->  | G100: ='Pres & Prop Rev'!G168/'Pres & Prop Rev'!G119-1 ->  | H100: ='Pres & Prop Rev'!H168/'Pres & Prop Rev'!H119-1 -> 
B101: Weather & U/B Revenue | C101: ='Pres & Prop Rev'!C190/'Pres & Prop Rev'!C142-1 -> 0.111467672 | D101: ='Pres & Prop Rev'!D190/'Pres & Prop Rev'!D142-1 -> 0.1174158153 | E101: ='Pres & Prop Rev'!E190/'Pres & Prop Rev'!E142-1 -> 0.04031965411 | F101: ='Pres & Prop Rev'!F190/'Pres & Prop Rev'!F142-1 -> -1 | G101: ='Pres & Prop Rev'!G190/'Pres & Prop Rev'!G142-1 ->  | H101: ='Pres & Prop Rev'!H190/'Pres & Prop Rev'!H142-1 -> 
B102: Block Therm Charges | C102: =SUM('Pres & Prop Rev'!C157:C161)/SUM('Pres & Prop Rev'!C108:C112)-1 -> 0.1066117958 | D102: =SUM('Pres & Prop Rev'!D157:D161)/SUM('Pres & Prop Rev'!D108:D112)-1 -> 0.1174166991 | E102: =SUM('Pres & Prop Rev'!E157:E161)/SUM('Pres & Prop Rev'!E108:E112)-1 -> 0.1085846903 | F102: =SUM('Pres & Prop Rev'!F157:F161)/SUM('Pres & Prop Rev'!F108:F112)-1 -> -1 | G102: =SUM('Pres & Prop Rev'!G157:G161)/SUM('Pres & Prop Rev'!G108:G112)-1 -> 0.08696959564 | H102: =SUM('Pres & Prop Rev'!H157:H161)/SUM('Pres & Prop Rev'!H108:H112)-1 -> 0.08295569616
B103: Overall Revenue | C103: ='Pres & Prop Rev'!C192/'Pres & Prop Rev'!C193-1 -> 0.08537114904 | D103: ='Pres & Prop Rev'!D192/'Pres & Prop Rev'!D193-1 -> 0.08697112896 | E103: ='Pres & Prop Rev'!E192/'Pres & Prop Rev'!E193-1 -> 0.1064655726 | F103: ='Pres & Prop Rev'!F192/'Pres & Prop Rev'!F193-1 -> -1 | G103: ='Pres & Prop Rev'!G192/'Pres & Prop Rev'!G193-1 -> 0.08696959564 | H103: ='Pres & Prop Rev'!H192/'Pres & Prop Rev'!H193-1 -> 0.0869961896
B105: Avg. Usage | D105: =D57/D58 -> 66.43642146 | E105: =E57/E58 -> 1515.480994 | F105: =F57/F58 ->  | G105: =G57/G58 -> 41052.79167 | H105: =H57/H58 -> 74183.2
B106: Bill Compare: | C106: =INDEX($D$2:$H$2,I106) -> SCH. 101 | F106: =INDEX($D$2:$H$2,J106) -> SCH. 111,112,116 | I106: 1 | J106: 2
C107: Pres | D107: Prop | E107: % Incr | F107: Pres | G107: Prop | H107: % Incr
B108: 0 | C108: =I$108+MIN($B108,M$109)*I$109/100+MAX(0,MIN($B108-M$109,M$110-M$109))*I$110/100+MAX(0,MIN($B108-M$110,M$111-M$110))*I$111/100+MAX(0,MIN($B108-M$111,M$112-M$111))*I$112/100+MAX(0,B108-M$113)*I$113/100 -> 9.5 | D108: =J$108+MIN($B108,N$109)*J$109/100+MAX(0,MIN($B108-N$109,N$110-N$109))*J$110/100+MAX(0,MIN($B108-N$110,N$111-N$110))*J$111/100+MAX(0,MIN($B108-N$111,N$112-N$111))*J$112/100+MAX(0,C108-N$113)*J$113/100 -> 9.5 | E108: =D108/C108-1 -> 0 | F108: =K$108+MIN($B108,O$109)*K$109/100+MAX(0,MIN($B108-O$109,O$110-O$109))*K$110/100+MAX(0,MIN($B108-O$110,O$111-O$110))*K$111/100+MAX(0,MIN($B108-O$111,O$112-O$111))*K$112/100+MAX(0,E108-O$113)*K$113/100 -> 97.25 | G108: =L$108+MIN($B108,P$109)*L$109/100+MAX(0,MIN($B108-P$109,P$110-P$109))*L$110/100+MAX(0,MIN($B108-P$110,P$111-P$110))*L$111/100+MAX(0,MIN($B108-P$111,P$112-P$111))*L$112/100+MAX(0,F108-P$113)*L$113/100 -> 107.56 | H108: =G108/F108-1 -> 0.1060154242 | I108: =INDEX(CHOOSE(Base1_Billing2,$D$4:$H$4,$D$14:$H$14),$I$106)+INDEX(CHOOSE(Base1_Billing2,$D$5:$H$5,$D$15:$H$15),$I$106) -> 9.5 | J108: =INDEX(CHOOSE(Base1_Billing2,$D$26:$H$26,$D$36:$H$36),$I$106)+INDEX(CHOOSE(Base1_Billing2,$D$27:$H$27,$D$37:$H$37),$I$106) -> 9.5 | K108: =INDEX(CHOOSE(Base1_Billing2,$D$4:$H$4,$D$14:$H$14),$J$106)+INDEX(CHOOSE(Base1_Billing2,$D$5:$H$5,$D$15:$H$15),$J$106) -> 97.25 | L108: =INDEX(CHOOSE(Base1_Billing2,$D$26:$H$26,$D$36:$H$36),$J$106)+INDEX(CHOOSE(Base1_Billing2,$D$27:$H$27,$D$37:$H$37),$J$106) -> 107.56
B109: 65 | C109: =I$108+MIN($B109,M$109)*I$109/100+MAX(0,MIN($B109-M$109,M$110-M$109))*I$110/100+MAX(0,MIN($B109-M$110,M$111-M$110))*I$111/100+MAX(0,MIN($B109-M$111,M$112-M$111))*I$112/100+MAX(0,B109-M$113)*I$113/100 -> 33.36995 | D109: =J$108+MIN($B109,N$109)*J$109/100+MAX(0,MIN($B109-N$109,N$110-N$109))*J$110/100+MAX(0,MIN($B109-N$110,N$111-N$110))*J$111/100+MAX(0,MIN($B109-N$111,N$112-N$111))*J$112/100+MAX(0,C109-N$113)*J$113/100 -> 36.17275 | E109: 0.08399173508 | F109: =K$108+MIN($B109,O$109)*K$109/100+MAX(0,MIN($B109-O$109,O$110-O$109))*K$110/100+MAX(0,MIN($B109-O$110,O$111-O$110))*K$111/100+MAX(0,MIN($B109-O$111,O$112-O$111))*K$112/100+MAX(0,E109-O$113)*K$113/100 -> 97.25 | G109: =L$108+MIN($B109,P$109)*L$109/100+MAX(0,MIN($B109-P$109,P$110-P$109))*L$110/100+MAX(0,MIN($B109-P$110,P$111-P$110))*L$111/100+MAX(0,MIN($B109-P$111,P$112-P$111))*L$112/100+MAX(0,F109-P$113)*L$113/100 -> 107.56 | H109: 0.1060154242 | I109: =INDEX(CHOOSE(Base1_Billing2,$D6:$H6,$D16:$H16),$I$106) -> 36.723 | J109: =INDEX(CHOOSE(Base1_Billing2,$D28:$H28,$D38:$H38),$I$106) -> 41.035 | K109: =INDEX(CHOOSE(Base1_Billing2,$D6:$H6,$D16:$H16),$J$106) -> 0 | L109: =INDEX(CHOOSE(Base1_Billing2,$D28:$H28,$D38:$H38),$J$106) -> 0 | M109: =INDEX($L6:$P6,$I$106) -> 9999999 | N109: =INDEX($L28:$P28,$I$106) -> 9999999 | O109: =INDEX($L6:$P6,$J$106) -> 200 | P109: =INDEX($L28:$P28,$J$106) -> 200
B110: 2000 | C110: 743.96 | D110: 830.2 | E110: 0.1159202108 | F110: 618.322 | G110: 672.452 | H110: 0.08754338354 | I110: =INDEX(CHOOSE(Base1_Billing2,$D7:$H7,$D17:$H17),$I$106) -> 47.729 | J110: =INDEX(CHOOSE(Base1_Billing2,$D29:$H29,$D39:$H39),$I$106) -> 53.333 | K110: =INDEX(CHOOSE(Base1_Billing2,$D7:$H7,$D17:$H17),$J$106) -> 33.354 | L110: =INDEX(CHOOSE(Base1_Billing2,$D29:$H29,$D39:$H39),$J$106) -> 36.159 | M110: =INDEX($L7:$P7,$I$106) -> 9999999 | N110: =INDEX($L29:$P29,$I$106) -> 9999999 | O110: =INDEX($L7:$P7,$J$106) -> 1000 | P110: =INDEX($L29:$P29,$J$106) -> 1000
B111: 3000 | C111: 1111.19 | D111: 1240.55 | E111: 0.1164157345 | F111: 872.562 | G111: 948.072 | H111: 0.08653826318 | I111: =INDEX(CHOOSE(Base1_Billing2,$D8:$H8,$D18:$H18),$I$106) -> 0 | J111: =INDEX(CHOOSE(Base1_Billing2,$D30:$H30,$D40:$H40),$I$106) -> 0 | K111: =INDEX(CHOOSE(Base1_Billing2,$D8:$H8,$D18:$H18),$J$106) -> 25.424 | L111: =INDEX(CHOOSE(Base1_Billing2,$D30:$H30,$D40:$H40),$J$106) -> 27.562 | M111: =INDEX($L8:$P8,$I$106) -> 9999999 | N111: =INDEX($L30:$P30,$I$106) -> 9999999 | O111: =INDEX($L8:$P8,$J$106) -> 9999999 | P111: =INDEX($L30:$P30,$J$106) -> 9999999
B112: 4000 | C112: 1478.42 | D112: 1650.9 | E112: 0.1166650884 | F112: 1126.802 | G112: 1223.692 | H112: 0.08598671284 | I112: =INDEX(CHOOSE(Base1_Billing2,$D9:$H9,$D19:$H19),$I$106) -> 0 | J112: =INDEX(CHOOSE(Base1_Billing2,$D31:$H31,$D41:$H41),$I$106) -> 0 | K112: =INDEX(CHOOSE(Base1_Billing2,$D9:$H9,$D19:$H19),$J$106) -> 0 | L112: =INDEX(CHOOSE(Base1_Billing2,$D31:$H31,$D41:$H41),$J$106) -> 23.517 | M112: =INDEX($L9:$P9,$I$106) -> 9999999 | N112: =INDEX($L31:$P31,$I$106) -> 9999999 | O112: =INDEX($L9:$P9,$J$106) -> 9999999 | P112: =INDEX($L31:$P31,$J$106) -> 9999999
B113: 5000 | C113: 1845.65 | D113: 2061.25 | E113: 0.1168152142 | F113: 1381.042 | G113: 1499.312 | H113: 0.08563823548 | I113: =INDEX(CHOOSE(Base1_Billing2,$D10:$H10,$D20:$H20),$I$106) -> 0 | J113: =INDEX(CHOOSE(Base1_Billing2,$D32:$H32,$D42:$H42),$I$106) -> 0 | K113: =INDEX(CHOOSE(Base1_Billing2,$D10:$H10,$D20:$H20),$J$106) -> 0 | L113: =INDEX(CHOOSE(Base1_Billing2,$D32:$H32,$D42:$H42),$J$106) -> 16.497 | M113: =INDEX($L10:$P10,$I$106) -> 9999999 | N113: =INDEX($L32:$P32,$I$106) -> 9999999 | O113: =INDEX($L10:$P10,$J$106) -> 9999999 | P113: =INDEX($L32:$P32,$J$106) -> 9999999
B114: 6000 | C114: 2212.88 | D114: 2471.6 | E114: 0.1169155128 | F114: 1635.282 | G114: 1774.932 | H114: 0.08539811482
B115: 7000 | C115: 2580.11 | D115: 2881.95 | E115: 0.1169872602 | F115: 1889.522 | G115: 2050.552 | H115: 0.08522261186
B116: 8000 | C116: 2947.34 | D116: 3292.3 | E116: 0.1170411286 | F116: 2143.762 | G116: 2326.172 | H116: 0.08508873653
B117: 9000 | C117: 3314.57 | D117: 3702.65 | E117: 0.1170830605 | F117: 2398.002 | G117: 2601.792 | H117: 0.08498324855
B118: 10000 | C118: 3681.8 | D118: 4113 | E118: 0.1171166277 | F118: 2652.242 | G118: 2877.412 | H118: 0.08489798442
B119: 11000 | C119: 4049.03 | D119: 4523.35 | E119: 0.1171441061 | F119: 2906.482 | G119: 3153.032 | H119: 0.08482763699
B120: 12000 | C120: 4416.26 | D120: 4933.7 | E120: 0.1171670146 | F120: 3160.722 | G120: 3428.652 | H120: 0.08476860667
B121: 13000 | C121: 4783.49 | D121: 5344.05 | E121: 0.1171864057 | F121: 3414.962 | G121: 3704.272 | H121: 0.08471836583
B122: 14000 | C122: 5150.72 | D122: 5754.4 | E122: 0.1172030318 | F122: 3669.202 | G122: 3979.892 | H122: 0.08467508739

Sheet RS
A1: AVISTA UTILITIES | O1: This worksheet pulls data from 'Pres & Prop Rev' tab.
A2: WASHINGTON NATURAL GAS
A3: PROPOSED INCREASE BY SERVICE SCHEDULE
A4: 12 MONTHS ENDED DECEMBER 31, 2018
A5: (000s of Dollars)
D8: Base Tariff | F8: Base Tariff | G8: Base | H8: Total Billed | L8: Percent
D9: Distribution Revenue | E9: Settlement | F9: Distribution Revenue | G9: Tariff | H9: Revenue | I9: Sch. 192 | J9: Settlement | K9: Sch 194 | L9: Increase | N9: Revenue | W9: Base Revenue
A10: Line | B10: Type of | C10: Schedule | D10: Under Present | E10: General | F10: Under Proposed | G10: Percent | H10: at Present | I10: LIRAP | J10: General | K10: Remand | L10: on Billed | N10: Per | Q10: Present | S10: Therm | T10: Sch 150 | U10: Sch 150 | W10: plus
A11: No. | B11: Service | C11: Number | D11: Rates | E11: Increase | F11: Rates | G11: Increase | H11: Rates (1) | I11: Increase | J11: Increase | K11: Decrease | L11: Revenue | N11: Customer | P11: # of Bills | Q11: Avg Bill | S11: Sales | T11: PGA Rate | U11: Revenue | W11: Sch 150
B12: (a) | C12: (b) | D12: (c) | E12: (d) | F12: (e) | G12: (f) | H12: (g) | I12: (h) | J12: (i) | K12: (j) | L12: (k)
A14: 1 | B14: General Service | C14: 101/102 | D14: ='Pres & Prop Rev'!$D$145/1000 -> 71132.16264 | E14: ='Pres & Prop Rev'!$D$195/1000+0.1 -> 6186.54449 | F14: ='Pres & Prop Rev'!$D$192/1000 -> 77318.60713 | G14: =E14/D14 -> 0.08697253479 | H14: =112562.45945-68 -> 112494.4594 | I14: =LIRAP!G13/1000 -> 125.6833082 | J14: =E14 -> 6186.54449 | K14: -2761 | L14: =(E14+I14+K14)/H14 -> 0.03156802402 | N14: =(D14*1000)/(P14/12) -> 439.6539531 | P14: ='Bill Determ'!C7 -> 1941495 | Q14: ='Bill Impact'!E15 -> 54.94 | S14: ='Pres & Prop Rev'!D23 -> 128985980.1 | T14: 0.2615 | U14: =(S14*T14)/1000 -> 33729.83379 | W14: =D14+U14 -> 104861.9964 | X14: =E14/W14 -> 0.05899701227 | Y14: LIRAP is 2x this percentage, less the prior 7%
A15: 2 | B15: Large General Service | C15: 111/112/116 | D15: ='Pres & Prop Rev'!$E$145/1000+'Pres & Prop Rev'!$F$145/1000-0.2 -> 17418.31235 | E15: ='Pres & Prop Rev'!$E$195/1000+0.1 -> 1514.56427 | F15: ='Pres & Prop Rev'!$E$192/1000-0.4 -> 18932.57662 | G15: =E15/D15 -> 0.0869524119 | H15: =35006.97703-1-5 -> 35000.97703 | I15: =LIRAP!G14/1000 -> 45.63412804 | J15: =E15 -> 1514.56427 | K15: -676 | L15: =(E15+I15+K15)/H15 -> 0.02526210618 | N15: =((D15+D16+D17)*1000)/((P15+P16+P17)/12) -> 5724.283109 | P15: ='Bill Determ'!H23 -> 36876 | Q15: =(H15*1000)/P15 -> 949.1532984 | S15: ='Pres & Prop Rev'!E23 -> 54329805.68 | T15: 0.25181 | U15: 13680.78837 | W15: =D15+U15 -> 31099.10072
A16: 3 | B16: Large General Svc.-High Annual Load Factor (2) | C16: 121/122/126 | D16: 0 | E16: ='Pres & Prop Rev'!$F$195/1000 -> 0 | F16: ='Pres & Prop Rev'!$F$192/1000 -> 0 | G16: 0 | H16: 0 | I16: 0 | J16: 0 | K16: 0 | L16: 0 | P16: ='Bill Determ'!H29 -> 36 | Q16: =(H16*1000)/P16 -> 0 | S16: ='Pres & Prop Rev'!F23 -> 1555071.002 | T16: 0.25181 | U16: 391.5824289 | W16: 391.5824289
A17: 4 | B17: Interruptible Service | C17: 131/132 | D17: ='Pres & Prop Rev'!$G$145/1000 -> 201.03106 | E17: ='Pres & Prop Rev'!$G$195/1000 -> 17.48359 | F17: ='Pres & Prop Rev'!$G$192/1000-0.1 -> 218.41465 | G17: =E17/D17 -> 0.08696959564 | H17: 443.04219 | I17: =LIRAP!G15/1000 -> 0.705924775 | J17: 17.48359 | K17: -8 | L17: 0.02299897167 | P17: ='Bill Determ'!G36 -> 24 | Q17: =(H17*1000)/P17 -> 18460.09125 | S17: ='Pres & Prop Rev'!G23 -> 985267 | T17: 0.21892 | U17: 215.6946516 | W17: 416.7257116
A18: 5 | B18: Transportation Service | C18: 146 | D18: ='Pres & Prop Rev'!$H$145/1000 -> 3235.612983 | E18: ='Pres & Prop Rev'!$H$195/1000 -> 281.4860005 | F18: ='Pres & Prop Rev'!$H$192/1000 -> 3517.098983 | G18: =E18/D18 -> 0.0869961896 | H18: 3284.039763 | I18: =LIRAP!G16/1000 -> 6.684641031 | J18: 281.4860005 | K18: -126 | L18: 0.04938144885 | P18: ='Bill Determ'!H40 -> 480 | Q18: =(H18*1000)/P18 -> 6841.749505 | S18: ='Pres & Prop Rev'!H23 -> 35607936 | T18: 0 | U18: 0 | W18: 3235.612983
A19: 6 | B19: Special Contracts | C19: 148 | D19: =SUM('Pres & Prop Rev'!$I$145:$J$145)/1000 -> 1719.72885 | E19: =SUM('Pres & Prop Rev'!$I$195:$J$195)/1000 -> 0 | F19: =SUM('Pres & Prop Rev'!$I$192:$J$192)/1000 -> 1719.72885 | G19: 0 | H19: 1719.72885 | I19: 0 | J19: 0 | K19: 0 | L19: 0 | S19: ='Pres & Prop Rev'!I23+'Pres & Prop Rev'!J23 -> 54517605 | T19: 0 | U19: 0 | W19: 1719.72885
A20: 7 | B20: Total | D20: ='Pres & Prop Rev'!$C$145/1000 -> 93707.04788 | E20: ='Pres & Prop Rev'!$C$195/1000 -> 7999.878351 | F20: ='Pres & Prop Rev'!$C$192/1000 -> 101706.9262 | G20: =E20/D20 -> 0.08537114904 | H20: =SUM(H14:H19)+0.4 -> 152942.6473 | I20: =SUM(I14:I19) -> 178.708002 | J20: =SUM(J14:J19) -> 8000.078351 | K20: =SUM(K14:K19) -> -3571 | L20: 0.03012623643 | S20: =SUM(S14:S19) -> 275981664.8 | U20: =SUM(U14:U19) -> 48017.89924 | W20: 141724.9471
D21: =ROUND(D20-SUM(D14:D19),0) -> 0 | J21: =ROUND(J20-SUM(J14:J19),-1) -> 0 | L21: =ROUND(L20-SUM(L14:L19),0) -> 0
A22: (1) Includes Schedule 150 (Purchase Gas Cost Adjustment), Schedule 155 (Gas Rate Adjustment), Schedule 175 (Decoupling),
A23: Schedule 191 (DSM Adjustment) and Schedule 192 (LIRAP Adjustment).
A25: (2) As discussed in the testimony of Company witness Miller Schedules 121/122/126 have been discontnued and the associated revenue has been included within rate schedules 111/112/116.
D28: =SUM(ROUND(D14:D19,0)) -> 93707 | E28: =SUM(ROUND(E14:E19,0)) -> 8000 | F28: =SUM(ROUND(F14:F19,0)) -> 101707 | H28: =SUM(ROUND(H14:H19,0)) -> 152942 | L28: =SUM(ROUND(L14:L19,0)) -> 0
D29: =ROUND(D20,0)-D28 -> 0 | E29: =ROUND(E20,0)-E28 -> 0 | F29: =ROUND(F20,0)-F28 -> 0 | H29: =ROUND(H20,0)-H28 -> 1 | L29: =ROUND(L20,0)-L28 -> 0
J31: 111/121 | L31: 112/122
G32: Rate Sch. | H32: Therms | J32: Sch 155 Rate | L32: Sch 155 Rate | M32: Billing Impact
G33: 112 | H33: ='12MEDEC18'!P93 -> 132272.376 | J33: 0.01085 | L33: 0 | M33: =(H33*(L33-J33)/1000) -> -1.43515528
G34: 116 | H34: 0 | J34: 0.01085 | L34: 0 | M34: =(H34*(L34-J34)/1000) -> 0 | N34: No 116 in Test Year
G35: 122 | H35: ='12MEDEC18'!P121 -> 462369.471 | J35: 0.01085 | L35: 0 | M35: =(H35*(L35-J35)/1000) -> -5.01670876
G36: 126 | H36: 0 | J36: 0.01085 | L36: 0 | M36: =(H36*(L36-J36)/1000) -> 0 | N36: No 126 in Test Year
J37: 111/121 | L37: 112/122
G38: Rate Sch. | H38: Therms | J38: Sch 175 Rate | L38: Sch 175 Rate | M38: Billing Impact
G39: 112 | H39: ='12MEDEC18'!P93 -> 132272.376 | J39: 0 | L39: 0 | M39: =(H39*(L39-J39)/1000) -> 0
G40: 122 | H40: ='12MEDEC18'!P121 -> 462369.471 | J40: 0 | L40: 0 | M40: =(H40*(L40-J40)/1000) -> 0
G43: Rate Sch. | H43: Therms | J43: Sch 189 Rate | L43: Sch 155 Rate | M43: Billing Impact
G44: 102 | H44: ='12MEDEC18'!P69 -> 141141.7748 | J44: -0.48469 | M44: =((H44*J44)/1000) -> -68.41000684

Sheet RD
A1: AVISTA UTILITIES | Q1: This worksheet uses Base & Billing rates from 'Rate Design' tab.
A2: WASHINGTON NATURAL GAS
A3: PRESENT AND PROPOSED RATE COMPONENTS BY SCHEDULE
J7: Proposed
D8: Present Base | E8: Present | G8: General | H8: Sch 92 | I8: Proposed | J8: Base
D9: Distribution | E9: Billing | F9: Present | G9: Rate | H9: LIRAP Rate | I9: Billing | J9: Distribution | N9: GRC
A10: Type of Service | D10: Rate | E10: Rate Adj. (1) | F10: Billing Rate | G10: Increase | H10: Increase | I10: Rate(1) | J10: Rate | L10: Base | M10: Bill | N10: Revenue
B11: (a) | D11: (b) | E11: (c) | F11: (d) | G11: (e) | H11: (f) | I11: (g) | J11: (h) | L11: check | M11: check | N11: Check
A12: General Service - Schedule 101
A13: Basic Charge | D13: ='Rate Design'!D4 -> 9.5 | E13: =F13-D13 -> 0 | F13: ='Rate Design'!D14 -> 9.5 | G13: =IF(ROUND(I13-F13,5)<>ROUND(J13-D13,5),#VALUE!,J13-D13) -> 0 | I13: ='Rate Design'!D36 -> 9.5 | J13: ='Rate Design'!D26 -> 9.5 | K13: =J13/D13-1 -> 0 | N13: =G13*'Pres & Prop Rev'!D25 -> 0
A14: Usage Charge:
A15: First 70 Therms | D15: ='Rate Design'!D6/100 -> 0.36723 | E15: =F15-D15 -> 0.3212 | F15: ='Rate Design'!D16/100 -> 0.68843 | G15: =J15-D15 -> 0.04312 | H15: =LIRAP!K13 -> 0.00097 | I15: =F15+G15+H15 -> 0.73252 | J15: ='Rate Design'!D28/100 -> 0.41035 | K15: =J15/D15-1 -> 0.1174196008 | L15: =D15+G15-J15 -> 0 | M15: =F15+G15+H15-I15 -> 0 | N15: =G15*'Pres & Prop Rev'!D31 -> 3368988.731 | W15: 155 Amort Rate | Y15: Decoupling | AA15: Proposed
A16: All over 70 Therms | D16: ='Rate Design'!D7/100 -> 0.47729 | E16: =E15 -> 0.3212 | F16: ='Rate Design'!D17/100 -> 0.79849 | G16: =J16-D16 -> 0.05604 | H16: =H15 -> 0.00097 | I16: =F16+G16+H16 -> 0.8555 | J16: ='Rate Design'!D29/100 -> 0.53333 | K16: =J16/D16-1 -> 0.1174128936 | L16: =D16+G16-J16 -> 0 | M16: =F16+G16+H16-I16 -> 0 | N16: =G16*'Pres & Prop Rev'!D32 -> 2568750.629 | Q16: =(70*D15)+(130*D16)+D13 -> 97.2538 | R16: =(70*J15)+(130*J16)+J13 -> 107.5574 | S16: =(70*D15)+(430*D16)+D13 -> 240.4408 | T16: =(70*J15)+(430*J16)+J13 -> 267.5564 | AA16: Billing
A17: Large General Service - Schedule 111 | N17: =SUM(N13:N16) -> 5937739.36 | O17: =N17-'Pres & Prop Rev'!D195 -> -248705.1299 | V17: Large General Service - Schedule 112 | W17: Sch 111 | X17: Sch 112 | Y17: Sch 175 | Z17: Difference | AA17: Rate
A18: Usage Charge: | K18: =J25/200+J26-J19 -> 0 | V18: Usage Charge:
A19: ="First "&TEXT('Rate Design'!M6,"#,##0")&" therms" -> First 200 therms | D19: ='Rate Design'!M11/100 -> 0.48625 | E19: =F19-D19 -> 0.31487 | F19: ='Rate Design'!M21/100 -> 0.80112 | G19: =J19-D19 -> 0.05155 | H19: =LIRAP!K14 -> 0.00082 | I19: =F19+G19+H19 -> 0.85349 | J19: ='Rate Design'!M33/100 -> 0.5378 | K19: =J19/D19-1 -> 0.1060154242 | L19: =D19+G19-J19 -> 0 | M19: =F19+G19-I19+H19 -> -4.163336342e-17 | Q19: =D19*200 -> 97.25 | R19: =J19*200 -> 107.56 | V19: ="First "&TEXT('Rate Design'!AG6,"#,##0")&" therms" -> First 0 therms | W19: 0.01085 | X19: 0 | Y19: 0 | Z19: =W19-X19+Y19 -> 0.01085 | AA19: =I19-Z19 -> 0.84264
A20: =TEXT('Rate Design'!M6,"#,##0")&" - "&TEXT('Rate Design'!M7,"#,##0")&" therms" -> 200 - 1,000 therms | D20: ='Rate Design'!E7/100 -> 0.33354 | E20: =F20-D20 -> 0.31487 | F20: ='Rate Design'!E17/100 -> 0.64841 | G20: =J20-D20 -> 0.02805 | H20: =H19 -> 0.00082 | I20: =F20+G20+H20 -> 0.67728 | J20: ='Rate Design'!E29/100 -> 0.36159 | K20: =J20/D20-1 -> 0.08409785933 | L20: =D20+G20-J20 -> 0 | M20: =F20+G20-I20+H20 -> -4.163336342e-17 | N20: =G20*'Pres & Prop Rev'!E32 -> 465459.6399 | V20: =TEXT('Rate Design'!AG6,"#,##0")&" - "&TEXT('Rate Design'!AG7,"#,##0")&" therms" -> 0 - 0 therms | W20: =W19 -> 0.01085 | X20: =X19 -> 0 | Y20: =Y19 -> 0 | Z20: =W20-X20+Y20 -> 0.01085 | AA20: =I20-Z20 -> 0.66643
A21: =TEXT('Rate Design'!N7,"#,##0")&" - "&TEXT('Rate Design'!N8,"#,##0")&" therms" -> 1,000 - 10,000 therms | C21: (Adjusted) | D21: ='Rate Design'!E8/100 -> 0.25424 | E21: =F21-D21 -> 0.31487 | F21: ='Rate Design'!E18/100 -> 0.56911 | G21: =J21-D21 -> 0.02138 | H21: =H19 -> 0.00082 | I21: 0.59131 | J21: ='Rate Design'!E30/100 -> 0.27562 | K21: =J21/D21-1 -> 0.08409376967 | L21: 0 | M21: -4.163336342e-17 | N21: =G21*'Pres & Prop Rev'!E33 -> 626913.0221 | V21: ="All over "&TEXT('Rate Design'!AG7,"#,##0")&" therms" -> All over 0 therms | W21: =W19 -> 0.01085 | X21: =X19 -> 0 | Y21: =Y19 -> 0 | Z21: 0.01085 | AA21: 0.58046
A22: =TEXT('Rate Design'!N8,"#,##0")&" - "&TEXT('Rate Design'!N9,"#,##0")&" therms" -> 10,000 - 25,000 therms | C22: (New) | H22: =H19 -> 0.00082 | I22: =J22+H22 -> 0.23599 | J22: ='Rate Design'!E31/100 -> 0.23517 | N22: ='Sch 111 Rate Design'!T49*'Pres & Prop Rev'!E34 -> 22549.54659
A23: ="All over "&TEXT('Rate Design'!N9,"#,##0")&" therms" -> All over 25,000 therms | C23: (New) | H23: =H19 -> 0.00082 | I23: =J23+H23 -> 0.16579 | J23: ='Rate Design'!E32/100 -> 0.16497 | N23: ='Sch 111 Rate Design'!U49*'Pres & Prop Rev'!E35 -> 9514.806724
A24: Minimum Charge: | V24: Minimum Charge:
A25: per month | D25: ='Rate Design'!E5 -> 97.25 | E25: =F25-D25 -> 0 | F25: ='Rate Design'!E15 -> 97.25 | G25: =IF(ROUND(I25-F25,5)<>ROUND(J25-D25,5),#VALUE!,J25-D25) -> 10.31 | I25: ='Rate Design'!E37 -> 107.56 | J25: ='Rate Design'!E27 -> 107.56 | K25: =J25/D25-1 -> 0.1060154242 | L25: 0 | M25: =F25+G25-I25 -> 0 | N25: =G25*'Pres & Prop Rev'!E49 -> 380191.56 | V25: per month
A26: per therm | D26: ='Rate Design'!E6/100 -> 0 | E26: =F26-D26 -> 0.31487 | F26: ='Rate Design'!E16/100 -> 0.31487 | G26: =J26-D26 -> 0 | H26: =H19 -> 0.00082 | I26: =F26+G26+H26 -> 0.31569 | J26: ='Rate Design'!E28/100 -> 0 | K26: =J26/D26-1 ->  | L26: 0 | M26: =F26+G26-I26+H26 -> 1.387778781e-17 | N26: =G26*'Pres & Prop Rev'!E31 -> 0 | V26: per therm | W26: =W19 -> 0.01085 | X26: =X19 -> 0 | Y26: =Y19 -> 0 | Z26: =W26-X26+Y26 -> 0.01085 | AA26: 0.30484
N27: =SUM(N19:N26) -> 1504628.575 | O27: =-('Pres & Prop Rev'!E190-'Pres & Prop Rev'!E142-'Pres & Prop Rev'!F142) -> -35932.96 | AA27: Billing
A28: High Annual Load Factor Large General Service - Schedule 121 (Discontinued) | V28: High Annual Load Factor Large General Service - Schedule 121 | W28: Sch 121 | X28: Sch 122 | Y28: Sch 175 | Z28: Difference | AA28: Rate
A29: Usage Charge: | K29: =J36/500+J37-J30 -> 0 | V29: Usage Charge:
A30: ="First "&TEXT('Rate Design'!N6,"#,##0")&" therms" -> First 500 therms | D30: ='Rate Design'!N11/100 -> 0.48088 | E30: =F30-D30 -> 0.30985 | F30: ='Rate Design'!N21/100 -> 0.79073 | G30: 0 | I30: **DISCONTINUED** | K30: =J30/D30-1 -> -1 | L30: =D30+G30-J30 -> 0.48088 | M30: =F30+G30 -> 0.79073 | Q30: =D30*500 -> 240.44 | R30: =J30*500 -> 0 | V30: First 500 therms | W30: 0 | X30: 0 | Y30: 0 | Z30: =W30-X30+Y30 -> 0 | AA30: 0
A31: =TEXT('Rate Design'!N6,"#,##0")&" - "&TEXT('Rate Design'!N7,"#,##0")&" therms" -> 500 - 1,000 therms | D31: ='Rate Design'!F7/100 -> 0.3485 | E31: =F31-D31 -> 0.30985 | F31: ='Rate Design'!F17/100 -> 0.65835 | K31: =J31/D31-1 -> -1 | L31: =D31+G31-J31 -> 0.3485 | M31: =F31+G31-I31 -> 0.65835 | N31: =G31*'Pres & Prop Rev'!F32 -> 0 | V31: 500 - 1,000 therms | W31: =W30 -> 0 | X31: =X30 -> 0 | Y31: =Y30 -> 0 | Z31: =W31-X31+Y31 -> 0 | AA31: =I31-Z31 -> 0
A32: =TEXT('Rate Design'!N7,"#,##0")&" - "&TEXT('Rate Design'!N8,"#,##0")&" therms" -> 1,000 - 10,000 therms | D32: ='Rate Design'!F8/100 -> 0.26767 | E32: =F32-D32 -> 0.30985 | F32: ='Rate Design'!F18/100 -> 0.57752 | K32: =J32/D32-1 -> -1 | L32: 0.26767 | M32: 0.57752 | N32: =G32*'Pres & Prop Rev'!F33 -> 0 | V32: 1,000 - 10,000 therms | W32: =W30 -> 0 | X32: =X30 -> 0 | Y32: =Y30 -> 0 | Z32: 0 | AA32: 0
A33: =TEXT('Rate Design'!N8,"#,##0")&" - "&TEXT('Rate Design'!N9,"#,##0")&" therms" -> 10,000 - 25,000 therms | D33: ='Rate Design'!F9/100 -> 0.21692 | E33: =F33-D33 -> 0.30985 | F33: ='Rate Design'!F19/100 -> 0.52677 | K33: =J33/D33-1 -> -1 | L33: 0.21692 | M33: 0.52677 | N33: =G33*'Pres & Prop Rev'!F34 -> 0 | V33: 10,000 - 25,000 therms | W33: =W30 -> 0 | X33: =X30 -> 0 | Y33: =Y30 -> 0 | Z33: 0 | AA33: 0
A34: ="All over "&TEXT('Rate Design'!N9,"#,##0")&" therms" -> All over 25,000 therms | D34: ='Rate Design'!F10/100 -> 0.14387 | E34: =F34-D34 -> 0.30985 | F34: ='Rate Design'!F20/100 -> 0.45372 | K34: =J34/D34-1 -> -1 | L34: 0.14387 | M34: 0.45372 | N34: =G34*'Pres & Prop Rev'!F35 -> 0 | V34: All over 25,000 therms | W34: =W30 -> 0 | X34: =X30 -> 0 | Y34: =Y30 -> 0 | Z34: 0 | AA34: 0
A35: Minimum Charge: | V35: Minimum Charge:
A36: per month | D36: ='Rate Design'!F5 -> 240.44 | E36: =F36-D36 -> 0 | F36: ='Rate Design'!F15 -> 240.44 | K36: =J36/D36-1 -> -1 | N36: =G36*'Pres & Prop Rev'!F49 -> 0 | V36: per month
A37: per therm | D37: ='Rate Design'!F6/100 -> 0 | E37: =F37-D37 -> 0.30985 | F37: ='Rate Design'!F16/100 -> 0.30985 | K37: =J37/D37-1 ->  | L37: 0 | M37: =F37+G37-I37 -> 0.30985 | N37: =G37*'Pres & Prop Rev'!F31 -> 0 | V37: per therm | W37: =W30 -> 0 | X37: =X30 -> 0 | Y37: =Y30 -> 0 | Z37: =W37-X37+Y37 -> 0 | AA37: =I37-Z37 -> 0
A38: Annual Minimum per therm | D38: Present: | E38: 0.38269 | K38: =J38/E38-1 -> -1 | N38: =SUM(N30:N37) -> 0 | O38: =N38-'Pres & Prop Rev'!F195 -> 0 | V38: Annual Minimum per therm
AA39: Billing
A40: Interruptible Service - Schedule 132 | V40: Interruptible Service - Schedule 132 | W40: Sch 131 | X40: Sch 132 | Y40: Sch 175 | Z40: Difference | AA40: Rate
A41: Usage Charge: | V41: Usage Charge:
A42: ="First "&TEXT('Rate Design'!O6,"#,##0")&" therms" -> First 10,000 therms | D42: ='Rate Design'!G6/100 -> 0.24655 | E42: =F42-D42 -> 0.24563 | F42: ='Rate Design'!G16/100 -> 0.49218 | G42: =J42-D42 -> 0.02353 | H42: =LIRAP!K15 -> 0.00072 | I42: =F42+G42+H42 -> 0.51643 | J42: ='Rate Design'!G28/100 -> 0.27008 | K42: =J42/D42-1 -> 0.09543703103 | L42: =D42+G42-J42 -> 0 | M42: =F42+G42-I42+H42 -> -5.377642776e-17 | N42: =G42*'Pres & Prop Rev'!G31 -> 5647.2 | V42: First 10,000 therms | W42: 0 | X42: 0 | Y42: 0.01132 | Z42: =W42-X42+Y42 -> 0.01132 | AA42: =I42+Z42 -> 0.52775
A43: =TEXT('Rate Design'!O6,"#,##0")&" - "&TEXT('Rate Design'!O7,"#,##0")&" therms" -> 10,000 - 25,000 therms | D43: ='Rate Design'!G7/100 -> 0.19792 | E43: =F43-D43 -> 0.24563 | F43: ='Rate Design'!G17/100 -> 0.44355 | G43: =J43-D43 -> 0.01889 | H43: =H42 -> 0.00072 | I43: =F43+G43+H43 -> 0.46316 | J43: ='Rate Design'!G29/100 -> 0.21681 | K43: =J43/D43-1 -> 0.09544260307 | L43: =D43+G43-J43 -> 0 | M43: =F43+G43-I43+H43 -> 1.734723476e-18 | N43: =G43*'Pres & Prop Rev'!G32 -> 5761.0722 | V43: 10,000 - 25,000 therms | W43: =W42 -> 0 | X43: =X42 -> 0 | Y43: =Y42 -> 0.01132 | Z43: =W43-X43+Y43 -> 0.01132 | AA43: =I43+Z43 -> 0.47448
A44: =TEXT('Rate Design'!O7,"#,##0")&" - "&TEXT('Rate Design'!O8,"#,##0")&" therms" -> 25,000 - 50,000 therms | D44: ='Rate Design'!G8/100 -> 0.18598 | E44: =F44-D44 -> 0.24563 | F44: ='Rate Design'!G18/100 -> 0.43161 | G44: =J44-D44 -> 0.01775 | H44: =H42 -> 0.00072 | I44: 0.45008 | J44: ='Rate Design'!G30/100 -> 0.20373 | K44: =J44/D44-1 -> 0.09544036993 | L44: 0 | M44: 1.734723476e-18 | N44: =G44*'Pres & Prop Rev'!G33 -> 6075.328 | V44: 25,000 - 50,000 therms | W44: =W42 -> 0 | X44: 0 | Y44: 0.01132 | Z44: 0.01132 | AA44: 0.4614
A45: ="All over "&TEXT('Rate Design'!O8,"#,##0")&" therms" -> All over 50,000 therms | D45: ='Rate Design'!G9/100 -> 0.18203 | E45: =F45-D45 -> 0.24563 | F45: ='Rate Design'!G19/100 -> 0.42766 | G45: =J45-D45 -> 0 | H45: =H42 -> 0.00072 | I45: 0.42838 | J45: ='Rate Design'!G31/100 -> 0.18203 | K45: =J45/D45-1 -> 0 | L45: 0 | M45: 1.734723476e-18 | N45: =G45*'Pres & Prop Rev'!G34 -> 0 | V45: All over 50,000 therms | W45: 0 | X45: 0 | Y45: 0.01132 | Z45: 0.01132 | AA45: 0.4397
A46: Annual Minimum per therm | D46: Present: | E46: 0.27731 | I46: Proposed: | J46: =D43+0.05863+N("Tariffed Demand Rate, 2019 PGA - Grossed up for Rev Related Items")+G43 -> 0.27544 | K46: =J46/E46-1 -> -0.006743355811 | N46: =SUM(N42:N45) -> 17483.6002 | O46: =N46-'Pres & Prop Rev'!G195 -> 0.01019999998 | V46: Annual Minimum per therm
A48: Transportation Service - Schedule 146
A49: Basic Charge | D49: ='Rate Design'!H4 -> 550 | E49: =F49-D49 -> 0 | F49: ='Rate Design'!H14 -> 550 | G49: =IF(ROUND(I49-F49,5)<>ROUND(J49-D49,5),#VALUE!,J49-D49) -> 75 | I49: ='Rate Design'!H36 -> 625 | J49: ='Rate Design'!H26 -> 625 | K49: =J49/D49-1 -> 0.1363636364 | N49: =G49*'Pres & Prop Rev'!H48 -> 36000
A50: Usage Charge:
A51: ="First "&TEXT('Rate Design'!P6,"#,##0")&" therms" -> First 20,000 therms | D51: ='Rate Design'!H6/100 -> 0.0969 | E51: =F51-D51 -> 0.00136 | F51: ='Rate Design'!H16/100 -> 0.09826 | G51: =J51-D51 -> 0.00804 | H51: =LIRAP!K16 -> 0.00019 | I51: =F51+G51+H51 -> 0.10649 | J51: ='Rate Design'!H28/100 -> 0.10494 | K51: =J51/D51-1 -> 0.08297213622 | L51: =D51+G51-J51 -> 0 | M51: =F51+G51-I51+H51 -> 4.228388473e-18 | N51: =G51*'Pres & Prop Rev'!H31 -> 68290.1118
A52: =TEXT('Rate Design'!P6,"#,##0")&" - "&TEXT('Rate Design'!P7,"#,##0")&" therms" -> 20,000 - 50,000 therms | D52: ='Rate Design'!H7/100 -> 0.08621 | E52: =F52-D52 -> 0.00136 | F52: ='Rate Design'!H17/100 -> 0.08757 | G52: =J52-D52 -> 0.00715 | H52: =H51 -> 0.00019 | I52: =F52+G52+H52 -> 0.09491 | J52: ='Rate Design'!H29/100 -> 0.09336 | K52: =J52/D52-1 -> 0.08293701427 | L52: =D52+G52-J52 -> 0 | M52: =F52+G52-I52+H52 -> 4.228388473e-18 | N52: =G52*'Pres & Prop Rev'!H32 -> 60876.76595
A53: =TEXT('Rate Design'!P7,"#,##0")&" - "&TEXT('Rate Design'!P8,"#,##0")&" therms" -> 50,000 - 300,000 therms | D53: ='Rate Design'!H8/100 -> 0.07774 | E53: =F53-D53 -> 0.00136 | F53: ='Rate Design'!H18/100 -> 0.0791 | G53: =J53-D53 -> 0.00645 | H53: =H51 -> 0.00019 | I53: 0.08574 | J53: ='Rate Design'!H30/100 -> 0.08419 | K53: =J53/D53-1 -> 0.08296887059 | L53: 0 | M53: 4.228388473e-18 | N53: =G53*'Pres & Prop Rev'!H33 -> 90002.84205
A54: =TEXT('Rate Design'!P8,"#,##0")&" - "&TEXT('Rate Design'!P9,"#,##0")&" therms" -> 300,000 - 500,000 therms | D54: ='Rate Design'!H9/100 -> 0.07189 | E54: =F54-D54 -> 0.00136 | F54: ='Rate Design'!H19/100 -> 0.07325 | G54: =J54-D54 -> 0.00596 | H54: =H51 -> 0.00019 | I54: 0.0794 | J54: ='Rate Design'!H31/100 -> 0.07785 | K54: =J54/D54-1 -> 0.08290443733 | L54: 0 | M54: 4.228388473e-18 | N54: =G54*'Pres & Prop Rev'!H34 -> 16369.66448
A55: ="All over "&TEXT('Rate Design'!P9,"#,##0")&" therms" -> All over 500,000 therms | D55: ='Rate Design'!H10/100 -> 0.05403 | E55: =F55-D55 -> 0.00136 | F55: ='Rate Design'!H20/100 -> 0.05539 | G55: =J55-D55 -> 0.00448 | H55: =H51 -> 0.00019 | I55: 0.06006 | J55: ='Rate Design'!H32/100 -> 0.05851 | K55: =J55/D55-1 -> 0.08291689802 | L55: 0 | M55: -2.710505431e-18 | N55: =G55*'Pres & Prop Rev'!H35 -> 8509.27168
A56: Annual Minimum per therm | D56: Present: | E56: 0.08905 | I56: Proposed: | J56: =J52 -> 0.09336 | K56: =J56/E56-1 -> 0.04839977541 | N56: =SUM(N49:N55) -> 280048.656 | O56: =N56-'Pres & Prop Rev'!H195 -> -1437.34456
N57: ='Pres & Prop Rev'!H156-'Pres & Prop Rev'!H107 -> 1437.35052 | O57: Annual Minimum Difference
A61: (1) Includes Schedule 150 (Purchase Gas Cost Adjustment), Schedule 155 (Gas Rate Adjustment), Schedule 174 (Tax Rebate), | N61: =N17+N27+N38+N46+N56 -> 7739900.192 | O61: =O17+O27+O38+O46+O56 -> -286075.4243
A62: Schedule 175 (Decoupling), Schedule 191 (DSM Adjustment) and Schedule 192 (LIRAP Adjustment). | O62: ='Pres & Prop Rev'!C190-'Pres & Prop Rev'!C142 -> 284638.09 | P62: Weather & Unbilled Revenue
O63: =N57 -> 1437.35052 | P63: Sch 456 Annual Minimum Difference
O64: =SUM(O61:O63) -> 0.01625408543

Sheet BFG (hidden)
A1: AVISTA UTILITIES
A2: GAS ANNUAL MINIMUM DEFICIENCY FOR B.F. GOODRICH
A3: STATE OF WASHINGTON
A4: BASED ON 2007 ANNUAL MINIMUM
F6: Gas
A7: Annual Minimum Usage Requirement(1) | F7: 10500000
A8: Less: Jan 09 - Dec 09 Usage(2) | F8: =SUMIF('Big Schedules'!$B$4:$B$48,"BF Goodrich",'Big Schedules'!$O$4:$O$48) -> 0
A9: Usage Deficiency | F9: =F7-F8 -> 10500000
A10: Deficiency Charge per therm(3) | F10: 0
A11: Annual Minimum Deficiency | F11: =F9*F10 -> 0
A16: (1) Per Contract - workpaper BJH-G-36
A17: (2) From workpaper BJH-G-9
A18: (3) From workpaper BJH-G-35
A21: ** Annual Minimum Ended in 2009
F24: =ROUND(F11-'Pres & Prop Rev'!J113,0) -> 0

Sheet Rate Spread
A2: Avista
A3: Natural Gas
A4: Rate Spread
D7: Base Tariff | F7: Base | H7: Base Tariff | I7: Total Billed | J7: Percent
D8: Distribution Revenue | E8: Percentage | F8: Tariff | G8: Proposed | H8: Distribution Revenue | I8: Revenue | J8: Increase
A9: Line | B9: Type of | C9: Schedule | D9: Under Present | E9: of Base | F9: Percent | G9: General | H9: Under Proposed | I9: at Present | J9: on Billed
A10: No. | B10: Service | C10: Number | D10: Rates | E10: Increase | F10: Increase | G10: Increase | H10: Rates | I10: Rates (1) | J10: Revenue
B11: (a) | C11: (b) | D11: (c) | E11: (d) | F11: (e) | G11: (f) | I11: (g) | J11: (i)
A13: 1 | B13: General Service | C13: 101/102 | D13: =RS!D14 -> 71132.16264 | E13: 1 | F13: =$E$23*E13 -> 0.08696869827 | G13: =D13*F13+0.3 -> 6186.57159 | H13: =D13+G13 -> 77318.73423 | I13: =RS!H14 -> 112494.4594 | J13: =(G13)/I13 -> 0.05499445591
A14: 2 | B14: Large General Service | C14: 111/112 | D14: =RS!D15 -> 17418.31235 | E14: 1 | F14: =$E$23*E14 -> 0.08696869827 | G14: =D14*F14 -> 1514.847951 | H14: =D14+G14 -> 18933.1603 | I14: =RS!H15 -> 35000.97703 | J14: =(G14)/I14 -> 0.04328016186
A15: 3 | B15: Large General Svc.-High Annual Load Factor | C15: 121/122 | D15: =RS!D16 -> 0 | E15: 0 | F15: =$E$23*E15 -> 0 | G15: =D15*F15 -> 0 | H15: 0 | I15: =RS!H16 -> 0 | J15: 0
A16: 4 | B16: Interruptible Service | C16: 131/132 | D16: =RS!D17 -> 201.03106 | E16: =E14 -> 1 | F16: 0.08696869827 | G16: 17.4834096 | H16: 218.5144696 | I16: =RS!H17 -> 443.04219 | J16: 0.03946217763
A17: 5 | B17: Transportation Service | C17: 146 | D17: =RS!D18 -> 3235.612983 | E17: 1 | F17: =$E$23*E17 -> 0.08696869827 | G17: 281.3970492 | H17: 3517.010032 | I17: =RS!H18 -> 3284.039763 | J17: 0.08568624912
A18: 6 | B18: Special Contracts | C18: 148 | D18: =RS!D19 -> 1719.72885 | E18: 0 | F18: 0 | G18: 0 | H18: 1719.72885 | I18: =RS!H19 -> 1719.72885 | J18: 0
A19: 7 | B19: Total | D19: ='Pres & Prop Rev'!$C$145/1000-0.2 -> 93706.84788 | F19: =D23/D19 -> 0.08537262944 | G19: =SUM(G13:G18) -> 8000.3 | H19: =SUM(H13:H18) -> 101707.1479 | I19: =SUM(I13:I18)+0.4 -> 152942.6473 | J19: =(G19)/I19 -> 0.0523091508
B23: Revenue Requirement | D23: 8000 | E23: =D23/(D19-D18) -> 0.08696869827

Sheet Bill Impact
A2: Schedule 101 Bill Impact
A6: Schedule 101 Present | G6: Schedule 101 Proposed
B7: Basic Charge | C7: Block 1 | D7: Block 2 | E7: Total Bill | G7: Basic Charge | H7: Block 1 | I7: Block 2 | J7: Total Bill | L7: Bill Impact | M7: % Change
B8: ='Rate Design'!D4 -> 9.5 | C8: ='Rate Design'!D16/100 -> 0.68843 | D8: ='Rate Design'!D17/100 -> 0.79849 | G8: ='Rate Design'!D26 -> 9.5 | H8: =RD!I15-0.02141 -> 0.71111 | I8: =RD!I16-0.02141 -> 0.83409
A9: 10 | B9: =$B$8 -> 9.5 | C9: =A9*$C$8 -> 6.8843 | E9: =SUM(B9:D9) -> 16.3843 | G9: =$G$8 -> 9.5 | H9: =A9*$H$8 -> 7.1111 | J9: =SUM(G9:I9) -> 16.6111 | L9: =J9-E9 -> 0.2268 | M9: =L9/E9 -> 0.01384251997
A10: =A9+10 -> 20 | B10: =$B$8 -> 9.5 | C10: 13.7686 | E10: =SUM(B10:D10) -> 23.2686 | G10: =$G$8 -> 9.5 | H10: =A10*$H$8 -> 14.2222 | J10: 23.7222 | L10: 0.4536 | M10: 0.01949408215
A11: =A10+10 -> 30 | B11: 9.5 | C11: 20.6529 | E11: 30.1529 | G11: 9.5 | H11: 21.3333 | J11: 30.8333 | L11: 0.6804 | M11: 0.02256499375
A12: 40 | B12: 9.5 | C12: 27.5372 | E12: 37.0372 | G12: 9.5 | H12: 28.4444 | J12: 37.9444 | L12: 0.9072 | M12: 0.02449429223
A13: 50 | B13: 9.5 | C13: 34.4215 | E13: 43.9215 | G13: 9.5 | H13: 35.5555 | J13: 45.0555 | L13: 1.134 | M13: 0.02581879034
A14: 60 | B14: 9.5 | C14: 41.3058 | E14: 50.8058 | G14: 9.5 | H14: 42.6666 | J14: 52.1666 | L14: 1.3608 | M14: 0.02678434352
A15: =ROUND('Pres & Prop Rev'!D46/'Pres & Prop Rev'!D48,0) -> 66 | B15: 9.5 | C15: =ROUND(A15*$C$8,2) -> 45.44 | E15: =SUM(B15:D15) -> 54.94 | G15: 9.5 | H15: =ROUND(A15*$H$8,2) -> 46.93 | J15: =SUM(G15:I15) -> 56.43 | L15: 1.49 | M15: =L15/E15 -> 0.02712049509 | P15: Includes Remand
A16: =A14+10 -> 70 | B16: 9.5 | C16: =ROUND(A16*$C$8,2) -> 48.19 | E16: 57.69 | G16: 9.5 | H16: =ROUND(A16*$H$8,2) -> 49.78 | J16: 59.28 | L16: =J16-E16 -> 1.59 | M16: 0.02756110244
A17: 80 | B17: 9.5 | C17: =70*$C$8 -> 48.1901 | D17: =(A17-70)*$D$8 -> 7.9849 | E17: =SUM(B17:D17) -> 65.675 | G17: 9.5 | H17: =70*$H$8 -> 49.7777 | I17: =(A17-70)*$I$8 -> 8.3409 | J17: 67.6186 | L17: 1.9436 | M17: 0.02959421393
A18: 90 | B18: 9.5 | C18: =70*$C$8 -> 48.1901 | D18: =(A18-70)*$D$8 -> 15.9698 | E18: 73.6599 | G18: 9.5 | H18: =70*$H$8 -> 49.7777 | I18: =(A18-70)*$I$8 -> 16.6818 | J18: 75.9595 | L18: 2.2996 | M18: 0.03121915723
A19: 100 | B19: 9.5 | C19: 48.1901 | D19: =(A19-70)*$D$8 -> 23.9547 | E19: 81.6448 | G19: 9.5 | H19: 49.7777 | I19: 25.0227 | J19: 84.3004 | L19: 2.6556 | M19: 0.03252626009
A20: 110 | B20: 9.5 | C20: 48.1901 | D20: 31.9396 | E20: 89.6297 | G20: 9.5 | H20: 49.7777 | I20: 33.3636 | J20: 92.6413 | L20: 3.0116 | M20: 0.03360046949
A21: 120 | B21: 9.5 | C21: 48.1901 | D21: 39.9245 | E21: 97.6146 | G21: 9.5 | H21: 49.7777 | I21: 41.7045 | J21: 100.9822 | L21: 3.3676 | M21: 0.03449893766
A22: 130 | B22: 9.5 | C22: 48.1901 | D22: 47.9094 | E22: 105.5995 | G22: 9.5 | H22: 49.7777 | I22: 50.0454 | J22: 109.3231 | L22: 3.7236 | M22: 0.03526153059
A23: 140 | B23: 9.5 | C23: 48.1901 | D23: 55.8943 | E23: 113.5844 | G23: 9.5 | H23: 49.7777 | I23: 58.3863 | J23: 117.664 | L23: 4.0796 | M23: 0.03591690408
A24: 150 | B24: 9.5 | C24: 48.1901 | D24: 63.8792 | E24: 121.5693 | G24: 9.5 | H24: 49.7777 | I24: 66.7272 | J24: 126.0049 | L24: 4.4356 | M24: 0.03648618525
A25: 160 | B25: 9.5 | C25: 48.1901 | D25: 71.8641 | E25: 129.5542 | G25: 9.5 | H25: 49.7777 | I25: 75.0681 | J25: 134.3458 | L25: 4.7916 | M25: 0.03698529264
A26: 170 | B26: 9.5 | C26: 48.1901 | D26: 79.849 | E26: 137.5391 | G26: 9.5 | H26: 49.7777 | I26: 83.409 | J26: 142.6867 | L26: 5.1476 | M26: 0.03742644819
A27: 180 | B27: 9.5 | C27: 48.1901 | D27: 87.8339 | E27: 145.524 | G27: 9.5 | H27: 49.7777 | I27: 91.7499 | J27: 151.0276 | L27: 5.5036 | M27: 0.03781919134
A28: 190 | B28: 9.5 | C28: 48.1901 | D28: 95.8188 | E28: 153.5089 | G28: 9.5 | H28: 49.7777 | I28: 100.0908 | J28: 159.3685 | L28: 5.8596 | M28: 0.03817107673
A29: 200 | B29: 9.5 | C29: 48.1901 | D29: 103.8037 | E29: 161.4938 | G29: 9.5 | H29: 49.7777 | I29: 108.4317 | J29: 167.7094 | L29: 6.2156 | M29: 0.03848816487
A30: 210 | B30: 9.5 | C30: 48.1901 | D30: 111.7886 | E30: 169.4787 | G30: 9.5 | H30: 49.7777 | I30: 116.7726 | J30: 176.0503 | L30: 6.5716 | M30: 0.03877537413
A31: 220 | B31: 9.5 | C31: 48.1901 | D31: 119.7735 | E31: 177.4636 | G31: 9.5 | H31: 49.7777 | I31: 125.1135 | J31: 184.3912 | L31: 6.9276 | M31: 0.03903673767
A32: 230 | B32: 9.5 | C32: 48.1901 | D32: 127.7584 | E32: 185.4485 | G32: 9.5 | H32: 49.7777 | I32: 133.4544 | J32: 192.7321 | L32: 7.2836 | M32: 0.03927559403
A33: 240 | B33: 9.5 | C33: 48.1901 | D33: 135.7433 | E33: 193.4334 | G33: 9.5 | H33: 49.7777 | I33: 141.7953 | J33: 201.073 | L33: 7.6396 | M33: 0.03949473049
A34: 250 | B34: 9.5 | C34: 48.1901 | D34: 143.7282 | E34: 201.4183 | G34: 9.5 | H34: 49.7777 | I34: 150.1362 | J34: 209.4139 | L34: 7.9956 | M34: 0.03969649232
A35: 260 | B35: 9.5 | C35: 48.1901 | D35: 151.7131 | E35: 209.4032 | G35: 9.5 | H35: 49.7777 | I35: 158.4771 | J35: 217.7548 | L35: 8.3516 | M35: 0.03988286712
A36: 270 | B36: 9.5 | C36: 48.1901 | D36: 159.698 | E36: 217.3881 | G36: 9.5 | H36: 49.7777 | I36: 166.818 | J36: 226.0957 | L36: 8.7076 | M36: 0.04005555042
A37: 280 | B37: 9.5 | C37: 48.1901 | D37: 167.6829 | E37: 225.373 | G37: 9.5 | H37: 49.7777 | I37: 175.1589 | J37: 234.4366 | L37: 9.0636 | M37: 0.04021599748
A38: 290 | B38: 9.5 | C38: 48.1901 | D38: 175.6678 | E38: =SUM(B38:D38) -> 233.3579 | G38: 9.5 | H38: 49.7777 | I38: 183.4998 | J38: 242.7775 | L38: 9.4196 | M38: 0.04036546438
A39: 300 | B39: 9.5 | C39: 48.1901 | D39: 183.6527 | E39: 241.3428 | G39: 9.5 | H39: 49.7777 | I39: 191.8407 | J39: 251.1184 | L39: 9.7756 | M39: 0.04050504096
A40: 310 | B40: 9.5 | C40: 48.1901 | D40: =(A40-70)*$D$8 -> 191.6376 | E40: =SUM(B40:D40) -> 249.3277 | G40: 9.5 | H40: 49.7777 | I40: =(A40-70)*$I$8 -> 200.1816 | J40: =SUM(G40:I40) -> 259.4593 | L40: 10.1316 | M40: 0.04063567746
A41: 320 | B41: 9.5 | C41: 48.1901 | D41: 199.6225 | E41: 257.3126 | G41: 9.5 | H41: 49.7777 | I41: 208.5225 | J41: 267.8002 | L41: 10.4876 | M41: 0.04075820617
A42: 330 | B42: 9.5 | C42: 48.1901 | D42: 207.6074 | E42: 265.2975 | G42: 9.5 | H42: 49.7777 | I42: 216.8634 | J42: 276.1411 | L42: 10.8436 | M42: 0.04087335915
A43: 340 | B43: 9.5 | C43: 48.1901 | D43: 215.5923 | E43: 273.2824 | G43: 9.5 | H43: 49.7777 | I43: 225.2043 | J43: 284.482 | L43: 11.1996 | M43: 0.04098178295
A44: 350 | B44: 9.5 | C44: 48.1901 | D44: 223.5772 | E44: 281.2673 | G44: 9.5 | H44: 49.7777 | I44: 233.5452 | J44: 292.8229 | L44: 11.5556 | M44: 0.04108405065
A45: 360 | B45: 9.5 | C45: 48.1901 | D45: 231.5621 | E45: 289.2522 | G45: 9.5 | H45: 49.7777 | I45: 241.8861 | J45: 301.1638 | L45: 11.9116 | M45: 0.04118067209
A46: 370 | B46: 9.5 | C46: 48.1901 | D46: 239.547 | E46: 297.2371 | G46: 9.5 | H46: 49.7777 | I46: 250.227 | J46: 309.5047 | L46: 12.2676 | M46: 0.0412721023
A47: 380 | B47: 9.5 | C47: 48.1901 | D47: =(A47-70)*$D$8 -> 247.5319 | E47: =SUM(B47:D47) -> 305.222 | G47: 9.5 | H47: 49.7777 | I47: 258.5679 | J47: 317.8456 | L47: 12.6236 | M47: 0.04135874871
A48: 390 | B48: 9.5 | C48: 48.1901 | D48: 255.5168 | E48: 313.2069 | G48: 9.5 | H48: 49.7777 | I48: 266.9088 | J48: 326.1865 | L48: 12.9796 | M48: 0.04144097719
A49: 400 | B49: 9.5 | C49: 48.1901 | D49: 263.5017 | E49: 321.1918 | G49: 9.5 | H49: 49.7777 | I49: 275.2497 | J49: 334.5274 | L49: 13.3356 | M49: 0.04151911724
A53: Breakeven Analysis (Base Rates)
A55: Schedule 101 | G55: Schedule 111
B56: Basic Charge | C56: Block 1 | D56: Block 2 | E56: Total Bill | G56: Minimum Charge | H56: Block 1 | I56: Block 2 | J56: Block 3 | K56: Total Bill | M56: Bill Differential
B57: =RD!J13 -> 9.5 | C57: ='Rate Design'!D28/100 -> 0.41035 | D57: ='Rate Design'!D29/100 -> 0.53333 | G57: ='Rate Design'!E27 -> 107.56 | H57: ='Rate Design'!E28/100 -> 0 | I57: ='Rate Design'!E29/100 -> 0.36159 | J57: ='Rate Design'!E30/100 -> 0.27562
A58: 10 | B58: =$B$57 -> 9.5 | C58: =A58*$C$57 -> 4.1035 | E58: =SUM(B58:D58) -> 13.6035 | G58: =$G$57 -> 107.56 | H58: =A58*$H$57 -> 0 | K58: =SUM(G58:J58) -> 107.56 | M58: =K58-E58 -> 93.9565
A59: =A58+10 -> 20 | B59: 9.5 | C59: =A59*$C$57 -> 8.207 | E59: =SUM(B59:D59) -> 17.707 | G59: =$G$57 -> 107.56 | H59: =A59*$H$57 -> 0 | K59: =SUM(G59:J59) -> 107.56 | M59: 89.853
A60: =A59+10 -> 30 | B60: 9.5 | C60: 12.3105 | E60: 21.8105 | G60: 107.56 | H60: 0 | K60: 107.56 | M60: 85.7495
A61: 40 | B61: 9.5 | C61: 16.414 | E61: 25.914 | G61: 107.56 | H61: 0 | K61: 107.56 | M61: 81.646
A62: 50 | B62: 9.5 | C62: 20.5175 | E62: 30.0175 | G62: 107.56 | H62: 0 | K62: 107.56 | M62: 77.5425
A63: 60 | B63: 9.5 | C63: 24.621 | E63: 34.121 | G63: 107.56 | H63: 0 | K63: 107.56 | M63: 73.439
A64: 70 | B64: 9.5 | C64: =A64*$C$57 -> 28.7245 | E64: 38.2245 | G64: 107.56 | H64: 0 | K64: 107.56 | M64: 69.3355
A65: 80 | B65: 9.5 | C65: =70*$C$57 -> 28.7245 | D65: =(A65-70)*$D$57 -> 5.3333 | E65: 43.5578 | G65: 107.56 | H65: 0 | K65: 107.56 | M65: 64.0022
A66: 90 | B66: 9.5 | C66: =70*$C$57 -> 28.7245 | D66: =(A66-70)*$D$57 -> 10.6666 | E66: 48.8911 | G66: 107.56 | H66: 0 | K66: 107.56 | M66: 58.6689
A67: 100 | B67: 9.5 | C67: 28.7245 | D67: 15.9999 | E67: 54.2244 | G67: 107.56 | H67: 0 | K67: 107.56 | M67: 53.3356
A68: 110 | B68: 9.5 | C68: 28.7245 | D68: 21.3332 | E68: 59.5577 | G68: 107.56 | H68: 0 | K68: 107.56 | M68: 48.0023
A69: 120 | B69: 9.5 | C69: 28.7245 | D69: 26.6665 | E69: 64.891 | G69: 107.56 | H69: 0 | K69: 107.56 | M69: 42.669
A70: 130 | B70: 9.5 | C70: 28.7245 | D70: 31.9998 | E70: 70.2243 | G70: 107.56 | H70: 0 | K70: 107.56 | M70: 37.3357
A71: 140 | B71: 9.5 | C71: 28.7245 | D71: 37.3331 | E71: 75.5576 | G71: 107.56 | H71: 0 | K71: 107.56 | M71: 32.0024
A72: 150 | B72: 9.5 | C72: 28.7245 | D72: 42.6664 | E72: 80.8909 | G72: 107.56 | H72: 0 | K72: 107.56 | M72: 26.6691
A73: 160 | B73: 9.5 | C73: 28.7245 | D73: 47.9997 | E73: 86.2242 | G73: 107.56 | H73: 0 | K73: 107.56 | M73: 21.3358
A74: 170 | B74: 9.5 | C74: 28.7245 | D74: 53.333 | E74: 91.5575 | G74: 107.56 | H74: 0 | K74: 107.56 | M74: 16.0025
A75: 180 | B75: 9.5 | C75: 28.7245 | D75: 58.6663 | E75: 96.8908 | G75: 107.56 | H75: 0 | K75: 107.56 | M75: 10.6692
A76: 190 | B76: 9.5 | C76: 28.7245 | D76: 63.9996 | E76: 102.2241 | G76: 107.56 | H76: 0 | K76: 107.56 | M76: 5.3359
A77: 200 | B77: 9.5 | C77: 28.7245 | D77: 69.3329 | E77: 107.5574 | G77: 107.56 | H77: 0 | K77: 107.56 | M77: 0.0026
A78: 210 | B78: 9.5 | C78: 28.7245 | D78: 74.6662 | E78: 112.8907 | G78: 107.56 | H78: =200*$H$57 -> 0 | I78: =(A78-200)*$I$57 -> 3.6159 | K78: 111.1759 | M78: -1.7148
A79: 220 | B79: 9.5 | C79: 28.7245 | D79: 79.9995 | E79: 118.224 | G79: 107.56 | H79: 0 | I79: =(A79-200)*$I$57 -> 7.2318 | K79: 114.7918 | M79: -3.4322
A80: 230 | B80: 9.5 | C80: 28.7245 | D80: 85.3328 | E80: 123.5573 | G80: 107.56 | H80: 0 | I80: 10.8477 | K80: 118.4077 | M80: -5.1496
A81: 240 | B81: 9.5 | C81: 28.7245 | D81: 90.6661 | E81: 128.8906 | G81: 107.56 | H81: 0 | I81: 14.4636 | K81: 122.0236 | M81: -6.867
A82: 250 | B82: 9.5 | C82: 28.7245 | D82: 95.9994 | E82: 134.2239 | G82: 107.56 | H82: 0 | I82: 18.0795 | K82: 125.6395 | M82: -8.5844
A83: 260 | B83: 9.5 | C83: 28.7245 | D83: 101.3327 | E83: 139.5572 | G83: 107.56 | H83: 0 | I83: 21.6954 | K83: 129.2554 | M83: -10.3018
A84: 270 | B84: 9.5 | C84: 28.7245 | D84: 106.666 | E84: 144.8905 | G84: 107.56 | H84: 0 | I84: 25.3113 | K84: 132.8713 | M84: -12.0192
A85: 280 | B85: 9.5 | C85: 28.7245 | D85: 111.9993 | E85: 150.2238 | G85: 107.56 | H85: 0 | I85: 28.9272 | K85: 136.4872 | M85: -13.7366
A86: 290 | B86: 9.5 | C86: 28.7245 | D86: 117.3326 | E86: 155.5571 | G86: 107.56 | H86: 0 | I86: 32.5431 | K86: 140.1031 | M86: -15.454
A87: 300 | B87: 9.5 | C87: 28.7245 | D87: 122.6659 | E87: 160.8904 | G87: 107.56 | H87: 0 | I87: 36.159 | K87: 143.719 | M87: -17.1714
A88: 310 | B88: 9.5 | C88: 28.7245 | D88: 127.9992 | E88: 166.2237 | G88: 107.56 | H88: 0 | I88: 39.7749 | K88: 147.3349 | M88: -18.8888
A89: 320 | B89: 9.5 | C89: 28.7245 | D89: 133.3325 | E89: 171.557 | G89: 107.56 | H89: 0 | I89: 43.3908 | K89: 150.9508 | M89: -20.6062
A90: 330 | B90: 9.5 | C90: 28.7245 | D90: 138.6658 | E90: 176.8903 | G90: 107.56 | H90: 0 | I90: 47.0067 | K90: 154.5667 | M90: -22.3236
A91: 340 | B91: 9.5 | C91: 28.7245 | D91: 143.9991 | E91: 182.2236 | G91: 107.56 | H91: 0 | I91: 50.6226 | K91: 158.1826 | M91: -24.041
A92: 350 | B92: 9.5 | C92: 28.7245 | D92: 149.3324 | E92: 187.5569 | G92: 107.56 | H92: 0 | I92: 54.2385 | K92: 161.7985 | M92: -25.7584
A93: 500 | B93: 9.5 | C93: 28.7245 | D93: =(A93-70)*$D$57 -> 229.3319 | E93: =SUM(B93:D93) -> 267.5564 | G93: 107.56 | H93: 0 | I93: =(A93-200)*$I$57 -> 108.477 | K93: =SUM(G93:J93) -> 216.037 | M93: -51.5194
A96: Breakeven Analysis (Base Rates)
A98: Schedule 101 | H98: Schedule 121
B99: Basic Charge | C99: Block 1 | D99: Block 2 | E99: Block 3 | F99: Total Bill | H99: Minimum Charge | I99: Block 1 | J99: Block 2 | K99: Block 3 | L99: Block 4 | M99: Total Bill | O99: Bill Differential
B100: =B57 -> 9.5 | C100: =C57 -> 0.41035 | D100: 0.53333 | E100: 0 | H100: ='Rate Design'!F27 -> 0 | I100: ='Rate Design'!F28/100 -> 0 | J100: ='Rate Design'!F29/100 -> 0 | K100: ='Rate Design'!F30/100 -> 0 | L100: ='Rate Design'!F31/100 -> 0
A101: 200 | B101: =$B$100 -> 9.5 | C101: =70*$C$100 -> 28.7245 | D101: =D100*(A101-70) -> 69.3329 | F101: =SUM(B101:E101) -> 107.5574 | H101: =$H$100 -> 0 | I101: =A101*$I$100 -> 0 | M101: =SUM(H101:L101) -> 0 | O101: =M101-F101 -> -107.5574
A102: 500 | B102: =$B$100 -> 9.5 | C102: =$C$101 -> 28.7245 | D102: =D100*(A102-70) -> 229.3319 | F102: =SUM(B102:E102) -> 267.5564 | H102: =$H$100 -> 0 | I102: =A102*$I$100 -> 0 | M102: =SUM(H102:L102) -> 0 | O102: =M102-F102 -> -267.5564

Sheet LIRAP
E8: Present | F8: Present | G8: 0.048 | H8: Proposed | I8: Proposed | K8: Total | R8: Present
B9: Type of | C9: Schedule | D9: Billing | E9: LIRAP Funding | F9: LIRAP Funding | G9: LIRAP Funding | H9: LIRAP Funding | I9: LIRAP | K9: Incremental | R9: Billed
B10: Service | C10: Number | D10: Determinants | E10: Rate | F10: Revenue | G10: Increased | H10: Revenue | I10: Rate | K10: Rate | R10: Revenue
B11: (a) | C11: (b) | D11: (c) | E11: (d) | F11: (e) | G11: (f) | H11: (g) | I11: (h) | K11: Change
K12: (m)
B13: General Service | C13: 101/102 | D13: ='Pres & Prop Rev'!D46 -> 128985980.1 | E13: 0.02093 | F13: =D13*E13 -> 2699676.563 | G13: =F13*$G$43 -> 125683.3082 | H13: =F13+G13 -> 2825359.871 | I13: =ROUND(H13/D13,5) -> 0.0219 | K13: =I13-E13 -> 0.00097 | R13: =RS!H14*1000 -> 112494459.4 | S13: =(G13)/R13 -> 0.001117239985
B14: Large General Service | C14: 111/112 | D14: ='Pres & Prop Rev'!E46 -> 55884877.13 | E14: 0.01754 | F14: =D14*E14 -> 980220.7448 | G14: =F14*$G$43 -> 45634.12804 | H14: =F14+G14 -> 1025854.873 | I14: =ROUND(H14/D14,5) -> 0.01836 | K14: =I14-E14 -> 0.00082 | R14: =RS!H15*1000 -> 35000977.03 | S14: =(G14)/R14 -> 0.001303795834
B15: Interruptible Service | C15: 131/132 | D15: ='Pres & Prop Rev'!G46 -> 985267 | E15: 0.01539 | F15: 15163.25913 | G15: =F15*$G$43 -> 705.924775 | H15: 15869.1839 | I15: 0.01611 | K15: 0.00072 | R15: =RS!H17*1000 -> 443042.19 | S15: 0.001593357903
B16: Transportation Service | C16: 146 | D16: ='Pres & Prop Rev'!H46 -> 35607936 | E16: 0.0008 | F16: 28486.3488 | G16: =H16-F16 -> 6684.641031 | H16: =C40 -> 35170.98983 | I16: 0.00099 | K16: 0.00019 | R16: =RS!H18*1000 -> 3284039.763 | S16: 0.00203549333
B17: Special Contracts | C17: 148 | D17: ='Pres & Prop Rev'!I46+'Pres & Prop Rev'!J46 -> 54517605 | F17: 0 | G17: =F17*$G$37 -> 0 | H17: 0 | R17: =RS!H19*1000 -> 1719728.85 | S17: 0
B18: Total | D18: =SUM(D13:D17) -> 275981665.2 | F18: =SUM(F13:F17) -> 3723546.916 | G18: =SUM(G13:G17) -> 178708.002 | H18: =SUM(H13:H17) -> 3902254.918 | R18: =SUM(R13:R17) -> 152942247.3 | S18: 0.001168467217
E20: Net Funding | F20: =F18*G36 -> 3559133.702 | G20: =G18*G36 -> 170817.1502 | H20: =H18*G36 -> 3729950.852
G21: =G20/F20 -> 0.04799402454
B24: Natural Gas
B25: Sch 101 Base Rate Change | C25: =RS!X14 -> 0.05899701227 | D25: Sch 101 & 150 revenue
B26: times 2 | C26: =C25*2 -> 0.1179940245
B27: less Oct Increase | C27: -0.07
B28: Incremental Change | C28: =SUM(C26:C27) -> 0.04799402454
B35: Schedule 146 Calculation | G35: =(RS!X14*2)-0.07 -> 0.04799402454 | H35: Funding Increase (101 - 132)
G36: 0.955845 | H36: Revenue Conversion Factor
B37: Base Revenue (UG-190335) | C37: =RS!F18*1000 -> 3517098.983
C38: 0.01
K39: Present Bill | L39: =ROUND((66*'Bill Impact'!C8),2)+9.5 -> 54.94 | O39: 66 Therms
B40: Proposed LIRAP Revenue | C40: =C37*C38 -> 35170.98983 | K40: Proposed Bill | L40: =ROUND((66*('Bill Impact'!C8+K13)),2)+9.5 -> 55
G41: =F18*G35 -> 178708.002 | K41: Bill Change | L41: =L40-L39 -> 0.06 | N41: =L41/L39 -> 0.001092100473
G42: =G41-G16 -> 172023.361
G43: =G42/SUM(F13:F15) -> 0.04655495029

Sheet Bill Determ
A1: AVISTA UTILITIES
A2: WASHINGTON GAS
A3: USAGE & BILLINGS BY RATE SCHEDULE
A4: 12 MONTHS ENDED DECEMBER 31, 2018
A6: Schedule 101/102 | B6: Total therms | C6: Total Billings | E6: 0-70 | F6: >70 | G6: Total Therms
A7: therms per Revenue Run(1)(2) | B7: ='12MEDEC18'!P162 -> 123968342.1 | C7: ='12MEDEC18'!O26 -> 1941495 | E7: ='Block Usage'!O17 -> 78130536.43 | F7: ='Block Usage'!O18 -> 45837805.66 | G7: =SUM(D7:F7) -> 123968342.1
G8: ='12MEDEC18'!P162 -> 123968342.1
A9: Schedule 111,112, 116 - Present | B9: 0-200 thms | C9: 201-1000 thms | D9: > 1000 thms | E9: Total | F9: Billings | G9: =G8-G7 -> 0
A10: therms by block(2) | B10: ='Block Usage'!O35 -> 6375094.21 | C10: ='Block Usage'!O36 -> 16565126.56 | D10: ='Block Usage'!O37 -> 29697691.91 | E10: =SUM(B10:D10) -> 52637912.68
A11: less: shifted to Sch 146 | B11: 0 | C11: 0 | D11: 0 | E11: =SUM(B11:D11) -> 0
A12: Total therms by block | B12: =SUM(B10:B11) -> 6375094.21 | C12: =SUM(C10:C11) -> 16565126.56 | D12: =SUM(D10:D11) -> 29697691.91 | E12: =SUM(E10:E11) -> 52637912.68
A13: Per Rev. Run(1) | E13: ='12MEDEC18'!P163 -> 52637912.68 | F13: ='12MEDEC18'!O27 -> 36840
A14: less: shifted to Sch. 146 | B14: 0 | C14: 0 | D14: 0 | E14: =SUM(B14:D14) -> 0 | F14: 0
A15: less: shifted from Sch. 121 | E15: 0 | F15: 0
A16: Total | E16: =E13+E14+E15 -> 52637912.68 | F16: =F13+F14+F15 -> 36840
A17: Adjust. To Actual | E17: =E16-E12 -> 0
D18: 1001-10000 | E18: 10000- | G18: Total
A19: Schedule 111,112, 116 - Proposed | B19: 0-200 thms | C19: 201-1000 thms | D19: therms | E19: 25000 thms | F19: >25000 thms | G19: therms | H19: Total Billings
A20: therms by block(2) | B20: =B12 -> 6375094.21 | C20: =C12 -> 16565126.56 | D20: =D12 -> 29697691.91 | G20: =SUM(B20:F20) -> 52637912.68 | H20: =F16 -> 36840
A21: Block Adjustment | D21: =-E21 -> -699286.764 | E21: ='121 to 111'!U90 -> 699286.764 | G21: =SUM(B21:F21) -> 0
A22: Add: Sch 121/122 | B22: ='Sch 111 Rate Design'!Q37 -> 7200 | C22: ='Sch 111 Rate Design'!R37 -> 28800 | D22: ='Sch 111 Rate Design'!S37 -> 324000 | E22: ='Sch 111 Rate Design'!T37 -> 536304.83 | F22: ='Sch 111 Rate Design'!U37 -> 743508.101 | G22: 1639812.931 | H22: =H29 -> 36
A23: Total | B23: =SUM(B20:B22) -> 6382294.21 | C23: =SUM(C20:C22) -> 16593926.56 | D23: 29322405.15 | E23: 1235591.594 | F23: 743508.101 | G23: 54277725.61 | H23: 36876
D25: 1001-10000 | E25: 10000- | G25: Total
A26: Schedule 121,122 | B26: 0-500 thms | C26: 501-1000 thms | D26: therms | E26: 25000 thms | F26: >25000 thms | G26: therms | H26: Total Billings
A27: therms by block(3) | B27: ='Block Usage'!O60 -> 22499.89167 | C27: ='Block Usage'!O61 -> 22499.66666 | D27: ='Block Usage'!O62 -> 398964.2503 | E27: ='Block Usage'!O63 -> 578951.3761 | F27: ='Block Usage'!O64 -> 745405.116 | G27: =SUM(B27:F27) -> 1768320.301 | H27: ='12MEDEC18'!O28 -> 45
A28: less: Closed Acct | B28: =-'121 to 111'!R32 -> -4500 | C28: =-'121 to 111'!S32 -> -4500 | D28: =-'121 to 111'!T32 -> -74964.027 | E28: =-'121 to 111'!U32 -> -42646.772 | F28: =-'121 to 111'!V32 -> -1897.5 | G28: =SUM(B28:F28) -> -128508.299 | H28: =-'121 to 111'!X32 -> -9
A29: Total therms by block | B29: =SUM(B27:B28) -> 17999.89167 | C29: =SUM(C27:C28) -> 17999.66666 | D29: 324000.2233 | E29: 536304.6041 | F29: 743507.616 | G29: 1639812.002 | H29: 36
A30: Per Rev. Run(1) | G30: ='12MEDEC18'!P164 -> 1768320.301
A31: less: Acct closed (2) | G31: =G28 -> -128508.299
A32: Total | G32: =G30+G31 -> 1639812.002
G33: =G29-G32 -> 0
B34: first | C34: next | D34: next | E34: over | F34: Total
A35: Schedule 131,132 | B35: 10000 thms | C35: 15000 thms | D35: 25000 thms | E35: 50000 thms | F35: therms | G35: Total Billings
A36: billed/pro forma therms(3) | B36: ='Big Schedules'!Q108 -> 240000 | C36: ='Big Schedules'!R108 -> 304980 | D36: ='Big Schedules'!S108 -> 342272 | E36: ='Big Schedules'!T108 -> 98015 | F36: =SUM(B36:E36) -> 985267 | G36: 24
B38: first | C38: next | D38: next | E38: next | F38: over | G38: Total
A39: Schedule 146 | B39: 20000 thms | C39: 30000 thms | D39: 250000 thms | E39: 200000 thms | F39: 500000 thms | G39: therms | H39: Total Billings
A40: billed/pro forma therms(4) | B40: ='Big Schedules'!Q48 -> 8493795 | C40: ='Big Schedules'!R48 -> 8514233 | D40: ='Big Schedules'!S48 -> 13953929 | E40: ='Big Schedules'!T48 -> 2746588 | F40: ='Big Schedules'!U48 -> 1899391 | G40: =SUM(B40:F40) -> 35607936 | H40: =40*12 -> 480
A42: Sch. 147-Interdepartmental(3) | B42: Total therms
A43: billed/pro forma therms | B43: ='Big Schedules'!O132 -> 5405533
A45: Sch. 148-Sp. Contracts(3) | B45: Total therms | C45: Total Billings
A46: Kaiser -Trentwood | B46: ='Big Schedules'!O116 -> 24532118 | C46: 12
A47: Lamb-Weston | B47: ='Big Schedules'!O117 -> 6237208 | C47: 12
A48: Mutual Materials | B48: ='Big Schedules'!O118 -> 2090525 | C48: 12
A49: Washington Potato | B49: ='Big Schedules'!O119 -> 5652763 | C49: 12
A50: Total | B50: =SUM(B46:B49) -> 38512614 | C50: =SUM(C46:C49) -> 48
A52: Wash. State Univ. | B52: =MAX(8000000,'Big Schedules'!O120) -> 10599458 | C52: 12
A54: (1) shown on workpaper JDM-G-11
A55: (2) shown on workpaper JDM-G-9
A56: (3) shown on workpaper JDM-G-10
A57: (4) shown on workpaper JDM-G-9
A65: USAGE
A66: Revenue Run therms, this sheet | B66: =B7+E16+F36+G40+B43+B50+B52+G27 -> 269485383.1
A68: actual Revenue Run therms | B68: ='12MEDEC18'!P169 -> 269485382.8
A69: less:
A70: Sch 132 Jan 2016 billing | B70: =-'Big Schedules'!C113 -> 0.279
A71: Schedule 121 Shifting | B71: =G28 -> -128508.299
A72: Sch 146 Shifting | B72: =-'Big Schedules'!O48+G40 -> 0
A73: Sch 11/12 Shifting | B73: =-E15-E14 -> 0
B74: =B68-SUM(B69:B73) -> 269613890.8
A75: Diff | B75: =B66-B74 -> -128507.747
A77: from Present Rev tab | B77: =SUM('Pres & Prop Rev'!D20:J20) -> 269356874.8
A78: this sheet | B78: =B66 -> 269485383.1
A79: Diff | B79: =B77-B78 -> -128508.299
A82: CUSTOMERS
A83: Customers from this sheet | B83: =C7+F16+G36+H40+C50+C52+H27 -> 1978944
A85: Rev. Run customers | B85: ='12MEDEC18'!O33 -> 1978984
A86: less:
A87: Sch 111 | B87: =-F14 -> 0
A88: Sch 121/122 | B88: 0
A89: Sch 131 normalize | B89: 0
A90: Stimson switching--reduce Sch 146 | B90: 0
A91: Sch 146 normalize | B91: ='12MEDEC18'!O30-'Bill Determ'!H40 -> 6
A92: Sch 147 customers not billed | B92: ='12MEDEC18'!O31 -> 34
A93: Sch 148 normalize | B93: 0
B94: =B85-SUM(B86:B93) -> 1978944
A95: Diff | B95: =B83-B94 -> 0
A97: from Present Rev tab | B97: =SUM('Pres & Prop Rev'!D25:J26) -> 1978935
A98: Diff | B98: =B94-B97 -> 9

Sheet Block Usage
A1: WASHINGTON NATURAL GAS SYSTEM
C2: January | D2: February | E2: March | F2: April | G2: May | H2: June | I2: July | J2: August | K2: September | L2: October | M2: November | N2: December | O2: Annual Total
A3: Rate Design Program Monthly Results
B4: Schedule 101/102
B5: Block 1 | C5: ='12MEDEC18'!D54+'12MEDEC18'!D67 -> 10524232.49 | D5: ='12MEDEC18'!E54+'12MEDEC18'!E67 -> 10061691.79 | E5: ='12MEDEC18'!F54+'12MEDEC18'!F67 -> 10255778.75 | F5: ='12MEDEC18'!G54+'12MEDEC18'!G67 -> 9188098.163 | G5: ='12MEDEC18'!H54+'12MEDEC18'!H67 -> 5512458.63 | H5: ='12MEDEC18'!I54+'12MEDEC18'!I67 -> 2696906.793 | I5: ='12MEDEC18'!J54+'12MEDEC18'!J67 -> 2255273.315 | J5: ='12MEDEC18'!K54+'12MEDEC18'!K67 -> 1950475.626 | K5: ='12MEDEC18'!L54+'12MEDEC18'!L67 -> 2251412.681 | L5: ='12MEDEC18'!M54+'12MEDEC18'!M67 -> 4822544.131 | M5: ='12MEDEC18'!N54+'12MEDEC18'!N67 -> 8249954.441 | N5: ='12MEDEC18'!O54+'12MEDEC18'!O67 -> 10362255.79 | O5: =SUM(C5:N5) -> 78131082.6
B6: Block 2 | C6: ='12MEDEC18'!D55+'12MEDEC18'!D68 -> 13383248.92 | D6: ='12MEDEC18'!E55+'12MEDEC18'!E68 -> 7346777.05 | E6: ='12MEDEC18'!F55+'12MEDEC18'!F68 -> 8516900.204 | F6: ='12MEDEC18'!G55+'12MEDEC18'!G68 -> 3625933.133 | G6: ='12MEDEC18'!H55+'12MEDEC18'!H68 -> 608786.2754 | H6: ='12MEDEC18'!I55+'12MEDEC18'!I68 -> 191811.3505 | I6: ='12MEDEC18'!J55+'12MEDEC18'!J68 -> 188458.8917 | J6: ='12MEDEC18'!K55+'12MEDEC18'!K68 -> 135332.401 | K6: ='12MEDEC18'!L55+'12MEDEC18'!L68 -> 190755.1579 | L6: ='12MEDEC18'!M55+'12MEDEC18'!M68 -> 472854.8137 | M6: ='12MEDEC18'!N55+'12MEDEC18'!N68 -> 2592797.035 | N6: ='12MEDEC18'!O55+'12MEDEC18'!O68 -> 8584533.263 | O6: =SUM(C6:N6) -> 45838188.49
A7: Therms | B7: Total | C7: =SUM(C5:C6) -> 23907481.41 | D7: 17408468.84 | E7: 18772678.96 | F7: 12814031.3 | G7: 6121244.905 | H7: 2888718.143 | I7: 2443732.207 | J7: 2085808.027 | K7: 2442167.839 | L7: 5295398.944 | M7: 10842751.48 | N7: 18946789.05 | O7: 123969271.1
B8: Billed Customers | C8: ='12MEDEC18'!C26 -> 160611 | D8: ='12MEDEC18'!D26 -> 160378 | E8: ='12MEDEC18'!E26 -> 161228 | F8: ='12MEDEC18'!F26 -> 160935 | G8: ='12MEDEC18'!G26 -> 161371 | H8: ='12MEDEC18'!H26 -> 161247 | I8: ='12MEDEC18'!I26 -> 161588 | J8: ='12MEDEC18'!J26 -> 161900 | K8: ='12MEDEC18'!K26 -> 160395 | L8: ='12MEDEC18'!L26 -> 164606 | M8: ='12MEDEC18'!M26 -> 163386 | N8: ='12MEDEC18'!N26 -> 163850 | O8: =SUM(C8:N8) -> 1941495
B9: Block 1 Limit | C9: =C8*70 -> 11242770 | D9: =D8*70 -> 11226460 | E9: 11285960 | F9: 11265450 | G9: 11295970 | H9: 11287290 | I9: 11311160 | J9: 11333000 | K9: 11227650 | L9: 11522420 | M9: 11437020 | N9: 11469500 | O9: =SUM(C9:N9) -> 135904650
B10: Revenue Run Total | C10: ='12MEDEC18'!D162 -> 23907481.41 | D10: ='12MEDEC18'!E162 -> 17408468.84 | E10: ='12MEDEC18'!F162 -> 18772678.96 | F10: ='12MEDEC18'!G162 -> 12814031.3 | G10: ='12MEDEC18'!H162 -> 6121244.905 | H10: ='12MEDEC18'!I162 -> 2888718.143 | I10: ='12MEDEC18'!J162 -> 2443732.207 | J10: ='12MEDEC18'!K162 -> 2085808.027 | K10: ='12MEDEC18'!L162 -> 2442167.839 | L10: ='12MEDEC18'!M162 -> 5295338.944 | M10: ='12MEDEC18'!N162 -> 10842675.48 | N10: ='12MEDEC18'!O162 -> 18945996.05 | O10: =SUM(C10:N10) -> 123968342.1
B11: Difference | C11: =C10-C7 -> 0 | D11: 0 | E11: 0 | F11: 0 | G11: 0 | H11: 0 | I11: 0 | J11: 0 | K11: 0 | L11: -60 | M11: -76 | N11: -793 | O11: =SUM(C11:N11) -> -929 | P11: =O11/O10 -> -7.493848706e-06
B13: Block 1 | C13: =(C5/C$7)*C$11 -> 0 | D13: =(D5/D$7)*D$11 -> 0 | E13: 0 | F13: 0 | G13: 0 | H13: 0 | I13: 0 | J13: 0 | K13: 0 | L13: -54.64227547 | M13: -57.82633116 | N13: -433.7024504 | O13: =SUM(C13:N13) -> -546.171057
B14: Block 2 | C14: =(C6/C$7)*C$11 -> 0 | D14: =(D6/D$7)*D$11 -> 0 | E14: 0 | F14: 0 | G14: 0 | H14: 0 | I14: 0 | J14: 0 | K14: 0 | L14: -5.35772453 | M14: -18.17366884 | N14: -359.2975496 | O14: =SUM(C14:N14) -> -382.828943
C15: =SUM(C13:C14) -> 0 | D15: 0 | E15: 0 | F15: 0 | G15: 0 | H15: 0 | I15: 0 | J15: 0 | K15: 0 | L15: -60 | M15: -76 | N15: -793 | O15: -929
B17: Block 1 | C17: =C5+C13 -> 10524232.49 | D17: 10061691.79 | E17: 10255778.75 | F17: 9188098.163 | G17: 5512458.63 | H17: 2696906.793 | I17: 2255273.315 | J17: 1950475.626 | K17: 2251412.681 | L17: 4822489.488 | M17: 8249896.614 | N17: 10361822.08 | O17: =SUM(C17:N17) -> 78130536.43
B18: Block 2 | C18: =C6+C14 -> 13383248.92 | D18: 7346777.05 | E18: 8516900.204 | F18: 3625933.133 | G18: 608786.2754 | H18: 191811.3505 | I18: 188458.8917 | J18: 135332.401 | K18: 190755.1579 | L18: 472849.4559 | M18: 2592778.861 | N18: 8584173.966 | O18: =SUM(C18:N18) -> 45837805.66
C19: =SUM(C17:C18) -> 23907481.41 | D19: 17408468.84 | E19: 18772678.96 | F19: 12814031.3 | G19: 6121244.905 | H19: 2888718.143 | I19: 2443732.207 | J19: 2085808.027 | K19: 2442167.839 | L19: 5295338.944 | M19: 10842675.48 | N19: 18945996.05 | O19: 123968342.1
C20: =C19-C10 -> 0 | D20: 0 | E20: 0 | F20: 0 | G20: 0 | H20: 0 | I20: 0 | J20: 0 | K20: 0 | L20: 0 | M20: 0 | N20: 0 | O20: 0
B22: Schedule 111/112
B23: Block 1 | C23: ='12MEDEC18'!D78 -> 589934.1321 | D23: ='12MEDEC18'!E78 -> 590810.4269 | E23: ='12MEDEC18'!F78 -> 603524.1804 | F23: ='12MEDEC18'!G78 -> 598823.4294 | G23: ='12MEDEC18'!H78 -> 554355.2493 | H23: ='12MEDEC18'!I78 -> 457385.4193 | I23: ='12MEDEC18'!J78 -> 406432.0633 | J23: ='12MEDEC18'!K78 -> 369191.6927 | K23: ='12MEDEC18'!L78 -> 401055.1408 | L23: ='12MEDEC18'!M78 -> 544518.6838 | M23: ='12MEDEC18'!N78 -> 589843.8162 | N23: ='12MEDEC18'!O78 -> 651631.3366 | O23: =SUM(C23:N23) -> 6357505.571
B24: Block 2 | C24: ='12MEDEC18'!D79 -> 2084775.281 | D24: ='12MEDEC18'!E79 -> 1987647.634 | E24: ='12MEDEC18'!F79 -> 2037283.433 | F24: ='12MEDEC18'!G79 -> 1803319.135 | G24: ='12MEDEC18'!H79 -> 1207255.993 | H24: ='12MEDEC18'!I79 -> 735033.1087 | I24: ='12MEDEC18'!J79 -> 625181.9259 | J24: ='12MEDEC18'!K79 -> 560486.23 | K24: ='12MEDEC18'!L79 -> 636511.3843 | L24: ='12MEDEC18'!M79 -> 1024196.783 | M24: ='12MEDEC18'!N79 -> 1602247.242 | N24: ='12MEDEC18'!O79 -> 2217997.938 | O24: =SUM(C24:N24) -> 16521936.09
B25: Block 3 | C25: ='12MEDEC18'!D80 -> 5325802.235 | D25: ='12MEDEC18'!E80 -> 3964960.849 | E25: ='12MEDEC18'!F80 -> 4143033.33 | F25: ='12MEDEC18'!G80 -> 2753191.902 | G25: ='12MEDEC18'!H80 -> 1378027.181 | H25: ='12MEDEC18'!I80 -> 698319.8055 | I25: ='12MEDEC18'!J80 -> 544971.0136 | J25: ='12MEDEC18'!K80 -> 516705.8033 | K25: ='12MEDEC18'!L80 -> 569053.9006 | L25: ='12MEDEC18'!M80 -> 985638.2865 | M25: ='12MEDEC18'!N80 -> 2122581.59 | N25: ='12MEDEC18'!O80 -> 6624153.749 | O25: =SUM(C25:N25) -> 29626439.65
A26: Therms | B26: Total | C26: =SUM(C23:C25) -> 8000511.648 | D26: =SUM(D23:D25) -> 6543418.91 | E26: 6783840.944 | F26: 5155334.466 | G26: 3139638.423 | H26: 1890738.334 | I26: =SUM(I23:I25) -> 1576585.003 | J26: =SUM(J23:J25) -> 1446383.726 | K26: 1606620.426 | L26: 2554353.753 | M26: 4314672.648 | N26: 9493783.023 | O26: 52505881.3
B27: Revenue Run Total | C27: ='12MEDEC18'!D163 -> 8018208.232 | D27: ='12MEDEC18'!E163 -> 6561360.732 | E27: ='12MEDEC18'!F163 -> 6797194.949 | F27: ='12MEDEC18'!G163 -> 5166624.346 | G27: ='12MEDEC18'!H163 -> 3145531.191 | H27: ='12MEDEC18'!I163 -> 1896315.694 | I27: ='12MEDEC18'!J163 -> 1581289.084 | J27: ='12MEDEC18'!K163 -> 1451036.288 | K27: ='12MEDEC18'!L163 -> 1613677.308 | L27: ='12MEDEC18'!M163 -> 2564277.133 | M27: ='12MEDEC18'!N163 -> 4331827.736 | N27: ='12MEDEC18'!O163 -> 9510569.987 | O27: =SUM(C27:N27) -> 52637912.68
C28: =C27-C26 -> 17696.584 | D28: 17941.822 | E28: 13354.005 | F28: 11289.88 | G28: 5892.768 | H28: 5577.36 | I28: 4704.081 | J28: 4652.562 | K28: 7056.882 | L28: 9923.38 | M28: 17155.088 | N28: 16786.964 | O28: =SUM(C28:N28) -> 132031.376 | P28: =O28/O27 -> 0.002508294294
B30: Block 1 | C30: =(C23/C$26)*C$28 -> 1304.893909 | D30: =(D23/D$26)*D$28 -> 1619.981184 | E30: 1188.038604 | F30: 1311.388175 | G30: 1040.46595 | H30: 1349.21004 | I30: 1212.677619 | J30: 1187.573677 | K30: 1761.585225 | L30: 2115.394475 | M30: 2345.212116 | N30: 1152.218432 | O30: =SUM(C30:N30) -> 17588.63941
B31: Block 2 | C31: =(C24/C$26)*C$28 -> 4611.380185 | D31: =(D24/D$26)*D$28 -> 5450.059141 | E31: 4010.396674 | F31: 3949.163098 | G31: 2265.89133 | H31: 2168.224014 | I31: 1865.364959 | J31: 1802.9081 | K31: 2795.797725 | L31: 3978.890496 | M31: 6370.516301 | N31: 3921.877237 | O31: =SUM(C31:N31) -> 43190.46926
B32: Block 3 | C32: =(C25/C$26)*C$28 -> 11780.30991 | D32: =(D25/D$26)*D$28 -> 10871.78167 | E32: 8155.569723 | F32: 6029.328726 | G32: 2586.41072 | H32: 2059.925946 | I32: 1626.038422 | J32: 1662.080223 | K32: 2499.49905 | L32: 3829.095029 | M32: 8439.359583 | N32: 11712.86833 | O32: =SUM(C32:N32) -> 71252.26733
C33: =SUM(C30:C32) -> 17696.584 | D33: =SUM(D30:D32) -> 17941.822 | E33: 13354.005 | F33: 11289.88 | G33: 5892.768 | H33: 5577.36 | I33: 4704.081 | J33: 4652.562 | K33: 7056.882 | L33: 9923.38 | M33: 17155.088 | N33: 16786.964 | O33: =SUM(O30:O32) -> 132031.376
B35: Block 1 | C35: =C23+C30 -> 591239.026 | D35: =D23+D30 -> 592430.4081 | E35: 604712.219 | F35: 600134.8176 | G35: 555395.7152 | H35: 458734.6294 | I35: 407644.7409 | J35: 370379.2663 | K35: 402816.726 | L35: 546634.0783 | M35: 592189.0283 | N35: 652783.5551 | O35: =SUM(C35:N35) -> 6375094.21
B36: Block 2 | C36: =C24+C31 -> 2089386.662 | D36: 1993097.693 | E36: 2041293.83 | F36: 1807268.298 | G36: 1209521.884 | H36: 737201.3327 | I36: 627047.2909 | J36: 562289.1381 | K36: 639307.182 | L36: 1028175.674 | M36: 1608617.759 | N36: 2221919.815 | O36: =SUM(C36:N36) -> 16565126.56
B37: Block 3 | C37: 5337582.545 | D37: 3975832.631 | E37: 4151188.9 | F37: 2759221.231 | G37: 1380613.592 | H37: 700379.7314 | I37: 546597.052 | J37: 518367.8835 | K37: 571553.3997 | L37: 989467.3816 | M37: 2131020.949 | N37: 6635866.617 | O37: =SUM(C37:N37) -> 29697691.91
C38: =SUM(C35:C37) -> 8018208.232 | D38: 6561360.732 | E38: 6797194.949 | F38: 5166624.346 | G38: 3145531.191 | H38: 1896315.694 | I38: 1581289.084 | J38: 1451036.288 | K38: 1613677.308 | L38: 2564277.133 | M38: 4331827.736 | N38: 9510569.987 | O38: 52637912.68
C39: =C38-C27 -> 0 | D39: 0 | E39: 0 | F39: 0 | G39: 0 | H39: 0 | I39: 0 | J39: 0 | K39: 0 | L39: 0 | M39: 0 | N39: 0 | O39: 0
B43: Schedule 121/122
B44: Block 1 | C44: ='12MEDEC18'!D102+'12MEDEC18'!D116 -> 11500 | D44: ='12MEDEC18'!E102+'12MEDEC18'!E116 -> 11500 | E44: ='12MEDEC18'!F102+'12MEDEC18'!F116 -> 11500 | F44: ='12MEDEC18'!G102+'12MEDEC18'!G116 -> 11500 | G44: ='12MEDEC18'!H102+'12MEDEC18'!H116 -> 11500 | H44: ='12MEDEC18'!I102+'12MEDEC18'!I116 -> 11500 | I44: ='12MEDEC18'!J102+'12MEDEC18'!J116 -> 11550 | J44: ='12MEDEC18'!K102+'12MEDEC18'!K116 -> 12000 | K44: ='12MEDEC18'!L102+'12MEDEC18'!L116 -> 10000 | L44: ='12MEDEC18'!M102+'12MEDEC18'!M116 -> 12500 | M44: ='12MEDEC18'!N102+'12MEDEC18'!N116 -> 11500 | N44: ='12MEDEC18'!O102+'12MEDEC18'!O116 -> -104050.1083 | O44: =SUM(C44:N44) -> 22499.89167
B45: Block 2 | C45: ='12MEDEC18'!D103+'12MEDEC18'!D117 -> 11500 | D45: ='12MEDEC18'!E103+'12MEDEC18'!E117 -> 11500 | E45: ='12MEDEC18'!F103+'12MEDEC18'!F117 -> 11500 | F45: ='12MEDEC18'!G103+'12MEDEC18'!G117 -> 11500 | G45: ='12MEDEC18'!H103+'12MEDEC18'!H117 -> 11379.079 | H45: ='12MEDEC18'!I103+'12MEDEC18'!I117 -> 11215.104 | I45: ='12MEDEC18'!J103+'12MEDEC18'!J117 -> 11266.876 | J45: ='12MEDEC18'!K103+'12MEDEC18'!K117 -> 11644.274 | K45: ='12MEDEC18'!L103+'12MEDEC18'!L117 -> 10000 | L45: ='12MEDEC18'!M103+'12MEDEC18'!M117 -> 12341.027 | M45: ='12MEDEC18'!N103+'12MEDEC18'!N117 -> 11500 | N45: ='12MEDEC18'!O103+'12MEDEC18'!O117 -> -102846.6933 | O45: =SUM(C45:N45) -> 22499.66666
B46: Block 3 | C46: ='12MEDEC18'!D104+'12MEDEC18'!D118 -> 203386.443 | D46: ='12MEDEC18'!E104+'12MEDEC18'!E118 -> 198441.939 | E46: ='12MEDEC18'!F104+'12MEDEC18'!F118 -> 203480.458 | F46: ='12MEDEC18'!G104+'12MEDEC18'!G118 -> 191875.011 | G46: ='12MEDEC18'!H104+'12MEDEC18'!H118 -> 185869.252 | H46: ='12MEDEC18'!I104+'12MEDEC18'!I118 -> 175428.223 | I46: ='12MEDEC18'!J104+'12MEDEC18'!J118 -> 169184.9843 | J46: ='12MEDEC18'!K104+'12MEDEC18'!K118 -> 170892.525 | K46: ='12MEDEC18'!L104+'12MEDEC18'!L118 -> 160240.045 | L46: ='12MEDEC18'!M104+'12MEDEC18'!M118 -> 192242.529 | M46: ='12MEDEC18'!N104+'12MEDEC18'!N118 -> 196830.569 | N46: ='12MEDEC18'!O104+'12MEDEC18'!O118 -> -1648907.728 | O46: 398964.2503
B47: Block 4 | C47: ='12MEDEC18'!D105+'12MEDEC18'!D119 -> 184426.159 | D47: ='12MEDEC18'!E105+'12MEDEC18'!E119 -> 141925.306 | E47: ='12MEDEC18'!F105+'12MEDEC18'!F119 -> 156602.019 | F47: ='12MEDEC18'!G105+'12MEDEC18'!G119 -> 113584.651 | G47: ='12MEDEC18'!H105+'12MEDEC18'!H119 -> 102398.334 | H47: ='12MEDEC18'!I105+'12MEDEC18'!I119 -> 77470.242 | I47: ='12MEDEC18'!J105+'12MEDEC18'!J119 -> 69069.92541 | J47: ='12MEDEC18'!K105+'12MEDEC18'!K119 -> 76228.347 | K47: ='12MEDEC18'!L105+'12MEDEC18'!L119 -> 76173.199 | L47: ='12MEDEC18'!M105+'12MEDEC18'!M119 -> 87527.107 | M47: ='12MEDEC18'!N105+'12MEDEC18'!N119 -> 113532.716 | N47: ='12MEDEC18'!O105+'12MEDEC18'!O119 -> -619986.6293 | O47: =SUM(C47:N47) -> 578951.3761
B48: Block 5 | C48: ='12MEDEC18'!D106+'12MEDEC18'!D120 -> 136757.997 | D48: ='12MEDEC18'!E106+'12MEDEC18'!E120 -> 91812.78 | E48: ='12MEDEC18'!F106+'12MEDEC18'!F120 -> 91235.56 | F48: ='12MEDEC18'!G106+'12MEDEC18'!G120 -> 69503.764 | G48: ='12MEDEC18'!H106+'12MEDEC18'!H120 -> 21110.359 | H48: ='12MEDEC18'!I106+'12MEDEC18'!I120 -> 27709.368 | I48: ='12MEDEC18'!J106+'12MEDEC18'!J120 -> 19810.514 | J48: ='12MEDEC18'!K106+'12MEDEC18'!K120 -> 22671.181 | K48: ='12MEDEC18'!L106+'12MEDEC18'!L120 -> 35739.872 | L48: ='12MEDEC18'!M106+'12MEDEC18'!M120 -> 38109.998 | M48: ='12MEDEC18'!N106+'12MEDEC18'!N120 -> 78881.856 | N48: ='12MEDEC18'!O106+'12MEDEC18'!O120 -> 112061.867 | O48: =SUM(C48:N48) -> 745405.116
A49: Therms | B49: Total | C49: =SUM(C44:C48) -> 547570.599 | D49: =SUM(D44:D48) -> 455180.025 | E49: 474318.037 | F49: 397963.426 | G49: 332257.024 | H49: 303322.937 | I49: =SUM(I44:I48) -> 280882.2997 | J49: =SUM(J44:J48) -> 293436.327 | K49: 292153.116 | L49: 342720.661 | M49: 412245.141 | N49: -2363729.292 | O49: 1768320.301
B50: Revenue Run Total | C50: ='12MEDEC18'!D164 -> 547570.599 | D50: ='12MEDEC18'!E164 -> 455180.025 | E50: ='12MEDEC18'!F164 -> 474318.037 | F50: ='12MEDEC18'!G164 -> 397963.426 | G50: ='12MEDEC18'!H164 -> 332257.024 | H50: ='12MEDEC18'!I164 -> 303322.937 | I50: ='12MEDEC18'!J164 -> 280882.2997 | J50: ='12MEDEC18'!K164 -> 293436.327 | K50: ='12MEDEC18'!L164 -> 292153.116 | L50: ='12MEDEC18'!M164 -> 342720.661 | M50: ='12MEDEC18'!N164 -> 412245.141 | N50: ='12MEDEC18'!O164 -> -2363729.292 | O50: =SUM(C50:N50) -> 1768320.301
C51: =C50-C49 -> 0 | D51: 0 | E51: 0 | F51: 0 | G51: 0 | H51: 0 | I51: 0 | J51: 0 | K51: 0 | L51: 0 | M51: 0 | N51: 0 | O51: =SUM(C51:N51) -> 0 | P51: =O51/O50 -> 0
B53: Block 1 | C53: =(C44/C$49)*C$51 -> 0 | D53: =(D44/D$49)*D$51 -> 0 | E53: 0 | F53: 0 | G53: 0 | H53: 0 | I53: 0 | J53: 0 | K53: 0 | L53: 0 | M53: 0 | N53: 0 | O53: =SUM(C53:N53) -> 0
B54: Block 2 | C54: =(C45/C$49)*C$51 -> 0 | D54: 0 | E54: 0 | F54: 0 | G54: 0 | H54: 0 | I54: 0 | J54: 0 | K54: 0 | L54: 0 | M54: 0 | N54: 0 | O54: =SUM(C54:N54) -> 0
B55: Block 3 | C55: =(C46/C$49)*C$51 -> 0 | D55: 0 | E55: 0 | F55: 0 | G55: 0 | H55: 0 | I55: 0 | J55: 0 | K55: 0 | L55: 0 | M55: 0 | N55: 0 | O55: 0
B56: Block 4 | C56: 0 | D56: 0 | E56: 0 | F56: 0 | G56: 0 | H56: 0 | I56: 0 | J56: 0 | K56: 0 | L56: 0 | M56: 0 | N56: 0 | O56: =SUM(C56:N56) -> 0
B57: Block 5 | C57: 0 | D57: 0 | E57: 0 | F57: 0 | G57: 0 | H57: 0 | I57: 0 | J57: 0 | K57: 0 | L57: 0 | M57: 0 | N57: 0 | O57: =SUM(C57:N57) -> 0
C58: =SUM(C53:C57) -> 0 | D58: =SUM(D53:D57) -> 0 | E58: 0 | F58: 0 | G58: 0 | H58: 0 | I58: 0 | J58: 0 | K58: 0 | L58: 0 | M58: 0 | N58: 0 | O58: =SUM(O53:O57) -> 0
B60: Block 1 | C60: =C44+C53 -> 11500 | D60: =D44+D53 -> 11500 | E60: 11500 | F60: 11500 | G60: 11500 | H60: 11500 | I60: 11550 | J60: 12000 | K60: 10000 | L60: 12500 | M60: 11500 | N60: -104050.1083 | O60: =SUM(C60:N60) -> 22499.89167
B61: Block 2 | C61: =C45+C54 -> 11500 | D61: 11500 | E61: 11500 | F61: 11500 | G61: 11379.079 | H61: 11215.104 | I61: 11266.876 | J61: 11644.274 | K61: 10000 | L61: 12341.027 | M61: 11500 | N61: -102846.6933 | O61: =SUM(C61:N61) -> 22499.66666
B62: Block 3 | C62: =C46+C55 -> 203386.443 | D62: 198441.939 | E62: 203480.458 | F62: 191875.011 | G62: 185869.252 | H62: 175428.223 | I62: 169184.9843 | J62: 170892.525 | K62: 160240.045 | L62: 192242.529 | M62: 196830.569 | N62: -1648907.728 | O62: 398964.2503
B63: Block 4 | C63: =C47+C56 -> 184426.159 | D63: 141925.306 | E63: 156602.019 | F63: 113584.651 | G63: 102398.334 | H63: 77470.242 | I63: 69069.92541 | J63: 76228.347 | K63: 76173.199 | L63: 87527.107 | M63: 113532.716 | N63: -619986.6293 | O63: =SUM(C63:N63) -> 578951.3761
B64: Block 5 | C64: =C48+C57 -> 136757.997 | D64: 91812.78 | E64: 91235.56 | F64: 69503.764 | G64: 21110.359 | H64: 27709.368 | I64: 19810.514 | J64: 22671.181 | K64: 35739.872 | L64: 38109.998 | M64: 78881.856 | N64: 112061.867 | O64: =SUM(C64:N64) -> 745405.116
C65: =SUM(C60:C64) -> 547570.599 | D65: 455180.025 | E65: 474318.037 | F65: 397963.426 | G65: 332257.024 | H65: 303322.937 | I65: 280882.2997 | J65: 293436.327 | K65: 292153.116 | L65: 342720.661 | M65: 412245.141 | N65: -2363729.292 | O65: 1768320.301
C66: =C65-C50 -> 0 | D66: 0 | E66: 0 | F66: 0 | G66: 0 | H66: 0 | I66: 0 | J66: 0 | K66: 0 | L66: 0 | M66: 0 | N66: 0 | O66: 0

Sheet Big Schedules
B1: Washington Gas Billing Determinants by Customer
Q2: 1st | R2: =Q3 -> 20000 | S2: =R3 -> 50000 | T2: =S3 -> 300000 | U2: =T3 -> 500000 | W2: Present | X2: Proposed
B3: ANNUAL USAGE, Sch 146 | O3: 12-mo ended | Q3: 20000 | R3: 50000 | S3: 300000 | T3: 500000 | U3: 99999999 | W3: Annual | X3: Annual | Y3: Present Base | Z3: Proposed Base
B4: Washington | C4: 2018-01-01 | D4: 2018-02-01 | E4: 2018-03-01 | F4: 2018-04-01 | G4: 2018-05-01 | H4: 2018-06-01 | I4: 2018-07-01 | J4: 2018-08-01 | K4: 2018-09-01 | L4: 2018-10-01 | M4: 2018-11-01 | N4: 2018-12-01 | O4: Total | Q4: thms/mo | R4: thms/mo | S4: thms/mo | T4: thms/mo | U4: thms/mo | W4: Minimum | X4: Minimum | Y4: Revenue | Z4: Revenue
A5: 1 | C5: 415785 | D5: 355464 | E5: 355300 | F5: 281721 | G5: 204574 | H5: 43693 | I5: 30183 | J5: 15503 | K5: 18744 | L5: 47441 | M5: 187342 | N5: 322385 | O5: =SUM(C5:N5) -> 2278135 | Q5: =Q$3*12-SUMPRODUCT(--($C5:$N5<=Q$3),Q$3-$C5:$N5) -> 234247 | R5: =R$3*12-SUM($Q5:Q5)-SUMPRODUCT(--($C5:$N5<=R$3),R$3-$C5:$N5) -> 271317 | S5: =S$3*12-SUM($Q5:R5)-SUMPRODUCT(--($C5:$N5<=S$3),S$3-$C5:$N5) -> 1523637 | T5: =T$3*12-SUM($Q5:S5)-SUMPRODUCT(--($C5:$N5<=T$3),T$3-$C5:$N5) -> 248934 | U5: =U$3*12-SUM($Q5:T5)-SUMPRODUCT(--($C5:$N5<=U$3),U$3-$C5:$N5) -> 0 | W5: =IF(O5<250000,(250000-O5)*RD!$E$56,0) -> 0 | X5: =IF(O5<250000,(250000-O5)*RD!$J$56,0) -> 0 | Y5: =Q5*RD!$D$51+'Big Schedules'!R5*RD!$D$52+'Big Schedules'!S5*RD!$D$53+'Big Schedules'!T5*RD!$D$54+'Big Schedules'!U5*RD!$D$55+RD!$D$49*12+W5 -> 189032.1785 | Z5: =Q5*RD!$J$51+'Big Schedules'!R5*RD!$J$52+'Big Schedules'!S5*RD!$J$53+'Big Schedules'!T5*RD!$J$54+'Big Schedules'!U5*RD!$J$55+RD!$J$49*12+X5 -> 205066.5462 | AA5: =Z5/Y5-1 -> 0.08482348268
A6: 2 | C6: 20735 | D6: 20923 | E6: 19103 | F6: 20016 | G6: 20036 | H6: 19746 | I6: 18315 | J6: 18397 | K6: 20766 | L6: 18408 | M6: 22562 | N6: 20603 | O6: =SUM(C6:N6) -> 239610 | Q6: 233969 | R6: =R$3*12-SUM($Q6:Q6)-SUMPRODUCT(--($C6:$N6<=R$3),R$3-$C6:$N6) -> 5641 | S6: =S$3*12-SUM($Q6:R6)-SUMPRODUCT(--($C6:$N6<=S$3),S$3-$C6:$N6) -> 0 | T6: =T$3*12-SUM($Q6:S6)-SUMPRODUCT(--($C6:$N6<=T$3),T$3-$C6:$N6) -> 0 | U6: =U$3*12-SUM($Q6:T6)-SUMPRODUCT(--($C6:$N6<=U$3),U$3-$C6:$N6) -> 0 | W6: =IF(O6<250000,(250000-O6)*RD!$E$56,0) -> 925.2295 | X6: =IF(O6<250000,(250000-O6)*RD!$J$56,0) -> 970.0104 | Y6: =Q6*RD!$D$51+'Big Schedules'!R6*RD!$D$52+'Big Schedules'!S6*RD!$D$53+'Big Schedules'!T6*RD!$D$54+'Big Schedules'!U6*RD!$D$55+RD!$D$49*12+W6 -> 30683.13621 | Z6: =Q6*RD!$J$51+'Big Schedules'!R6*RD!$J$52+'Big Schedules'!S6*RD!$J$53+'Big Schedules'!T6*RD!$J$54+'Big Schedules'!U6*RD!$J$55+RD!$J$49*12+X6 -> 33549.36102 | AA6: =Z6/Y6-1 -> 0.09341368465
A7: 3 | C7: 54601 | D7: 38234 | E7: 38819 | F7: 43480 | G7: 42408 | H7: 38631 | I7: 35552 | J7: 39785 | K7: 39786 | L7: 42220 | M7: 39343 | N7: 50945 | O7: 503804 | Q7: 240000 | R7: =R$3*12-SUM($Q7:Q7)-SUMPRODUCT(--($C7:$N7<=R$3),R$3-$C7:$N7) -> 258258 | S7: =S$3*12-SUM($Q7:R7)-SUMPRODUCT(--($C7:$N7<=S$3),S$3-$C7:$N7) -> 5546 | T7: =T$3*12-SUM($Q7:S7)-SUMPRODUCT(--($C7:$N7<=T$3),T$3-$C7:$N7) -> 0 | U7: =U$3*12-SUM($Q7:T7)-SUMPRODUCT(--($C7:$N7<=U$3),U$3-$C7:$N7) -> 0 | W7: =IF(O7<250000,(250000-O7)*RD!$E$56,0) -> 0 | X7: =IF(O7<250000,(250000-O7)*RD!$J$56,0) -> 0 | Y7: =Q7*RD!$D$51+'Big Schedules'!R7*RD!$D$52+'Big Schedules'!S7*RD!$D$53+'Big Schedules'!T7*RD!$D$54+'Big Schedules'!U7*RD!$D$55+RD!$D$49*12+W7 -> 52551.56822 | Z7: =Q7*RD!$J$51+'Big Schedules'!R7*RD!$J$52+'Big Schedules'!S7*RD!$J$53+'Big Schedules'!T7*RD!$J$54+'Big Schedules'!U7*RD!$J$55+RD!$J$49*12+X7 -> 57263.48462 | AA7: 0.08966271721
A8: 4 | C8: 81743 | D8: 80049 | E8: 295451 | F8: 72830 | G8: 70934 | H8: 58560 | I8: 57728 | J8: 12876 | K8: 1 | L8: 57429 | M8: 46472 | N8: 52903 | O8: 886976 | Q8: 212877 | R8: =R$3*12-SUM($Q8:Q8)-SUMPRODUCT(--($C8:$N8<=R$3),R$3-$C8:$N8) -> 296472 | S8: =S$3*12-SUM($Q8:R8)-SUMPRODUCT(--($C8:$N8<=S$3),S$3-$C8:$N8) -> 377627 | T8: =T$3*12-SUM($Q8:S8)-SUMPRODUCT(--($C8:$N8<=T$3),T$3-$C8:$N8) -> 0 | U8: =U$3*12-SUM($Q8:T8)-SUMPRODUCT(--($C8:$N8<=U$3),U$3-$C8:$N8) -> 0 | W8: =IF(O8<250000,(250000-O8)*RD!$E$56,0) -> 0 | X8: =IF(O8<250000,(250000-O8)*RD!$J$56,0) -> 0 | Y8: =Q8*RD!$D$51+'Big Schedules'!R8*RD!$D$52+'Big Schedules'!S8*RD!$D$53+'Big Schedules'!T8*RD!$D$54+'Big Schedules'!U8*RD!$D$55+RD!$D$49*12+W8 -> 82143.3554 | Z8: =Q8*RD!$J$51+'Big Schedules'!R8*RD!$J$52+'Big Schedules'!S8*RD!$J$53+'Big Schedules'!T8*RD!$J$54+'Big Schedules'!U8*RD!$J$55+RD!$J$49*12+X8 -> 89310.35543 | AA8: 0.08724990591
A9: 5 | C9: 187858 | D9: 315909 | E9: 74565 | F9: 295108 | G9: 254949 | H9: 209473 | I9: 195550 | J9: 173782 | K9: 174513 | L9: 178584 | M9: 227343 | N9: 248944 | O9: 2536578 | Q9: 240000 | R9: =R$3*12-SUM($Q9:Q9)-SUMPRODUCT(--($C9:$N9<=R$3),R$3-$C9:$N9) -> 360000 | S9: =S$3*12-SUM($Q9:R9)-SUMPRODUCT(--($C9:$N9<=S$3),S$3-$C9:$N9) -> 1920669 | T9: =T$3*12-SUM($Q9:S9)-SUMPRODUCT(--($C9:$N9<=T$3),T$3-$C9:$N9) -> 15909 | U9: =U$3*12-SUM($Q9:T9)-SUMPRODUCT(--($C9:$N9<=U$3),U$3-$C9:$N9) -> 0 | W9: =IF(O9<250000,(250000-O9)*RD!$E$56,0) -> 0 | X9: =IF(O9<250000,(250000-O9)*RD!$J$56,0) -> 0 | Y9: =Q9*RD!$D$51+'Big Schedules'!R9*RD!$D$52+'Big Schedules'!S9*RD!$D$53+'Big Schedules'!T9*RD!$D$54+'Big Schedules'!U9*RD!$D$55+RD!$D$49*12+W9 -> 211348.1061 | Z9: =Q9*RD!$J$51+'Big Schedules'!R9*RD!$J$52+'Big Schedules'!S9*RD!$J$53+'Big Schedules'!T9*RD!$J$54+'Big Schedules'!U9*RD!$J$55+RD!$J$49*12+X9 -> 229234.8388 | AA9: 0.08463162042
A10: 6 | C10: 25890 | D10: 29852 | E10: 30418 | F10: 27395 | G10: 34025 | H10: 33509 | I10: 33213 | J10: 20214 | K10: 26937 | L10: 29499 | M10: 35889 | N10: 29919 | O10: 356760 | Q10: 240000 | R10: =R$3*12-SUM($Q10:Q10)-SUMPRODUCT(--($C10:$N10<=R$3),R$3-$C10:$N10) -> 116760 | S10: =S$3*12-SUM($Q10:R10)-SUMPRODUCT(--($C10:$N10<=S$3),S$3-$C10:$N10) -> 0 | T10: =T$3*12-SUM($Q10:S10)-SUMPRODUCT(--($C10:$N10<=T$3),T$3-$C10:$N10) -> 0 | U10: =U$3*12-SUM($Q10:T10)-SUMPRODUCT(--($C10:$N10<=U$3),U$3-$C10:$N10) -> 0 | W10: =IF(O10<250000,(250000-O10)*RD!$E$56,0) -> 0 | X10: =IF(O10<250000,(250000-O10)*RD!$J$56,0) -> 0 | Y10: =Q10*RD!$D$51+'Big Schedules'!R10*RD!$D$52+'Big Schedules'!S10*RD!$D$53+'Big Schedules'!T10*RD!$D$54+'Big Schedules'!U10*RD!$D$55+RD!$D$49*12+W10 -> 39921.8796 | Z10: =Q10*RD!$J$51+'Big Schedules'!R10*RD!$J$52+'Big Schedules'!S10*RD!$J$53+'Big Schedules'!T10*RD!$J$54+'Big Schedules'!U10*RD!$J$55+RD!$J$49*12+X10 -> 43586.3136 | AA10: 0.09179011702
A11: 7 | C11: 74026 | D11: 64095 | E11: 62508 | F11: 49499 | G11: 34727 | H11: 13478 | I11: 11610 | J11: 6509 | K11: 4925 | L11: 14482 | M11: 34543 | N11: 52756 | O11: 423158 | Q11: 191004 | R11: =R$3*12-SUM($Q11:Q11)-SUMPRODUCT(--($C11:$N11<=R$3),R$3-$C11:$N11) -> 178769 | S11: =S$3*12-SUM($Q11:R11)-SUMPRODUCT(--($C11:$N11<=S$3),S$3-$C11:$N11) -> 53385 | T11: =T$3*12-SUM($Q11:S11)-SUMPRODUCT(--($C11:$N11<=T$3),T$3-$C11:$N11) -> 0 | U11: =U$3*12-SUM($Q11:T11)-SUMPRODUCT(--($C11:$N11<=U$3),U$3-$C11:$N11) -> 0 | W11: =IF(O11<250000,(250000-O11)*RD!$E$56,0) -> 0 | X11: =IF(O11<250000,(250000-O11)*RD!$J$56,0) -> 0 | Y11: =Q11*RD!$D$51+'Big Schedules'!R11*RD!$D$52+'Big Schedules'!S11*RD!$D$53+'Big Schedules'!T11*RD!$D$54+'Big Schedules'!U11*RD!$D$55+RD!$D$49*12+W11 -> 44670.11299 | Z11: =Q11*RD!$J$51+'Big Schedules'!R11*RD!$J$52+'Big Schedules'!S11*RD!$J$53+'Big Schedules'!T11*RD!$J$54+'Big Schedules'!U11*RD!$J$55+RD!$J$49*12+X11 -> 48728.31675 | AA11: 0.09084829852
A12: 8 | C12: 59623 | D12: 52612 | E12: 48793 | F12: 38697 | G12: 47195 | H12: 10478 | I12: 7975 | J12: 3054 | K12: 4538 | L12: 9777 | M12: 26679 | N12: 40299 | O12: 349720 | Q12: 175822 | R12: =R$3*12-SUM($Q12:Q12)-SUMPRODUCT(--($C12:$N12<=R$3),R$3-$C12:$N12) -> 161663 | S12: =S$3*12-SUM($Q12:R12)-SUMPRODUCT(--($C12:$N12<=S$3),S$3-$C12:$N12) -> 12235 | T12: =T$3*12-SUM($Q12:S12)-SUMPRODUCT(--($C12:$N12<=T$3),T$3-$C12:$N12) -> 0 | U12: =U$3*12-SUM($Q12:T12)-SUMPRODUCT(--($C12:$N12<=U$3),U$3-$C12:$N12) -> 0 | W12: =IF(O12<250000,(250000-O12)*RD!$E$56,0) -> 0 | X12: =IF(O12<250000,(250000-O12)*RD!$J$56,0) -> 0 | Y12: =Q12*RD!$D$51+'Big Schedules'!R12*RD!$D$52+'Big Schedules'!S12*RD!$D$53+'Big Schedules'!T12*RD!$D$54+'Big Schedules'!U12*RD!$D$55+RD!$D$49*12+W12 -> 38525.26793 | Z12: =Q12*RD!$J$51+'Big Schedules'!R12*RD!$J$52+'Big Schedules'!S12*RD!$J$53+'Big Schedules'!T12*RD!$J$54+'Big Schedules'!U12*RD!$J$55+RD!$J$49*12+X12 -> 42073.68301 | AA12: 0.09210617526
A13: 9 | C13: 51551 | D13: 46018 | E13: 67808 | F13: 56634 | G13: 31853 | H13: 7077 | I13: 2848 | J13: 2564 | K13: 5446 | L13: 14802 | M13: 27901 | N13: 38402 | O13: 352904 | Q13: 172737 | R13: =R$3*12-SUM($Q13:Q13)-SUMPRODUCT(--($C13:$N13<=R$3),R$3-$C13:$N13) -> 154174 | S13: =S$3*12-SUM($Q13:R13)-SUMPRODUCT(--($C13:$N13<=S$3),S$3-$C13:$N13) -> 25993 | T13: =T$3*12-SUM($Q13:S13)-SUMPRODUCT(--($C13:$N13<=T$3),T$3-$C13:$N13) -> 0 | U13: =U$3*12-SUM($Q13:T13)-SUMPRODUCT(--($C13:$N13<=U$3),U$3-$C13:$N13) -> 0 | W13: =IF(O13<250000,(250000-O13)*RD!$E$56,0) -> 0 | X13: =IF(O13<250000,(250000-O13)*RD!$J$56,0) -> 0 | Y13: =Q13*RD!$D$51+'Big Schedules'!R13*RD!$D$52+'Big Schedules'!S13*RD!$D$53+'Big Schedules'!T13*RD!$D$54+'Big Schedules'!U13*RD!$D$55+RD!$D$49*12+W13 -> 38650.25166 | Z13: =Q13*RD!$J$51+'Big Schedules'!R13*RD!$J$52+'Big Schedules'!S13*RD!$J$53+'Big Schedules'!T13*RD!$J$54+'Big Schedules'!U13*RD!$J$55+RD!$J$49*12+X13 -> 42209.05609 | AA13: 0.09207713474
A14: 10 | C14: 155038 | D14: 122263 | E14: 130738 | F14: 115527 | G14: 100866 | H14: 86970 | I14: 81265 | J14: 79250 | K14: 79026 | L14: 83941 | M14: 99424 | N14: 121890 | O14: 1256198 | Q14: 240000 | R14: =R$3*12-SUM($Q14:Q14)-SUMPRODUCT(--($C14:$N14<=R$3),R$3-$C14:$N14) -> 360000 | S14: =S$3*12-SUM($Q14:R14)-SUMPRODUCT(--($C14:$N14<=S$3),S$3-$C14:$N14) -> 656198 | T14: =T$3*12-SUM($Q14:S14)-SUMPRODUCT(--($C14:$N14<=T$3),T$3-$C14:$N14) -> 0 | U14: =U$3*12-SUM($Q14:T14)-SUMPRODUCT(--($C14:$N14<=U$3),U$3-$C14:$N14) -> 0 | W14: =IF(O14<250000,(250000-O14)*RD!$E$56,0) -> 0 | X14: =IF(O14<250000,(250000-O14)*RD!$J$56,0) -> 0 | Y14: =Q14*RD!$D$51+'Big Schedules'!R14*RD!$D$52+'Big Schedules'!S14*RD!$D$53+'Big Schedules'!T14*RD!$D$54+'Big Schedules'!U14*RD!$D$55+RD!$D$49*12+W14 -> 111904.4325 | Z14: =Q14*RD!$J$51+'Big Schedules'!R14*RD!$J$52+'Big Schedules'!S14*RD!$J$53+'Big Schedules'!T14*RD!$J$54+'Big Schedules'!U14*RD!$J$55+RD!$J$49*12+X14 -> 121540.5096 | AA14: 0.08610987861
A15: 11 | C15: 54040 | D15: 45826 | E15: 47017 | F15: 43274 | G15: 35110 | H15: 18145 | I15: 15826 | J15: 11521 | K15: 12756 | L15: 19720 | M15: 32408 | N15: 45467 | O15: 381110 | Q15: 217968 | R15: =R$3*12-SUM($Q15:Q15)-SUMPRODUCT(--($C15:$N15<=R$3),R$3-$C15:$N15) -> 159102 | S15: =S$3*12-SUM($Q15:R15)-SUMPRODUCT(--($C15:$N15<=S$3),S$3-$C15:$N15) -> 4040 | T15: =T$3*12-SUM($Q15:S15)-SUMPRODUCT(--($C15:$N15<=T$3),T$3-$C15:$N15) -> 0 | U15: =U$3*12-SUM($Q15:T15)-SUMPRODUCT(--($C15:$N15<=U$3),U$3-$C15:$N15) -> 0 | W15: =IF(O15<250000,(250000-O15)*RD!$E$56,0) -> 0 | X15: =IF(O15<250000,(250000-O15)*RD!$J$56,0) -> 0 | Y15: =Q15*RD!$D$51+'Big Schedules'!R15*RD!$D$52+'Big Schedules'!S15*RD!$D$53+'Big Schedules'!T15*RD!$D$54+'Big Schedules'!U15*RD!$D$55+RD!$D$49*12+W15 -> 41751.35222 | Z15: =Q15*RD!$J$51+'Big Schedules'!R15*RD!$J$52+'Big Schedules'!S15*RD!$J$53+'Big Schedules'!T15*RD!$J$54+'Big Schedules'!U15*RD!$J$55+RD!$J$49*12+X15 -> 45567.45224 | AA15: 0.09140063296
A16: 12 | C16: 367242 | D16: 309912 | E16: 304591 | F16: 251712 | G16: 198683 | H16: 123392 | I16: 111823 | J16: 98040 | K16: 106498 | L16: 115130 | M16: 178837 | N16: 254657 | O16: 2420517 | Q16: 240000 | R16: =R$3*12-SUM($Q16:Q16)-SUMPRODUCT(--($C16:$N16<=R$3),R$3-$C16:$N16) -> 360000 | S16: =S$3*12-SUM($Q16:R16)-SUMPRODUCT(--($C16:$N16<=S$3),S$3-$C16:$N16) -> 1738772 | T16: =T$3*12-SUM($Q16:S16)-SUMPRODUCT(--($C16:$N16<=T$3),T$3-$C16:$N16) -> 81745 | U16: =U$3*12-SUM($Q16:T16)-SUMPRODUCT(--($C16:$N16<=U$3),U$3-$C16:$N16) -> 0 | W16: =IF(O16<250000,(250000-O16)*RD!$E$56,0) -> 0 | X16: =IF(O16<250000,(250000-O16)*RD!$J$56,0) -> 0 | Y16: =Q16*RD!$D$51+'Big Schedules'!R16*RD!$D$52+'Big Schedules'!S16*RD!$D$53+'Big Schedules'!T16*RD!$D$54+'Big Schedules'!U16*RD!$D$55+RD!$D$49*12+W16 -> 201940.3833 | Z16: =Q16*RD!$J$51+'Big Schedules'!R16*RD!$J$52+'Big Schedules'!S16*RD!$J$53+'Big Schedules'!T16*RD!$J$54+'Big Schedules'!U16*RD!$J$55+RD!$J$49*12+X16 -> 219046.2629 | AA16: 0.08470757219
A17: 13 | C17: 42207 | D17: 42601 | E17: 38142 | F17: 41796 | G17: 38846 | H17: 34020 | I17: 33750 | J17: 34378 | K17: 36391 | L17: 32085 | M17: 37404 | N17: 35238 | O17: 446858 | Q17: 240000 | R17: =R$3*12-SUM($Q17:Q17)-SUMPRODUCT(--($C17:$N17<=R$3),R$3-$C17:$N17) -> 206858 | S17: =S$3*12-SUM($Q17:R17)-SUMPRODUCT(--($C17:$N17<=S$3),S$3-$C17:$N17) -> 0 | T17: =T$3*12-SUM($Q17:S17)-SUMPRODUCT(--($C17:$N17<=T$3),T$3-$C17:$N17) -> 0 | U17: =U$3*12-SUM($Q17:T17)-SUMPRODUCT(--($C17:$N17<=U$3),U$3-$C17:$N17) -> 0 | W17: =IF(O17<250000,(250000-O17)*RD!$E$56,0) -> 0 | X17: =IF(O17<250000,(250000-O17)*RD!$J$56,0) -> 0 | Y17: =Q17*RD!$D$51+'Big Schedules'!R17*RD!$D$52+'Big Schedules'!S17*RD!$D$53+'Big Schedules'!T17*RD!$D$54+'Big Schedules'!U17*RD!$D$55+RD!$D$49*12+W17 -> 47689.22818 | Z17: =Q17*RD!$J$51+'Big Schedules'!R17*RD!$J$52+'Big Schedules'!S17*RD!$J$53+'Big Schedules'!T17*RD!$J$54+'Big Schedules'!U17*RD!$J$55+RD!$J$49*12+X17 -> 51997.86288 | AA17: 0.0903481743
A18: 14 | C18: 111973 | D18: 97947 | E18: 99930 | F18: 78657 | G18: 55276 | H18: 14701 | I18: 8600 | J18: 5252 | K18: 7147 | L18: 23904 | M18: 61739 | N18: 89537 | O18: 654663 | Q18: 195700 | R18: =R$3*12-SUM($Q18:Q18)-SUMPRODUCT(--($C18:$N18<=R$3),R$3-$C18:$N18) -> 213904 | S18: =S$3*12-SUM($Q18:R18)-SUMPRODUCT(--($C18:$N18<=S$3),S$3-$C18:$N18) -> 245059 | T18: =T$3*12-SUM($Q18:S18)-SUMPRODUCT(--($C18:$N18<=T$3),T$3-$C18:$N18) -> 0 | U18: =U$3*12-SUM($Q18:T18)-SUMPRODUCT(--($C18:$N18<=U$3),U$3-$C18:$N18) -> 0 | W18: =IF(O18<250000,(250000-O18)*RD!$E$56,0) -> 0 | X18: =IF(O18<250000,(250000-O18)*RD!$J$56,0) -> 0 | Y18: =Q18*RD!$D$51+'Big Schedules'!R18*RD!$D$52+'Big Schedules'!S18*RD!$D$53+'Big Schedules'!T18*RD!$D$54+'Big Schedules'!U18*RD!$D$55+RD!$D$49*12+W18 -> 63054.8805 | Z18: =Q18*RD!$J$51+'Big Schedules'!R18*RD!$J$52+'Big Schedules'!S18*RD!$J$53+'Big Schedules'!T18*RD!$J$54+'Big Schedules'!U18*RD!$J$55+RD!$J$49*12+X18 -> 68638.35265 | AA18: 0.08854940499
A19: 15 | C19: 807830 | D19: 675163 | E19: 661036 | F19: 636142 | G19: 652753 | H19: 655801 | I19: 617696 | J19: 668344 | K19: 676555 | L19: 557678 | M19: 705742 | N19: 584651 | O19: 7899391 | Q19: 240000 | R19: =R$3*12-SUM($Q19:Q19)-SUMPRODUCT(--($C19:$N19<=R$3),R$3-$C19:$N19) -> 360000 | S19: =S$3*12-SUM($Q19:R19)-SUMPRODUCT(--($C19:$N19<=S$3),S$3-$C19:$N19) -> 3000000 | T19: =T$3*12-SUM($Q19:S19)-SUMPRODUCT(--($C19:$N19<=T$3),T$3-$C19:$N19) -> 2400000 | U19: =U$3*12-SUM($Q19:T19)-SUMPRODUCT(--($C19:$N19<=U$3),U$3-$C19:$N19) -> 1899391 | W19: =IF(O19<250000,(250000-O19)*RD!$E$56,0) -> 0 | X19: =IF(O19<250000,(250000-O19)*RD!$J$56,0) -> 0 | Y19: =Q19*RD!$D$51+'Big Schedules'!R19*RD!$D$52+'Big Schedules'!S19*RD!$D$53+'Big Schedules'!T19*RD!$D$54+'Big Schedules'!U19*RD!$D$55+RD!$D$49*12+W19 -> 569271.6957 | Z19: =Q19*RD!$J$51+'Big Schedules'!R19*RD!$J$52+'Big Schedules'!S19*RD!$J$53+'Big Schedules'!T19*RD!$J$54+'Big Schedules'!U19*RD!$J$55+RD!$J$49*12+X19 -> 616838.5674 | AA19: 0.08355741562
A20: 16 | C20: 46254 | D20: 41983 | E20: 42213 | F20: 37378 | G20: 37182 | H20: 36955 | I20: 35584 | J20: 33437 | K20: 33335 | L20: 31314 | M20: 36615 | N20: 42481 | O20: =SUM(C20:N20) -> 454731 | Q20: 240000 | R20: =R$3*12-SUM($Q20:Q20)-SUMPRODUCT(--($C20:$N20<=R$3),R$3-$C20:$N20) -> 214731 | S20: =S$3*12-SUM($Q20:R20)-SUMPRODUCT(--($C20:$N20<=S$3),S$3-$C20:$N20) -> 0 | T20: =T$3*12-SUM($Q20:S20)-SUMPRODUCT(--($C20:$N20<=T$3),T$3-$C20:$N20) -> 0 | U20: =U$3*12-SUM($Q20:T20)-SUMPRODUCT(--($C20:$N20<=U$3),U$3-$C20:$N20) -> 0 | W20: =IF(O20<250000,(250000-O20)*RD!$E$56,0) -> 0 | X20: =IF(O20<250000,(250000-O20)*RD!$J$56,0) -> 0 | Y20: =Q20*RD!$D$51+'Big Schedules'!R20*RD!$D$52+'Big Schedules'!S20*RD!$D$53+'Big Schedules'!T20*RD!$D$54+'Big Schedules'!U20*RD!$D$55+RD!$D$49*12+W20 -> 48367.95951 | Z20: =Q20*RD!$J$51+'Big Schedules'!R20*RD!$J$52+'Big Schedules'!S20*RD!$J$53+'Big Schedules'!T20*RD!$J$54+'Big Schedules'!U20*RD!$J$55+RD!$J$49*12+X20 -> 52732.88616 | AA20: =Z20/Y20-1 -> 0.09024417598
A21: 17 | C21: 81649 | D21: 70225 | E21: 65964 | F21: 61934 | G21: 49857 | H21: 43563 | I21: 42033 | J21: 39518 | K21: 39386 | L21: 42238 | M21: 50682 | N21: 63188 | O21: 650237 | Q21: 240000 | R21: =R$3*12-SUM($Q21:Q21)-SUMPRODUCT(--($C21:$N21<=R$3),R$3-$C21:$N21) -> 316595 | S21: =S$3*12-SUM($Q21:R21)-SUMPRODUCT(--($C21:$N21<=S$3),S$3-$C21:$N21) -> 93642 | T21: =T$3*12-SUM($Q21:S21)-SUMPRODUCT(--($C21:$N21<=T$3),T$3-$C21:$N21) -> 0 | U21: =U$3*12-SUM($Q21:T21)-SUMPRODUCT(--($C21:$N21<=U$3),U$3-$C21:$N21) -> 0 | W21: =IF(O21<250000,(250000-O21)*RD!$E$56,0) -> 0 | X21: =IF(O21<250000,(250000-O21)*RD!$J$56,0) -> 0 | Y21: =Q21*RD!$D$51+'Big Schedules'!R21*RD!$D$52+'Big Schedules'!S21*RD!$D$53+'Big Schedules'!T21*RD!$D$54+'Big Schedules'!U21*RD!$D$55+RD!$D$49*12+W21 -> 64429.38403 | Z21: =Q21*RD!$J$51+'Big Schedules'!R21*RD!$J$52+'Big Schedules'!S21*RD!$J$53+'Big Schedules'!T21*RD!$J$54+'Big Schedules'!U21*RD!$J$55+RD!$J$49*12+X21 -> 70126.62918 | AA21: 0.08842619304
A22: 18 | C22: 65695 | D22: 72429 | E22: 69009 | F22: 66905 | G22: 58765 | H22: 46676 | I22: 45148 | J22: 39851 | K22: 44290 | L22: 45166 | M22: 61506 | N22: 66593 | O22: 682033 | Q22: 240000 | R22: =R$3*12-SUM($Q22:Q22)-SUMPRODUCT(--($C22:$N22<=R$3),R$3-$C22:$N22) -> 331131 | S22: =S$3*12-SUM($Q22:R22)-SUMPRODUCT(--($C22:$N22<=S$3),S$3-$C22:$N22) -> 110902 | T22: =T$3*12-SUM($Q22:S22)-SUMPRODUCT(--($C22:$N22<=T$3),T$3-$C22:$N22) -> 0 | U22: =U$3*12-SUM($Q22:T22)-SUMPRODUCT(--($C22:$N22<=U$3),U$3-$C22:$N22) -> 0 | W22: =IF(O22<250000,(250000-O22)*RD!$E$56,0) -> 0 | X22: =IF(O22<250000,(250000-O22)*RD!$J$56,0) -> 0 | Y22: =Q22*RD!$D$51+'Big Schedules'!R22*RD!$D$52+'Big Schedules'!S22*RD!$D$53+'Big Schedules'!T22*RD!$D$54+'Big Schedules'!U22*RD!$D$55+RD!$D$49*12+W22 -> 67024.32499 | Z22: =Q22*RD!$J$51+'Big Schedules'!R22*RD!$J$52+'Big Schedules'!S22*RD!$J$53+'Big Schedules'!T22*RD!$J$54+'Big Schedules'!U22*RD!$J$55+RD!$J$49*12+X22 -> 72936.82954 | AA22: 0.08821430952
A23: 19 | C23: 0 | D23: 0 | E23: 0 | F23: 0 | G23: 13654 | H23: 31739 | I23: 24516 | J23: 35436 | K23: 51233 | L23: 59820 | M23: 72174 | N23: 33953 | O23: 322525 | Q23: 153654 | R23: =R$3*12-SUM($Q23:Q23)-SUMPRODUCT(--($C23:$N23<=R$3),R$3-$C23:$N23) -> 135644 | S23: =S$3*12-SUM($Q23:R23)-SUMPRODUCT(--($C23:$N23<=S$3),S$3-$C23:$N23) -> 33227 | T23: =T$3*12-SUM($Q23:S23)-SUMPRODUCT(--($C23:$N23<=T$3),T$3-$C23:$N23) -> 0 | U23: =U$3*12-SUM($Q23:T23)-SUMPRODUCT(--($C23:$N23<=U$3),U$3-$C23:$N23) -> 0 | W23: =IF(O23<250000,(250000-O23)*RD!$E$56,0) -> 0 | X23: =IF(O23<250000,(250000-O23)*RD!$J$56,0) -> 0 | Y23: =Q23*RD!$D$51+'Big Schedules'!R23*RD!$D$52+'Big Schedules'!S23*RD!$D$53+'Big Schedules'!T23*RD!$D$54+'Big Schedules'!U23*RD!$D$55+RD!$D$49*12+W23 -> 35766.00882 | Z23: =Q23*RD!$J$51+'Big Schedules'!R23*RD!$J$52+'Big Schedules'!S23*RD!$J$53+'Big Schedules'!T23*RD!$J$54+'Big Schedules'!U23*RD!$J$55+RD!$J$49*12+X23 -> 39085.55573 | AA23: 0.09281289748
A24: 20 | C24: 10 | D24: 9 | E24: 9 | F24: 8 | G24: 22701 | H24: 70591 | I24: 108708 | J24: 41231 | K24: 43416 | L24: 19233 | M24: 47674 | N24: 6544 | O24: 360134 | Q24: 145813 | R24: =R$3*12-SUM($Q24:Q24)-SUMPRODUCT(--($C24:$N24<=R$3),R$3-$C24:$N24) -> 135022 | S24: =S$3*12-SUM($Q24:R24)-SUMPRODUCT(--($C24:$N24<=S$3),S$3-$C24:$N24) -> 79299 | T24: =T$3*12-SUM($Q24:S24)-SUMPRODUCT(--($C24:$N24<=T$3),T$3-$C24:$N24) -> 0 | U24: =U$3*12-SUM($Q24:T24)-SUMPRODUCT(--($C24:$N24<=U$3),U$3-$C24:$N24) -> 0 | W24: =IF(O24<250000,(250000-O24)*RD!$E$56,0) -> 0 | X24: =IF(O24<250000,(250000-O24)*RD!$J$56,0) -> 0 | Y24: =Q24*RD!$D$51+'Big Schedules'!R24*RD!$D$52+'Big Schedules'!S24*RD!$D$53+'Big Schedules'!T24*RD!$D$54+'Big Schedules'!U24*RD!$D$55+RD!$D$49*12+W24 -> 38534.23058 | Z24: =Q24*RD!$J$51+'Big Schedules'!R24*RD!$J$52+'Big Schedules'!S24*RD!$J$53+'Big Schedules'!T24*RD!$J$54+'Big Schedules'!U24*RD!$J$55+RD!$J$49*12+X24 -> 42083.45295 | AA24: 0.0921057023
A25: 21 | C25: 0 | D25: 0 | E25: 0 | F25: 0 | G25: 0 | H25: 0 | I25: 42351 | J25: 0 | K25: 0 | L25: 34918 | M25: 0 | N25: 0 | O25: 77269 | Q25: 40000 | R25: =R$3*12-SUM($Q25:Q25)-SUMPRODUCT(--($C25:$N25<=R$3),R$3-$C25:$N25) -> 37269 | S25: =S$3*12-SUM($Q25:R25)-SUMPRODUCT(--($C25:$N25<=S$3),S$3-$C25:$N25) -> 0 | T25: =T$3*12-SUM($Q25:S25)-SUMPRODUCT(--($C25:$N25<=T$3),T$3-$C25:$N25) -> 0 | U25: =U$3*12-SUM($Q25:T25)-SUMPRODUCT(--($C25:$N25<=U$3),U$3-$C25:$N25) -> 0 | W25: =IF(O25<250000,(250000-O25)*RD!$E$56,0) -> 15381.69555 | X25: =IF(O25<250000,(250000-O25)*RD!$J$56,0) -> 16126.16616 | Y25: =Q25*RD!$D$51+'Big Schedules'!R25*RD!$D$52+'Big Schedules'!S25*RD!$D$53+'Big Schedules'!T25*RD!$D$54+'Big Schedules'!U25*RD!$D$55+RD!$D$49*12+W25 -> 29070.65604 | Z25: =Q25*RD!$J$51+'Big Schedules'!R25*RD!$J$52+'Big Schedules'!S25*RD!$J$53+'Big Schedules'!T25*RD!$J$54+'Big Schedules'!U25*RD!$J$55+RD!$J$49*12+X25 -> 31303.2 | AA25: 0.07679716471
A26: 22 | C26: 28868 | D26: 28455 | E26: 25144 | F26: 25018 | G26: 23445 | H26: 21107 | I26: 17889 | J26: 18960 | K26: 19584 | L26: 21198 | M26: 25600 | N26: 27547 | O26: =SUM(C26:N26) -> 282815 | Q26: 236433 | R26: =R$3*12-SUM($Q26:Q26)-SUMPRODUCT(--($C26:$N26<=R$3),R$3-$C26:$N26) -> 46382 | S26: =S$3*12-SUM($Q26:R26)-SUMPRODUCT(--($C26:$N26<=S$3),S$3-$C26:$N26) -> 0 | T26: =T$3*12-SUM($Q26:S26)-SUMPRODUCT(--($C26:$N26<=T$3),T$3-$C26:$N26) -> 0 | U26: =U$3*12-SUM($Q26:T26)-SUMPRODUCT(--($C26:$N26<=U$3),U$3-$C26:$N26) -> 0 | W26: =IF(O26<250000,(250000-O26)*RD!$E$56,0) -> 0 | X26: =IF(O26<250000,(250000-O26)*RD!$J$56,0) -> 0 | Y26: =Q26*RD!$D$51+'Big Schedules'!R26*RD!$D$52+'Big Schedules'!S26*RD!$D$53+'Big Schedules'!T26*RD!$D$54+'Big Schedules'!U26*RD!$D$55+RD!$D$49*12+W26 -> 33508.94992 | Z26: =Q26*RD!$J$51+'Big Schedules'!R26*RD!$J$52+'Big Schedules'!S26*RD!$J$53+'Big Schedules'!T26*RD!$J$54+'Big Schedules'!U26*RD!$J$55+RD!$J$49*12+X26 -> 36641.50254 | AA26: =Z26/Y26-1 -> 0.09348405806
A27: 23 | C27: 31278 | D27: 31635 | E27: 26464 | F27: 30730 | G27: 26552 | H27: 26212 | I27: 20305 | J27: 21439 | K27: 23178 | L27: 23432 | M27: 25946 | N27: 26251 | O27: 313422 | Q27: 240000 | R27: =R$3*12-SUM($Q27:Q27)-SUMPRODUCT(--($C27:$N27<=R$3),R$3-$C27:$N27) -> 73422 | S27: =S$3*12-SUM($Q27:R27)-SUMPRODUCT(--($C27:$N27<=S$3),S$3-$C27:$N27) -> 0 | W27: =IF(O27<250000,(250000-O27)*RD!$E$56,0) -> 0 | X27: =IF(O27<250000,(250000-O27)*RD!$J$56,0) -> 0 | Y27: =Q27*RD!$D$51+'Big Schedules'!R27*RD!$D$52+'Big Schedules'!S27*RD!$D$53+'Big Schedules'!T27*RD!$D$54+'Big Schedules'!U27*RD!$D$55+RD!$D$49*12+W27 -> 36185.71062 | Z27: =Q27*RD!$J$51+'Big Schedules'!R27*RD!$J$52+'Big Schedules'!S27*RD!$J$53+'Big Schedules'!T27*RD!$J$54+'Big Schedules'!U27*RD!$J$55+RD!$J$49*12+X27 -> 39540.27792 | AA27: 0.0927041985
A28: 24 | C28: 59709 | D28: 53492 | E28: 52311 | F28: 49051 | G28: 41604 | H28: 30067 | I28: 27983 | J28: 26574 | K28: 25781 | L28: 29674 | M28: 41931 | N28: 48898 | O28: 487075 | Q28: 240000 | R28: =R$3*12-SUM($Q28:Q28)-SUMPRODUCT(--($C28:$N28<=R$3),R$3-$C28:$N28) -> 231563 | S28: =S$3*12-SUM($Q28:R28)-SUMPRODUCT(--($C28:$N28<=S$3),S$3-$C28:$N28) -> 15512 | W28: =IF(O28<250000,(250000-O28)*RD!$E$56,0) -> 0 | X28: =IF(O28<250000,(250000-O28)*RD!$J$56,0) -> 0 | Y28: =Q28*RD!$D$51+'Big Schedules'!R28*RD!$D$52+'Big Schedules'!S28*RD!$D$53+'Big Schedules'!T28*RD!$D$54+'Big Schedules'!U28*RD!$D$55+RD!$D$49*12+W28 -> 51024.94911 | Z28: =Q28*RD!$J$51+'Big Schedules'!R28*RD!$J$52+'Big Schedules'!S28*RD!$J$53+'Big Schedules'!T28*RD!$J$54+'Big Schedules'!U28*RD!$J$55+RD!$J$49*12+X28 -> 55610.27696 | AA28: 0.0898644277
A29: 25 | C29: 85078 | D29: 61661 | E29: 52373 | F29: 30857 | G29: 21199 | H29: 2580 | I29: 18 | J29: 13 | K29: 0 | L29: 9 | M29: 9304 | N29: 59982 | O29: 323074 | Q29: 131924 | R29: =R$3*12-SUM($Q29:Q29)-SUMPRODUCT(--($C29:$N29<=R$3),R$3-$C29:$N29) -> 132056 | S29: =S$3*12-SUM($Q29:R29)-SUMPRODUCT(--($C29:$N29<=S$3),S$3-$C29:$N29) -> 59094 | W29: =IF(O29<250000,(250000-O29)*RD!$E$56,0) -> 0 | X29: =IF(O29<250000,(250000-O29)*RD!$J$56,0) -> 0 | Y29: =Q29*RD!$D$51+'Big Schedules'!R29*RD!$D$52+'Big Schedules'!S29*RD!$D$53+'Big Schedules'!T29*RD!$D$54+'Big Schedules'!U29*RD!$D$55+RD!$D$49*12+W29 -> 35361.95092 | Z29: =Q29*RD!$J$51+'Big Schedules'!R29*RD!$J$52+'Big Schedules'!S29*RD!$J$53+'Big Schedules'!T29*RD!$J$54+'Big Schedules'!U29*RD!$J$55+RD!$J$49*12+X29 -> 38647.97658 | AA29: 0.09292546295
A30: 26 | C30: 118668 | D30: 99286 | E30: 96607 | F30: 108132 | G30: 119798 | H30: 116471 | I30: 96310 | J30: 100563 | K30: 117072 | L30: 100107 | M30: 111292 | N30: 100581 | O30: 1284887 | Q30: 240000 | R30: =R$3*12-SUM($Q30:Q30)-SUMPRODUCT(--($C30:$N30<=R$3),R$3-$C30:$N30) -> 360000 | S30: =S$3*12-SUM($Q30:R30)-SUMPRODUCT(--($C30:$N30<=S$3),S$3-$C30:$N30) -> 684887 | W30: =IF(O30<250000,(250000-O30)*RD!$E$56,0) -> 0 | X30: =IF(O30<250000,(250000-O30)*RD!$J$56,0) -> 0 | Y30: =Q30*RD!$D$51+'Big Schedules'!R30*RD!$D$52+'Big Schedules'!S30*RD!$D$53+'Big Schedules'!T30*RD!$D$54+'Big Schedules'!U30*RD!$D$55+RD!$D$49*12+W30 -> 114134.7154 | Z30: =Q30*RD!$J$51+'Big Schedules'!R30*RD!$J$52+'Big Schedules'!S30*RD!$J$53+'Big Schedules'!T30*RD!$J$54+'Big Schedules'!U30*RD!$J$55+RD!$J$49*12+X30 -> 123955.8365 | AA30: 0.08604850082
A31: 27 | C31: =24623+65807 -> 90430 | D31: =24358+59468 -> 83826 | E31: =22818+62767 -> 85585 | F31: =23314+53136 -> 76450 | G31: =21904+34989 -> 56893 | H31: =21379+14574 -> 35953 | I31: =21194+12982 -> 34176 | J31: =22435+10886 -> 33321 | K31: =22330+11246 -> 33576 | L31: 43798 | M31: 58978 | N31: 84791 | O31: =SUM(C31:N31) -> 717777 | Q31: 240000 | R31: =R$3*12-SUM($Q31:Q31)-SUMPRODUCT(--($C31:$N31<=R$3),R$3-$C31:$N31) -> 290824 | S31: =S$3*12-SUM($Q31:R31)-SUMPRODUCT(--($C31:$N31<=S$3),S$3-$C31:$N31) -> 186953 | W31: =IF(O31<250000,(250000-O31)*RD!$E$56,0) -> 0 | X31: =IF(O31<250000,(250000-O31)*RD!$J$56,0) -> 0 | Y31: =Q31*RD!$D$51+'Big Schedules'!R31*RD!$D$52+'Big Schedules'!S31*RD!$D$53+'Big Schedules'!T31*RD!$D$54+'Big Schedules'!U31*RD!$D$55+RD!$D$49*12+W31 -> 69461.66326 | Z31: =Q31*RD!$J$51+'Big Schedules'!R31*RD!$J$52+'Big Schedules'!S31*RD!$J$53+'Big Schedules'!T31*RD!$J$54+'Big Schedules'!U31*RD!$J$55+RD!$J$49*12+X31 -> 75576.50171 | AA31: =Z31/Y31-1 -> 0.0880318461
A32: 28 | C32: 15540 | D32: 16383 | E32: 13817 | F32: 14529 | G32: 12534 | H32: 11480 | I32: 10030 | J32: 11037 | K32: 11109 | L32: 11131 | M32: 13098 | N32: 14070 | O32: 154758 | Q32: 154758 | R32: =R$3*12-SUM($Q32:Q32)-SUMPRODUCT(--($C32:$N32<=R$3),R$3-$C32:$N32) -> 0 | S32: =S$3*12-SUM($Q32:R32)-SUMPRODUCT(--($C32:$N32<=S$3),S$3-$C32:$N32) -> 0 | W32: =IF(O32<250000,(250000-O32)*RD!$E$56,0) -> 8481.3001 | X32: =IF(O32<250000,(250000-O32)*RD!$J$56,0) -> 8891.79312 | Y32: =Q32*RD!$D$51+'Big Schedules'!R32*RD!$D$52+'Big Schedules'!S32*RD!$D$53+'Big Schedules'!T32*RD!$D$54+'Big Schedules'!U32*RD!$D$55+RD!$D$49*12+W32 -> 30077.3503 | Z32: =Q32*RD!$J$51+'Big Schedules'!R32*RD!$J$52+'Big Schedules'!S32*RD!$J$53+'Big Schedules'!T32*RD!$J$54+'Big Schedules'!U32*RD!$J$55+RD!$J$49*12+X32 -> 32632.09764 | AA32: 0.08493924214
A33: 29 | C33: 67790 | D33: 65192 | E33: 60050 | F33: 66297 | G33: 60171 | H33: 59349 | I33: 54925 | J33: 54459 | K33: 59638 | L33: 57257 | M33: 62663 | N33: 51122 | O33: 718913 | Q33: 240000 | R33: =R$3*12-SUM($Q33:Q33)-SUMPRODUCT(--($C33:$N33<=R$3),R$3-$C33:$N33) -> 360000 | S33: =S$3*12-SUM($Q33:R33)-SUMPRODUCT(--($C33:$N33<=S$3),S$3-$C33:$N33) -> 118913 | T33: =T$3*12-SUM($Q33:S33)-SUMPRODUCT(--($C33:$N33<=T$3),T$3-$C33:$N33) -> 0 | U33: =U$3*12-SUM($Q33:T33)-SUMPRODUCT(--($C33:$N33<=U$3),U$3-$C33:$N33) -> 0 | W33: =IF(O33<250000,(250000-O33)*RD!$E$56,0) -> 0 | X33: =IF(O33<250000,(250000-O33)*RD!$J$56,0) -> 0 | Y33: =Q33*RD!$D$51+'Big Schedules'!R33*RD!$D$52+'Big Schedules'!S33*RD!$D$53+'Big Schedules'!T33*RD!$D$54+'Big Schedules'!U33*RD!$D$55+RD!$D$49*12+W33 -> 70135.89662 | Z33: =Q33*RD!$J$51+'Big Schedules'!R33*RD!$J$52+'Big Schedules'!S33*RD!$J$53+'Big Schedules'!T33*RD!$J$54+'Big Schedules'!U33*RD!$J$55+RD!$J$49*12+X33 -> 76306.48547 | AA33: 0.08798046574
A34: 30 | C34: 287849 | D34: 244777 | E34: 244177 | F34: 222571 | G34: 183293 | H34: 144374 | I34: 142559 | J34: 136064 | K34: 132251 | L34: 147275 | M34: 182065 | N34: 232024 | O34: 2299279 | Q34: 240000 | R34: =R$3*12-SUM($Q34:Q34)-SUMPRODUCT(--($C34:$N34<=R$3),R$3-$C34:$N34) -> 360000 | S34: =S$3*12-SUM($Q34:R34)-SUMPRODUCT(--($C34:$N34<=S$3),S$3-$C34:$N34) -> 1699279 | T34: =T$3*12-SUM($Q34:S34)-SUMPRODUCT(--($C34:$N34<=T$3),T$3-$C34:$N34) -> 0 | U34: =U$3*12-SUM($Q34:T34)-SUMPRODUCT(--($C34:$N34<=U$3),U$3-$C34:$N34) -> 0 | W34: =IF(O34<250000,(250000-O34)*RD!$E$56,0) -> 0 | X34: =IF(O34<250000,(250000-O34)*RD!$J$56,0) -> 0 | Y34: =Q34*RD!$D$51+'Big Schedules'!R34*RD!$D$52+'Big Schedules'!S34*RD!$D$53+'Big Schedules'!T34*RD!$D$54+'Big Schedules'!U34*RD!$D$55+RD!$D$49*12+W34 -> 192993.5495 | Z34: =Q34*RD!$J$51+'Big Schedules'!R34*RD!$J$52+'Big Schedules'!S34*RD!$J$53+'Big Schedules'!T34*RD!$J$54+'Big Schedules'!U34*RD!$J$55+RD!$J$49*12+X34 -> 209357.499 | AA34: 0.08479013727
A35: 31 | C35: 0 | D35: 0 | E35: 0 | F35: 3360 | G35: 17474 | H35: 26379 | I35: 43698 | J35: 23860 | K35: 23696 | L35: 41230 | M35: 18934 | N35: 9297 | O35: 207928 | Q35: 149065 | R35: =R$3*12-SUM($Q35:Q35)-SUMPRODUCT(--($C35:$N35<=R$3),R$3-$C35:$N35) -> 58863 | S35: =S$3*12-SUM($Q35:R35)-SUMPRODUCT(--($C35:$N35<=S$3),S$3-$C35:$N35) -> 0 | T35: =T$3*12-SUM($Q35:S35)-SUMPRODUCT(--($C35:$N35<=T$3),T$3-$C35:$N35) -> 0 | U35: =U$3*12-SUM($Q35:T35)-SUMPRODUCT(--($C35:$N35<=U$3),U$3-$C35:$N35) -> 0 | W35: =IF(O35<250000,(250000-O35)*RD!$E$56,0) -> 3746.5116 | X35: =IF(O35<250000,(250000-O35)*RD!$J$56,0) -> 3927.84192 | Y35: =Q35*RD!$D$51+'Big Schedules'!R35*RD!$D$52+'Big Schedules'!S35*RD!$D$53+'Big Schedules'!T35*RD!$D$54+'Big Schedules'!U35*RD!$D$55+RD!$D$49*12+W35 -> 29865.48933 | Z35: =Q35*RD!$J$51+'Big Schedules'!R35*RD!$J$52+'Big Schedules'!S35*RD!$J$53+'Big Schedules'!T35*RD!$J$54+'Big Schedules'!U35*RD!$J$55+RD!$J$49*12+X35 -> 32566.1727 | AA35: 0.09042823106
A36: 32 | C36: 42343 | D36: 43417 | E36: 38087 | F36: 45516 | G36: 41584 | H36: 36688 | I36: 33290 | J36: 33813 | K36: 36429 | L36: 36676 | M36: 43634 | N36: 23830 | O36: 455307 | Q36: 240000 | R36: =R$3*12-SUM($Q36:Q36)-SUMPRODUCT(--($C36:$N36<=R$3),R$3-$C36:$N36) -> 215307 | S36: =S$3*12-SUM($Q36:R36)-SUMPRODUCT(--($C36:$N36<=S$3),S$3-$C36:$N36) -> 0 | T36: =T$3*12-SUM($Q36:S36)-SUMPRODUCT(--($C36:$N36<=T$3),T$3-$C36:$N36) -> 0 | U36: =U$3*12-SUM($Q36:T36)-SUMPRODUCT(--($C36:$N36<=U$3),U$3-$C36:$N36) -> 0 | W36: =IF(O36<250000,(250000-O36)*RD!$E$56,0) -> 0 | X36: =IF(O36<250000,(250000-O36)*RD!$J$56,0) -> 0 | Y36: =Q36*RD!$D$51+'Big Schedules'!R36*RD!$D$52+'Big Schedules'!S36*RD!$D$53+'Big Schedules'!T36*RD!$D$54+'Big Schedules'!U36*RD!$D$55+RD!$D$49*12+W36 -> 48417.61647 | Z36: =Q36*RD!$J$51+'Big Schedules'!R36*RD!$J$52+'Big Schedules'!S36*RD!$J$53+'Big Schedules'!T36*RD!$J$54+'Big Schedules'!U36*RD!$J$55+RD!$J$49*12+X36 -> 52786.66152 | AA36: 0.09023668178
A37: 33 | C37: 122651 | D37: 134343 | E37: 131414 | F37: 145440 | G37: 141771 | H37: 144651 | I37: 137666 | J37: 137490 | K37: 136687 | L37: 120335 | M37: 135021 | N37: 64922 | O37: 1552391 | Q37: 240000 | R37: =R$3*12-SUM($Q37:Q37)-SUMPRODUCT(--($C37:$N37<=R$3),R$3-$C37:$N37) -> 360000 | S37: =S$3*12-SUM($Q37:R37)-SUMPRODUCT(--($C37:$N37<=S$3),S$3-$C37:$N37) -> 952391 | T37: =T$3*12-SUM($Q37:S37)-SUMPRODUCT(--($C37:$N37<=T$3),T$3-$C37:$N37) -> 0 | U37: =U$3*12-SUM($Q37:T37)-SUMPRODUCT(--($C37:$N37<=U$3),U$3-$C37:$N37) -> 0 | W37: =IF(O37<250000,(250000-O37)*RD!$E$56,0) -> 0 | X37: =IF(O37<250000,(250000-O37)*RD!$J$56,0) -> 0 | Y37: =Q37*RD!$D$51+'Big Schedules'!R37*RD!$D$52+'Big Schedules'!S37*RD!$D$53+'Big Schedules'!T37*RD!$D$54+'Big Schedules'!U37*RD!$D$55+RD!$D$49*12+W37 -> 134930.4763 | Z37: =Q37*RD!$J$51+'Big Schedules'!R37*RD!$J$52+'Big Schedules'!S37*RD!$J$53+'Big Schedules'!T37*RD!$J$54+'Big Schedules'!U37*RD!$J$55+RD!$J$49*12+X37 -> 146476.9983 | AA37: 0.08557386191
A38: 34 | C38: 74688 | D38: 57156 | E38: 59600 | F38: 45227 | G38: 32266 | H38: 15687 | I38: 15282 | J38: 10608 | K38: 11408 | L38: 17361 | M38: 34171 | N38: 55012 | O38: =SUM(C38:N38) -> 428466 | Q38: 210346 | R38: =R$3*12-SUM($Q38:Q38)-SUMPRODUCT(--($C38:$N38<=R$3),R$3-$C38:$N38) -> 171664 | S38: =S$3*12-SUM($Q38:R38)-SUMPRODUCT(--($C38:$N38<=S$3),S$3-$C38:$N38) -> 46456 | T38: =T$3*12-SUM($Q38:S38)-SUMPRODUCT(--($C38:$N38<=T$3),T$3-$C38:$N38) -> 0 | U38: =U$3*12-SUM($Q38:T38)-SUMPRODUCT(--($C38:$N38<=U$3),U$3-$C38:$N38) -> 0 | W38: =IF(O38<250000,(250000-O38)*RD!$E$56,0) -> 0 | X38: =IF(O38<250000,(250000-O38)*RD!$J$56,0) -> 0 | Y38: =Q38*RD!$D$51+'Big Schedules'!R38*RD!$D$52+'Big Schedules'!S38*RD!$D$53+'Big Schedules'!T38*RD!$D$54+'Big Schedules'!U38*RD!$D$55+RD!$D$49*12+W38 -> 45393.17028 | Z38: =Q38*RD!$J$51+'Big Schedules'!R38*RD!$J$52+'Big Schedules'!S38*RD!$J$53+'Big Schedules'!T38*RD!$J$54+'Big Schedules'!U38*RD!$J$55+RD!$J$49*12+X38 -> 49511.39092 | AA38: =Z38/Y38-1 -> 0.09072335364
A39: 35 | C39: 40172 | D39: 34573 | E39: 34920 | F39: 31919 | G39: 26433 | H39: 18572 | I39: 18672 | J39: 16744 | K39: 17202 | L39: 21385 | M39: 29893 | N39: 35260 | O39: 325745 | Q39: 231190 | R39: =R$3*12-SUM($Q39:Q39)-SUMPRODUCT(--($C39:$N39<=R$3),R$3-$C39:$N39) -> 94555 | S39: =S$3*12-SUM($Q39:R39)-SUMPRODUCT(--($C39:$N39<=S$3),S$3-$C39:$N39) -> 0 | T39: =T$3*12-SUM($Q39:S39)-SUMPRODUCT(--($C39:$N39<=T$3),T$3-$C39:$N39) -> 0 | U39: =U$3*12-SUM($Q39:T39)-SUMPRODUCT(--($C39:$N39<=U$3),U$3-$C39:$N39) -> 0 | W39: =IF(O39<250000,(250000-O39)*RD!$E$56,0) -> 0 | X39: =IF(O39<250000,(250000-O39)*RD!$J$56,0) -> 0 | Y39: =Q39*RD!$D$51+'Big Schedules'!R39*RD!$D$52+'Big Schedules'!S39*RD!$D$53+'Big Schedules'!T39*RD!$D$54+'Big Schedules'!U39*RD!$D$55+RD!$D$49*12+W39 -> 37153.89755 | Z39: =Q39*RD!$J$51+'Big Schedules'!R39*RD!$J$52+'Big Schedules'!S39*RD!$J$53+'Big Schedules'!T39*RD!$J$54+'Big Schedules'!U39*RD!$J$55+RD!$J$49*12+X39 -> 40588.7334 | AA39: 0.09244887015
A40: 36 | C40: 68000 | D40: 59107 | E40: 55442 | F40: 54416 | G40: 46482 | H40: 40362 | I40: 39883 | J40: 38970 | K40: 42582 | L40: 44942 | M40: 56784 | N40: 59064 | O40: 606034 | Q40: 240000 | R40: =R$3*12-SUM($Q40:Q40)-SUMPRODUCT(--($C40:$N40<=R$3),R$3-$C40:$N40) -> 313221 | S40: =S$3*12-SUM($Q40:R40)-SUMPRODUCT(--($C40:$N40<=S$3),S$3-$C40:$N40) -> 52813 | T40: =T$3*12-SUM($Q40:S40)-SUMPRODUCT(--($C40:$N40<=T$3),T$3-$C40:$N40) -> 0 | U40: =U$3*12-SUM($Q40:T40)-SUMPRODUCT(--($C40:$N40<=U$3),U$3-$C40:$N40) -> 0 | W40: =IF(O40<250000,(250000-O40)*RD!$E$56,0) -> 0 | X40: =IF(O40<250000,(250000-O40)*RD!$J$56,0) -> 0 | Y40: =Q40*RD!$D$51+'Big Schedules'!R40*RD!$D$52+'Big Schedules'!S40*RD!$D$53+'Big Schedules'!T40*RD!$D$54+'Big Schedules'!U40*RD!$D$55+RD!$D$49*12+W40 -> 60964.46503 | Z40: =Q40*RD!$J$51+'Big Schedules'!R40*RD!$J$52+'Big Schedules'!S40*RD!$J$53+'Big Schedules'!T40*RD!$J$54+'Big Schedules'!U40*RD!$J$55+RD!$J$49*12+X40 -> 66374.23903 | AA40: 0.08873651228
A41: 37 | C41: 37843 | D41: 41129 | E41: 37385 | F41: 43995 | G41: 46157 | H41: 50833 | I41: 50980 | J41: 49152 | K41: 51464 | L41: 44118 | M41: 50191 | N41: 48052 | O41: 551299 | Q41: 240000 | R41: =R$3*12-SUM($Q41:Q41)-SUMPRODUCT(--($C41:$N41<=R$3),R$3-$C41:$N41) -> 307831 | S41: =S$3*12-SUM($Q41:R41)-SUMPRODUCT(--($C41:$N41<=S$3),S$3-$C41:$N41) -> 3468 | T41: =T$3*12-SUM($Q41:S41)-SUMPRODUCT(--($C41:$N41<=T$3),T$3-$C41:$N41) -> 0 | U41: =U$3*12-SUM($Q41:T41)-SUMPRODUCT(--($C41:$N41<=U$3),U$3-$C41:$N41) -> 0 | W41: =IF(O41<250000,(250000-O41)*RD!$E$56,0) -> 0 | X41: =IF(O41<250000,(250000-O41)*RD!$J$56,0) -> 0 | Y41: =Q41*RD!$D$51+'Big Schedules'!R41*RD!$D$52+'Big Schedules'!S41*RD!$D$53+'Big Schedules'!T41*RD!$D$54+'Big Schedules'!U41*RD!$D$55+RD!$D$49*12+W41 -> 56663.71283 | Z41: =Q41*RD!$J$51+'Big Schedules'!R41*RD!$J$52+'Big Schedules'!S41*RD!$J$53+'Big Schedules'!T41*RD!$J$54+'Big Schedules'!U41*RD!$J$55+RD!$J$49*12+X41 -> 61716.67308 | AA41: 0.08917453512
A42: 38 | C42: 35912 | D42: 38156 | E42: 17670 | F42: 91185 | G42: 78420 | H42: 78423 | I42: 72714 | J42: 72848 | K42: 76572 | L42: 66694 | M42: 12102 | N42: 65796 | O42: 706492 | Q42: 229772 | R42: =R$3*12-SUM($Q42:Q42)-SUMPRODUCT(--($C42:$N42<=R$3),R$3-$C42:$N42) -> 274068 | S42: =S$3*12-SUM($Q42:R42)-SUMPRODUCT(--($C42:$N42<=S$3),S$3-$C42:$N42) -> 202652 | T42: =T$3*12-SUM($Q42:S42)-SUMPRODUCT(--($C42:$N42<=T$3),T$3-$C42:$N42) -> 0 | U42: =U$3*12-SUM($Q42:T42)-SUMPRODUCT(--($C42:$N42<=U$3),U$3-$C42:$N42) -> 0 | W42: =IF(O42<250000,(250000-O42)*RD!$E$56,0) -> 0 | X42: =IF(O42<250000,(250000-O42)*RD!$J$56,0) -> 0 | Y42: =Q42*RD!$D$51+'Big Schedules'!R42*RD!$D$52+'Big Schedules'!S42*RD!$D$53+'Big Schedules'!T42*RD!$D$54+'Big Schedules'!U42*RD!$D$55+RD!$D$49*12+W42 -> 68246.47556 | Z42: =Q42*RD!$J$51+'Big Schedules'!R42*RD!$J$52+'Big Schedules'!S42*RD!$J$53+'Big Schedules'!T42*RD!$J$54+'Big Schedules'!U42*RD!$J$55+RD!$J$49*12+X42 -> 74260.53404 | AA42: 0.08812262363
A43: 39 | C43: 1002 | D43: 795 | E43: 32865 | F43: 810 | G43: 14791 | H43: 22318 | I43: 22065 | J43: 22410 | K43: 18466 | L43: 15988 | M43: 85407 | N43: 26 | O43: 236943 | Q43: 151878 | R43: =R$3*12-SUM($Q43:Q43)-SUMPRODUCT(--($C43:$N43<=R$3),R$3-$C43:$N43) -> 49658 | S43: =S$3*12-SUM($Q43:R43)-SUMPRODUCT(--($C43:$N43<=S$3),S$3-$C43:$N43) -> 35407 | T43: =T$3*12-SUM($Q43:S43)-SUMPRODUCT(--($C43:$N43<=T$3),T$3-$C43:$N43) -> 0 | U43: =U$3*12-SUM($Q43:T43)-SUMPRODUCT(--($C43:$N43<=U$3),U$3-$C43:$N43) -> 0 | W43: =IF(O43<250000,(250000-O43)*RD!$E$56,0) -> 1162.72585 | X43: =IF(O43<250000,(250000-O43)*RD!$J$56,0) -> 1219.00152 | Y43: =Q43*RD!$D$51+'Big Schedules'!R43*RD!$D$52+'Big Schedules'!S43*RD!$D$53+'Big Schedules'!T43*RD!$D$54+'Big Schedules'!U43*RD!$D$55+RD!$D$49*12+W43 -> 29513.26041 | Z43: =Q43*RD!$J$51+'Big Schedules'!R43*RD!$J$52+'Big Schedules'!S43*RD!$J$53+'Big Schedules'!T43*RD!$J$54+'Big Schedules'!U43*RD!$J$55+RD!$J$49*12+X43 -> 32274.06505 | AA43: 0.09354454918
A44: 40 | C44: 56114 | D44: 54725 | E44: 51863 | F44: 44918 | G44: 36482 | H44: 21351 | I44: 18150 | J44: 12937 | K44: 13551 | L44: 20144 | M44: 38614 | N44: 53171 | O44: 422020 | Q44: 224638 | R44: =R$3*12-SUM($Q44:Q44)-SUMPRODUCT(--($C44:$N44<=R$3),R$3-$C44:$N44) -> 181509 | S44: =S$3*12-SUM($Q44:R44)-SUMPRODUCT(--($C44:$N44<=S$3),S$3-$C44:$N44) -> 15873 | T44: =T$3*12-SUM($Q44:S44)-SUMPRODUCT(--($C44:$N44<=T$3),T$3-$C44:$N44) -> 0 | U44: =U$3*12-SUM($Q44:T44)-SUMPRODUCT(--($C44:$N44<=U$3),U$3-$C44:$N44) -> 0 | W44: =IF(O44<250000,(250000-O44)*RD!$E$56,0) -> 0 | X44: =IF(O44<250000,(250000-O44)*RD!$J$56,0) -> 0 | Y44: =Q44*RD!$D$51+'Big Schedules'!R44*RD!$D$52+'Big Schedules'!S44*RD!$D$53+'Big Schedules'!T44*RD!$D$54+'Big Schedules'!U44*RD!$D$55+RD!$D$49*12+W44 -> 45249.28011 | Z44: =Q44*RD!$J$51+'Big Schedules'!R44*RD!$J$52+'Big Schedules'!S44*RD!$J$53+'Big Schedules'!T44*RD!$J$54+'Big Schedules'!U44*RD!$J$55+RD!$J$49*12+X44 -> 49355.53983 | AA44: 0.09074751488
B48: Total WA Sch 146 | C48: =SUM(C5:C47) -> 3967685 | D48: 3629622 | E48: 3567188 | F48: 3349134 | G48: 3031743 | H48: 2500055 | I48: 2416869 | J48: 2200204 | K48: 2275935 | L48: 2340543 | M48: 3067907 | N48: 3261051 | O48: =IF(ROUND(SUM(O5:O47),3)<>ROUND(SUM(C48:N48),3),#VALUE!,SUM(C48:N48)) -> 35607936 | Q48: =SUM(Q5:Q47) -> 8493795 | R48: =SUM(R5:R47) -> 8514233 | S48: =SUM(S5:S47) -> 13953929 | T48: =SUM(T5:T47) -> 2746588 | U48: =SUM(U5:U47) -> 1899391 | W48: =SUM(W5:W47) -> 29697.4626 | X48: =SUM(X5:X47) -> 31134.81312 | Y48: =SUM(Y5:Y47) -> 3235612.973 | Z48: =SUM(Z5:Z47) -> 3517098.979 | AA48: 0.08699619172
U49: =SUM(Q48:U48) -> 35607936 | Y49: =(Y48/1000)-RS!D18 -> -1.006000002e-05 | Z49: =(Z48/1000)-RS!F18 -> -4.100000751e-06
B50: Revenue Runs | C50: ='12MEDEC18'!D166 -> 3967685 | D50: ='12MEDEC18'!E166 -> 3629622 | E50: ='12MEDEC18'!F166 -> 3567188 | F50: ='12MEDEC18'!G166 -> 3349134 | G50: ='12MEDEC18'!H166 -> 3031743 | H50: ='12MEDEC18'!I166 -> 2500055 | I50: ='12MEDEC18'!J166 -> 2416869 | J50: ='12MEDEC18'!K166 -> 2200204 | K50: ='12MEDEC18'!L166 -> 2275935 | L50: ='12MEDEC18'!M166 -> 2340543 | M50: ='12MEDEC18'!N166 -> 3067907 | N50: ='12MEDEC18'!O166 -> 3261051 | O50: =SUM(C50:N50) -> 35607936 | P50: =#REF! ->  | Q50: 500 | R50: 1000 | S50: 10000 | T50: 25000 | U50: 99999999
O51: =SUM(C51:N51) -> 0 | Q51: 200 | R51: 1000 | S51: 99999999 | T51: =T$62*12-SUM($Q51:S51)-SUMPRODUCT(--($C51:$N51<=T$62),T$62-$C51:$N51) -> -100001199 | U51: =U$62*12-SUM($Q51:T51)-SUMPRODUCT(--($C51:$N51<=U$62),U$62-$C51:$N51) -> 0
O52: 0 | Q52: =Q$62*12-SUMPRODUCT(--($C52:$N52<=Q$62),Q$62-$C52:$N52) -> 0 | R52: =R$62*12-SUM($Q52:Q52)-SUMPRODUCT(--($C52:$N52<=R$62),R$62-$C52:$N52) -> 0 | S52: =S$62*12-SUM($Q52:R52)-SUMPRODUCT(--($C52:$N52<=S$62),S$62-$C52:$N52) -> 0 | T52: =T$62*12-SUM($Q52:S52)-SUMPRODUCT(--($C52:$N52<=T$62),T$62-$C52:$N52) -> 0 | U52: =U$62*12-SUM($Q52:T52)-SUMPRODUCT(--($C52:$N52<=U$62),U$62-$C52:$N52) -> 0
O53: 0 | Q53: =Q$62*12-SUMPRODUCT(--($C53:$N53<=Q$62),Q$62-$C53:$N53) -> 0 | R53: =R$62*12-SUM($Q53:Q53)-SUMPRODUCT(--($C53:$N53<=R$62),R$62-$C53:$N53) -> 0 | S53: =S$62*12-SUM($Q53:R53)-SUMPRODUCT(--($C53:$N53<=S$62),S$62-$C53:$N53) -> 0 | T53: =T$62*12-SUM($Q53:S53)-SUMPRODUCT(--($C53:$N53<=T$62),T$62-$C53:$N53) -> 0 | U53: =U$62*12-SUM($Q53:T53)-SUMPRODUCT(--($C53:$N53<=U$62),U$62-$C53:$N53) -> 0
O54: 0 | Q54: =Q$62*12-SUMPRODUCT(--($C54:$N54<=Q$62),Q$62-$C54:$N54) -> 0 | R54: =R$62*12-SUM($Q54:Q54)-SUMPRODUCT(--($C54:$N54<=R$62),R$62-$C54:$N54) -> 0 | S54: =S$62*12-SUM($Q54:R54)-SUMPRODUCT(--($C54:$N54<=S$62),S$62-$C54:$N54) -> 0 | T54: =T$62*12-SUM($Q54:S54)-SUMPRODUCT(--($C54:$N54<=T$62),T$62-$C54:$N54) -> 0 | U54: =U$62*12-SUM($Q54:T54)-SUMPRODUCT(--($C54:$N54<=U$62),U$62-$C54:$N54) -> 0
O55: 0 | Q55: =Q$62*12-SUMPRODUCT(--($C55:$N55<=Q$62),Q$62-$C55:$N55) -> 0 | R55: =R$62*12-SUM($Q55:Q55)-SUMPRODUCT(--($C55:$N55<=R$62),R$62-$C55:$N55) -> 0 | S55: =S$62*12-SUM($Q55:R55)-SUMPRODUCT(--($C55:$N55<=S$62),S$62-$C55:$N55) -> 0 | Y55: =COUNT(O5:P46) -> 40
O56: =SUM(C56:N56) -> 0 | Q56: =SUM(Q52:Q55) -> 0 | R56: =SUM(R52:R55) -> 0 | S56: 0 | T56: 0 | U56: 0
O57: =SUM(C57:N57) -> 0 | Q57: =Q$51*12-SUMPRODUCT(--($C57:$N57<=Q$51),Q$51-$C57:$N57) -> 0 | R57: =R$51*12-SUM($Q57:Q57)-SUMPRODUCT(--($C57:$N57<=R$51),R$51-$C57:$N57) -> 0 | S57: =S$51*12-SUM($Q57:R57)-SUMPRODUCT(--($C57:$N57<=S$51),S$51-$C57:$N57) -> 0
O58: 0
B59: Total Sch 146 | C59: =SUM(C50:C58) -> 3967685 | D59: =SUM(D50:D58) -> 3629622 | E59: =SUM(E50:E58) -> 3567188 | F59: 3349134 | G59: 3031743 | H59: 2500055 | I59: 2416869 | J59: 2200204 | K59: 2275935 | L59: 2340543 | M59: 3067907 | N59: 3261051 | O59: =SUM(O50:O58) -> 35607936 | Q59: =SUM(Q52:Q55) -> 0 | R59: =SUM(R52:R55) -> 0 | S59: =SUM(S52:S55) -> 0 | T59: 0 | U59: 0 | V59: =SUM(Q59:U59) -> 0
C60: =C48-C59 -> 0 | D60: 0 | E60: =E48-E59 -> 0 | F60: 0 | G60: 0 | H60: 0 | I60: 0 | J60: 0 | K60: 0 | L60: 0 | M60: 0 | N60: 0 | O60: 0 | Q60: =SUM(Q56:Q57) -> 0 | R60: =SUM(R56:R57) -> 0 | S60: =SUM(S56:S57) -> 0
C61: =COUNT(C5:C44) -> 40 | D61: =COUNT(D5:D44) -> 40 | E61: 40 | F61: 40 | G61: 40 | H61: 40 | I61: 40 | J61: 40 | K61: 40 | L61: 40 | M61: =COUNT(M5:M44) -> 40 | N61: =COUNT(N5:N44) -> 40 | Q61: 1st | R61: =Q62 -> 500 | S61: =R62 -> 1000 | T61: =S62 -> 10000 | U61: =T62 -> 25000
B62: ANNUAL USAGE, Sch 121/122 | Q62: 500 | R62: 1000 | S62: 10000 | T62: 25000 | U62: 99999999
B63: Washington | C63: =C4 -> 2018-01-01 | D63: =D4 -> 2018-02-01 | E63: 2018-03-01 | F63: 2018-04-01 | G63: 2018-05-01 | H63: 2018-06-01 | I63: 2018-07-01 | J63: 2018-08-01 | K63: 2018-09-01 | L63: 2018-10-01 | M63: 2018-11-01 | N63: 2018-12-01 | O63: Total | Q63: thms/mo | R63: thms/mo | S63: thms/mo | T63: thms/mo | U63: thms/mo | X63: 2014-10-01 | AD63: 2014-11-01 | AJ63: 2014-12-01 | AP63: 2015-01-01
B64: AIRWAY HEIGHTS CORRECTION CENTER (122) | O64: =SUM(C64:N64) -> 0 | Q64: =Q$62*12-SUMPRODUCT(--($C64:$N64<=Q$62),Q$62-$C64:$N64) -> 0 | R64: =R$62*12-SUM($Q64:Q64)-SUMPRODUCT(--($C64:$N64<=R$62),R$62-$C64:$N64) -> 0 | S64: =S$62*12-SUM($Q64:R64)-SUMPRODUCT(--($C64:$N64<=S$62),S$62-$C64:$N64) -> 0 | T64: =T$62*12-SUM($Q64:S64)-SUMPRODUCT(--($C64:$N64<=T$62),T$62-$C64:$N64) -> 0 | U64: =U$62*12-SUM($Q64:T64)-SUMPRODUCT(--($C64:$N64<=U$62),U$62-$C64:$N64) -> 0 | X64: =Q$62-SUMPRODUCT(--($C64<=Q$62),Q$62-$C64) -> 0 | Y64: =R$62-X64-SUMPRODUCT(--($C64<=R$62),R$62-$C64) -> 0 | Z64: =S$62-SUM(X64:Y64)-SUMPRODUCT(--($C64<=S$62),S$62-$C64) -> 0 | AA64: =T$62-SUM(X64:Z64)-SUMPRODUCT(--($C64<=T$62),T$62-$C64) -> 0 | AB64: =U$62-SUM($X64:AA64)-SUMPRODUCT(--($C64<=U$62),U$62-$C64) -> 0 | AD64: =Q$62-SUMPRODUCT(--($D64<=Q$62),Q$62-$D64) -> 0 | AE64: =R$62-AD64-SUMPRODUCT(--($D64<=R$62),R$62-$D64) -> 0 | AF64: =S$62-SUM(AD64:AE64)-SUMPRODUCT(--($D64<=S$62),S$62-$D64) -> 0 | AG64: =T$62-SUM(AD64:AF64)-SUMPRODUCT(--($D64<=T$62),T$62-$D64) -> 0 | AH64: =U$62-SUM($AD64:AG64)-SUMPRODUCT(--($D64<=U$62),U$62-$D64) -> 0 | AJ64: =Q$62-SUMPRODUCT(--($E64<=Q$62),Q$62-$E64) -> 0 | AK64: =R$62-AJ64-SUMPRODUCT(--($E64<=R$62),R$62-$E64) -> 0 | AL64: =S$62-SUM(AJ64:AK64)-SUMPRODUCT(--($E64<=S$62),S$62-$E64) -> 0 | AM64: =T$62-SUM(AJ64:AL64)-SUMPRODUCT(--($E64<=T$62),T$62-$E64) -> 0 | AN64: =U$62-SUM($AJ64:AM64)-SUMPRODUCT(--($E64<=U$62),U$62-$E64) -> 0 | AP64: =Q$62-SUMPRODUCT(--($F64<=Q$62),Q$62-$F64) -> 0 | AQ64: =R$62-AP64-SUMPRODUCT(--($F64<=R$62),R$62-$F64) -> 0 | AR64: =S$62-SUM(AP64:AQ64)-SUMPRODUCT(--($F64<=S$62),S$62-$F64) -> 0 | AS64: =T$62-SUM(AP64:AR64)-SUMPRODUCT(--($F64<=T$62),T$62-$F64) -> 0 | AT64: =U$62-SUM($AP64:AS64)-SUMPRODUCT(--($F64<=U$62),U$62-$F64) -> 0
B65: CAMELBACK HOTEL CORP | O65: 0 | Q65: 0 | R65: =R$62*12-SUM($Q65:Q65)-SUMPRODUCT(--($C65:$N65<=R$62),R$62-$C65:$N65) -> 0 | S65: =S$62*12-SUM($Q65:R65)-SUMPRODUCT(--($C65:$N65<=S$62),S$62-$C65:$N65) -> 0 | T65: =T$62*12-SUM($Q65:S65)-SUMPRODUCT(--($C65:$N65<=T$62),T$62-$C65:$N65) -> 0 | U65: =U$62*12-SUM($Q65:T65)-SUMPRODUCT(--($C65:$N65<=U$62),U$62-$C65:$N65) -> 0 | X65: =Q$62-SUMPRODUCT(--($C65<=Q$62),Q$62-$C65) -> 0 | Y65: =R$62-X65-SUMPRODUCT(--($C65<=R$62),R$62-$C65) -> 0 | Z65: =S$62-SUM(X65:Y65)-SUMPRODUCT(--($C65<=S$62),S$62-$C65) -> 0 | AA65: =T$62-SUM(X65:Z65)-SUMPRODUCT(--($C65<=T$62),T$62-$C65) -> 0 | AB65: =U$62-SUM($X65:AA65)-SUMPRODUCT(--($C65<=U$62),U$62-$C65) -> 0 | AD65: =Q$62-SUMPRODUCT(--($D65<=Q$62),Q$62-$D65) -> 0 | AE65: =R$62-AD65-SUMPRODUCT(--($D65<=R$62),R$62-$D65) -> 0 | AF65: =S$62-SUM(AD65:AE65)-SUMPRODUCT(--($D65<=S$62),S$62-$D65) -> 0 | AG65: =T$62-SUM(AD65:AF65)-SUMPRODUCT(--($D65<=T$62),T$62-$D65) -> 0 | AH65: =U$62-SUM($AD65:AG65)-SUMPRODUCT(--($D65<=U$62),U$62-$D65) -> 0 | AJ65: =Q$62-SUMPRODUCT(--($E65<=Q$62),Q$62-$E65) -> 0 | AK65: =R$62-AJ65-SUMPRODUCT(--($E65<=R$62),R$62-$E65) -> 0 | AL65: =S$62-SUM(AJ65:AK65)-SUMPRODUCT(--($E65<=S$62),S$62-$E65) -> 0 | AM65: =T$62-SUM(AJ65:AL65)-SUMPRODUCT(--($E65<=T$62),T$62-$E65) -> 0 | AN65: =U$62-SUM($AJ65:AM65)-SUMPRODUCT(--($E65<=U$62),U$62-$E65) -> 0 | AP65: =Q$62-SUMPRODUCT(--($F65<=Q$62),Q$62-$F65) -> 0 | AQ65: =R$62-AP65-SUMPRODUCT(--($F65<=R$62),R$62-$F65) -> 0 | AR65: =S$62-SUM(AP65:AQ65)-SUMPRODUCT(--($F65<=S$62),S$62-$F65) -> 0 | AS65: =T$62-SUM(AP65:AR65)-SUMPRODUCT(--($F65<=T$62),T$62-$F65) -> 0 | AT65: =U$62-SUM($AP65:AS65)-SUMPRODUCT(--($F65<=U$62),U$62-$F65) -> 0
B66: COYOTE RIDGE CORRECTION | O66: 0 | Q66: 0 | R66: =R$62*12-SUM($Q66:Q66)-SUMPRODUCT(--($C66:$N66<=R$62),R$62-$C66:$N66) -> 0 | S66: =S$62*12-SUM($Q66:R66)-SUMPRODUCT(--($C66:$N66<=S$62),S$62-$C66:$N66) -> 0 | T66: =T$62*12-SUM($Q66:S66)-SUMPRODUCT(--($C66:$N66<=T$62),T$62-$C66:$N66) -> 0 | U66: =U$62*12-SUM($Q66:T66)-SUMPRODUCT(--($C66:$N66<=U$62),U$62-$C66:$N66) -> 0 | X66: 0 | Y66: 0 | Z66: 0 | AA66: 0 | AB66: =U$62-SUM($X66:AA66)-SUMPRODUCT(--($C66<=U$62),U$62-$C66) -> 0 | AD66: 0 | AE66: 0 | AF66: 0 | AG66: 0 | AH66: =U$62-SUM($AD66:AG66)-SUMPRODUCT(--($D66<=U$62),U$62-$D66) -> 0 | AJ66: 0 | AK66: 0 | AL66: 0 | AM66: 0 | AN66: =U$62-SUM($AJ66:AM66)-SUMPRODUCT(--($E66<=U$62),U$62-$E66) -> 0 | AP66: 0 | AQ66: 0 | AR66: 0 | AS66: 0 | AT66: =U$62-SUM($AP66:AS66)-SUMPRODUCT(--($F66<=U$62),U$62-$F66) -> 0
B67: DAVENPORT 2000 LLC | O67: 0 | Q67: 0 | R67: =R$62*12-SUM($Q67:Q67)-SUMPRODUCT(--($C67:$N67<=R$62),R$62-$C67:$N67) -> 0 | S67: =S$62*12-SUM($Q67:R67)-SUMPRODUCT(--($C67:$N67<=S$62),S$62-$C67:$N67) -> 0 | T67: =T$62*12-SUM($Q67:S67)-SUMPRODUCT(--($C67:$N67<=T$62),T$62-$C67:$N67) -> 0 | U67: =U$62*12-SUM($Q67:T67)-SUMPRODUCT(--($C67:$N67<=U$62),U$62-$C67:$N67) -> 0 | X67: 0 | Y67: 0 | Z67: 0 | AA67: 0 | AB67: =U$62-SUM($X67:AA67)-SUMPRODUCT(--($C67<=U$62),U$62-$C67) -> 0 | AD67: 0 | AE67: 0 | AF67: 0 | AG67: 0 | AH67: =U$62-SUM($AD67:AG67)-SUMPRODUCT(--($D67<=U$62),U$62-$D67) -> 0 | AJ67: 0 | AK67: 0 | AL67: 0 | AM67: 0 | AN67: =U$62-SUM($AJ67:AM67)-SUMPRODUCT(--($E67<=U$62),U$62-$E67) -> 0 | AP67: 0 | AQ67: 0 | AR67: 0 | AS67: 0 | AT67: =U$62-SUM($AP67:AS67)-SUMPRODUCT(--($F67<=U$62),U$62-$F67) -> 0
B68: DOUBLETREE HOTEL | O68: 0 | Q68: 0 | R68: =R$62*12-SUM($Q68:Q68)-SUMPRODUCT(--($C68:$N68<=R$62),R$62-$C68:$N68) -> 0 | S68: =S$62*12-SUM($Q68:R68)-SUMPRODUCT(--($C68:$N68<=S$62),S$62-$C68:$N68) -> 0 | T68: =T$62*12-SUM($Q68:S68)-SUMPRODUCT(--($C68:$N68<=T$62),T$62-$C68:$N68) -> 0 | U68: =U$62*12-SUM($Q68:T68)-SUMPRODUCT(--($C68:$N68<=U$62),U$62-$C68:$N68) -> 0 | X68: 0 | Y68: 0 | Z68: 0 | AA68: 0 | AB68: =U$62-SUM($X68:AA68)-SUMPRODUCT(--($C68<=U$62),U$62-$C68) -> 0 | AD68: 0 | AE68: 0 | AF68: 0 | AG68: 0 | AH68: =U$62-SUM($AD68:AG68)-SUMPRODUCT(--($D68<=U$62),U$62-$D68) -> 0 | AJ68: 0 | AK68: 0 | AL68: 0 | AM68: 0 | AN68: =U$62-SUM($AJ68:AM68)-SUMPRODUCT(--($E68<=U$62),U$62-$E68) -> 0 | AP68: 0 | AQ68: 0 | AR68: 0 | AS68: 0 | AT68: =U$62-SUM($AP68:AS68)-SUMPRODUCT(--($F68<=U$62),U$62-$F68) -> 0
B69: ECOLITE | O69: 0 | Q69: 0 | R69: =R$62*12-SUM($Q69:Q69)-SUMPRODUCT(--($C69:$N69<=R$62),R$62-$C69:$N69) -> 0 | S69: =S$62*12-SUM($Q69:R69)-SUMPRODUCT(--($C69:$N69<=S$62),S$62-$C69:$N69) -> 0 | T69: =T$62*12-SUM($Q69:S69)-SUMPRODUCT(--($C69:$N69<=T$62),T$62-$C69:$N69) -> 0 | U69: =U$62*12-SUM($Q69:T69)-SUMPRODUCT(--($C69:$N69<=U$62),U$62-$C69:$N69) -> 0 | X69: 0 | Y69: 0 | Z69: 0 | AA69: 0 | AB69: =U$62-SUM($X69:AA69)-SUMPRODUCT(--($C69<=U$62),U$62-$C69) -> 0 | AD69: 0 | AE69: 0 | AF69: 0 | AG69: 0 | AH69: =U$62-SUM($AD69:AG69)-SUMPRODUCT(--($D69<=U$62),U$62-$D69) -> 0 | AJ69: 0 | AK69: 0 | AL69: 0 | AM69: 0 | AN69: =U$62-SUM($AJ69:AM69)-SUMPRODUCT(--($E69<=U$62),U$62-$E69) -> 0 | AP69: 0 | AQ69: 0 | AR69: 0 | AS69: 0 | AT69: =U$62-SUM($AP69:AS69)-SUMPRODUCT(--($F69<=U$62),U$62-$F69) -> 0
B70: GOOD SAMARITAN VILLAGE | O70: 0 | Q70: 0 | R70: =R$62*12-SUM($Q70:Q70)-SUMPRODUCT(--($C70:$N70<=R$62),R$62-$C70:$N70) -> 0 | S70: =S$62*12-SUM($Q70:R70)-SUMPRODUCT(--($C70:$N70<=S$62),S$62-$C70:$N70) -> 0 | T70: =T$62*12-SUM($Q70:S70)-SUMPRODUCT(--($C70:$N70<=T$62),T$62-$C70:$N70) -> 0 | U70: =U$62*12-SUM($Q70:T70)-SUMPRODUCT(--($C70:$N70<=U$62),U$62-$C70:$N70) -> 0 | X70: 0 | Y70: 0 | Z70: 0 | AA70: 0 | AB70: =U$62-SUM($X70:AA70)-SUMPRODUCT(--($C70<=U$62),U$62-$C70) -> 0 | AD70: 0 | AE70: 0 | AF70: 0 | AG70: 0 | AH70: =U$62-SUM($AD70:AG70)-SUMPRODUCT(--($D70<=U$62),U$62-$D70) -> 0 | AJ70: 0 | AK70: 0 | AL70: 0 | AM70: 0 | AN70: =U$62-SUM($AJ70:AM70)-SUMPRODUCT(--($E70<=U$62),U$62-$E70) -> 0 | AP70: 0 | AQ70: 0 | AR70: 0 | AS70: 0 | AT70: =U$62-SUM($AP70:AS70)-SUMPRODUCT(--($F70<=U$62),U$62-$F70) -> 0
B71: GREENACRES GYPSUM & LIME CO | O71: 0 | Q71: 0 | R71: =R$62*12-SUM($Q71:Q71)-SUMPRODUCT(--($C71:$N71<=R$62),R$62-$C71:$N71) -> 0 | S71: =S$62*12-SUM($Q71:R71)-SUMPRODUCT(--($C71:$N71<=S$62),S$62-$C71:$N71) -> 0 | T71: =T$62*12-SUM($Q71:S71)-SUMPRODUCT(--($C71:$N71<=T$62),T$62-$C71:$N71) -> 0 | U71: =U$62*12-SUM($Q71:T71)-SUMPRODUCT(--($C71:$N71<=U$62),U$62-$C71:$N71) -> 0 | X71: 0 | Y71: 0 | Z71: 0 | AA71: 0 | AB71: =U$62-SUM($X71:AA71)-SUMPRODUCT(--($C71<=U$62),U$62-$C71) -> 0 | AD71: 0 | AE71: 0 | AF71: 0 | AG71: 0 | AH71: =U$62-SUM($AD71:AG71)-SUMPRODUCT(--($D71<=U$62),U$62-$D71) -> 0 | AJ71: 0 | AK71: 0 | AL71: 0 | AM71: 0 | AN71: =U$62-SUM($AJ71:AM71)-SUMPRODUCT(--($E71<=U$62),U$62-$E71) -> 0 | AP71: 0 | AQ71: 0 | AR71: 0 | AS71: 0 | AT71: =U$62-SUM($AP71:AS71)-SUMPRODUCT(--($F71<=U$62),U$62-$F71) -> 0
B72: HOLLISTER-STIER LABORATORIES | O72: 0 | Q72: 0 | R72: =R$62*12-SUM($Q72:Q72)-SUMPRODUCT(--($C72:$N72<=R$62),R$62-$C72:$N72) -> 0 | S72: =S$62*12-SUM($Q72:R72)-SUMPRODUCT(--($C72:$N72<=S$62),S$62-$C72:$N72) -> 0 | T72: =T$62*12-SUM($Q72:S72)-SUMPRODUCT(--($C72:$N72<=T$62),T$62-$C72:$N72) -> 0 | U72: =U$62*12-SUM($Q72:T72)-SUMPRODUCT(--($C72:$N72<=U$62),U$62-$C72:$N72) -> 0 | X72: 0 | Y72: 0 | Z72: 0 | AA72: 0 | AB72: =U$62-SUM($X72:AA72)-SUMPRODUCT(--($C72<=U$62),U$62-$C72) -> 0 | AD72: 0 | AE72: 0 | AF72: 0 | AG72: 0 | AH72: =U$62-SUM($AD72:AG72)-SUMPRODUCT(--($D72<=U$62),U$62-$D72) -> 0 | AJ72: 0 | AK72: 0 | AL72: 0 | AM72: 0 | AN72: =U$62-SUM($AJ72:AM72)-SUMPRODUCT(--($E72<=U$62),U$62-$E72) -> 0 | AP72: 0 | AQ72: 0 | AR72: 0 | AS72: 0 | AT72: =U$62-SUM($AP72:AS72)-SUMPRODUCT(--($F72<=U$62),U$62-$F72) -> 0
B73: JOHANNA BEVERAGE CO | O73: 0 | Q73: 0 | R73: =R$62*12-SUM($Q73:Q73)-SUMPRODUCT(--($C73:$N73<=R$62),R$62-$C73:$N73) -> 0 | S73: =S$62*12-SUM($Q73:R73)-SUMPRODUCT(--($C73:$N73<=S$62),S$62-$C73:$N73) -> 0 | T73: =T$62*12-SUM($Q73:S73)-SUMPRODUCT(--($C73:$N73<=T$62),T$62-$C73:$N73) -> 0 | U73: =U$62*12-SUM($Q73:T73)-SUMPRODUCT(--($C73:$N73<=U$62),U$62-$C73:$N73) -> 0 | X73: 0 | Y73: 0 | Z73: 0 | AA73: 0 | AB73: =U$62-SUM($X73:AA73)-SUMPRODUCT(--($C73<=U$62),U$62-$C73) -> 0 | AD73: 0 | AE73: 0 | AF73: 0 | AG73: 0 | AH73: =U$62-SUM($AD73:AG73)-SUMPRODUCT(--($D73<=U$62),U$62-$D73) -> 0 | AJ73: 0 | AK73: 0 | AL73: 0 | AM73: 0 | AN73: =U$62-SUM($AJ73:AM73)-SUMPRODUCT(--($E73<=U$62),U$62-$E73) -> 0 | AP73: 0 | AQ73: 0 | AR73: 0 | AS73: 0 | AT73: =U$62-SUM($AP73:AS73)-SUMPRODUCT(--($F73<=U$62),U$62-$F73) -> 0
B74: KALISPEL TRIBAL ECONOMIC AUTHOR | O74: 0 | Q74: 0 | R74: =R$62*12-SUM($Q74:Q74)-SUMPRODUCT(--($C74:$N74<=R$62),R$62-$C74:$N74) -> 0 | S74: =S$62*12-SUM($Q74:R74)-SUMPRODUCT(--($C74:$N74<=S$62),S$62-$C74:$N74) -> 0 | T74: =T$62*12-SUM($Q74:S74)-SUMPRODUCT(--($C74:$N74<=T$62),T$62-$C74:$N74) -> 0 | U74: =U$62*12-SUM($Q74:T74)-SUMPRODUCT(--($C74:$N74<=U$62),U$62-$C74:$N74) -> 0 | X74: 0 | Y74: 0 | Z74: 0 | AA74: 0 | AB74: =U$62-SUM($X74:AA74)-SUMPRODUCT(--($C74<=U$62),U$62-$C74) -> 0 | AD74: 0 | AE74: 0 | AF74: 0 | AG74: 0 | AH74: =U$62-SUM($AD74:AG74)-SUMPRODUCT(--($D74<=U$62),U$62-$D74) -> 0 | AJ74: 0 | AK74: 0 | AL74: 0 | AM74: 0 | AN74: =U$62-SUM($AJ74:AM74)-SUMPRODUCT(--($E74<=U$62),U$62-$E74) -> 0 | AP74: 0 | AQ74: 0 | AR74: 0 | AS74: 0 | AT74: =U$62-SUM($AP74:AS74)-SUMPRODUCT(--($F74<=U$62),U$62-$F74) -> 0
B75: MIRABEAU PARK HOTEL | O75: 0 | Q75: 0 | R75: =R$62*12-SUM($Q75:Q75)-SUMPRODUCT(--($C75:$N75<=R$62),R$62-$C75:$N75) -> 0 | S75: =S$62*12-SUM($Q75:R75)-SUMPRODUCT(--($C75:$N75<=S$62),S$62-$C75:$N75) -> 0 | T75: =T$62*12-SUM($Q75:S75)-SUMPRODUCT(--($C75:$N75<=T$62),T$62-$C75:$N75) -> 0 | U75: =U$62*12-SUM($Q75:T75)-SUMPRODUCT(--($C75:$N75<=U$62),U$62-$C75:$N75) -> 0 | X75: 0 | Y75: 0 | Z75: 0 | AA75: 0 | AB75: =U$62-SUM($X75:AA75)-SUMPRODUCT(--($C75<=U$62),U$62-$C75) -> 0 | AD75: 0 | AE75: 0 | AF75: 0 | AG75: 0 | AH75: =U$62-SUM($AD75:AG75)-SUMPRODUCT(--($D75<=U$62),U$62-$D75) -> 0 | AJ75: 0 | AK75: 0 | AL75: 0 | AM75: 0 | AN75: =U$62-SUM($AJ75:AM75)-SUMPRODUCT(--($E75<=U$62),U$62-$E75) -> 0 | AP75: 0 | AQ75: 0 | AR75: 0 | AS75: 0 | AT75: =U$62-SUM($AP75:AS75)-SUMPRODUCT(--($F75<=U$62),U$62-$F75) -> 0
B76: MOUNT CARMEL HOSPITAL | O76: 0 | Q76: 0 | R76: =R$62*12-SUM($Q76:Q76)-SUMPRODUCT(--($C76:$N76<=R$62),R$62-$C76:$N76) -> 0 | S76: =S$62*12-SUM($Q76:R76)-SUMPRODUCT(--($C76:$N76<=S$62),S$62-$C76:$N76) -> 0 | T76: =T$62*12-SUM($Q76:S76)-SUMPRODUCT(--($C76:$N76<=T$62),T$62-$C76:$N76) -> 0 | U76: =U$62*12-SUM($Q76:T76)-SUMPRODUCT(--($C76:$N76<=U$62),U$62-$C76:$N76) -> 0 | X76: 0 | Y76: 0 | Z76: 0 | AA76: 0 | AB76: =U$62-SUM($X76:AA76)-SUMPRODUCT(--($C76<=U$62),U$62-$C76) -> 0 | AD76: 0 | AE76: 0 | AF76: 0 | AG76: 0 | AH76: =U$62-SUM($AD76:AG76)-SUMPRODUCT(--($D76<=U$62),U$62-$D76) -> 0 | AJ76: 0 | AK76: 0 | AL76: 0 | AM76: 0 | AN76: =U$62-SUM($AJ76:AM76)-SUMPRODUCT(--($E76<=U$62),U$62-$E76) -> 0 | AP76: 0 | AQ76: 0 | AR76: 0 | AS76: 0 | AT76: =U$62-SUM($AP76:AS76)-SUMPRODUCT(--($F76<=U$62),U$62-$F76) -> 0
B77: NORTHERN QUEST CASINO | O77: 0 | Q77: 0 | R77: =R$62*12-SUM($Q77:Q77)-SUMPRODUCT(--($C77:$N77<=R$62),R$62-$C77:$N77) -> 0 | S77: =S$62*12-SUM($Q77:R77)-SUMPRODUCT(--($C77:$N77<=S$62),S$62-$C77:$N77) -> 0 | T77: =T$62*12-SUM($Q77:S77)-SUMPRODUCT(--($C77:$N77<=T$62),T$62-$C77:$N77) -> 0 | U77: =U$62*12-SUM($Q77:T77)-SUMPRODUCT(--($C77:$N77<=U$62),U$62-$C77:$N77) -> 0 | X77: 0 | Y77: 0 | Z77: 0 | AA77: 0 | AB77: =U$62-SUM($X77:AA77)-SUMPRODUCT(--($C77<=U$62),U$62-$C77) -> 0 | AD77: 0 | AE77: 0 | AF77: 0 | AG77: 0 | AH77: =U$62-SUM($AD77:AG77)-SUMPRODUCT(--($D77<=U$62),U$62-$D77) -> 0 | AJ77: 0 | AK77: 0 | AL77: 0 | AM77: 0 | AN77: =U$62-SUM($AJ77:AM77)-SUMPRODUCT(--($E77<=U$62),U$62-$E77) -> 0 | AP77: 0 | AQ77: 0 | AR77: 0 | AS77: 0 | AT77: =U$62-SUM($AP77:AS77)-SUMPRODUCT(--($F77<=U$62),U$62-$F77) -> 0
B78: NORTHERN QUEST CASINO | O78: 0 | Q78: 0 | R78: =R$62*12-SUM($Q78:Q78)-SUMPRODUCT(--($C78:$N78<=R$62),R$62-$C78:$N78) -> 0 | S78: =S$62*12-SUM($Q78:R78)-SUMPRODUCT(--($C78:$N78<=S$62),S$62-$C78:$N78) -> 0 | T78: =T$62*12-SUM($Q78:S78)-SUMPRODUCT(--($C78:$N78<=T$62),T$62-$C78:$N78) -> 0 | U78: =U$62*12-SUM($Q78:T78)-SUMPRODUCT(--($C78:$N78<=U$62),U$62-$C78:$N78) -> 0 | X78: 0 | Y78: 0 | Z78: 0 | AA78: 0 | AB78: =U$62-SUM($X78:AA78)-SUMPRODUCT(--($C78<=U$62),U$62-$C78) -> 0 | AD78: 0 | AE78: 0 | AF78: 0 | AG78: 0 | AH78: =U$62-SUM($AD78:AG78)-SUMPRODUCT(--($D78<=U$62),U$62-$D78) -> 0 | AJ78: 0 | AK78: 0 | AL78: 0 | AM78: 0 | AN78: =U$62-SUM($AJ78:AM78)-SUMPRODUCT(--($E78<=U$62),U$62-$E78) -> 0 | AP78: 0 | AQ78: 0 | AR78: 0 | AS78: 0 | AT78: =U$62-SUM($AP78:AS78)-SUMPRODUCT(--($F78<=U$62),U$62-$F78) -> 0
B79: PHILADELPHIA MACARONI CO | O79: 0 | Q79: 0 | R79: =R$62*12-SUM($Q79:Q79)-SUMPRODUCT(--($C79:$N79<=R$62),R$62-$C79:$N79) -> 0 | S79: =S$62*12-SUM($Q79:R79)-SUMPRODUCT(--($C79:$N79<=S$62),S$62-$C79:$N79) -> 0 | T79: =T$62*12-SUM($Q79:S79)-SUMPRODUCT(--($C79:$N79<=T$62),T$62-$C79:$N79) -> 0 | U79: =U$62*12-SUM($Q79:T79)-SUMPRODUCT(--($C79:$N79<=U$62),U$62-$C79:$N79) -> 0 | X79: 0 | Y79: 0 | Z79: 0 | AA79: 0 | AB79: =U$62-SUM($X79:AA79)-SUMPRODUCT(--($C79<=U$62),U$62-$C79) -> 0 | AD79: 0 | AE79: 0 | AF79: 0 | AG79: 0 | AH79: =U$62-SUM($AD79:AG79)-SUMPRODUCT(--($D79<=U$62),U$62-$D79) -> 0 | AJ79: 0 | AK79: 0 | AL79: 0 | AM79: 0 | AN79: =U$62-SUM($AJ79:AM79)-SUMPRODUCT(--($E79<=U$62),U$62-$E79) -> 0 | AP79: 0 | AQ79: 0 | AR79: 0 | AS79: 0 | AT79: =U$62-SUM($AP79:AS79)-SUMPRODUCT(--($F79<=U$62),U$62-$F79) -> 0
B80: PIZZA CRUST INC | O80: 0 | Q80: 0 | R80: =R$62*12-SUM($Q80:Q80)-SUMPRODUCT(--($C80:$N80<=R$62),R$62-$C80:$N80) -> 0 | S80: =S$62*12-SUM($Q80:R80)-SUMPRODUCT(--($C80:$N80<=S$62),S$62-$C80:$N80) -> 0 | T80: =T$62*12-SUM($Q80:S80)-SUMPRODUCT(--($C80:$N80<=T$62),T$62-$C80:$N80) -> 0 | U80: =U$62*12-SUM($Q80:T80)-SUMPRODUCT(--($C80:$N80<=U$62),U$62-$C80:$N80) -> 0 | X80: 0 | Y80: 0 | Z80: 0 | AA80: 0 | AB80: =U$62-SUM($X80:AA80)-SUMPRODUCT(--($C80<=U$62),U$62-$C80) -> 0 | AD80: 0 | AE80: 0 | AF80: 0 | AG80: 0 | AH80: =U$62-SUM($AD80:AG80)-SUMPRODUCT(--($D80<=U$62),U$62-$D80) -> 0 | AJ80: 0 | AK80: 0 | AL80: 0 | AM80: 0 | AN80: =U$62-SUM($AJ80:AM80)-SUMPRODUCT(--($E80<=U$62),U$62-$E80) -> 0 | AP80: 0 | AQ80: 0 | AR80: 0 | AS80: 0 | AT80: =U$62-SUM($AP80:AS80)-SUMPRODUCT(--($F80<=U$62),U$62-$F80) -> 0
B81: PULLMAN REGIONAL HOSPITAL | O81: 0 | Q81: 0 | R81: =R$62*12-SUM($Q81:Q81)-SUMPRODUCT(--($C81:$N81<=R$62),R$62-$C81:$N81) -> 0 | S81: =S$62*12-SUM($Q81:R81)-SUMPRODUCT(--($C81:$N81<=S$62),S$62-$C81:$N81) -> 0 | T81: =T$62*12-SUM($Q81:S81)-SUMPRODUCT(--($C81:$N81<=T$62),T$62-$C81:$N81) -> 0 | U81: =U$62*12-SUM($Q81:T81)-SUMPRODUCT(--($C81:$N81<=U$62),U$62-$C81:$N81) -> 0 | X81: 0 | Y81: 0 | Z81: 0 | AA81: 0 | AB81: =U$62-SUM($X81:AA81)-SUMPRODUCT(--($C81<=U$62),U$62-$C81) -> 0 | AD81: 0 | AE81: 0 | AF81: 0 | AG81: 0 | AH81: =U$62-SUM($AD81:AG81)-SUMPRODUCT(--($D81<=U$62),U$62-$D81) -> 0 | AJ81: 0 | AK81: 0 | AL81: 0 | AM81: 0 | AN81: =U$62-SUM($AJ81:AM81)-SUMPRODUCT(--($E81<=U$62),U$62-$E81) -> 0 | AP81: 0 | AQ81: 0 | AR81: 0 | AS81: 0 | AT81: =U$62-SUM($AP81:AS81)-SUMPRODUCT(--($F81<=U$62),U$62-$F81) -> 0
B82: RED LION HOTEL AT THE PARK | O82: 0 | Q82: 0 | R82: =R$62*12-SUM($Q82:Q82)-SUMPRODUCT(--($C82:$N82<=R$62),R$62-$C82:$N82) -> 0 | S82: =S$62*12-SUM($Q82:R82)-SUMPRODUCT(--($C82:$N82<=S$62),S$62-$C82:$N82) -> 0 | T82: =T$62*12-SUM($Q82:S82)-SUMPRODUCT(--($C82:$N82<=T$62),T$62-$C82:$N82) -> 0 | U82: =U$62*12-SUM($Q82:T82)-SUMPRODUCT(--($C82:$N82<=U$62),U$62-$C82:$N82) -> 0 | X82: 0 | Y82: 0 | Z82: 0 | AA82: 0 | AB82: =U$62-SUM($X82:AA82)-SUMPRODUCT(--($C82<=U$62),U$62-$C82) -> 0 | AD82: 0 | AE82: 0 | AF82: 0 | AG82: 0 | AH82: =U$62-SUM($AD82:AG82)-SUMPRODUCT(--($D82<=U$62),U$62-$D82) -> 0 | AJ82: 0 | AK82: 0 | AL82: 0 | AM82: 0 | AN82: =U$62-SUM($AJ82:AM82)-SUMPRODUCT(--($E82<=U$62),U$62-$E82) -> 0 | AP82: 0 | AQ82: 0 | AR82: 0 | AS82: 0 | AT82: =U$62-SUM($AP82:AS82)-SUMPRODUCT(--($F82<=U$62),U$62-$F82) -> 0
B83: SACRED HEART MED CENTER | O83: 0 | Q83: 0 | R83: =R$62*12-SUM($Q83:Q83)-SUMPRODUCT(--($C83:$N83<=R$62),R$62-$C83:$N83) -> 0 | S83: =S$62*12-SUM($Q83:R83)-SUMPRODUCT(--($C83:$N83<=S$62),S$62-$C83:$N83) -> 0 | T83: =T$62*12-SUM($Q83:S83)-SUMPRODUCT(--($C83:$N83<=T$62),T$62-$C83:$N83) -> 0 | U83: =U$62*12-SUM($Q83:T83)-SUMPRODUCT(--($C83:$N83<=U$62),U$62-$C83:$N83) -> 0 | X83: 0 | Y83: 0 | Z83: 0 | AA83: 0 | AB83: =U$62-SUM($X83:AA83)-SUMPRODUCT(--($C83<=U$62),U$62-$C83) -> 0 | AD83: 0 | AE83: 0 | AF83: 0 | AG83: 0 | AH83: =U$62-SUM($AD83:AG83)-SUMPRODUCT(--($D83<=U$62),U$62-$D83) -> 0 | AJ83: 0 | AK83: 0 | AL83: 0 | AM83: 0 | AN83: =U$62-SUM($AJ83:AM83)-SUMPRODUCT(--($E83<=U$62),U$62-$E83) -> 0 | AP83: 0 | AQ83: 0 | AR83: 0 | AS83: 0 | AT83: =U$62-SUM($AP83:AS83)-SUMPRODUCT(--($F83<=U$62),U$62-$F83) -> 0
B84: SAINT LUKES REHAB INSTITUTE (122) | O84: =SUM(C84:N84) -> 0 | Q84: 0 | R84: =R$62*12-SUM($Q84:Q84)-SUMPRODUCT(--($C84:$N84<=R$62),R$62-$C84:$N84) -> 0 | S84: =S$62*12-SUM($Q84:R84)-SUMPRODUCT(--($C84:$N84<=S$62),S$62-$C84:$N84) -> 0 | T84: =T$62*12-SUM($Q84:S84)-SUMPRODUCT(--($C84:$N84<=T$62),T$62-$C84:$N84) -> 0 | U84: =U$62*12-SUM($Q84:T84)-SUMPRODUCT(--($C84:$N84<=U$62),U$62-$C84:$N84) -> 0 | X84: 0 | Y84: 0 | Z84: 0 | AA84: 0 | AB84: =U$62-SUM($X84:AA84)-SUMPRODUCT(--($C84<=U$62),U$62-$C84) -> 0 | AD84: 0 | AE84: 0 | AF84: 0 | AG84: 0 | AH84: =U$62-SUM($AD84:AG84)-SUMPRODUCT(--($D84<=U$62),U$62-$D84) -> 0 | AJ84: 0 | AK84: 0 | AL84: 0 | AM84: 0 | AN84: =U$62-SUM($AJ84:AM84)-SUMPRODUCT(--($E84<=U$62),U$62-$E84) -> 0 | AP84: 0 | AQ84: 0 | AR84: 0 | AS84: 0 | AT84: =U$62-SUM($AP84:AS84)-SUMPRODUCT(--($F84<=U$62),U$62-$F84) -> 0
B85: SHRINERS HOSPITAL | O85: 0 | Q85: 0 | R85: =R$62*12-SUM($Q85:Q85)-SUMPRODUCT(--($C85:$N85<=R$62),R$62-$C85:$N85) -> 0 | S85: =S$62*12-SUM($Q85:R85)-SUMPRODUCT(--($C85:$N85<=S$62),S$62-$C85:$N85) -> 0 | T85: =T$62*12-SUM($Q85:S85)-SUMPRODUCT(--($C85:$N85<=T$62),T$62-$C85:$N85) -> 0 | U85: =U$62*12-SUM($Q85:T85)-SUMPRODUCT(--($C85:$N85<=U$62),U$62-$C85:$N85) -> 0 | X85: 0 | Y85: 0 | Z85: 0 | AA85: 0 | AB85: =U$62-SUM($X85:AA85)-SUMPRODUCT(--($C85<=U$62),U$62-$C85) -> 0 | AD85: 0 | AE85: 0 | AF85: 0 | AG85: 0 | AH85: =U$62-SUM($AD85:AG85)-SUMPRODUCT(--($D85<=U$62),U$62-$D85) -> 0 | AJ85: 0 | AK85: 0 | AL85: 0 | AM85: 0 | AN85: =U$62-SUM($AJ85:AM85)-SUMPRODUCT(--($E85<=U$62),U$62-$E85) -> 0 | AP85: 0 | AQ85: 0 | AR85: 0 | AS85: 0 | AT85: =U$62-SUM($AP85:AS85)-SUMPRODUCT(--($F85<=U$62),U$62-$F85) -> 0
B86: SKAMANIA LODGE | O86: 0 | Q86: 0 | R86: =R$62*12-SUM($Q86:Q86)-SUMPRODUCT(--($C86:$N86<=R$62),R$62-$C86:$N86) -> 0 | S86: =S$62*12-SUM($Q86:R86)-SUMPRODUCT(--($C86:$N86<=S$62),S$62-$C86:$N86) -> 0 | T86: =T$62*12-SUM($Q86:S86)-SUMPRODUCT(--($C86:$N86<=T$62),T$62-$C86:$N86) -> 0 | U86: =U$62*12-SUM($Q86:T86)-SUMPRODUCT(--($C86:$N86<=U$62),U$62-$C86:$N86) -> 0 | X86: 0 | Y86: 0 | Z86: 0 | AA86: 0 | AB86: =U$62-SUM($X86:AA86)-SUMPRODUCT(--($C86<=U$62),U$62-$C86) -> 0 | AD86: 0 | AE86: 0 | AF86: 0 | AG86: 0 | AH86: =U$62-SUM($AD86:AG86)-SUMPRODUCT(--($D86<=U$62),U$62-$D86) -> 0 | AJ86: 0 | AK86: 0 | AL86: 0 | AM86: 0 | AN86: =U$62-SUM($AJ86:AM86)-SUMPRODUCT(--($E86<=U$62),U$62-$E86) -> 0 | AP86: 0 | AQ86: 0 | AR86: 0 | AS86: 0 | AT86: =U$62-SUM($AP86:AS86)-SUMPRODUCT(--($F86<=U$62),U$62-$F86) -> 0
B87: SPOKANE CLUB | O87: 0 | Q87: 0 | R87: =R$62*12-SUM($Q87:Q87)-SUMPRODUCT(--($C87:$N87<=R$62),R$62-$C87:$N87) -> 0 | S87: =S$62*12-SUM($Q87:R87)-SUMPRODUCT(--($C87:$N87<=S$62),S$62-$C87:$N87) -> 0 | T87: =T$62*12-SUM($Q87:S87)-SUMPRODUCT(--($C87:$N87<=T$62),T$62-$C87:$N87) -> 0 | U87: =U$62*12-SUM($Q87:T87)-SUMPRODUCT(--($C87:$N87<=U$62),U$62-$C87:$N87) -> 0 | X87: 0 | Y87: 0 | Z87: 0 | AA87: 0 | AB87: =U$62-SUM($X87:AA87)-SUMPRODUCT(--($C87<=U$62),U$62-$C87) -> 0 | AD87: 0 | AE87: 0 | AF87: 0 | AG87: 0 | AH87: =U$62-SUM($AD87:AG87)-SUMPRODUCT(--($D87<=U$62),U$62-$D87) -> 0 | AJ87: 0 | AK87: 0 | AL87: 0 | AM87: 0 | AN87: =U$62-SUM($AJ87:AM87)-SUMPRODUCT(--($E87<=U$62),U$62-$E87) -> 0 | AP87: 0 | AQ87: 0 | AR87: 0 | AS87: 0 | AT87: =U$62-SUM($AP87:AS87)-SUMPRODUCT(--($F87<=U$62),U$62-$F87) -> 0
B88: SPOKANE GALVANIZING INC | O88: 0 | Q88: 0 | R88: =R$62*12-SUM($Q88:Q88)-SUMPRODUCT(--($C88:$N88<=R$62),R$62-$C88:$N88) -> 0 | S88: =S$62*12-SUM($Q88:R88)-SUMPRODUCT(--($C88:$N88<=S$62),S$62-$C88:$N88) -> 0 | T88: =T$62*12-SUM($Q88:S88)-SUMPRODUCT(--($C88:$N88<=T$62),T$62-$C88:$N88) -> 0 | U88: =U$62*12-SUM($Q88:T88)-SUMPRODUCT(--($C88:$N88<=U$62),U$62-$C88:$N88) -> 0 | X88: 0 | Y88: 0 | Z88: 0 | AA88: 0 | AB88: =U$62-SUM($X88:AA88)-SUMPRODUCT(--($C88<=U$62),U$62-$C88) -> 0 | AD88: 0 | AE88: 0 | AF88: 0 | AG88: 0 | AH88: =U$62-SUM($AD88:AG88)-SUMPRODUCT(--($D88<=U$62),U$62-$D88) -> 0 | AJ88: 0 | AK88: 0 | AL88: 0 | AM88: 0 | AN88: =U$62-SUM($AJ88:AM88)-SUMPRODUCT(--($E88<=U$62),U$62-$E88) -> 0 | AP88: 0 | AQ88: 0 | AR88: 0 | AS88: 0 | AT88: =U$62-SUM($AP88:AS88)-SUMPRODUCT(--($F88<=U$62),U$62-$F88) -> 0
B89: TRI STATE MEMORIAL HOSPITAL | O89: 0 | Q89: 0 | R89: =R$62*12-SUM($Q89:Q89)-SUMPRODUCT(--($C89:$N89<=R$62),R$62-$C89:$N89) -> 0 | S89: =S$62*12-SUM($Q89:R89)-SUMPRODUCT(--($C89:$N89<=S$62),S$62-$C89:$N89) -> 0 | T89: =T$62*12-SUM($Q89:S89)-SUMPRODUCT(--($C89:$N89<=T$62),T$62-$C89:$N89) -> 0 | U89: =U$62*12-SUM($Q89:T89)-SUMPRODUCT(--($C89:$N89<=U$62),U$62-$C89:$N89) -> 0 | X89: 0 | Y89: 0 | Z89: 0 | AA89: 0 | AB89: =U$62-SUM($X89:AA89)-SUMPRODUCT(--($C89<=U$62),U$62-$C89) -> 0 | AD89: 0 | AE89: 0 | AF89: 0 | AG89: 0 | AH89: =U$62-SUM($AD89:AG89)-SUMPRODUCT(--($D89<=U$62),U$62-$D89) -> 0 | AJ89: 0 | AK89: 0 | AL89: 0 | AM89: 0 | AN89: =U$62-SUM($AJ89:AM89)-SUMPRODUCT(--($E89<=U$62),U$62-$E89) -> 0 | AP89: 0 | AQ89: 0 | AR89: 0 | AS89: 0 | AT89: =U$62-SUM($AP89:AS89)-SUMPRODUCT(--($F89<=U$62),U$62-$F89) -> 0
B90: WAGSTAFF INC | O90: 0 | Q90: 0 | R90: =R$62*12-SUM($Q90:Q90)-SUMPRODUCT(--($C90:$N90<=R$62),R$62-$C90:$N90) -> 0 | S90: =S$62*12-SUM($Q90:R90)-SUMPRODUCT(--($C90:$N90<=S$62),S$62-$C90:$N90) -> 0 | T90: =T$62*12-SUM($Q90:S90)-SUMPRODUCT(--($C90:$N90<=T$62),T$62-$C90:$N90) -> 0 | U90: =U$62*12-SUM($Q90:T90)-SUMPRODUCT(--($C90:$N90<=U$62),U$62-$C90:$N90) -> 0 | X90: 0 | Y90: 0 | Z90: 0 | AA90: 0 | AB90: =U$62-SUM($X90:AA90)-SUMPRODUCT(--($C90<=U$62),U$62-$C90) -> 0 | AD90: 0 | AE90: 0 | AF90: 0 | AG90: 0 | AH90: =U$62-SUM($AD90:AG90)-SUMPRODUCT(--($D90<=U$62),U$62-$D90) -> 0 | AJ90: 0 | AK90: 0 | AL90: 0 | AM90: 0 | AN90: =U$62-SUM($AJ90:AM90)-SUMPRODUCT(--($E90<=U$62),U$62-$E90) -> 0 | AP90: 0 | AQ90: 0 | AR90: 0 | AS90: 0 | AT90: =U$62-SUM($AP90:AS90)-SUMPRODUCT(--($F90<=U$62),U$62-$F90) -> 0
B91: WSU HOUSING | O91: 0 | Q91: 0 | R91: =R$62*12-SUM($Q91:Q91)-SUMPRODUCT(--($C91:$N91<=R$62),R$62-$C91:$N91) -> 0 | S91: =S$62*12-SUM($Q91:R91)-SUMPRODUCT(--($C91:$N91<=S$62),S$62-$C91:$N91) -> 0 | T91: =T$62*12-SUM($Q91:S91)-SUMPRODUCT(--($C91:$N91<=T$62),T$62-$C91:$N91) -> 0 | U91: =U$62*12-SUM($Q91:T91)-SUMPRODUCT(--($C91:$N91<=U$62),U$62-$C91:$N91) -> 0 | X91: 0 | Y91: 0 | Z91: 0 | AA91: 0 | AB91: =U$62-SUM($X91:AA91)-SUMPRODUCT(--($C91<=U$62),U$62-$C91) -> 0 | AD91: 0 | AE91: 0 | AF91: 0 | AG91: 0 | AH91: =U$62-SUM($AD91:AG91)-SUMPRODUCT(--($D91<=U$62),U$62-$D91) -> 0 | AJ91: 0 | AK91: 0 | AL91: 0 | AM91: 0 | AN91: =U$62-SUM($AJ91:AM91)-SUMPRODUCT(--($E91<=U$62),U$62-$E91) -> 0 | AP91: 0 | AQ91: 0 | AR91: 0 | AS91: 0 | AT91: =U$62-SUM($AP91:AS91)-SUMPRODUCT(--($F91<=U$62),U$62-$F91) -> 0
O92: 0 | Q92: 0 | R92: =R$62*12-SUM($Q92:Q92)-SUMPRODUCT(--($C92:$N92<=R$62),R$62-$C92:$N92) -> 0 | S92: =S$62*12-SUM($Q92:R92)-SUMPRODUCT(--($C92:$N92<=S$62),S$62-$C92:$N92) -> 0 | T92: =T$62*12-SUM($Q92:S92)-SUMPRODUCT(--($C92:$N92<=T$62),T$62-$C92:$N92) -> 0 | U92: =U$62*12-SUM($Q92:T92)-SUMPRODUCT(--($C92:$N92<=U$62),U$62-$C92:$N92) -> 0
O93: =SUM(C93:N93) -> 0 | Q93: 0 | R93: =R$62*12-SUM($Q93:Q93)-SUMPRODUCT(--($C93:$N93<=R$62),R$62-$C93:$N93) -> 0 | S93: =S$62*12-SUM($Q93:R93)-SUMPRODUCT(--($C93:$N93<=S$62),S$62-$C93:$N93) -> 0 | T93: =T$62*12-SUM($Q93:S93)-SUMPRODUCT(--($C93:$N93<=T$62),T$62-$C93:$N93) -> 0 | U93: =U$62*12-SUM($Q93:T93)-SUMPRODUCT(--($C93:$N93<=U$62),U$62-$C93:$N93) -> 0
B94: Total WA Sch 121/122 | C94: =SUM(C64:C92) -> 0 | D94: =SUM(D64:D93) -> 0 | E94: =SUM(E64:E93) -> 0 | F94: =SUM(F64:F93) -> 0 | G94: =SUM(G64:G93) -> 0 | H94: =SUM(H64:H93) -> 0 | I94: =SUM(I64:I93) -> 0 | J94: 0 | K94: 0 | L94: 0 | M94: 0 | N94: 0 | O94: =IF(ROUND(SUM(O64:O93),3)<>ROUND(SUM(C94:N94),3),#VALUE!,SUM(C94:N94)) -> 0 | Q94: =SUM(Q64:Q93) -> 0 | R94: =SUM(R64:R93) -> 0 | S94: =SUM(S64:S93) -> 0 | T94: =SUM(T64:T93) -> 0 | U94: =SUM(U64:U93) -> 0 | X94: =SUM(X64:X93) -> 0 | Y94: =SUM(Y64:Y93) -> 0 | Z94: 0 | AA94: 0 | AB94: 0 | AD94: =SUM(AD64:AD93) -> 0 | AE94: =SUM(AE64:AE93) -> 0 | AF94: =SUM(AF64:AF93) -> 0 | AG94: =SUM(AG64:AG93) -> 0 | AH94: =SUM(AH64:AH93) -> 0 | AJ94: =SUM(AJ64:AJ93) -> 0 | AK94: =SUM(AK64:AK93) -> 0 | AL94: =SUM(AL64:AL93) -> 0 | AM94: =SUM(AM64:AM93) -> 0 | AN94: =SUM(AN64:AN93) -> 0 | AP94: =SUM(AP64:AP93) -> 0 | AQ94: =SUM(AQ64:AQ93) -> 0 | AR94: =SUM(AR64:AR93) -> 0 | AS94: =SUM(AS64:AS93) -> 0 | AT94: =SUM(AT64:AT93) -> 0
U95: =SUM(Q94:U94) -> 0
B96: Revenue Runs | C96: ='12MEDEC18'!D164 -> 547570.599 | D96: ='12MEDEC18'!E164 -> 455180.025 | E96: ='12MEDEC18'!F164 -> 474318.037 | F96: ='12MEDEC18'!G164 -> 397963.426 | G96: ='12MEDEC18'!H164 -> 332257.024 | H96: ='12MEDEC18'!I164 -> 303322.937 | I96: ='12MEDEC18'!J164 -> 280882.2997 | J96: ='12MEDEC18'!K164 -> 293436.327 | K96: ='12MEDEC18'!L164 -> 292153.116 | L96: ='12MEDEC18'!M164 -> 342720.661 | M96: ='12MEDEC18'!N164 -> 412245.141 | N96: ='12MEDEC18'!O164 -> -2363729.292 | O96: =SUM(C96:N96) -> 1768320.301
B97: Johanna Beverage Co | C97: 26922 | D97: 27843 | E97: 30552 | F97: 31759 | G97: 25318 | H97: 28411 | I97: 26106 | J97: 0 | K97: 20184 | O97: =SUM(C97:N97) -> 217095 | Q97: =Q$62*12-SUMPRODUCT(--($C97:$N97<=Q$62),Q$62-$C97:$N97) -> 4000 | R97: =R$62*12-SUM($Q97:Q97)-SUMPRODUCT(--($C97:$N97<=R$62),R$62-$C97:$N97) -> 4000 | S97: =S$62*12-SUM($Q97:R97)-SUMPRODUCT(--($C97:$N97<=S$62),S$62-$C97:$N97) -> 72000 | T97: =T$62*12-SUM($Q97:S97)-SUMPRODUCT(--($C97:$N97<=T$62),T$62-$C97:$N97) -> 115184 | U97: =U$62*12-SUM($Q97:T97)-SUMPRODUCT(--($C97:$N97<=U$62),U$62-$C97:$N97) -> 21911
O98: =SUM(C98:N98) -> 0 | Y98: =COUNT(O64:O91) -> 28
O99: 0
B100: Total WA Sch 121/122 | C100: =C96-SUM(C97:C99) -> 520648.599 | D100: =D96-SUM(D97:D99) -> 427337.025 | E100: 443766.037 | F100: 366204.426 | G100: 306939.024 | H100: 274911.937 | I100: 254776.2997 | J100: 293436.327 | K100: 271969.116 | L100: 342720.661 | M100: 412245.141 | N100: -2363729.292 | O100: =IF(ROUND(O96-SUM(O97:O99),3)<>ROUND(SUM(C100:N100),3),#VALUE!,SUM(C100:N100)) -> 1551225.301
C101: =C94-C100 -> -520648.599 | D101: -427337.025 | E101: -443766.037 | F101: -366204.426 | G101: -306939.024 | H101: -274911.937 | I101: -254776.2997 | J101: -293436.327 | K101: -271969.116 | L101: =L94-L100 -> -342720.661 | M101: -412245.141 | N101: 2363729.292 | O101: -1551225.301
L102: =COUNT(L64:L91) -> 0 | M102: =COUNT(M64:M91) -> 0 | N102: 0
B103: ANNUAL USAGE, Sch 132 | O103: 12-mo ended | Q103: 10000 | R103: 25000 | S103: 50000 | T103: 99999999
B104: Washington | C104: =C4 -> 2018-01-01 | D104: =D4 -> 2018-02-01 | E104: 2018-03-01 | F104: 2018-04-01 | G104: 2018-05-01 | H104: 2018-06-01 | I104: 2018-07-01 | J104: 2018-08-01 | K104: 2018-09-01 | L104: 2018-10-01 | M104: 2018-11-01 | N104: 2018-12-01 | O104: Total | Q104: thms/mo | R104: thms/mo | S104: thms/mo | T104: thms/mo
C105: 72359 | D105: 48424 | E105: 56958 | F105: 43898 | G105: 37416 | H105: 15435 | I105: 14115 | J105: 11257 | K105: 11438 | L105: 17735 | M105: 27417 | N105: 51773 | O105: =SUM(C105:N105) -> 408225 | Q105: =Q$103*12-SUMPRODUCT(--($C105:$N105<=Q$103),Q$103-$C105:$N105) -> 120000 | R105: =R$103*12-SUM($Q105:Q105)-SUMPRODUCT(--($C105:$N105<=R$103),R$103-$C105:$N105) -> 124980 | S105: =S$103*12-SUM($Q105:R105)-SUMPRODUCT(--($C105:$N105<=S$103),S$103-$C105:$N105) -> 132155 | T105: =T$103*12-SUM($Q105:S105)-SUMPRODUCT(--($C105:$N105<=T$103),T$103-$C105:$N105) -> 31090
C106: 66743 | D106: 68904 | E106: 56159 | F106: 49321 | G106: 35485 | H106: 32035 | I106: 27622 | J106: 32258 | K106: 33396 | L106: 50959 | M106: 61102 | N106: 63058 | O106: =SUM(C106:N106) -> 577042 | Q106: =Q$103*12-SUMPRODUCT(--($C106:$N106<=Q$103),Q$103-$C106:$N106) -> 120000 | R106: =R$103*12-SUM($Q106:Q106)-SUMPRODUCT(--($C106:$N106<=R$103),R$103-$C106:$N106) -> 180000 | S106: =S$103*12-SUM($Q106:R106)-SUMPRODUCT(--($C106:$N106<=S$103),S$103-$C106:$N106) -> 210117 | T106: =T$103*12-SUM($Q106:S106)-SUMPRODUCT(--($C106:$N106<=T$103),T$103-$C106:$N106) -> 66925
C108: =SUM(C105:C107) -> 139102 | D108: =SUM(D105:D107) -> 117328 | E108: 113117 | F108: 93219 | G108: 72901 | H108: 47470 | I108: 41737 | J108: 43515 | K108: 44834 | L108: 68694 | M108: 88519 | N108: 114831 | O108: =IF(ROUND(SUM(O105:O107),3)<>ROUND(SUM(C108:N108),3),#VALUE!,SUM(C108:N108)) -> 985267 | Q108: =SUM(Q105:Q107) -> 240000 | R108: =SUM(R105:R107) -> 304980 | S108: =SUM(S105:S107) -> 342272 | T108: =SUM(T105:T107) -> 98015
B110: Revenue Runs | C110: ='12MEDEC18'!D165 -> 139102.279 | D110: ='12MEDEC18'!E165 -> 117327.56 | E110: ='12MEDEC18'!F165 -> 113117.076 | F110: ='12MEDEC18'!G165 -> 93219.128 | G110: ='12MEDEC18'!H165 -> 72900.841 | H110: ='12MEDEC18'!I165 -> 47469.585 | I110: ='12MEDEC18'!J165 -> 41737.258 | J110: ='12MEDEC18'!K165 -> 43515.436 | K110: ='12MEDEC18'!L165 -> 44833.752 | L110: ='12MEDEC18'!M165 -> 68693.989 | M110: ='12MEDEC18'!N165 -> 88518.619 | N110: ='12MEDEC18'!O165 -> 114831.204 | O110: =SUM(C110:N110) -> 985266.727
B111: SPOKANE COUNTY COURTHOUSE (122 to 132) | C111: 0 | D111: 0 | E111: 0 | F111: 0 | G111: 0 | O111: =SUM(C111:N111) -> 0
B112: Total WA Sch 132 | C112: =SUM(C110:C111) -> 139102.279 | D112: =SUM(D110:D111) -> 117327.56 | E112: 113117.076 | F112: 93219.128 | G112: 72900.841 | H112: 47469.585 | I112: 41737.258 | J112: 43515.436 | K112: 44833.752 | L112: 68693.989 | M112: 88518.619 | N112: 114831.204 | O112: 985266.727 | T112: =SUM(Q108:T108) -> 985267
C113: =C108-C112 -> -0.279 | D113: =D108-D112 -> 0.44 | E113: -0.076 | F113: -0.128 | G113: 0.159 | H113: 0.415 | I113: -0.258 | J113: -0.436 | K113: 0.248 | L113: 0.01100000001 | M113: =M108-M112 -> 0.381 | N113: -0.204 | O113: 0.273
B114: ANNUAL USAGE, Sch 148 | O114: 12-mo ended
B115: Washington | C115: =C4 -> 2018-01-01 | D115: =D4 -> 2018-02-01 | E115: 2018-03-01 | F115: 2018-04-01 | G115: 2018-05-01 | H115: 2018-06-01 | I115: 2018-07-01 | J115: 2018-08-01 | K115: 2018-09-01 | L115: 2018-10-01 | M115: 2018-11-01 | N115: 2018-12-01 | O115: Total
C116: 2263003 | D116: 2323468 | E116: 2069022 | F116: 2145109 | G116: 1947509 | H116: 1988089 | I116: 1901441 | J116: 1894548 | K116: 1929184 | L116: 1920478 | M116: 1974243 | N116: 2176024 | O116: =SUM(C116:N116) -> 24532118
C117: 500013 | D117: 552172 | E117: 461294 | F117: 337409 | G117: 485342 | H117: 532181 | I117: 556951 | J117: 565213 | K117: 536353 | L117: 554306 | M117: 607830 | N117: 548144 | O117: =SUM(C117:N117) -> 6237208
C118: 194662 | D118: 187274 | E118: 172931 | F118: 139365 | G118: 170191 | H118: 185361 | I118: 177692 | J118: 168237 | K118: 164761 | L118: 168526 | M118: 180639 | N118: 180886 | O118: =SUM(C118:N118) -> 2090525
C119: 509509 | D119: 567802 | E119: 459179 | F119: 506796 | G119: 433132 | H119: 406894 | I119: 449872 | J119: 500550 | K119: 448257 | L119: 421795 | M119: 485250 | N119: 463727 | O119: =SUM(C119:N119) -> 5652763
C120: 1515959 | D120: 1242619 | E120: 1250208 | F120: 1118302 | G120: 889368 | H120: 577568 | I120: 525822 | J120: 442848 | K120: 455422 | L120: 632550 | M120: 863885 | N120: 1084907 | O120: =SUM(C120:N120) -> 10599458
B122: Total WA Sch 148 | C122: =SUM(C116:C121) -> 4983146 | D122: 4873335 | E122: 4412634 | F122: 4246981 | G122: 3925542 | H122: 3690093 | I122: 3611778 | J122: 3571396 | K122: 3533977 | L122: 3697655 | M122: 4111847 | N122: 4453688 | O122: =IF(ROUND(SUM(O116:O121),3)<>ROUND(SUM(C122:N122),3),#VALUE!,SUM(C122:N122)) -> 49112072
B124: Revenue Runs | C124: ='12MEDEC18'!D168 -> 4983146 | D124: ='12MEDEC18'!E168 -> 4873335 | E124: ='12MEDEC18'!F168 -> 4412634 | F124: ='12MEDEC18'!G168 -> 4246981 | G124: ='12MEDEC18'!H168 -> 3925542 | H124: ='12MEDEC18'!I168 -> 3690093 | I124: ='12MEDEC18'!J168 -> 3611778 | J124: ='12MEDEC18'!K168 -> 3571396 | K124: ='12MEDEC18'!L168 -> 3533977 | L124: ='12MEDEC18'!M168 -> 3697655 | M124: ='12MEDEC18'!N168 -> 4111847 | N124: ='12MEDEC18'!O168 -> 4453688 | O124: =SUM(C124:N124) -> 49112072
C125: =C122-C124 -> 0 | D125: =D122-D124 -> 0 | E125: 0 | F125: 0 | G125: 0 | H125: 0 | I125: 0 | J125: 0 | K125: 0 | L125: 0 | M125: 0 | N125: 0 | O125: 0
B127: ANNUAL USAGE, Sch 147 | O127: 12-mo ended
B128: Washington | C128: =C4 -> 2018-01-01 | D128: =D4 -> 2018-02-01 | E128: 2018-03-01 | F128: 2018-04-01 | G128: 2018-05-01 | H128: 2018-06-01 | I128: 2018-07-01 | J128: 2018-08-01 | K128: 2018-09-01 | L128: 2018-10-01 | M128: 2018-11-01 | N128: 2018-12-01 | O128: Total
C129: 253287 | D129: 37658 | E129: 115812 | F129: 46787 | G129: 72960 | H129: 231323 | I129: 115510 | J129: 739213 | K129: 774467 | L129: 562471 | M129: 1000573 | N129: 493719 | O129: =SUM(C129:N129) -> 4443780
C130: =19515+9275 -> 28790 | D130: 1515 | E130: =15220+3381 -> 18601 | F130: =7642+48 -> 7690 | G130: =23296+21 -> 23317 | H130: 9105 | I130: =8173+20770 -> 28943 | J130: =222649+5380 -> 228029 | K130: =254269+14 -> 254283 | L130: =133285+31 -> 133316 | M130: =61410+22 -> 61432 | N130: =160428+6304 -> 166732 | O130: =SUM(C130:N130) -> 961753
B132: Total WA Sch 147 | C132: =SUM(C129:C131) -> 282077 | D132: 39173 | E132: =SUM(E129:E131) -> 134413 | F132: 54477 | G132: 96277 | H132: 240428 | I132: 144453 | J132: 967242 | K132: 1028750 | L132: 695787 | M132: 1062005 | N132: 660451 | O132: =IF(ROUND(SUM(O129:O131),3)<>ROUND(SUM(C132:N132),3),#VALUE!,SUM(C132:N132)) -> 5405533
B134: Revenue Runs | C134: ='12MEDEC18'!D167 -> 282077 | D134: ='12MEDEC18'!E167 -> 39173 | E134: ='12MEDEC18'!F167 -> 134413 | F134: ='12MEDEC18'!G167 -> 54477 | G134: ='12MEDEC18'!H167 -> 96277 | H134: ='12MEDEC18'!I167 -> 240428 | I134: ='12MEDEC18'!J167 -> 144453 | J134: ='12MEDEC18'!K167 -> 967242 | K134: ='12MEDEC18'!L167 -> 1028750 | L134: ='12MEDEC18'!M167 -> 695787 | M134: ='12MEDEC18'!N167 -> 1062005 | N134: ='12MEDEC18'!O167 -> 660451 | O134: =SUM(C134:N134) -> 5405533
C135: =C132-C134 -> 0 | D135: 0 | E135: 0 | F135: 0 | G135: 0 | H135: 0 | I135: 0 | J135: 0 | K135: 0 | L135: 0 | M135: 0 | N135: 0 | O135: 0
B137: Sch 147 Revenue from Rev. Runs | C137: 5898 | D137: 819 | E137: 2811 | F137: 1139 | G137: 2013 | H137: 5027 | I137: 3021 | J137: 20225 | K137: 21511 | L137: 14549 | M137: 22207 | N137: 13810 | O137: =SUM(C137:N137) -> 113030
B138: check | C138: =C132*0.02091 -> 5898.23007 | D138: =D132*0.02091 -> 819.10743 | E138: 2810.57583 | F138: 1139.11407 | G138: 2013.15207 | H138: 5027.34948 | I138: 3020.51223 | J138: 20225.03022 | K138: 21511.1625 | L138: 14548.90617 | M138: =M132*0.02091 -> 22206.52455 | N138: 13810.03041 | O138: =SUM(C138:N138) -> 113029.695

Sheet 12MEDEC18
A3: Gas Revenue Meters Report by Location Twelve Months Ended for Report Date : '12/31/2018'
A5: State Cde:WA
C7: Meters
B8: Period | C8: 201801 | D8: 201802 | E8: 201803 | F8: 201804 | G8: 201805 | H8: 201806 | I8: 201807 | J8: 201808 | K8: 201809 | L8: 201810 | M8: 201811 | N8: 201812 | O8: 12 Month Average | P8: 12 Month Total
A9: Rate Schedule Num
A10: 0101 | C10: 160426 | D10: 160194 | E10: 161042 | F10: 160754 | G10: 161195 | H10: 161073 | I10: 161417 | J10: 161730 | K10: 160225 | L10: 164438 | M10: 163219 | N10: 163683 | O10: =AVERAGE(C10:N10) -> 161616.3333 | P10: =SUM(C10:N10) -> 1939396
A11: 0102 | C11: 185 | D11: 184 | E11: 186 | F11: 181 | G11: 176 | H11: 174 | I11: 171 | J11: 170 | K11: 170 | L11: 168 | M11: 167 | N11: 167 | O11: =AVERAGE(C11:N11) -> 174.9166667 | P11: =SUM(C11:N11) -> 2099 | R11: =N10+N11 -> 163850
A12: 0111 | C12: 2999 | D12: 3013 | E12: 3073 | F12: 3062 | G12: 3042 | H12: 3065 | I12: 3054 | J12: 3045 | K12: 2975 | L12: 3121 | M12: 3054 | N12: =3716-'121 to 111'!T35 -> 3325 | O12: 3069 | P12: 36828
A13: 0112 | C13: 1 | D13: 1 | E13: 1 | F13: 1 | G13: 1 | H13: 1 | I13: 1 | J13: 1 | K13: 1 | L13: 1 | M13: 1 | N13: 1 | O13: 1 | P13: 12 | R13: =N12+N13-211 -> 3115
A14: 0121 | C14: 22 | D14: 22 | E14: 22 | F14: 22 | G14: 22 | H14: 22 | I14: 22 | J14: 23 | K14: 19 | L14: 24 | M14: 22 | N14: =-608+'121 to 111'!T35+8 -> -209 | O14: 2.75 | P14: 33
A15: 0122 | C15: 1 | D15: 1 | E15: 1 | F15: 1 | G15: 1 | H15: 1 | I15: 1 | J15: 1 | K15: 1 | L15: 1 | M15: 1 | N15: 1 | O15: 1 | P15: 12 | R15: =N15+N14+211 -> 3
A16: 0132 | C16: 2 | D16: 2 | E16: 2 | F16: 2 | G16: 2 | H16: 2 | I16: 2 | J16: 2 | K16: 2 | L16: 2 | M16: 2 | N16: 2 | O16: 2 | P16: 24 | R16: =N16 -> 2
A17: 0146 | C17: 41 | D17: 41 | E17: 41 | F17: 41 | G17: 41 | H17: 41 | I17: 41 | J17: 41 | K17: 41 | L17: 38 | M17: 40 | N17: 39 | O17: 40.5 | P17: 486
A18: 0147 | C18: 3 | D18: 2 | E18: 3 | F18: 3 | G18: 3 | H18: 2 | I18: 3 | J18: 3 | K18: 3 | L18: 3 | M18: 3 | N18: 3 | O18: 2.833333333 | P18: 34
A19: 0148 | C19: 5 | D19: 5 | E19: 5 | F19: 5 | G19: 5 | H19: 5 | I19: 5 | J19: 5 | K19: 5 | L19: 5 | M19: 5 | N19: 5 | O19: 5 | P19: 60 | R19: =N19+N18+N17 -> 47
A20: 0158 | C20: 0 | D20: 0 | E20: 0 | F20: 0 | G20: 0 | H20: 0 | I20: 0 | J20: 0 | K20: 0 | L20: 0 | M20: 0 | N20: 0 | O20: 0 | P20: 0
A21: 0158A | C21: 0 | D21: 0 | E21: 0 | F21: 0 | G21: 0 | H21: 0 | I21: 0 | J21: 0 | K21: 0 | L21: 0 | M21: 0 | N21: 0 | O21: 0 | P21: 0
A22: 0199 | C22: 0 | D22: 0 | E22: 0 | F22: 0 | G22: 0 | H22: 0 | I22: 0 | J22: 0 | K22: 0 | L22: 0 | M22: 0 | N22: 0 | O22: 0 | P22: 0
A23: Total for WA | C23: =SUM(C10:C22) -> 163685 | D23: =SUM(D10:D22) -> 163465 | E23: 164376 | F23: 164072 | G23: 164488 | H23: 164386 | I23: 164717 | J23: 165021 | K23: 163442 | L23: 167801 | M23: 166514 | N23: 167017 | P23: =SUM(C23:N23) -> 1978984
O25: Total | P25: Avg
B26: 101/102 | C26: =C10+C11 -> 160611 | D26: =D10+D11 -> 160378 | E26: 161228 | F26: 160935 | G26: 161371 | H26: 161247 | I26: 161588 | J26: 161900 | K26: 160395 | L26: 164606 | M26: 163386 | N26: 163850 | O26: =SUM(C26:N26) -> 1941495 | P26: =AVERAGE(C26:N26) -> 161791.25
B27: 111/112 | C27: =C12+C13 -> 3000 | D27: =D12+D13 -> 3014 | E27: 3074 | F27: 3063 | G27: 3043 | H27: 3066 | I27: 3055 | J27: 3046 | K27: 2976 | L27: 3122 | M27: 3055 | N27: 3326 | O27: =SUM(C27:N27) -> 36840 | P27: =AVERAGE(C27:N27) -> 3070
B28: 121/122 | C28: =C14+C15 -> 23 | D28: =D14+D15 -> 23 | E28: 23 | F28: 23 | G28: 23 | H28: 23 | I28: 23 | J28: 24 | K28: 20 | L28: 25 | M28: 23 | N28: -208 | O28: 45 | P28: 3.75
B29: 132 | C29: =C16 -> 2 | D29: =D16 -> 2 | E29: 2 | F29: 2 | G29: 2 | H29: 2 | I29: 2 | J29: 2 | K29: 2 | L29: 2 | M29: 2 | N29: 2 | O29: 24 | P29: 2
B30: 146 | C30: =C17 -> 41 | D30: =D17 -> 41 | E30: 41 | F30: 41 | G30: 41 | H30: 41 | I30: 41 | J30: 41 | K30: 41 | L30: 38 | M30: 40 | N30: 39 | O30: 486 | P30: 40.5
B31: 147 | C31: =C18 -> 3 | D31: =D18 -> 2 | E31: 3 | F31: 3 | G31: 3 | H31: 2 | I31: 3 | J31: 3 | K31: 3 | L31: 3 | M31: 3 | N31: 3 | O31: 34 | P31: 2.833333333
B32: 148 | C32: =C19 -> 5 | D32: =D19 -> 5 | E32: 5 | F32: 5 | G32: 5 | H32: 5 | I32: 5 | J32: 5 | K32: 5 | L32: 5 | M32: 5 | N32: 5 | O32: 60 | P32: 5
B33: Total | C33: =SUM(C26:C32) -> 163685 | D33: =SUM(D26:D32) -> 163465 | E33: 164376 | F33: 164072 | G33: 164488 | H33: 164386 | I33: 164717 | J33: 165021 | K33: 163442 | L33: 167801 | M33: 166514 | N33: 167017 | O33: 1978984
C35: =C23-C33 -> 0 | D35: =D23-D33 -> 0 | E35: 0 | F35: 0 | G35: 0 | H35: 0 | I35: 0 | J35: 0 | K35: 0 | L35: 0 | M35: 0 | N35: 0
A37: Gas Revenue Meters Report by Location Twelve Months Ended for Report Date : '12/31/2018'
A39: State Cde:WA
D41: Usage
C42: Period | D42: 201801 | E42: 201802 | F42: 201803 | G42: 201804 | H42: 201805 | I42: 201806 | J42: 201807 | K42: 201808 | L42: 201809 | M42: 201810 | N42: 201811 | O42: 201812 | P42: 12 Month Total
A43: Rate Schedule Num | B43: Billing Determinant
A44: 0101 | B44: BASIC CHARGE GAS | D44: 0 | E44: 0 | F44: 0 | G44: 0 | H44: 0 | I44: 0 | J44: 0 | K44: 0 | L44: 0 | M44: 0 | N44: 0 | O44: 0 | P44: =SUM(D44:O44) -> 0
B45: NA | D45: 0 | E45: 0 | F45: 0 | G45: 0 | H45: 0 | I45: 0 | J45: 0 | K45: 0 | L45: 0 | M45: 0 | N45: 0 | O45: 0 | P45: 0
B46: RIDER 150 | D46: 0 | E46: 0 | F46: 0 | G46: 0 | H46: 0 | I46: 0 | J46: 0 | K46: 0 | L46: 0 | M46: -60 | N46: -76 | O46: -793 | P46: =SUM(D46:O46) -> -929
B47: RIDER 155 | D47: 0 | E47: 0 | F47: 0 | G47: 0 | H47: 0 | I47: 0 | J47: 0 | K47: 0 | L47: 0 | M47: 0 | N47: 0 | O47: 0 | P47: 0
B48: RIDER 156 | D48: 0 | E48: 0 | F48: 0 | G48: 0 | H48: 0 | I48: 0 | J48: 0 | K48: 0 | L48: 0 | M48: 0 | N48: 0 | O48: 0 | P48: 0
B49: RIDER 159 | D49: 0 | E49: 0 | F49: 0 | G49: 0 | H49: 0 | I49: 0 | J49: 0 | K49: 0 | L49: 0 | M49: 0 | N49: 0 | O49: 0 | P49: 0
B50: RIDER 175 | M50: 0 | N50: 0 | O50: 0 | P50: 0
B51: RIDER 191 | D51: 0 | E51: 0 | F51: 0 | G51: 0 | H51: 0 | I51: 0 | J51: 0 | K51: 0 | L51: 0 | M51: 0 | N51: 0 | O51: 0 | P51: 0
B52: RIDER 192 | D52: 0 | E52: 0 | F52: 0 | G52: 0 | H52: 0 | I52: 0 | J52: 0 | K52: 0 | L52: 0 | M52: 0 | N52: 0 | O52: 0 | P52: 0
B53: RIDER 197 | M53: 0 | N53: 0 | O53: 0 | P53: 0
B54: THERMS BLOCK 1 | D54: 10511482.62 | E54: 10049624.61 | F54: 10243312.53 | G54: 9176707.065 | H54: 5505649.125 | I54: 2693969.414 | J54: 2253001.462 | K54: 1948689.301 | L54: 2249107.127 | M54: 4816783.379 | N54: 8240250.74 | O54: 10351024.28 | P54: =SUM(D54:O54) -> 78039601.65
B55: THERMS BLOCK 2 | D55: 13368593.31 | E55: 7338796.204 | F55: 8507127.037 | G55: 3621992.338 | H55: 608026.0204 | I55: 191623.9895 | J55: 188173.6617 | K55: 135167.251 | L55: 190638.6399 | M55: 472390.7087 | N55: 2590409.432 | O55: 8575589.074 | P55: =SUM(D55:O55) -> 45788527.66
B56: Total for 0101 | D56: =SUM(D44:D55) -> 23880075.93 | E56: =SUM(E44:E55) -> 17388420.81 | F56: 18750439.56 | G56: 12798699.4 | H56: 6113675.146 | I56: 2885593.403 | J56: 2441175.124 | K56: 2083856.552 | L56: 2439745.767 | M56: 5289114.087 | N56: 10830584.17 | O56: 18925820.35 | P56: =SUM(D56:O56) -> 123827200.3
A57: 0102 | B57: BASIC CHARGE GAS | D57: 0 | E57: 0 | F57: 0 | G57: 0 | H57: 0 | I57: 0 | J57: 0 | K57: 0 | L57: 0 | M57: 0 | N57: 0 | O57: 0 | P57: =SUM(D57:O57) -> 0
B58: NA | D58: 0 | E58: 0 | F58: 0 | G58: 0 | H58: 0 | I58: 0 | J58: 0 | K58: 0 | L58: 0 | M58: 0 | N58: 0 | O58: 0 | P58: 0
B59: RIDER 150 | D59: 0 | E59: 0 | F59: 0 | G59: 0 | H59: 0 | I59: 0 | J59: 0 | K59: 0 | L59: 0 | M59: 0 | N59: 0 | O59: 0 | P59: 0
B60: RIDER 155 | D60: 0 | E60: 0 | F60: 0 | G60: 0 | H60: 0 | I60: 0 | J60: 0 | K60: 0 | L60: 0 | M60: 0 | N60: 0 | O60: 0 | P60: 0
B61: RIDER 156 | D61: 0 | E61: 0 | F61: 0 | G61: 0 | H61: 0 | I61: 0 | J61: 0 | K61: 0 | L61: 0 | M61: 0 | N61: 0 | O61: 0 | P61: 0
B62: RIDER 159 | D62: 0 | E62: 0 | F62: 0 | G62: 0 | H62: 0 | I62: 0 | J62: 0 | K62: 0 | L62: 0 | M62: 0 | N62: 0 | O62: 0 | P62: 0
B63: RIDER 175 | N63: 0 | O63: 0 | P63: 0
B64: RIDER 189 | D64: 0 | E64: 0 | F64: 0 | G64: 0 | H64: 0 | I64: 0 | J64: 0 | K64: 0 | L64: 0 | M64: 0 | N64: 0 | O64: 0 | P64: 0
B65: RIDER 191 | D65: 0 | E65: 0 | F65: 0 | G65: 0 | H65: 0 | I65: 0 | J65: 0 | K65: 0 | L65: 0 | M65: 0 | N65: 0 | O65: 0 | P65: 0
B66: RIDER 192 | D66: 0 | E66: 0 | F66: 0 | G66: 0 | H66: 0 | I66: 0 | J66: 0 | K66: 0 | L66: 0 | M66: 0 | N66: 0 | O66: 0 | P66: 0
B67: THERMS BLOCK 1 | D67: 12749.866 | E67: 12067.186 | F67: 12466.224 | G67: 11391.09803 | H67: 6809.50444 | I67: 2937.37897 | J67: 2271.853 | K67: 1786.32419 | L67: 2305.55389 | M67: 5760.752 | N67: 9703.70054 | O67: 11231.50662 | P67: 91480.94768
B68: THERMS BLOCK 2 | D68: 14655.608 | E68: 7980.846 | F68: 9773.167 | G68: 3940.795 | H68: 760.255 | I68: 187.361 | J68: 285.23 | K68: 165.15 | L68: 116.518 | M68: 464.105 | N68: 2387.60306 | O68: 8944.18909 | P68: 49660.82715
B69: Total for 0102 | D69: =SUM(D57:D68) -> 27405.474 | E69: =SUM(E57:E68) -> 20048.032 | F69: 22239.391 | G69: 15331.89303 | H69: 7569.75944 | I69: 3124.73997 | J69: 2557.083 | K69: 1951.47419 | L69: 2422.07189 | M69: 6224.857 | N69: 12091.3036 | O69: 20175.69571 | P69: =SUM(D69:O69) -> 141141.7748
A70: 0111 | B70: BASIC CHARGE GAS | D70: 0 | E70: 0 | F70: 0 | G70: 0 | H70: 0 | I70: 0 | J70: 0 | K70: 0 | L70: 0 | M70: 0 | N70: 0 | O70: 0 | P70: =SUM(D70:O70) -> 0
B71: NA | D71: 0 | E71: 0 | F71: 0 | G71: 0 | H71: 0 | I71: 0 | J71: 0 | K71: 0 | L71: 0 | M71: 0 | N71: 0 | O71: 0 | P71: =SUM(D71:O71) -> 0
B72: RIDER 150 | D72: 0 | E72: 0 | F72: 0 | G72: 0 | H72: 0 | I72: 0 | J72: 0 | K72: 0 | L72: 0 | M72: 0 | N72: 0 | O72: -241 | P72: -241
B73: RIDER 155 | D73: 0 | E73: 0 | F73: 0 | G73: 0 | H73: 0 | I73: 0 | J73: 0 | K73: 0 | L73: 0 | M73: 0 | N73: 0 | O73: 0 | P73: 0
B74: RIDER 156 | D74: 0 | E74: 0 | F74: 0 | G74: 0 | H74: 0 | I74: 0 | J74: 0 | K74: 0 | L74: 0 | M74: 0 | N74: 0 | O74: 0 | P74: 0
B75: RIDER 175 | M75: 0 | N75: 0 | O75: 0 | P75: 0
B76: RIDER 191 | D76: 0 | E76: 0 | F76: 0 | G76: 0 | H76: 0 | I76: 0 | J76: 0 | K76: 0 | L76: 0 | M76: 0 | N76: 0 | O76: 0 | P76: 0
B77: RIDER 192 | D77: 0 | E77: 0 | F77: 0 | G77: 0 | H77: 0 | I77: 0 | J77: 0 | K77: 0 | L77: 0 | M77: 0 | N77: 0 | O77: 0 | P77: 0
B78: THERMS BLOCK 1 | D78: 589934.1321 | E78: 590810.4269 | F78: 603524.1804 | G78: 598823.4294 | H78: 554355.2493 | I78: 457385.4193 | J78: 406432.0633 | K78: 369191.6927 | L78: 401055.1408 | M78: 544518.6838 | N78: 589843.8162 | O78: =729831.33662-'121 to 111'!R26 -> 651631.3366 | P78: 6357505.571
B79: THERMS BLOCK 2 | D79: 2084775.281 | E79: 1987647.634 | F79: 2037283.433 | G79: 1803319.135 | H79: 1207255.993 | I79: 735033.1087 | J79: 625181.9259 | K79: 560486.23 | L79: 636511.3843 | M79: 1024196.783 | N79: 1602247.242 | O79: =2530797.93761-'121 to 111'!S26 -> 2217997.938 | P79: 16521936.09
B80: THERMS BLOCK 3 | D80: 5325802.235 | E80: 3964960.849 | F80: 4143033.33 | G80: 2753191.902 | H80: 1378027.181 | I80: 698319.8055 | J80: 544971.0136 | K80: 516705.8033 | L80: 569053.9006 | M80: 985638.2865 | N80: 2122581.59 | O80: =10889850.43692-'121 to 111'!T26 -> 6624153.749 | P80: 29626439.65
B81: Total for 0111 | D81: =SUM(D70:D80) -> 8000511.648 | E81: =SUM(E70:E80) -> 6543418.91 | F81: 6783840.944 | G81: 5155334.466 | H81: 3139638.423 | I81: 1890738.334 | J81: 1576585.003 | K81: 1446383.726 | L81: 1606620.426 | M81: 2554353.753 | N81: 4314672.648 | O81: 9493542.023 | P81: 52505640.3
A82: 0112 | B82: BASIC CHARGE GAS | D82: 0 | E82: 0 | F82: 0 | G82: 0 | H82: 0 | I82: 0 | J82: 0 | K82: 0 | L82: 0 | M82: 0 | N82: 0 | O82: 0 | P82: =SUM(D82:O82) -> 0
B83: NA | D83: 0 | E83: 0 | F83: 0 | G83: 0 | H83: 0 | I83: 0 | J83: 0 | K83: 0 | L83: 0 | M83: 0 | N83: 0 | O83: 0 | P83: =SUM(D83:O83) -> 0
B84: RIDER 150 | D84: 0 | E84: 0 | F84: 0 | G84: 0 | H84: 0 | I84: 0 | J84: 0 | K84: 0 | L84: 0 | M84: 0 | N84: 0 | O84: 0 | P84: 0
B85: RIDER 155 | D85: 0 | E85: 0 | F85: 0 | G85: 0 | H85: 0 | I85: 0 | J85: 0 | K85: 0 | L85: 0 | M85: 0 | N85: 0 | O85: 0 | P85: 0
B86: RIDER 156 | D86: 0 | E86: 0 | F86: 0 | G86: 0 | H86: 0 | I86: 0 | J86: 0 | K86: 0 | L86: 0 | M86: 0 | N86: 0 | O86: 0 | P86: 0
B87: RIDER 175 | M87: 0 | N87: 0 | O87: 0 | P87: 0
B88: RIDER 191 | D88: 0 | E88: 0 | F88: 0 | G88: 0 | H88: 0 | I88: 0 | J88: 0 | K88: 0 | L88: 0 | M88: 0 | N88: 0 | O88: 0 | P88: 0
B89: RIDER 192 | D89: 0 | E89: 0 | F89: 0 | G89: 0 | H89: 0 | I89: 0 | J89: 0 | K89: 0 | L89: 0 | M89: 0 | N89: 0 | O89: 0 | P89: 0
B90: THERMS BLOCK 1 | D90: 200 | E90: 200 | F90: 200 | G90: 200 | H90: 200 | I90: 200 | J90: 200 | K90: 200 | L90: 200 | M90: 200 | N90: 200 | O90: 200 | P90: 2400
B91: THERMS BLOCK 2 | D91: 800 | E91: 800 | F91: 800 | G91: 800 | H91: 800 | I91: 800 | J91: 800 | K91: 800 | L91: 800 | M91: 800 | N91: 800 | O91: 800 | P91: 9600
B92: THERMS BLOCK 3 | D92: 16696.584 | E92: 16941.822 | F92: 12354.005 | G92: 10289.88 | H92: 4892.768 | I92: 4577.36 | J92: 3704.081 | K92: 3652.562 | L92: 6056.882 | M92: 8923.38 | N92: 16155.088 | O92: 16027.964 | P92: 120272.376
B93: Total for 0112 | D93: =SUM(D82:D92) -> 17696.584 | E93: =SUM(E82:E92) -> 17941.822 | F93: =SUM(F82:F92) -> 13354.005 | G93: =SUM(G82:G92) -> 11289.88 | H93: =SUM(H82:H92) -> 5892.768 | I93: =SUM(I82:I92) -> 5577.36 | J93: =SUM(J82:J92) -> 4704.081 | K93: =SUM(K82:K92) -> 4652.562 | L93: =SUM(L82:L92) -> 7056.882 | M93: =SUM(M82:M92) -> 9923.38 | N93: =SUM(N82:N92) -> 17155.088 | O93: =SUM(O82:O92) -> 17027.964 | P93: 132272.376
A94: 0121 | B94: BASIC CHARGE GAS | L94: 0 | M94: 0 | N94: 0 | O94: 0 | P94: =SUM(D94:O94) -> 0
B95: NA | D95: 0 | E95: 0 | F95: 0 | G95: 0 | H95: 0 | I95: 0 | J95: 0 | K95: 0 | L95: 0 | M95: 0 | N95: 0 | O95: 0 | P95: =SUM(D95:O95) -> 0
B96: RIDER 150 | D96: 0 | E96: 0 | F96: 0 | G96: 0 | H96: 0 | I96: 0 | J96: 0 | K96: 0 | L96: 0 | M96: 0 | N96: 0 | O96: 0 | P96: 0
B97: RIDER 155 | D97: 0 | E97: 0 | F97: 0 | G97: 0 | H97: 0 | I97: 0 | J97: 0 | K97: 0 | L97: 0 | M97: 0 | N97: 0 | O97: 0 | P97: 0
B98: RIDER 156 | D98: 0 | E98: 0 | F98: 0 | G98: 0 | H98: 0 | I98: 0 | J98: 0 | K98: 0 | L98: 0 | M98: 0 | N98: 0 | O98: 0 | P98: 0
B99: RIDER 175 | N99: 0 | O99: 0 | P99: 0
B100: RIDER 191 | D100: 0 | E100: 0 | F100: 0 | G100: 0 | H100: 0 | I100: 0 | J100: 0 | K100: 0 | L100: 0 | M100: 0 | N100: 0 | O100: 0 | P100: 0
B101: RIDER 192 | D101: 0 | E101: 0 | F101: 0 | G101: 0 | H101: 0 | I101: 0 | J101: 0 | K101: 0 | L101: 0 | M101: 0 | N101: 0 | O101: 0 | P101: 0
B102: THERMS BLOCK 1 | D102: 11000 | E102: 11000 | F102: 11000 | G102: 11000 | H102: 11000 | I102: 11000 | J102: 11050 | K102: 11500 | L102: 9500 | M102: 12000 | N102: 11000 | O102: =-302285.10833+'121 to 111'!R33+181235 -> -104550.1083 | P102: 16499.89167
B103: THERMS BLOCK 2 | D103: 11000 | E103: 11000 | F103: 11000 | G103: 11000 | H103: 10879.079 | I103: 10715.104 | J103: 10766.876 | K103: 11144.274 | L103: 9500 | M103: 11841.027 | N103: 11000 | O103: =-300329.69334+'121 to 111'!S33+180483 -> -103346.6933 | P103: 16499.66666
B104: THERMS BLOCK 3 | D104: 194386.443 | E104: 189441.939 | F104: 194480.458 | G104: 182875.011 | H104: 176869.252 | I104: 166428.223 | J104: 160184.9843 | K104: 161892.525 | L104: 151240.045 | M104: 183242.529 | N104: 187830.569 | O104: =-4736100.755+'121 to 111'!T33+2787229 -> -1657907.728 | P104: 290964.2503
B105: THERMS BLOCK 4 | D105: 169426.159 | E105: 126925.306 | F105: 141602.019 | G105: 98584.651 | H105: 87398.334 | I105: 62470.242 | J105: 55080.64741 | K105: 63258.229 | L105: 61319.765 | M105: 72527.107 | N105: 98532.716 | O105: =-1813880.40134+'121 to 111'!U33+776755 -> -634986.6293 | P105: 402138.5461
B106: THERMS BLOCK 5 | D106: 96463.385 | E106: 67986.992 | F106: 64588.205 | G106: 48065.684 | H106: 6598.7 | I106: 24255.81 | J106: 19810.514 | K106: 22671.181 | L106: 35739.872 | M106: 37314.25 | N106: 72413.204 | O106: =79049.718+'121 to 111'!V33-574958 -> 83940.678 | P106: 579848.475
B107: Total for 0121 | D107: =SUM(D95:D106) -> 482275.987 | E107: =SUM(E95:E106) -> 406354.237 | F107: 422670.682 | G107: 351525.346 | H107: 292745.365 | I107: 274869.379 | J107: 256893.0217 | K107: 270466.209 | L107: 267299.682 | M107: 316924.913 | N107: 380776.489 | O107: -2416850.481 | P107: 1305950.83
A108: 0122 | B108: BASIC CHARGE GAS | N108: 0 | O108: 0 | P108: =SUM(D108:O108) -> 0
B109: NA | D109: 0 | E109: 0 | F109: 0 | G109: 0 | H109: 0 | I109: 0 | J109: 0 | K109: 0 | L109: 0 | M109: 0 | N109: 0 | O109: 0 | P109: =SUM(D109:O109) -> 0
B110: RIDER 150 | D110: 0 | E110: 0 | F110: 0 | G110: 0 | H110: 0 | I110: 0 | J110: 0 | K110: 0 | L110: 0 | M110: 0 | N110: 0 | O110: 0 | P110: 0
B111: RIDER 155 | D111: 0 | E111: 0 | F111: 0 | G111: 0 | H111: 0 | I111: 0 | J111: 0 | K111: 0 | L111: 0 | M111: 0 | N111: 0 | O111: 0 | P111: 0
B112: RIDER 156 | D112: 0 | E112: 0 | F112: 0 | G112: 0 | H112: 0 | I112: 0 | J112: 0 | K112: 0 | L112: 0 | M112: 0 | N112: 0 | O112: 0 | P112: 0
B113: RIDER 175 | N113: 0 | O113: 0 | P113: 0
B114: RIDER 191 | D114: 0 | E114: 0 | F114: 0 | G114: 0 | H114: 0 | I114: 0 | J114: 0 | K114: 0 | L114: 0 | M114: 0 | N114: 0 | O114: 0 | P114: 0
B115: RIDER 192 | D115: 0 | E115: 0 | F115: 0 | G115: 0 | H115: 0 | I115: 0 | J115: 0 | K115: 0 | L115: 0 | M115: 0 | N115: 0 | O115: 0 | P115: 0
B116: THERMS BLOCK 1 | D116: 500 | E116: 500 | F116: 500 | G116: 500 | H116: 500 | I116: 500 | J116: 500 | K116: 500 | L116: 500 | M116: 500 | N116: 500 | O116: 500 | P116: 6000
B117: THERMS BLOCK 2 | D117: 500 | E117: 500 | F117: 500 | G117: 500 | H117: 500 | I117: 500 | J117: 500 | K117: 500 | L117: 500 | M117: 500 | N117: 500 | O117: 500 | P117: 6000
B118: THERMS BLOCK 3 | D118: 9000 | E118: 9000 | F118: 9000 | G118: 9000 | H118: 9000 | I118: 9000 | J118: 9000 | K118: 9000 | L118: 9000 | M118: 9000 | N118: 9000 | O118: 9000 | P118: 108000
B119: THERMS BLOCK 4 | D119: 15000 | E119: 15000 | F119: 15000 | G119: 15000 | H119: 15000 | I119: 15000 | J119: 13989.278 | K119: 12970.118 | L119: 14853.434 | M119: 15000 | N119: 15000 | O119: 15000 | P119: 176812.83
B120: THERMS BLOCK 5 | D120: 40294.612 | E120: 23825.788 | F120: 26647.355 | G120: 21438.08 | H120: 14511.659 | I120: 3453.558 | J120: 0 | K120: 0 | L120: 0 | M120: 795.748 | N120: 6468.652 | O120: 28121.189 | P120: 165556.641
B121: Total for 0122 | D121: =SUM(D109:D120) -> 65294.612 | E121: =SUM(E109:E120) -> 48825.788 | F121: 51647.355 | G121: 46438.08 | H121: 39511.659 | I121: 28453.558 | J121: 23989.278 | K121: 22970.118 | L121: 24853.434 | M121: 25795.748 | N121: 31468.652 | O121: 53121.189 | P121: 462369.471
A122: 0132 | B122: NA | D122: 0 | E122: 0 | F122: 0 | G122: 0 | H122: 0 | I122: 0 | J122: 0 | K122: 0 | L122: 0 | M122: 0 | N122: 0 | O122: 0 | P122: =SUM(D122:O122) -> 0
B123: RIDER 150 | D123: 0 | E123: 0 | F123: 0 | G123: 0 | H123: 0 | I123: 0 | J123: 0 | K123: 0 | L123: 0 | M123: 0 | N123: 0 | O123: 0 | P123: =SUM(D123:O123) -> 0
B124: RIDER 155 | D124: 0 | E124: 0 | F124: 0 | G124: 0 | H124: 0 | I124: 0 | J124: 0 | K124: 0 | L124: 0 | M124: 0 | N124: 0 | O124: 0 | P124: 0
B125: RIDER 156 | D125: 0 | E125: 0 | F125: 0 | G125: 0 | H125: 0 | I125: 0 | J125: 0 | K125: 0 | L125: 0 | M125: 0 | N125: 0 | O125: 0 | P125: 0
B126: RIDER 175 | N126: 0 | O126: 0 | P126: 0
B127: RIDER 191 | D127: 0 | E127: 0 | F127: 0 | G127: 0 | H127: 0 | I127: 0 | J127: 0 | K127: 0 | L127: 0 | M127: 0 | N127: 0 | O127: 0 | P127: 0
B128: RIDER 192 | D128: 0 | E128: 0 | F128: 0 | G128: 0 | H128: 0 | I128: 0 | J128: 0 | K128: 0 | L128: 0 | M128: 0 | N128: 0 | O128: 0 | P128: 0
B129: THERMS BLOCK 1 | D129: 20000 | E129: 20000 | F129: 20000 | G129: 20000 | H129: 20000 | I129: 20000 | J129: 20000 | K129: 20000 | L129: 20000 | M129: 20000 | N129: 20000 | O129: 20000 | P129: 240000
B130: THERMS BLOCK 2 | D130: 30000 | E130: 30000 | F130: 30000 | G130: 30000 | H130: 30000 | I130: 20435.105 | J130: 19114.88 | K130: 16257.2 | L130: 16438.28 | M130: 22735.305 | N130: 30000 | O130: 30000 | P130: 304980.77
B131: THERMS BLOCK 3 | D131: 50000 | E131: 48424.268 | F131: 50000 | G131: 43219.128 | H131: 22900.841 | I131: 7034.48 | J131: 2622.378 | K131: 7258.236 | L131: 8395.472 | M131: 25000 | N131: 27417.124 | O131: 50000 | P131: 342271.927
B132: THERMS BLOCK 4 | D132: 39102.279 | E132: 18903.292 | F132: 13117.076 | G132: 0 | H132: 0 | I132: 0 | J132: 0 | K132: 0 | L132: 0 | M132: 958.684 | N132: 11101.495 | O132: 14831.204 | P132: 98014.03
B133: Total for 0132 | D133: =SUM(D122:D132) -> 139102.279 | E133: =SUM(E122:E132) -> 117327.56 | F133: 113117.076 | G133: 93219.128 | H133: 72900.841 | I133: 47469.585 | J133: 41737.258 | K133: 43515.436 | L133: 44833.752 | M133: 68693.989 | N133: 88518.619 | O133: 114831.204 | P133: 985266.727
A134: 0146 | B134: BASIC CHARGE GAS | D134: 0 | E134: 0 | F134: 0 | G134: 0 | H134: 0 | I134: 0 | J134: 0 | K134: 0 | L134: 0 | M134: 0 | N134: 0 | O134: 0 | P134: =SUM(D134:O134) -> 0
B135: NA | D135: 0 | E135: 0 | F135: 0 | G135: 0 | H135: 0 | I135: 0 | J135: 0 | K135: 0 | L135: 0 | M135: 0 | N135: 0 | O135: 0 | P135: =SUM(D135:O135) -> 0
B136: RIDER 150 | D136: 0 | E136: 0 | F136: 0 | G136: 0 | H136: 0 | I136: 0 | J136: 0 | K136: 0 | L136: 0 | M136: 0 | N136: 0 | O136: 0 | P136: 0
B137: RIDER 155 | D137: 0 | E137: 0 | F137: 0 | G137: 0 | H137: 0 | I137: 0 | J137: 0 | K137: 0 | L137: 0 | M137: 0 | N137: 0 | O137: 0 | P137: 0
B138: RIDER 192 | D138: 0 | E138: 0 | F138: 0 | G138: 0 | H138: 0 | I138: 0 | J138: 0 | K138: 0 | L138: 0 | M138: 0 | N138: 0 | O138: 0 | P138: 0
B139: THERMS BLOCK 1 | D139: 716552 | E139: 717187 | F139: 730599 | G139: 718707 | H139: 778453 | I139: 726518 | J139: 738197 | K139: 656861 | L139: 656123 | M139: 763565 | N139: 753438 | O139: 729937 | P139: 8686137
B140: THERMS BLOCK 2 | D140: 876125 | E140: 857160 | F140: 833085 | G140: 822080 | H140: 723037 | I140: 574649 | J140: 550748 | K140: 472503 | L140: 508303 | M140: 590157 | N140: 777279 | O140: 846200 | P140: 8431326
B141: THERMS BLOCK 3 | D141: 1684151 | E141: 1598827 | F141: 1582577 | G141: 1472205 | H141: 1177500 | I141: 843087 | J141: 810228 | K141: 702496 | L141: 734954 | M141: 729143 | N141: 1131448 | O141: 1377878 | P141: 13844494
B142: THERMS BLOCK 4 | D142: 383027 | E142: 281285 | F142: 259891 | G142: 200000 | H142: 200000 | I142: 200000 | J142: 200000 | K142: 200000 | L142: 200000 | M142: 200000 | N142: 200000 | O142: 222385 | P142: 2746588
B143: THERMS BLOCK 5 | D143: 307830 | E143: 175163 | F143: 161036 | G143: 136142 | H143: 152753 | I143: 155801 | J143: 117696 | K143: 168344 | L143: 176555 | M143: 57678 | N143: 205742 | O143: 84651 | P143: 1899391
B144: Total for 0146 | D144: =SUM(D134:D143) -> 3967685 | E144: =SUM(E134:E143) -> 3629622 | F144: 3567188 | G144: 3349134 | H144: 3031743 | I144: 2500055 | J144: 2416869 | K144: 2200204 | L144: 2275935 | M144: 2340543 | N144: 3067907 | O144: 3261051 | P144: 35607936
A145: 0147 | B145: NA | D145: 0 | E145: 0 | F145: 0 | G145: 0 | H145: 0 | I145: 0 | J145: 0 | K145: 0 | L145: 0 | M145: 0 | N145: 0 | O145: 0 | P145: 0
B146: THERMS BLOCK 1 | D146: 282077 | E146: 39173 | F146: 134413 | G146: 54477 | H146: 96277 | I146: 240428 | J146: 144453 | K146: 967242 | L146: 1028750 | M146: 695787 | N146: 1062005 | O146: 660451 | P146: =SUM(D146:O146) -> 5405533
B147: Total for 0147 | D147: =SUM(D145:D146) -> 282077 | E147: =SUM(E145:E146) -> 39173 | F147: 134413 | G147: 54477 | H147: 96277 | I147: 240428 | J147: 144453 | K147: 967242 | L147: 1028750 | M147: 695787 | N147: 1062005 | O147: 660451 | P147: 5405533
A148: 0148 | B148: BASIC CHARGE GAS | D148: 0 | E148: 0 | F148: 0 | G148: 0 | H148: 0 | I148: 0 | J148: 0 | K148: 0 | L148: 0 | M148: 0 | N148: 0 | O148: 0 | P148: =SUM(D148:O148) -> 0
B149: NA | D149: 0 | E149: 0 | F149: 0 | G149: 0 | H149: 0 | I149: 0 | J149: 0 | K149: 0 | L149: 0 | M149: 0 | N149: 0 | O149: 0 | P149: =SUM(D149:O149) -> 0
B150: THERMS BLOCK 1 | D150: 4983146 | E150: 4873335 | F150: 4412634 | G150: 4246981 | H150: 3925542 | I150: 3690093 | J150: 3611778 | K150: 3571396 | L150: 3533977 | M150: 3697655 | N150: 4111847 | O150: 4453688 | P150: 49112072
B151: Total for 0148 | D151: =SUM(D148:D150) -> 4983146 | E151: =SUM(E148:E150) -> 4873335 | F151: 4412634 | G151: 4246981 | H151: 3925542 | I151: 3690093 | J151: 3611778 | K151: 3571396 | L151: 3533977 | M151: 3697655 | N151: 4111847 | O151: 4453688 | P151: 49112072
A152: 0158 | B152: NA | D152: 0 | E152: 0 | F152: 0 | G152: 0 | H152: 0 | I152: 0 | J152: 0 | K152: 0 | L152: 0 | M152: 0 | N152: 0 | O152: 0 | P152: 0
B153: RIDER 158 | D153: 0 | E153: 0 | F153: 0 | G153: 0 | H153: 0 | I153: 0 | J153: 0 | K153: 0 | L153: 0 | M153: 0 | N153: 0 | O153: 0 | P153: 0
B154: Total for 0158 | D154: 0 | E154: 0 | F154: 0 | G154: 0 | H154: 0 | I154: 0 | J154: 0 | K154: 0 | L154: 0 | M154: 0 | N154: 0 | O154: 0 | P154: 0
A155: 0158A | B155: RIDER 158 | D155: 0 | E155: 0 | F155: 0 | G155: 0 | H155: 0 | I155: 0 | J155: 0 | K155: 0 | L155: 0 | M155: 0 | N155: 0 | O155: 0 | P155: 0
B156: Total for 0158A | D156: 0 | E156: 0 | F156: 0 | G156: 0 | H156: 0 | I156: 0 | J156: 0 | K156: 0 | L156: 0 | M156: 0 | N156: 0 | O156: 0 | P156: 0
A157: 0199 | B157: NA | D157: 0 | E157: 0 | F157: 0 | G157: 0 | H157: 0 | I157: 0 | J157: 0 | K157: 0 | L157: 0 | M157: 0 | N157: 0 | O157: 0 | P157: 0
B158: Total for 0199 | D158: 0 | E158: 0 | F158: 0 | G158: 0 | H158: 0 | I158: 0 | J158: 0 | K158: 0 | L158: 0 | M158: 0 | N158: 0 | O158: 0 | P158: 0
A159: Total for WA | D159: =D56+D69+D81+D93+D107+D121+D133+D144+D147+D151 -> 41845270.52 | E159: =E56+E69+E81+E93+E107+E121+E133+E144+E147+E151 -> 33084467.16 | F159: 34271544.02 | G159: 26122430.2 | H159: 16725495.96 | I159: 11566402.36 | J159: 10520740.85 | K159: 10612638.08 | L159: 11231494.01 | M159: 15005015.73 | N159: 23917025.97 | O159: 34582857.95 | P159: 269485382.8
A161: Total Usage | D161: 201801 | E161: 201802 | F161: 201803 | G161: 201804 | H161: 201805 | I161: 201806 | J161: 201807 | K161: 201808 | L161: 201809 | M161: 201810 | N161: 201811 | O161: 201812 | P161: 12 Month Total
C162: 101/102 | D162: =D56+D69 -> 23907481.41 | E162: 17408468.84 | F162: 18772678.96 | G162: 12814031.3 | H162: 6121244.905 | I162: 2888718.143 | J162: 2443732.207 | K162: 2085808.027 | L162: 2442167.839 | M162: 5295338.944 | N162: 10842675.48 | O162: 18945996.05 | P162: 123968342.1
C163: 111/112 | D163: =D81+D93 -> 8018208.232 | E163: =E81+E93 -> 6561360.732 | F163: 6797194.949 | G163: 5166624.346 | H163: 3145531.191 | I163: 1896315.694 | J163: 1581289.084 | K163: 1451036.288 | L163: 1613677.308 | M163: 2564277.133 | N163: 4331827.736 | O163: 9510569.987 | P163: 52637912.68
C164: 121/122 | D164: =D107+D121 -> 547570.599 | E164: =E107+E121 -> 455180.025 | F164: 474318.037 | G164: 397963.426 | H164: 332257.024 | I164: 303322.937 | J164: 280882.2997 | K164: 293436.327 | L164: 292153.116 | M164: 342720.661 | N164: 412245.141 | O164: -2363729.292 | P164: 1768320.301
C165: 132 | D165: =D133 -> 139102.279 | E165: =E133 -> 117327.56 | F165: 113117.076 | G165: 93219.128 | H165: 72900.841 | I165: 47469.585 | J165: 41737.258 | K165: 43515.436 | L165: 44833.752 | M165: 68693.989 | N165: 88518.619 | O165: 114831.204 | P165: 985266.727
C166: 146 | D166: =D144 -> 3967685 | E166: =E144 -> 3629622 | F166: 3567188 | G166: 3349134 | H166: 3031743 | I166: 2500055 | J166: 2416869 | K166: 2200204 | L166: 2275935 | M166: 2340543 | N166: 3067907 | O166: 3261051 | P166: 35607936
C167: 147 | D167: =D147 -> 282077 | E167: =E147 -> 39173 | F167: 134413 | G167: 54477 | H167: 96277 | I167: 240428 | J167: 144453 | K167: 967242 | L167: 1028750 | M167: 695787 | N167: 1062005 | O167: 660451 | P167: 5405533
C168: 148 | D168: =D151 -> 4983146 | E168: =E151 -> 4873335 | F168: 4412634 | G168: 4246981 | H168: 3925542 | I168: 3690093 | J168: 3611778 | K168: 3571396 | L168: 3533977 | M168: 3697655 | N168: 4111847 | O168: 4453688 | P168: 49112072
C169: Total | D169: =SUM(D162:D168) -> 41845270.52 | E169: =SUM(E162:E168) -> 33084467.16 | F169: 34271544.02 | G169: 26122430.2 | H169: 16725495.96 | I169: 11566402.36 | J169: 10520740.85 | K169: 10612638.08 | L169: 11231494.01 | M169: 15005015.73 | N169: 23917025.97 | O169: 34582857.95 | P169: 269485382.8
D171: =D159-D169 -> 0 | E171: =E159-E169 -> 0 | F171: 0 | G171: 0 | H171: 0 | I171: 0 | J171: 0 | K171: 0 | L171: 0 | M171: 0 | N171: 0 | O171: 0 | P171: 0
A175: Gas Revenue Usage Report by Location Twelve Months Ended for Report Date : '12/31/2018'
A177: Revenue Class:<All> | B177: Jurisdiction:WA
D179: Unbilled Usage
C180: Period | D180: 201801 | E180: 201802 | F180: 201803 | G180: 201804 | H180: 201805 | I180: 201806 | J180: 201807 | K180: 201808 | L180: 201809 | M180: 201810 | N180: 201811 | O180: 201812 | P180: 12 Month Total
A181: Source Id | B181: Rate Schedule Num
A182: REVUNBL-G | B182: 101 | D182: 9629638 | E182: 10422050 | F182: 7439883 | G182: 4397502 | H182: 1567310 | I182: 1312050 | J182: 1164748 | K182: 1295014 | L182: 1933114 | M182: 5038482 | N182: 9771651 | O182: 11417514 | P182: =SUM(D182:O182) -> 65388956
B183: 111 | D183: 3107754 | E183: 3767306 | F183: 2589731 | G183: 1701302 | H183: 772170 | I183: 804108 | J183: 704295 | K183: 846222 | L183: 1188000 | M183: 2308113 | N183: 3719804 | O183: =7634427-3544231-134000 -> 3956196 | P183: =SUM(D183:O183) -> 25465001
B184: 112 | D184: 7144 | E184: 10765 | F184: 5304 | G184: 3881 | H184: 1511 | I184: 2534 | J184: 2243 | K184: 2890 | L184: 5590 | M184: 9457 | N184: 15496 | O184: 10281 | P184: 77096
B185: 121 | D185: 199450 | E185: 241971 | F185: 164598 | G185: 118764 | H185: 60281 | I185: 104394 | J185: 103836 | K185: 139424 | L185: 175022 | M185: 256977 | N185: 297046 | O185: =-3544231+3544231+134000 -> 134000 | P185: 1995763
B186: 122 | H186: 10130 | I186: 12930 | J186: 11440 | K186: 14270 | L186: 19687 | M186: 24585 | N186: 28425 | O186: 32072 | P186: 153539
B187: 146 | D187: 3629622 | E187: 3567188 | F187: 3349134 | G187: 3031741 | H187: 2500962 | I187: 2374496 | J187: 2194451 | K187: 2275935 | L187: 2309719 | M187: 3067429 | N187: 3267643 | O187: 3542437 | P187: 35110757
B188: 147 | G188: 3925542 | H188: 0 | I188: 0 | J188: 0 | K188: 0 | L188: 0 | M188: 0 | N188: 0 | O188: 0 | P188: 3925542
B189: 148 | D189: 4873335 | E189: 4412634 | F189: 4246981 | G189: 0 | H189: 3689297 | I189: 3611778 | J189: 3571396 | K189: 3533977 | L189: 3697655 | M189: 4111496 | N189: 4453688 | O189: 4907937 | P189: 45110174
B190: Total for REVUNBL-G | D190: =SUM(D182:D189) -> 21446943 | E190: =SUM(E182:E189) -> 22421914 | F190: 17795631 | G190: 13178732 | H190: 8601661 | I190: 8222290 | J190: 7752409 | K190: 8107732 | L190: 9328787 | M190: 14816539 | N190: 21553753 | O190: 24000437 | P190: =SUM(P182:P189) -> 177226828
A191: REVUNBL-GR | B191: 101 | D191: -13256855 | E191: -9629638 | F191: -10422050 | G191: -7439883 | H191: -4397502 | I191: -1567310 | J191: -1312050 | K191: -1164748 | L191: -1295014 | M191: -1933114 | N191: -5038482 | O191: -9771651 | P191: =SUM(D191:O191) -> -67228297
B192: 111 | D192: -4499374 | E192: -3107754 | F192: -3767306 | G192: -2589731 | H192: -1701302 | I192: -772170 | J192: -804108 | K192: -704295 | L192: -846222 | M192: -1188000 | N192: -2308113 | O192: -3719804 | P192: -26008179
B193: 112 | D193: -14283 | E193: -7144 | F193: -10765 | G193: -5304 | H193: -3881 | I193: -1511 | J193: -2534 | K193: -2243 | L193: -2890 | M193: -5590 | N193: -9457 | O193: -15496 | P193: -81098
B194: 121 | D194: -318891 | E194: -199450 | F194: -241971 | G194: -164598 | H194: -118764 | I194: -60281 | J194: -104394 | K194: -103836 | L194: -139424 | M194: -175022 | N194: -256977 | O194: -297046 | P194: -2180654
B195: 122 | I195: -10130 | J195: -12930 | K195: -11440 | L195: -14270 | M195: -19687 | N195: -24585 | O195: -28425 | P195: -121467
B196: 146 | D196: -3967685 | E196: -3629622 | F196: -3567188 | G196: -3349134 | H196: -3031741 | I196: -2500962 | J196: -2374496 | K196: -2194451 | L196: -2275935 | M196: -2309719 | N196: -3067429 | O196: -3267643 | P196: -35536005
B197: 147 | H197: -3925542 | I197: 0 | J197: 0 | K197: 0 | L197: 0 | M197: 0 | N197: 0 | O197: 0 | P197: -3925542
B198: 148 | D198: -4983146 | E198: -4873335 | F198: -4412634 | G198: -4246981 | H198: 0 | I198: -3689297 | J198: -3611778 | K198: -3571396 | L198: -3533977 | M198: -3697655 | N198: -4111496 | O198: -4453688 | P198: -45185383
B199: Total for REVUNBL-GR | D199: =SUM(D191:D198) -> -27040234 | E199: =SUM(E191:E198) -> -21446943 | F199: -22421914 | G199: -17795631 | H199: -13178732 | I199: -8601661 | J199: -8222290 | K199: -7752409 | L199: -8107732 | M199: -9328787 | N199: -14816539 | O199: -21553753 | P199: -180266625
A200: Total for WA | D200: =D190+D199 -> -5593291 | E200: =E190+E199 -> 974971 | F200: -4626283 | G200: -4616899 | H200: -4577071 | I200: -379371 | J200: -469881 | K200: 355323 | L200: 1221055 | M200: 5487752 | N200: 6737214 | O200: 2446684 | P200: -3039797
C204: 101 | D204: =D182+D191 -> -3627217 | E204: =E182+E191 -> 792412 | F204: -2982167 | G204: -3042381 | H204: -2830192 | I204: -255260 | J204: -147302 | K204: 130266 | L204: 638100 | M204: 3105368 | N204: 4733169 | O204: 1645863 | P204: =P182+P191 -> -1839341
C205: 111 | D205: =D183+D184+D193+D192 -> -1398759 | E205: =E183+E184+E193+E192 -> 663173 | F205: -1183036 | G205: -889852 | H205: -931502 | I205: 32961 | J205: -100104 | K205: 142574 | L205: 344478 | M205: 1123980 | N205: 1417730 | O205: 231177 | P205: =P183+P184+P193+P192 -> -547180
C206: 121 | D206: =D185+D186+D195+D194 -> -119441 | E206: =E185+E186+E195+E194 -> 42521 | F206: -77373 | G206: -45834 | H206: -48353 | I206: 46913 | J206: -2048 | K206: 38418 | L206: 41015 | M206: 86853 | N206: 43909 | O206: -159399 | P206: =P185+P186+P195+P194 -> -152819
C207: 146 | D207: =D187+D196 -> -338063 | E207: =E187+E196 -> -62434 | F207: -218054 | G207: -317393 | H207: -530779 | I207: -126466 | J207: -180045 | K207: 81484 | L207: 33784 | M207: 757710 | N207: 200214 | O207: 274794 | P207: =P187+P196 -> -425248
C208: 147 | D208: =D188+D197 -> 0 | E208: =E188+E197 -> 0 | F208: 0 | G208: 3925542 | H208: -3925542 | I208: 0 | J208: 0 | K208: 0 | L208: 0 | M208: 0 | N208: 0 | O208: 0 | P208: =P188+P197 -> 0
C209: 148 | D209: =D189+D198 -> -109811 | E209: =E189+E198 -> -460701 | F209: -165653 | G209: -4246981 | H209: 3689297 | I209: -77519 | J209: -40382 | K209: -37419 | L209: 163678 | M209: 413841 | N209: 342192 | O209: 454249 | P209: =P189+P198 -> -75209
C210: Total | D210: =SUM(D204:D209) -> -5593291 | E210: =SUM(E204:E209) -> 974971 | F210: -4626283 | G210: -4616899 | H210: -4577071 | I210: -379371 | J210: -469881 | K210: 355323 | L210: 1221055 | M210: 5487752 | N210: 6737214 | O210: 2446684 | P210: =SUM(P204:P209) -> -3039797
D212: =D200-D210 -> 0 | E212: =E200-E210 -> 0 | F212: 0 | G212: 0 | H212: 0 | I212: 0 | J212: 0 | K212: 0 | L212: 0 | M212: 0 | N212: 0 | O212: 0 | P212: 0
O214: 101-121 | P214: =P204+P205+P206 -> -2539340

Sheet 121 to 111
A1: Determine 2018 Pro Forma Schedule 121 and Restated 111 customers and volumes. | R1: 1st | S1: =R2 -> 200 | T1: =S2 -> 1000
R2: 200 | S2: 1000 | T2: 99999999
A4: Name | B4: Account ID | C4: Current Schedule | D4: 2018-01-01 | E4: 2018-02-01 | F4: 2018-03-01 | G4: 2018-04-01 | H4: 2018-05-01 | I4: 2018-06-01 | J4: 2018-07-01 | K4: 2018-08-01 | L4: 2018-09-01 | M4: 2018-10-01 | N4: 2018-11-01 | O4: 2018-12-01 | P4: 2018 Total | Q4: Sch 121/111 Cancel/ Rebill usage | R4: Block 1 1st 200 therms | S4: Block 2 201 - 1,000 therms | T4: Block 3 over 1,000 therms
C5: 111 | D5: 9991.32 | E5: 7030.986 | F5: 8563.692 | G5: 6801.275 | H5: 6657.708 | I5: 4715.184 | J5: 4646.939 | K5: 4295.991 | L5: 5872.368 | M5: 5495.123 | N5: 6966.19 | O5: 9796.0266 | P5: =SUM(D5:O5) -> 80832.8026 | R5: =R$2*12-SUMPRODUCT(--($D5:$O5<=R$2),R$2-$D5:$O5) -> 2400 | S5: =S$2*12-SUM(R5:$R5)-SUMPRODUCT(--($D5:$O5<=S$2),S$2-$D5:$O5) -> 9600 | T5: =T$2*12-SUM($R5:S5)-SUMPRODUCT(--($D5:$O5<=T$2),T$2-$D5:$O5) -> 68832.8026
C6: 111 | D6: 18246.376 | E6: 19070.896 | F6: 15059.19 | G6: 13986.58 | H6: 12128.208 | I6: 12812.796 | J6: 12194.04 | K6: 13033.456 | L6: 12317.214 | M6: 14687.68 | N6: 20223.956 | P6: =SUM(D6:O6) -> 163760.392 | R6: =R$2*12-SUMPRODUCT(--($D6:$O6<=R$2),R$2-$D6:$O6) -> 2200 | S6: =S$2*12-SUM(R6:$R6)-SUMPRODUCT(--($D6:$O6<=S$2),S$2-$D6:$O6) -> 8800 | T6: =T$2*12-SUM($R6:S6)-SUMPRODUCT(--($D6:$O6<=T$2),T$2-$D6:$O6) -> 152760.392
C7: 111 | D7: 18303.52 | E7: 18039.72 | F7: 13178.463 | G7: 9973.447 | H7: 879.079 | I7: 715.104 | J7: 716.876 | K7: 644.274 | L7: 841.027 | M7: 4820.52 | N7: 11862.956 | P7: 79974.986 | R7: 2200 | S7: =S$2*12-SUM(R7:$R7)-SUMPRODUCT(--($D7:$O7<=S$2),S$2-$D7:$O7) -> 7596.36 | T7: =T$2*12-SUM($R7:S7)-SUMPRODUCT(--($D7:$O7<=T$2),T$2-$D7:$O7) -> 70178.626
C8: 111 | D8: 14356.423 | E8: 10786.315 | F8: 11185.253 | G8: 10637.2 | H8: 9214.59 | I8: 7238.4 | J8: 7529.756 | K8: 6631.84 | L8: 6789.64 | M8: 8104.32 | N8: 8760.494 | O8: 11741.631 | P8: 112975.862 | R8: 2400 | S8: =S$2*12-SUM(R8:$R8)-SUMPRODUCT(--($D8:$O8<=S$2),S$2-$D8:$O8) -> 9600 | T8: =T$2*12-SUM($R8:S8)-SUMPRODUCT(--($D8:$O8<=T$2),T$2-$D8:$O8) -> 100975.862
C9: 111 | D9: 23032.933 | E9: 16190.424 | F9: 16878.11 | G9: 14298.26 | H9: 13245.925 | I9: 9793.752 | J9: 9149.294 | K9: 8799.42 | L9: 9597.796 | M9: 10674.34 | N9: 14218.82 | O9: 17316.468 | P9: 163195.542 | R9: 2400 | S9: =S$2*12-SUM(R9:$R9)-SUMPRODUCT(--($D9:$O9<=S$2),S$2-$D9:$O9) -> 9600 | T9: =T$2*12-SUM($R9:S9)-SUMPRODUCT(--($D9:$O9<=T$2),T$2-$D9:$O9) -> 151195.542
C10: 111 | D10: 18671.928 | E10: 13833.152 | F10: 15177.538 | G10: 14898.972 | H10: 9366.247 | I10: 9253.504 | J10: 9271.913 | K10: 8414.02 | L10: 9394.924 | M10: 9804.624 | N10: 11841.982 | P10: 129928.804 | R10: 2200 | S10: =S$2*12-SUM(R10:$R10)-SUMPRODUCT(--($D10:$O10<=S$2),S$2-$D10:$O10) -> 8800 | T10: =T$2*12-SUM($R10:S10)-SUMPRODUCT(--($D10:$O10<=T$2),T$2-$D10:$O10) -> 118928.804
C11: 111 | D11: 19844.904 | E11: 16402 | F11: 16526.172 | G11: 13906.062 | H11: 11647.19 | I11: 9949.996 | J11: 9636.592 | K11: 8459.913 | L11: 8969.91 | M11: 10567.336 | N11: 14173.59 | P11: 140083.665 | R11: 2200 | S11: =S$2*12-SUM(R11:$R11)-SUMPRODUCT(--($D11:$O11<=S$2),S$2-$D11:$O11) -> 8800 | T11: =T$2*12-SUM($R11:S11)-SUMPRODUCT(--($D11:$O11<=T$2),T$2-$D11:$O11) -> 129083.665
C12: 111 | D12: 11563.722 | E12: 8312.216 | F12: 9779.508 | G12: 9240.72 | H12: 6160.455 | I12: 5500.561 | J12: 5107.596 | K12: 3601 | L12: 5093.226 | M12: 5620.549 | N12: 6185.712 | P12: 76165.265 | R12: 2200 | S12: =S$2*12-SUM(R12:$R12)-SUMPRODUCT(--($D12:$O12<=S$2),S$2-$D12:$O12) -> 8800 | T12: =T$2*12-SUM($R12:S12)-SUMPRODUCT(--($D12:$O12<=T$2),T$2-$D12:$O12) -> 65165.265
C13: 111 | D13: 17966.34 | E13: 16748.44 | F13: 21506.16 | G13: 22465.344 | H13: 21645.975 | I13: 19766.616 | J13: 18365.264 | K13: 23119.036 | L13: 22406.328 | M13: 21807.06 | N13: 23135.84 | P13: 228932.403 | R13: 2200 | S13: =S$2*12-SUM(R13:$R13)-SUMPRODUCT(--($D13:$O13<=S$2),S$2-$D13:$O13) -> 8800 | T13: =T$2*12-SUM($R13:S13)-SUMPRODUCT(--($D13:$O13<=T$2),T$2-$D13:$O13) -> 217932.403
C14: 111 | D14: 22036.86 | E14: 18307.25 | F14: 19576.095 | G14: 18191.036 | H14: 20698 | I14: 15852.325 | J14: 13900.946 | K14: 14545.603 | L14: 13986.99 | M14: 14592.732 | N14: 17827.79 | O14: 18309.15 | P14: 207824.777 | R14: 2400 | S14: =S$2*12-SUM(R14:$R14)-SUMPRODUCT(--($D14:$O14<=S$2),S$2-$D14:$O14) -> 9600 | T14: =T$2*12-SUM($R14:S14)-SUMPRODUCT(--($D14:$O14<=T$2),T$2-$D14:$O14) -> 195824.777
C15: 111 | D15: 18564.8 | E15: 16579.94 | F15: 16610.928 | G15: 14189.656 | H15: 11665.125 | I15: 9830.742 | J15: 7325.424 | K15: 7034.866 | L15: 9576.252 | M15: 12195.018 | N15: 13189.335 | P15: 136762.086 | R15: 2200 | S15: =S$2*12-SUM(R15:$R15)-SUMPRODUCT(--($D15:$O15<=S$2),S$2-$D15:$O15) -> 8800 | T15: =T$2*12-SUM($R15:S15)-SUMPRODUCT(--($D15:$O15<=T$2),T$2-$D15:$O15) -> 125762.086
C16: 111 | D16: 7597.773 | E16: 6497.999 | F16: 11813.49 | G16: 1550.615 | H16: 12533.4 | I16: 13059.007 | J16: 12283.075 | K16: 9729.996 | L16: 14442.222 | M16: 13390.08 | N16: 9211.333 | O16: 16491.415 | P16: 128600.405 | R16: 2400 | S16: =S$2*12-SUM(R16:$R16)-SUMPRODUCT(--($D16:$O16<=S$2),S$2-$D16:$O16) -> 9600 | T16: =T$2*12-SUM($R16:S16)-SUMPRODUCT(--($D16:$O16<=T$2),T$2-$D16:$O16) -> 116600.405
C17: 111 | D17: 13506.28 | E17: 16845.14 | F17: 18835.583 | G17: 11840.211 | H17: 15288 | I17: 9520.47 | J17: 6885.04 | K17: 8366.484 | L17: 9957.444 | M17: 10888.25 | N17: 10957.575 | P17: 132890.477 | R17: 2200 | S17: =S$2*12-SUM(R17:$R17)-SUMPRODUCT(--($D17:$O17<=S$2),S$2-$D17:$O17) -> 8800 | T17: =T$2*12-SUM($R17:S17)-SUMPRODUCT(--($D17:$O17<=T$2),T$2-$D17:$O17) -> 121890.477
C18: 111 | D18: 16831.722 | E18: 16265.62 | F18: 14129.412 | G18: 13413.312 | H18: 12724.457 | I18: 10581.468 | J18: 9568.686 | K18: 10493.982 | L18: 10340.82 | M18: 13474.908 | N18: 15479.36 | P18: 143303.747 | R18: 2200 | S18: =S$2*12-SUM(R18:$R18)-SUMPRODUCT(--($D18:$O18<=S$2),S$2-$D18:$O18) -> 8800 | T18: =T$2*12-SUM($R18:S18)-SUMPRODUCT(--($D18:$O18<=T$2),T$2-$D18:$O18) -> 132303.747
C19: 111 | D19: 18898.6 | E19: 13095.35 | F19: 18416.225 | G19: 13602.24 | H19: 12386.904 | I19: 12467.686 | J19: 11172.7 | K19: 8999.208 | L19: 15805.928 | M19: 10106.152 | N19: 11199.534 | O19: 17111.675 | P19: 163262.202 | R19: 2400 | S19: =S$2*12-SUM(R19:$R19)-SUMPRODUCT(--($D19:$O19<=S$2),S$2-$D19:$O19) -> 9600 | T19: =T$2*12-SUM($R19:S19)-SUMPRODUCT(--($D19:$O19<=T$2),T$2-$D19:$O19) -> 151262.202
C20: 111 | D20: 15941 | E20: 12201.259 | F20: 13394.756 | G20: 10711.512 | H20: 8078.814 | I20: 5961.11 | J20: 6821.08 | K20: 5976.828 | L20: 6581.925 | M20: 7957.06 | N20: 10736.986 | P20: 104362.33 | R20: 2200 | S20: =S$2*12-SUM(R20:$R20)-SUMPRODUCT(--($D20:$O20<=S$2),S$2-$D20:$O20) -> 8800 | T20: =T$2*12-SUM($R20:S20)-SUMPRODUCT(--($D20:$O20<=T$2),T$2-$D20:$O20) -> 93362.33
C21: 111 | D21: 19325.736 | E21: 22970.145 | F21: 24928.992 | G21: 18587.358 | H21: 19289.096 | I21: 17008.04 | J21: 17048.382 | K21: 17623.93 | L21: 16462.485 | M21: 18279.751 | N21: 20752.578 | P21: 212276.493 | R21: 2200 | S21: =S$2*12-SUM(R21:$R21)-SUMPRODUCT(--($D21:$O21<=S$2),S$2-$D21:$O21) -> 8800 | T21: =T$2*12-SUM($R21:S21)-SUMPRODUCT(--($D21:$O21<=T$2),T$2-$D21:$O21) -> 201276.493
C22: 111 | D22: 8797.35 | E22: 9600.738 | F22: 8137.258 | G22: 7308.954 | H22: 8391.438 | I22: 6269.8 | J22: 6566.36 | K22: 8056.972 | L22: 7991.836 | M22: 7377.955 | N22: 8706.84 | P22: 87205.501 | R22: 2200 | S22: =S$2*12-SUM(R22:$R22)-SUMPRODUCT(--($D22:$O22<=S$2),S$2-$D22:$O22) -> 8800 | T22: =T$2*12-SUM($R22:S22)-SUMPRODUCT(--($D22:$O22<=T$2),T$2-$D22:$O22) -> 76205.501
C23: 121 | J23: 2449.57374 | K23: 7973.316 | L23: 9263.64 | M23: 11863.8 | N23: 11546.604 | O23: 14832.072 | P23: =SUM(D23:O23) -> 57929.00574 | R23: 1200 | S23: =S$2*12-SUM(R23:$R23)-SUMPRODUCT(--($D23:$O23<=S$2),S$2-$D23:$O23) -> 4800 | T23: =T$2*12-SUM($R23:S23)-SUMPRODUCT(--($D23:$O23<=T$2),T$2-$D23:$O23) -> 51929.00574
C24: 121 | D24: 17335.015 | E24: 12361.801 | F24: 13983.174 | G24: 11127.228 | H24: 11367.294 | I24: 10922.304 | J24: 8569.23899 | P24: =SUM(D24:O24) -> 85666.05499 | R24: 1400 | S24: =S$2*12-SUM(R24:$R24)-SUMPRODUCT(--($D24:$O24<=S$2),S$2-$D24:$O24) -> 5600 | T24: =T$2*12-SUM($R24:S24)-SUMPRODUCT(--($D24:$O24<=T$2),T$2-$D24:$O24) -> 78666.05499
D25: =SUM(D5:D24) -> 310812.602 | E25: =SUM(E5:E24) -> 271139.391 | F25: 287679.999 | G25: 236729.982 | H25: 223367.905 | I25: 191218.865 | J25: 179208.7757 | K25: 175800.135 | L25: 195691.975 | M25: 211707.258 | N25: 246977.475 | O25: 105598.4376 | P25: =SUM(D25:O25) -> 2635932.8 | Q25: Current Year Rebills | R25: =SUM(R5:R24) -> 43400 | S25: =SUM(S5:S24) -> 172396.36 | T25: 2420136.44 | U25: Current Yearr Rebills
P26: =-P37-P25 -> 4656696.688 | Q26: Prior Years Rebills | R26: =(608-217)*200 -> 78200 | S26: =(608-217)*800 -> 312800 | T26: =P26-R26-S26 -> 4265696.688 | U26: Prior Years Rebills
R27: 1st | S27: =R28 -> 500 | T27: =S28 -> 1000 | U27: 10000 | V27: =U28 -> 25000
R28: 500 | S28: 1000 | T28: 10000 | U28: 25000 | V28: 99999999
Q29: Schedule 121 not Rebilled | R29: Block 1 1st 500 therms | S29: Block 2 501 - 1,000 therms | T29: Block 3 1,001 - 10,000 therms | U29: Block 4 10,001 - 25,000 therms | V29: Block 5 over 25,000 therms
A30: Customer 1 | B30: 2621400000 | C30: 121 | D30: 97094.085 | E30: 80333.946 | F30: 69364.269 | G30: 57291.588 | H30: 31598.7 | I30: 28892.99 | J30: 28870.635 | K30: 25322.026 | L30: 35158.072 | M30: 39392.64 | N30: 60010.084 | O30: 83606.648 | P30: =SUM(D30:O30) -> 636935.683 | R30: =R$28*12-SUMPRODUCT(--($D30:$O30<=R$28),R$28-$D30:$O30) -> 6000 | S30: =S$28*12-SUM(R30:$R30)-SUMPRODUCT(--($D30:$O30<=S$28),S$28-$D30:$O30) -> 6000 | T30: =T$28*12-SUM($R30:S30)-SUMPRODUCT(--($D30:$O30<=T$28),T$28-$D30:$O30) -> 108000 | U30: =U$28*12-SUM($R30:T30)-SUMPRODUCT(--($D30:$O30<=U$28),U$28-$D30:$O30) -> 180000 | V30: =V$28*12-SUM($R30:U30)-SUMPRODUCT(--($D30:$O30<=V$28),V$28-$D30:$O30) -> 336935.683
A31: Customer 2 | B31: 4796220000 | C31: 121 | D31: 47471.8 | E31: 37653.046 | F31: 45223.936 | G31: 40774.096 | H31: 24492 | I31: 45362.82 | J31: 40939.879 | K31: 47349.155 | L31: 50581.8 | M31: 47921.61 | N31: 62403.12 | O31: 50334.515 | P31: 540507.777 | R31: =R$28*12-SUMPRODUCT(--($D31:$O31<=R$28),R$28-$D31:$O31) -> 6000 | S31: =S$28*12-SUM(R31:$R31)-SUMPRODUCT(--($D31:$O31<=S$28),S$28-$D31:$O31) -> 6000 | T31: =T$28*12-SUM($R31:S31)-SUMPRODUCT(--($D31:$O31<=T$28),T$28-$D31:$O31) -> 108000 | U31: =U$28*12-SUM($R31:T31)-SUMPRODUCT(--($D31:$O31<=U$28),U$28-$D31:$O31) -> 179492 | V31: =V$28*12-SUM($R31:U31)-SUMPRODUCT(--($D31:$O31<=V$28),V$28-$D31:$O31) -> 241015.777
A32: Customer 3 | B32: 7275110000 | C32: 121 | D32: 26897.5 | E32: 17227.854 | F32: 20402.478 | G32: 16729.68 | H32: 13286.76 | I32: 9394.704 | J32: 7873.732 | K32: 7552.671 | L32: 9142.92 | P32: 128508.299 | Q32: Closed Account 9/2018 | R32: =R$28*12-SUMPRODUCT(--($D32:$O32<=R$28),R$28-$D32:$O32) -> 4500 | S32: =S$28*12-SUM(R32:$R32)-SUMPRODUCT(--($D32:$O32<=S$28),S$28-$D32:$O32) -> 4500 | T32: =T$28*12-SUM($R32:S32)-SUMPRODUCT(--($D32:$O32<=T$28),T$28-$D32:$O32) -> 74964.027 | U32: =U$28*12-SUM($R32:T32)-SUMPRODUCT(--($D32:$O32<=U$28),U$28-$D32:$O32) -> 42646.772 | V32: =V$28*12-SUM($R32:U32)-SUMPRODUCT(--($D32:$O32<=V$28),V$28-$D32:$O32) -> 1897.5 | X32: =COUNT(D32:L32) -> 9
D33: =SUM(D30:D32) -> 171463.385 | E33: 135214.846 | F33: 134990.683 | G33: 114795.364 | H33: 69377.46 | I33: 83650.514 | J33: 77684.246 | K33: 80223.852 | L33: 94882.792 | M33: 87314.25 | N33: 122413.204 | O33: 133941.163 | P33: =SUM(D33:O33) -> 1305951.759 | R33: =SUM(R30:R32) -> 16500 | S33: =SUM(S30:S32) -> 16500 | T33: 290964.027 | U33: 402138.772 | V33: =SUM(V30:V32) -> 579848.96
A35: Total Former and Present | B35: Schedule 121 | D35: =D25+D33 -> 482275.987 | E35: 406354.237 | F35: 422670.682 | G35: 351525.346 | H35: 292745.365 | I35: 274869.379 | J35: 256893.0217 | K35: 256023.987 | L35: 290574.767 | M35: 299021.508 | N35: 369390.679 | O35: 239539.6006 | P35: =SUM(D35:O35) -> 3941884.559 | Q35: Total Current Year Bills | T35: =-T37-T36 -> 391 | U35: Prior period bills rebilled on Sch 111
A36: Revenue Report (Billed) | B36: Schedule 121 | D36: 482275.987 | E36: 406354.237 | F36: 422670.682 | G36: 351525.346 | H36: 292745.365 | I36: 274869.379 | J36: 256893.0217 | K36: 270466.209 | L36: 267299.682 | M36: 316924.913 | N36: 380776.489 | O36: -7073546.24 | P36: =SUM(D36:O36) -> -3350744.929 | T36: 217 | U36: 2018 bills rebilled on Sch 111
D37: =D36-D35 -> 0 | E37: =E36-E35 -> 0 | F37: 0 | G37: 0 | H37: 0 | I37: 0 | J37: 0 | K37: 14442.222 | L37: -23275.085 | M37: 17903.405 | N37: 11385.81 | O37: -7313085.841 | P37: -7292629.489 | Q37: Canceled and Rebilled usage | T37: -608 | U37: bills cancelled
A41: Revenue Report (Billed) | B41: Schedule 122 | D41: 65294.612 | E41: 48825.788 | F41: 51647.355 | G41: 46438.08 | H41: 39511.659 | I41: 28453.558 | J41: 23989.278 | K41: 22970.118 | L41: 24853.434 | M41: 25795.748 | N41: 31468.652 | O41: 53121.189 | P41: =SUM(D41:O41) -> 462369.471
A42: Revenue Report (Billed) | B42: Schedule 112 | D42: 17696.584 | E42: 17941.822 | F42: 13354.005 | G42: 11289.88 | H42: 5892.768 | I42: 5577.36 | J42: 4704.081 | K42: 4652.562 | L42: 7056.882 | M42: 9923.38 | N42: 17155.088 | O42: 17027.964 | P42: =SUM(D42:O42) -> 132272.376
B45: 3738400000 | C45: 112 | D45: 17696.584 | E45: 17941.822 | F45: 13354.005 | G45: 11289.88 | H45: 5892.768 | I45: 5577.36 | J45: 4704.081 | K45: 4652.562 | L45: 7056.882 | M45: 9923.38 | N45: 17155.088 | O45: 17027.964 | P45: =SUM(D45:O45) -> 132272.376
B46: 8016850000 | C46: 122 | D46: 65294.612 | E46: 48825.788 | F46: 51647.355 | G46: 46438.08 | H46: 39511.659 | I46: 28453.558 | J46: 23989.278 | K46: 22970.118 | L46: 24853.434 | M46: 25795.748 | N46: 31468.652 | O46: 53121.189 | P46: =SUM(D46:O46) -> 462369.471
A52: Schedule 121/122
A66: Determine 2018 Pro Forma Schedule 121 and Restated 111 customers and volumes.
R67: 1st | S67: =R68 -> 200 | T67: =S68 -> 1000 | U67: =T68 -> 10000 | V67: =U68 -> 25000
R68: 200 | S68: 1000 | T68: 10000 | U68: 25000 | V68: 99999999
A69: Name | B69: Account ID | C69: Current Schedule | D69: 2018-01-01 | E69: 2018-02-01 | F69: 2018-03-01 | G69: 2018-04-01 | H69: 2018-05-01 | I69: 2018-06-01 | J69: 2018-07-01 | K69: 2018-08-01 | L69: 2018-09-01 | M69: 2018-10-01 | N69: 2018-11-01 | O69: 2018-12-01 | P69: 2018 Total | Q69: Sch 121/111 Cancel/ Rebill usage | R69: Block 1 1st 500 therms | S69: Block 2 501 - 1,000 therms | T69: Block 3 1,001 - 10,000 therms | U69: Block 4 10,001 - 25,000 therms | V69: Block 5 over 25,000 therms
C70: 111 | D70: 9991.32 | E70: 7030.986 | F70: 8563.692 | G70: 6801.275 | H70: 6657.708 | I70: 4715.184 | J70: 4646.939 | K70: 4295.991 | L70: 5872.368 | M70: 5495.123 | N70: 6966.19 | O70: 9796.0266 | P70: =SUM(D70:O70) -> 80832.8026 | R70: =R$68*12-SUMPRODUCT(--($D70:$O70<=R$68),R$68-$D70:$O70) -> 2400 | S70: =S$68*12-SUM(R70:$R70)-SUMPRODUCT(--($D70:$O70<=S$68),S$68-$D70:$O70) -> 9600 | T70: =T$68*12-SUM($R70:S70)-SUMPRODUCT(--($D70:$O70<=T$68),T$68-$D70:$O70) -> 68832.8026 | U70: =U$68*12-SUM($R70:T70)-SUMPRODUCT(--($D70:$O70<=U$68),U$68-$D70:$O70) -> 0 | V70: =V$68*12-SUM($R70:U70)-SUMPRODUCT(--($D70:$O70<=V$68),V$68-$D70:$O70) -> 0
C71: 111 | D71: 18246.376 | E71: 19070.896 | F71: 15059.19 | G71: 13986.58 | H71: 12128.208 | I71: 12812.796 | J71: 12194.04 | K71: 13033.456 | L71: 12317.214 | M71: 14687.68 | N71: 20223.956 | P71: =SUM(D71:O71) -> 163760.392 | R71: =R$68*12-SUMPRODUCT(--($D71:$O71<=R$68),R$68-$D71:$O71) -> 2200 | S71: =S$68*12-SUM(R71:$R71)-SUMPRODUCT(--($D71:$O71<=S$68),S$68-$D71:$O71) -> 8800 | T71: =T$68*12-SUM($R71:S71)-SUMPRODUCT(--($D71:$O71<=T$68),T$68-$D71:$O71) -> 99000 | U71: =U$68*12-SUM($R71:T71)-SUMPRODUCT(--($D71:$O71<=U$68),U$68-$D71:$O71) -> 53760.392 | V71: =V$68*12-SUM($R71:U71)-SUMPRODUCT(--($D71:$O71<=V$68),V$68-$D71:$O71) -> 0
C72: 111 | D72: 18303.52 | E72: 18039.72 | F72: 13178.463 | G72: 9973.447 | H72: 879.079 | I72: 715.104 | J72: 716.876 | K72: 644.274 | L72: 841.027 | M72: 4820.52 | N72: 11862.956 | P72: 79974.986 | R72: 2200 | S72: =S$68*12-SUM(R72:$R72)-SUMPRODUCT(--($D72:$O72<=S$68),S$68-$D72:$O72) -> 7596.36 | T72: =T$68*12-SUM($R72:S72)-SUMPRODUCT(--($D72:$O72<=T$68),T$68-$D72:$O72) -> 48793.967 | U72: =U$68*12-SUM($R72:T72)-SUMPRODUCT(--($D72:$O72<=U$68),U$68-$D72:$O72) -> 21384.659 | V72: =V$68*12-SUM($R72:U72)-SUMPRODUCT(--($D72:$O72<=V$68),V$68-$D72:$O72) -> 0
C73: 111 | D73: 14356.423 | E73: 10786.315 | F73: 11185.253 | G73: 10637.2 | H73: 9214.59 | I73: 7238.4 | J73: 7529.756 | K73: 6631.84 | L73: 6789.64 | M73: 8104.32 | N73: 8760.494 | O73: 11741.631 | P73: 112975.862 | R73: 2400 | S73: =S$68*12-SUM(R73:$R73)-SUMPRODUCT(--($D73:$O73<=S$68),S$68-$D73:$O73) -> 9600 | T73: =T$68*12-SUM($R73:S73)-SUMPRODUCT(--($D73:$O73<=T$68),T$68-$D73:$O73) -> 92269.04 | U73: =U$68*12-SUM($R73:T73)-SUMPRODUCT(--($D73:$O73<=U$68),U$68-$D73:$O73) -> 8706.822 | V73: =V$68*12-SUM($R73:U73)-SUMPRODUCT(--($D73:$O73<=V$68),V$68-$D73:$O73) -> 0
C74: 111 | D74: 23032.933 | E74: 16190.424 | F74: 16878.11 | G74: 14298.26 | H74: 13245.925 | I74: 9793.752 | J74: 9149.294 | K74: 8799.42 | L74: 9597.796 | M74: 10674.34 | N74: 14218.82 | O74: 17316.468 | P74: 163195.542 | R74: 2400 | S74: =S$68*12-SUM(R74:$R74)-SUMPRODUCT(--($D74:$O74<=S$68),S$68-$D74:$O74) -> 9600 | T74: =T$68*12-SUM($R74:S74)-SUMPRODUCT(--($D74:$O74<=T$68),T$68-$D74:$O74) -> 105340.262 | U74: =U$68*12-SUM($R74:T74)-SUMPRODUCT(--($D74:$O74<=U$68),U$68-$D74:$O74) -> 45855.28 | V74: =V$68*12-SUM($R74:U74)-SUMPRODUCT(--($D74:$O74<=V$68),V$68-$D74:$O74) -> 0
C75: 111 | D75: 18671.928 | E75: 13833.152 | F75: 15177.538 | G75: 14898.972 | H75: 9366.247 | I75: 9253.504 | J75: 9271.913 | K75: 8414.02 | L75: 9394.924 | M75: 9804.624 | N75: 11841.982 | P75: 129928.804 | R75: 2200 | S75: =S$68*12-SUM(R75:$R75)-SUMPRODUCT(--($D75:$O75<=S$68),S$68-$D75:$O75) -> 8800 | T75: =T$68*12-SUM($R75:S75)-SUMPRODUCT(--($D75:$O75<=T$68),T$68-$D75:$O75) -> 94505.232 | U75: =U$68*12-SUM($R75:T75)-SUMPRODUCT(--($D75:$O75<=U$68),U$68-$D75:$O75) -> 24423.572 | V75: =V$68*12-SUM($R75:U75)-SUMPRODUCT(--($D75:$O75<=V$68),V$68-$D75:$O75) -> 0
C76: 111 | D76: 19844.904 | E76: 16402 | F76: 16526.172 | G76: 13906.062 | H76: 11647.19 | I76: 9949.996 | J76: 9636.592 | K76: 8459.913 | L76: 8969.91 | M76: 10567.336 | N76: 14173.59 | P76: 140083.665 | R76: 2200 | S76: =S$68*12-SUM(R76:$R76)-SUMPRODUCT(--($D76:$O76<=S$68),S$68-$D76:$O76) -> 8800 | T76: =T$68*12-SUM($R76:S76)-SUMPRODUCT(--($D76:$O76<=T$68),T$68-$D76:$O76) -> 96016.411 | U76: =U$68*12-SUM($R76:T76)-SUMPRODUCT(--($D76:$O76<=U$68),U$68-$D76:$O76) -> 33067.254 | V76: =V$68*12-SUM($R76:U76)-SUMPRODUCT(--($D76:$O76<=V$68),V$68-$D76:$O76) -> 0
C77: 111 | D77: 11563.722 | E77: 8312.216 | F77: 9779.508 | G77: 9240.72 | H77: 6160.455 | I77: 5500.561 | J77: 5107.596 | K77: 3601 | L77: 5093.226 | M77: 5620.549 | N77: 6185.712 | P77: 76165.265 | R77: 2200 | S77: =S$68*12-SUM(R77:$R77)-SUMPRODUCT(--($D77:$O77<=S$68),S$68-$D77:$O77) -> 8800 | T77: =T$68*12-SUM($R77:S77)-SUMPRODUCT(--($D77:$O77<=T$68),T$68-$D77:$O77) -> 63601.543 | U77: =U$68*12-SUM($R77:T77)-SUMPRODUCT(--($D77:$O77<=U$68),U$68-$D77:$O77) -> 1563.722 | V77: =V$68*12-SUM($R77:U77)-SUMPRODUCT(--($D77:$O77<=V$68),V$68-$D77:$O77) -> 0
C78: 111 | D78: 17966.34 | E78: 16748.44 | F78: 21506.16 | G78: 22465.344 | H78: 21645.975 | I78: 19766.616 | J78: 18365.264 | K78: 23119.036 | L78: 22406.328 | M78: 21807.06 | N78: 23135.84 | P78: 228932.403 | R78: 2200 | S78: =S$68*12-SUM(R78:$R78)-SUMPRODUCT(--($D78:$O78<=S$68),S$68-$D78:$O78) -> 8800 | T78: =T$68*12-SUM($R78:S78)-SUMPRODUCT(--($D78:$O78<=T$68),T$68-$D78:$O78) -> 99000 | U78: =U$68*12-SUM($R78:T78)-SUMPRODUCT(--($D78:$O78<=U$68),U$68-$D78:$O78) -> 118932.403 | V78: =V$68*12-SUM($R78:U78)-SUMPRODUCT(--($D78:$O78<=V$68),V$68-$D78:$O78) -> 0
C79: 111 | D79: 22036.86 | E79: 18307.25 | F79: 19576.095 | G79: 18191.036 | H79: 20698 | I79: 15852.325 | J79: 13900.946 | K79: 14545.603 | L79: 13986.99 | M79: 14592.732 | N79: 17827.79 | O79: 18309.15 | P79: 207824.777 | R79: 2400 | S79: =S$68*12-SUM(R79:$R79)-SUMPRODUCT(--($D79:$O79<=S$68),S$68-$D79:$O79) -> 9600 | T79: =T$68*12-SUM($R79:S79)-SUMPRODUCT(--($D79:$O79<=T$68),T$68-$D79:$O79) -> 108000 | U79: =U$68*12-SUM($R79:T79)-SUMPRODUCT(--($D79:$O79<=U$68),U$68-$D79:$O79) -> 87824.777 | V79: =V$68*12-SUM($R79:U79)-SUMPRODUCT(--($D79:$O79<=V$68),V$68-$D79:$O79) -> 0
C80: 111 | D80: 18564.8 | E80: 16579.94 | F80: 16610.928 | G80: 14189.656 | H80: 11665.125 | I80: 9830.742 | J80: 7325.424 | K80: 7034.866 | L80: 9576.252 | M80: 12195.018 | N80: 13189.335 | P80: 136762.086 | R80: 2200 | S80: =S$68*12-SUM(R80:$R80)-SUMPRODUCT(--($D80:$O80<=S$68),S$68-$D80:$O80) -> 8800 | T80: =T$68*12-SUM($R80:S80)-SUMPRODUCT(--($D80:$O80<=T$68),T$68-$D80:$O80) -> 92767.284 | U80: =U$68*12-SUM($R80:T80)-SUMPRODUCT(--($D80:$O80<=U$68),U$68-$D80:$O80) -> 32994.802 | V80: =V$68*12-SUM($R80:U80)-SUMPRODUCT(--($D80:$O80<=V$68),V$68-$D80:$O80) -> 0
C81: 111 | D81: 7597.773 | E81: 6497.999 | F81: 11813.49 | G81: 1550.615 | H81: 12533.4 | I81: 13059.007 | J81: 12283.075 | K81: 9729.996 | L81: 14442.222 | M81: 13390.08 | N81: 9211.333 | O81: 16491.415 | P81: 128600.405 | R81: 2400 | S81: =S$68*12-SUM(R81:$R81)-SUMPRODUCT(--($D81:$O81<=S$68),S$68-$D81:$O81) -> 9600 | T81: =T$68*12-SUM($R81:S81)-SUMPRODUCT(--($D81:$O81<=T$68),T$68-$D81:$O81) -> 92587.716 | U81: =U$68*12-SUM($R81:T81)-SUMPRODUCT(--($D81:$O81<=U$68),U$68-$D81:$O81) -> 24012.689 | V81: =V$68*12-SUM($R81:U81)-SUMPRODUCT(--($D81:$O81<=V$68),V$68-$D81:$O81) -> 0
C82: 111 | D82: 13506.28 | E82: 16845.14 | F82: 18835.583 | G82: 11840.211 | H82: 15288 | I82: 9520.47 | J82: 6885.04 | K82: 8366.484 | L82: 9957.444 | M82: 10888.25 | N82: 10957.575 | P82: 132890.477 | R82: 2200 | S82: =S$68*12-SUM(R82:$R82)-SUMPRODUCT(--($D82:$O82<=S$68),S$68-$D82:$O82) -> 8800 | T82: =T$68*12-SUM($R82:S82)-SUMPRODUCT(--($D82:$O82<=T$68),T$68-$D82:$O82) -> 93729.438 | U82: =U$68*12-SUM($R82:T82)-SUMPRODUCT(--($D82:$O82<=U$68),U$68-$D82:$O82) -> 28161.039 | V82: =V$68*12-SUM($R82:U82)-SUMPRODUCT(--($D82:$O82<=V$68),V$68-$D82:$O82) -> 0
C83: 111 | D83: 16831.722 | E83: 16265.62 | F83: 14129.412 | G83: 13413.312 | H83: 12724.457 | I83: 10581.468 | J83: 9568.686 | K83: 10493.982 | L83: 10340.82 | M83: 13474.908 | N83: 15479.36 | P83: 143303.747 | R83: 2200 | S83: =S$68*12-SUM(R83:$R83)-SUMPRODUCT(--($D83:$O83<=S$68),S$68-$D83:$O83) -> 8800 | T83: =T$68*12-SUM($R83:S83)-SUMPRODUCT(--($D83:$O83<=T$68),T$68-$D83:$O83) -> 98568.686 | U83: =U$68*12-SUM($R83:T83)-SUMPRODUCT(--($D83:$O83<=U$68),U$68-$D83:$O83) -> 33735.061 | V83: =V$68*12-SUM($R83:U83)-SUMPRODUCT(--($D83:$O83<=V$68),V$68-$D83:$O83) -> 0
C84: 111 | D84: 18898.6 | E84: 13095.35 | F84: 18416.225 | G84: 13602.24 | H84: 12386.904 | I84: 12467.686 | J84: 11172.7 | K84: 8999.208 | L84: 15805.928 | M84: 10106.152 | N84: 11199.534 | O84: 17111.675 | P84: 163262.202 | R84: 2400 | S84: =S$68*12-SUM(R84:$R84)-SUMPRODUCT(--($D84:$O84<=S$68),S$68-$D84:$O84) -> 9600 | T84: =T$68*12-SUM($R84:S84)-SUMPRODUCT(--($D84:$O84<=T$68),T$68-$D84:$O84) -> 106999.208 | U84: =U$68*12-SUM($R84:T84)-SUMPRODUCT(--($D84:$O84<=U$68),U$68-$D84:$O84) -> 44262.994 | V84: =V$68*12-SUM($R84:U84)-SUMPRODUCT(--($D84:$O84<=V$68),V$68-$D84:$O84) -> 0
C85: 111 | D85: 15941 | E85: 12201.259 | F85: 13394.756 | G85: 10711.512 | H85: 8078.814 | I85: 5961.11 | J85: 6821.08 | K85: 5976.828 | L85: 6581.925 | M85: 7957.06 | N85: 10736.986 | P85: 104362.33 | R85: 2200 | S85: =S$68*12-SUM(R85:$R85)-SUMPRODUCT(--($D85:$O85<=S$68),S$68-$D85:$O85) -> 8800 | T85: =T$68*12-SUM($R85:S85)-SUMPRODUCT(--($D85:$O85<=T$68),T$68-$D85:$O85) -> 80376.817 | U85: =U$68*12-SUM($R85:T85)-SUMPRODUCT(--($D85:$O85<=U$68),U$68-$D85:$O85) -> 12985.513 | V85: =V$68*12-SUM($R85:U85)-SUMPRODUCT(--($D85:$O85<=V$68),V$68-$D85:$O85) -> 0
C86: 111 | D86: 19325.736 | E86: 22970.145 | F86: 24928.992 | G86: 18587.358 | H86: 19289.096 | I86: 17008.04 | J86: 17048.382 | K86: 17623.93 | L86: 16462.485 | M86: 18279.751 | N86: 20752.578 | P86: 212276.493 | R86: 2200 | S86: =S$68*12-SUM(R86:$R86)-SUMPRODUCT(--($D86:$O86<=S$68),S$68-$D86:$O86) -> 8800 | T86: =T$68*12-SUM($R86:S86)-SUMPRODUCT(--($D86:$O86<=T$68),T$68-$D86:$O86) -> 99000 | U86: =U$68*12-SUM($R86:T86)-SUMPRODUCT(--($D86:$O86<=U$68),U$68-$D86:$O86) -> 102276.493 | V86: =V$68*12-SUM($R86:U86)-SUMPRODUCT(--($D86:$O86<=V$68),V$68-$D86:$O86) -> 0
C87: 111 | D87: 8797.35 | E87: 9600.738 | F87: 8137.258 | G87: 7308.954 | H87: 8391.438 | I87: 6269.8 | J87: 6566.36 | K87: 8056.972 | L87: 7991.836 | M87: 7377.955 | N87: 8706.84 | P87: 87205.501 | R87: 2200 | S87: =S$68*12-SUM(R87:$R87)-SUMPRODUCT(--($D87:$O87<=S$68),S$68-$D87:$O87) -> 8800 | T87: =T$68*12-SUM($R87:S87)-SUMPRODUCT(--($D87:$O87<=T$68),T$68-$D87:$O87) -> 76205.501 | U87: =U$68*12-SUM($R87:T87)-SUMPRODUCT(--($D87:$O87<=U$68),U$68-$D87:$O87) -> 0 | V87: =V$68*12-SUM($R87:U87)-SUMPRODUCT(--($D87:$O87<=V$68),V$68-$D87:$O87) -> 0
C88: 121 | J88: 2449.57374 | K88: 7973.316 | L88: 9263.64 | M88: 11863.8 | N88: 11546.604 | O88: 14832.072 | P88: =SUM(D88:O88) -> 57929.00574 | R88: 1200 | S88: =S$68*12-SUM(R88:$R88)-SUMPRODUCT(--($D88:$O88<=S$68),S$68-$D88:$O88) -> 4800 | T88: =T$68*12-SUM($R88:S88)-SUMPRODUCT(--($D88:$O88<=T$68),T$68-$D88:$O88) -> 43686.52974 | U88: =U$68*12-SUM($R88:T88)-SUMPRODUCT(--($D88:$O88<=U$68),U$68-$D88:$O88) -> 8242.476 | V88: =V$68*12-SUM($R88:U88)-SUMPRODUCT(--($D88:$O88<=V$68),V$68-$D88:$O88) -> 0
C89: 121 | D89: 17335.015 | E89: 12361.801 | F89: 13983.174 | G89: 11127.228 | H89: 11367.294 | I89: 10922.304 | J89: 8569.23899 | P89: =SUM(D89:O89) -> 85666.05499 | R89: 1400 | S89: =S$68*12-SUM(R89:$R89)-SUMPRODUCT(--($D89:$O89<=S$68),S$68-$D89:$O89) -> 5600 | T89: =T$68*12-SUM($R89:S89)-SUMPRODUCT(--($D89:$O89<=T$68),T$68-$D89:$O89) -> 61569.23899 | U89: =U$68*12-SUM($R89:T89)-SUMPRODUCT(--($D89:$O89<=U$68),U$68-$D89:$O89) -> 17096.816 | V89: =V$68*12-SUM($R89:U89)-SUMPRODUCT(--($D89:$O89<=V$68),V$68-$D89:$O89) -> 0
D90: =SUM(D70:D89) -> 310812.602 | E90: =SUM(E70:E89) -> 271139.391 | F90: 287679.999 | G90: 236729.982 | H90: 223367.905 | I90: 191218.865 | J90: 179208.7757 | K90: 175800.135 | L90: 195691.975 | M90: 211707.258 | N90: 246977.475 | O90: 105598.4376 | P90: =SUM(D90:O90) -> 2635932.8 | Q90: Current Year Rebills | R90: =SUM(R70:R89) -> 43400 | S90: =SUM(S70:S89) -> 172396.36 | T90: 1720849.676 | U90: 699286.764 | V90: 0
P91: =-P102-P90 -> -2635932.8

Sheet Sch 111 Rate Design
Q2: 200 | R2: 1000 | S2: 99999999
O4: Annual Usage | Q4: 500 | R4: 1000 | S4: 10000 | T4: 25000 | U4: 99999999
A5: Schedule 121/122 | C5: January | D5: February | E5: March | F5: April | G5: May | H5: June | I5: July | J5: August | K5: September | L5: October | M5: November | N5: December
Q6: Block 1 1st 500 therms | R6: Block 2 501 - 1,000 therms | S6: Block 3 1,001 - 10,000 therms | T6: Block 4 10,001 - 25,000 therms | U6: Block 5 over 25,000 therms
A7: Customer 1 | B7: 121 | C7: 97094.085 | D7: 80333.946 | E7: 69364.269 | F7: 57291.588 | G7: 31598.7 | H7: 28892.99 | I7: 28870.635 | J7: 25322.026 | K7: 35158.072 | L7: 39392.64 | M7: 60010.084 | N7: 83606.648 | O7: =SUM(C7:N7) -> 636935.683 | P7: Commercial | Q7: =Q$4*12-SUMPRODUCT(--($C7:$N7<=Q$4),Q$4-$C7:$N7) -> 6000 | R7: =R$4*12-SUM(Q7:$Q7)-SUMPRODUCT(--($C7:$N7<=R$4),R$4-$C7:$N7) -> 6000 | S7: =S$4*12-SUM($Q7:R7)-SUMPRODUCT(--($C7:$N7<=S$4),S$4-$C7:$N7) -> 108000 | T7: =T$4*12-SUM($Q7:S7)-SUMPRODUCT(--($C7:$N7<=T$4),T$4-$C7:$N7) -> 180000 | U7: =U$4*12-SUM($Q7:T7)-SUMPRODUCT(--($C7:$N7<=U$4),U$4-$C7:$N7) -> 336935.683
A8: Customer 2 | B8: 121 | C8: 47471.8 | D8: 37653.046 | E8: 45223.936 | F8: 40774.096 | G8: 24492 | H8: 45362.82 | I8: 40939.879 | J8: 47349.155 | K8: 50581.8 | L8: 47921.61 | M8: 62403.12 | N8: 50334.515 | O8: 540507.777 | P8: Industrial | Q8: =Q$4*12-SUMPRODUCT(--($C8:$N8<=Q$4),Q$4-$C8:$N8) -> 6000 | R8: =R$4*12-SUM(Q8:$Q8)-SUMPRODUCT(--($C8:$N8<=R$4),R$4-$C8:$N8) -> 6000 | S8: =S$4*12-SUM($Q8:R8)-SUMPRODUCT(--($C8:$N8<=S$4),S$4-$C8:$N8) -> 108000 | T8: =T$4*12-SUM($Q8:S8)-SUMPRODUCT(--($C8:$N8<=T$4),T$4-$C8:$N8) -> 179492 | U8: =U$4*12-SUM($Q8:T8)-SUMPRODUCT(--($C8:$N8<=U$4),U$4-$C8:$N8) -> 241015.777
A9: Customer 3 | B9: 122 | C9: 65294.612 | D9: 48825.788 | E9: 51647.355 | F9: 46438.08 | G9: 39511.659 | H9: 28453.558 | I9: 23989.278 | J9: 22970.118 | K9: 24853.434 | L9: 25795.748 | M9: 31468.652 | N9: 53121.189 | O9: 462369.471 | P9: Commercial | Q9: 6000 | R9: =R$4*12-SUM(Q9:$Q9)-SUMPRODUCT(--($C9:$N9<=R$4),R$4-$C9:$N9) -> 6000 | S9: =S$4*12-SUM($Q9:R9)-SUMPRODUCT(--($C9:$N9<=S$4),S$4-$C9:$N9) -> 108000 | T9: =T$4*12-SUM($Q9:S9)-SUMPRODUCT(--($C9:$N9<=T$4),T$4-$C9:$N9) -> 176812.83 | U9: =U$4*12-SUM($Q9:T9)-SUMPRODUCT(--($C9:$N9<=U$4),U$4-$C9:$N9) -> 165556.641
P11: Present Base Rates | Q11: 0.48088 | R11: 0.3485 | S11: 0.26767 | T11: 0.21692 | U11: 0.14387
P13: Customer 1 | Q13: =Q7*$Q$11 -> 2885.28 | R13: =R7*$R$11 -> 2091 | S13: =S7*$S$11 -> 28908.36 | T13: =T7*$T$11 -> 39045.6 | U13: =U7*$U$11 -> 48474.93671 | V13: =SUM(Q13:U13) -> 121405.1767
P14: Customer 2 | Q14: =Q8*$Q$11 -> 2885.28 | R14: =R8*$R$11 -> 2091 | S14: =S8*$S$11 -> 28908.36 | T14: =T8*$T$11 -> 38935.40464 | U14: =U8*$U$11 -> 34674.93984 | V14: =SUM(Q14:U14) -> 107494.9845
P15: Customer 3 | Q15: 2885.28 | R15: 2091 | S15: 28908.36 | T15: 38354.23908 | U15: 23818.63394 | V15: 96057.51302
V16: =SUM(V13:V15) -> 324957.6742
A19: Schedule 111/112
Q20: Block 1 1st 200 therms | R20: Block 2 201 - 1,000 therms | S20: Block 3 over 1,000 therms
A21: Customer 1 | B21: 121 | C21: 97094.085 | D21: 80333.946 | E21: 69364.269 | F21: 57291.588 | G21: 31598.7 | H21: 28892.99 | I21: 28870.635 | J21: 25322.026 | K21: 35158.072 | L21: 39392.64 | M21: 60010.084 | N21: 83606.648 | O21: =SUM(C21:N21) -> 636935.683 | Q21: =Q$2*12-SUMPRODUCT(--($C21:$N21<=Q$2),Q$2-$C21:$N21) -> 2400 | R21: =R$2*12-SUM(Q21:$Q21)-SUMPRODUCT(--($C21:$N21<=R$2),R$2-$C21:$N21) -> 9600 | S21: =S$2*12-SUM($Q21:R21)-SUMPRODUCT(--($C21:$N21<=S$2),S$2-$C21:$N21) -> 624935.683 | T21: =T$28*12-SUM($Q21:S21)-SUMPRODUCT(--($C21:$N21<=T$28),T$28-$C21:$N21) -> -636935.683
A22: Customer 2 | B22: 121 | C22: 47471.8 | D22: 37653.046 | E22: 45223.936 | F22: 40774.096 | G22: 24492 | H22: 45362.82 | I22: 40939.879 | J22: 47349.155 | K22: 50581.8 | L22: 47921.61 | M22: 62403.12 | N22: 50334.515 | O22: 540507.777 | Q22: =Q$2*12-SUMPRODUCT(--($C22:$N22<=Q$2),Q$2-$C22:$N22) -> 2400 | R22: =R$2*12-SUM(Q22:$Q22)-SUMPRODUCT(--($C22:$N22<=R$2),R$2-$C22:$N22) -> 9600 | S22: =S$2*12-SUM($Q22:R22)-SUMPRODUCT(--($C22:$N22<=S$2),S$2-$C22:$N22) -> 528507.777 | T22: =T$28*12-SUM($Q22:S22)-SUMPRODUCT(--($C22:$N22<=T$28),T$28-$C22:$N22) -> -540507.777
A23: Customer 3 | B23: 122 | C23: 65294.612 | D23: 48825.788 | E23: 51647.355 | F23: 46438.08 | G23: 39511.659 | H23: 28453.558 | I23: 23989.278 | J23: 22970.118 | K23: 24853.434 | L23: 25795.748 | M23: 31468.652 | N23: 53121.189 | O23: 462369.471 | Q23: 2400 | R23: =R$2*12-SUM(Q23:$Q23)-SUMPRODUCT(--($C23:$N23<=R$2),R$2-$C23:$N23) -> 9600 | S23: =S$2*12-SUM($Q23:R23)-SUMPRODUCT(--($C23:$N23<=S$2),S$2-$C23:$N23) -> 450369.471 | T23: =T$28*12-SUM($Q23:S23)-SUMPRODUCT(--($C23:$N23<=T$28),T$28-$C23:$N23) -> -462369.471
P25: Present Base Rates | Q25: 0.48625 | R25: 0.33354 | S25: 0.25424
P27: Customer 1 | Q27: =Q21*$Q$25 -> 1167 | R27: =R21*$R$25 -> 3201.984 | S27: =S21*$S$25 -> 158883.648 | V27: =SUM(Q27:U27) -> 163252.632 | W27: =V27-V13 -> 41847.45533
P28: Customer 2 | Q28: =Q22*$Q$25 -> 1167 | R28: =R22*$R$25 -> 3201.984 | S28: =S22*$S$25 -> 134367.8172 | V28: =SUM(Q28:U28) -> 138736.8012 | W28: =V28-V14 -> 31241.81675
P29: Customer 3 | Q29: 1167 | R29: 3201.984 | S29: 114501.9343 | V29: 118870.9183 | W29: 22813.40528
V30: =SUM(V27:V29) -> 420860.3516 | W30: 95902.67736
A32: Schedule 111/112 Revised | Q32: 200 | R32: 1000 | S32: 10000 | T32: 25000 | U32: 99999999
P33: Schedule 121 not Rebilled | Q33: Block 1 1st 200 therms | R33: Block 2 201 - 1,000 therms | S33: Block 3 1,001 - 10,000 therms | T33: Block 4 10,001 - 25,000 therms | U33: Block 5 over 25,000 therms
A34: Customer 1 | B34: 121 | C34: 97094.085 | D34: 80333.946 | E34: 69364.269 | F34: 57291.588 | G34: 31598.7 | H34: 28892.99 | I34: 28870.635 | J34: 25322.026 | K34: 35158.072 | L34: 39392.64 | M34: 60010.084 | N34: 83606.648 | O34: =SUM(C34:N34) -> 636935.683 | Q34: =Q$32*12-SUMPRODUCT(--($C34:$N34<=Q$32),Q$32-$C34:$N34) -> 2400 | R34: =R$32*12-SUM(Q34:$Q34)-SUMPRODUCT(--($C34:$N34<=R$32),R$32-$C34:$N34) -> 9600 | S34: =S$32*12-SUM($Q34:R34)-SUMPRODUCT(--($C34:$N34<=S$32),S$32-$C34:$N34) -> 108000 | T34: =T$32*12-SUM($Q34:S34)-SUMPRODUCT(--($C34:$N34<=T$32),T$32-$C34:$N34) -> 180000 | U34: =U$32*12-SUM($Q34:T34)-SUMPRODUCT(--($C34:$N34<=U$32),U$32-$C34:$N34) -> 336935.683
A35: Customer 2 | B35: 121 | C35: 47471.8 | D35: 37653.046 | E35: 45223.936 | F35: 40774.096 | G35: 24492 | H35: 45362.82 | I35: 40939.879 | J35: 47349.155 | K35: 50581.8 | L35: 47921.61 | M35: 62403.12 | N35: 50334.515 | O35: 540507.777 | Q35: =Q$32*12-SUMPRODUCT(--($C35:$N35<=Q$32),Q$32-$C35:$N35) -> 2400 | R35: =R$32*12-SUM(Q35:$Q35)-SUMPRODUCT(--($C35:$N35<=R$32),R$32-$C35:$N35) -> 9600 | S35: =S$32*12-SUM($Q35:R35)-SUMPRODUCT(--($C35:$N35<=S$32),S$32-$C35:$N35) -> 108000 | T35: =T$32*12-SUM($Q35:S35)-SUMPRODUCT(--($C35:$N35<=T$32),T$32-$C35:$N35) -> 179492 | U35: =U$32*12-SUM($Q35:T35)-SUMPRODUCT(--($C35:$N35<=U$32),U$32-$C35:$N35) -> 241015.777
A36: Customer 3 | B36: 122 | C36: 65294.612 | D36: 48825.788 | E36: 51647.355 | F36: 46438.08 | G36: 39511.659 | H36: 28453.558 | I36: 23989.278 | J36: 22970.118 | K36: 24853.434 | L36: 25795.748 | M36: 31468.652 | N36: 53121.189 | O36: 462369.471 | Q36: 2400 | R36: =R$32*12-SUM(Q36:$Q36)-SUMPRODUCT(--($C36:$N36<=R$32),R$32-$C36:$N36) -> 9600 | S36: =S$32*12-SUM($Q36:R36)-SUMPRODUCT(--($C36:$N36<=S$32),S$32-$C36:$N36) -> 108000 | T36: =T$32*12-SUM($Q36:S36)-SUMPRODUCT(--($C36:$N36<=T$32),T$32-$C36:$N36) -> 176812.83 | U36: =U$32*12-SUM($Q36:T36)-SUMPRODUCT(--($C36:$N36<=U$32),U$32-$C36:$N36) -> 165556.641
P37: Total Usage | Q37: =SUM(Q34:Q36) -> 7200 | R37: =SUM(R34:R36) -> 28800 | S37: 324000 | T37: 536304.83 | U37: 743508.101
P38: Revised Present Base Rates | Q38: 0.48625 | R38: 0.33354 | S38: 0.25424 | T38: 0.21692 | U38: 0.152172812 | W38: Annual Bill Impact
P40: Customer 1 | Q40: =Q34*$Q$38 -> 1167 | R40: =R34*$R$38 -> 3201.984 | S40: =S34*$S$38 -> 27457.92 | T40: =T34*$T$38 -> 39045.6 | U40: =U34*$U$38 -> 51272.45035 | V40: =SUM(Q40:U40) -> 122144.9544 | W40: =V40-V13 -> 739.7776397 | X40: =W40/V13 -> 0.006093460425
P41: Customer 2 | Q41: =Q35*$Q$38 -> 1167 | R41: =R35*$R$38 -> 3201.984 | S41: =S35*$S$38 -> 27457.92 | T41: =T35*$T$38 -> 38935.40464 | U41: =U35*$U$38 -> 36676.04853 | V41: =SUM(Q41:U41) -> 107438.3572 | W41: =V41-V14 -> -56.62730905 | X41: =W41/V14 -> -0.0005267902435
P42: Customer 3 | Q42: 1167 | R42: 3201.984 | S42: 27457.92 | T42: 38354.23908 | U42: 25193.21961 | V42: 95374.36269 | W42: -683.1503307 | X42: -0.007111888588
V43: =SUM(V40:V42) -> 324957.6742 | W43: 0
V45: =V43-V16 -> 0
P47: Present | Q47: =Q38 -> 0.48625 | R47: =R38 -> 0.33354 | S47: 0.25424 | T47: 0.21692 | U47: 0.152172812
P48: Proposed | Q48: =RD!J19 -> 0.5378 | R48: =RD!J20 -> 0.36159 | S48: =RD!J21 -> 0.27562 | T48: =RD!J22 -> 0.23517 | U48: =RD!J23 -> 0.16497
B49: 2019-12-15 | C49: 2019-01-16 | D49: 2019-01-17 | P49: Differential | Q49: =Q48-Q47 -> 0.05155 | R49: =R48-R47 -> 0.02805 | S49: 0.02138 | T49: 0.01825 | U49: 0.01279718798
A50: Customer 1 | B50: 71833 | C50: 95008 | D50: 111432 | E50: Commercial
A51: Customer 2 | B51: Sch 111 | C51: Sch 111 | D51: Sch 111 | E51: Industrial
A52: Customer 3 | B52: 54946 | C52: 83853 | D52: 76826 | E52: Commercial
B53: =B50+B52 -> 126779 | C53: =C50+C52 -> 178861 | D53: =D50+D52 -> 188258 | G53: Adjusted in COS demand study
B55: =370032-B53 -> 243253 | C55: =369134-C53 -> 190273 | D55: =386310-D53 -> 198052
A59: Schedule 111/112 Revised | Q59: 200 | R59: 1000 | S59: 10000 | T59: 25000 | U59: 99999999
P60: Schedule 121 not Rebilled | Q60: Block 1 1st 200 therms | R60: Block 2 201 - 1,000 therms | S60: Block 3 1,001 - 10,000 therms | T60: Block 4 10,001 - 25,000 therms | U60: Block 5 over 25,000 therms
A61: Customer 1 | B61: 121 | C61: 97094.085 | D61: 80333.946 | E61: 69364.269 | F61: 57291.588 | G61: 31598.7 | H61: 28892.99 | I61: 28870.635 | J61: 25322.026 | K61: 35158.072 | L61: 39392.64 | M61: 60010.084 | N61: 83606.648 | O61: =SUM(C61:N61) -> 636935.683 | Q61: =Q$32*12-SUMPRODUCT(--($C61:$N61<=Q$32),Q$32-$C61:$N61) -> 2400 | R61: =R$32*12-SUM(Q61:$Q61)-SUMPRODUCT(--($C61:$N61<=R$32),R$32-$C61:$N61) -> 9600 | S61: =S$32*12-SUM($Q61:R61)-SUMPRODUCT(--($C61:$N61<=S$32),S$32-$C61:$N61) -> 108000 | T61: =T$32*12-SUM($Q61:S61)-SUMPRODUCT(--($C61:$N61<=T$32),T$32-$C61:$N61) -> 180000 | U61: =U$32*12-SUM($Q61:T61)-SUMPRODUCT(--($C61:$N61<=U$32),U$32-$C61:$N61) -> 336935.683
A62: Customer 2 | B62: 121 | C62: 47471.8 | D62: 37653.046 | E62: 45223.936 | F62: 40774.096 | G62: 24492 | H62: 45362.82 | I62: 40939.879 | J62: 47349.155 | K62: 50581.8 | L62: 47921.61 | M62: 62403.12 | N62: 50334.515 | O62: 540507.777 | Q62: =Q$32*12-SUMPRODUCT(--($C62:$N62<=Q$32),Q$32-$C62:$N62) -> 2400 | R62: =R$32*12-SUM(Q62:$Q62)-SUMPRODUCT(--($C62:$N62<=R$32),R$32-$C62:$N62) -> 9600 | S62: =S$32*12-SUM($Q62:R62)-SUMPRODUCT(--($C62:$N62<=S$32),S$32-$C62:$N62) -> 108000 | T62: =T$32*12-SUM($Q62:S62)-SUMPRODUCT(--($C62:$N62<=T$32),T$32-$C62:$N62) -> 179492 | U62: =U$32*12-SUM($Q62:T62)-SUMPRODUCT(--($C62:$N62<=U$32),U$32-$C62:$N62) -> 241015.777
A63: Customer 3 | B63: 122 | C63: 65294.612 | D63: 48825.788 | E63: 51647.355 | F63: 46438.08 | G63: 39511.659 | H63: 28453.558 | I63: 23989.278 | J63: 22970.118 | K63: 24853.434 | L63: 25795.748 | M63: 31468.652 | N63: 53121.189 | O63: 462369.471 | Q63: 2400 | R63: =R$32*12-SUM(Q63:$Q63)-SUMPRODUCT(--($C63:$N63<=R$32),R$32-$C63:$N63) -> 9600 | S63: =S$32*12-SUM($Q63:R63)-SUMPRODUCT(--($C63:$N63<=S$32),S$32-$C63:$N63) -> 108000 | T63: =T$32*12-SUM($Q63:S63)-SUMPRODUCT(--($C63:$N63<=T$32),T$32-$C63:$N63) -> 176812.83 | U63: =U$32*12-SUM($Q63:T63)-SUMPRODUCT(--($C63:$N63<=U$32),U$32-$C63:$N63) -> 165556.641
P64: Total Usage | Q64: =SUM(Q61:Q63) -> 7200 | R64: =SUM(R61:R63) -> 28800 | S64: 324000 | T64: 536304.83 | U64: 743508.101
P65: Proposed Base Rates | Q65: =RD!J19 -> 0.5378 | R65: =RD!J20 -> 0.36159 | S65: =RD!J21 -> 0.27562 | T65: =RD!J22 -> 0.23517 | U65: =RD!J23 -> 0.16497
P67: Customer 1 | Q67: =Q61*$Q$65 -> 1290.72 | R67: =R61*$R$65 -> 3471.264 | S67: =S61*$S$65 -> 29766.96 | T67: =T61*$T$65 -> 42330.6 | U67: =U61*$U$65 -> 55584.27962 | V67: =SUM(Q67:U67) -> 132443.8236
P68: Customer 2 | Q68: =Q62*$Q$65 -> 1290.72 | R68: =R62*$R$65 -> 3471.264 | S68: =S62*$S$65 -> 29766.96 | T68: =T62*$T$65 -> 42211.13364 | U68: =U62*$U$65 -> 39760.37273 | V68: =SUM(Q68:U68) -> 116500.4504
P69: Customer 3 | Q69: 1290.72 | R69: 3471.264 | S69: 29766.96 | T69: 41581.07323 | U69: 27311.87907 | V69: 103421.8963
V70: =SUM(V67:V69) -> 352366.1703
V72: =V70-V16 -> 27408.49608
V73: =V72/V16 -> 0.08434481858
